Workbook

Sheet Profile Overview (hidden)
A1: Prior to opening this file, open the Consolidated Spread Sheet from GAC and save it in the same folder as this Shell. Then open this Shell and follow these steps. | B1: Step 1 | C1: Step 2 | D1: Step 3 | E1: Step 4 | F1: Step 5 | H1: NOTE:
B2: Sort Table 1 (A to Z) by Profile ID. | C2: Add Contract Start and End Dates, or ensure they are correct. | D2: On LHD Overview tab, update the "Locked?" column as needed. | E2: Did you want to make changes to the shell? If yes, "Save" now. Then "Save As…" YYYYconsolidated-contract-overview (YYYY = contract year) in the appropriate folder. | F2: Click macro button, which does the following: | H2: The new file can be uploaded to https://www.dhs.wisconsin.gov/gac/gacYYYY.htm (YYYY = contract year)
C3: If there are any new Profiles in DPH, add them to the Profile Library table. | F3: >> Hides this worksheet >> Sorts each LHD worksheet by Amount >> Copies/Pastes Values on the LHD Overview worksheet
B5: TABLE 1 | I5: Profile Library | IV5: Debarment & Suspension | ME5: =COUNT(IW5:MD5) -> 0 | MF5: =COUNT(IW5:MD5)/87 -> 0 | MG5: Debarment & Suspension
B6: Sort by Profile ID ↓ | D6: Manual Entry ↓ | E6: Manual Entry ↓
B7: Profile ID (Populates from LHD Overview) | C7: Profile Name | D7: Contract Start Date | E7: Contract End Date | F7: Agency Type Prefix | G7: Final Report Due (Contract End plus 45) | I7: Prof ID | J7: Name
B8: ='LHD Overview'!AU2 -> 103010 | C8: =IFERROR(VLOOKUP(B8,Table2[],2,FALSE),"") -> REGNL RADON INF CENTERS | D8: 2020-01-01 | E8: 2020-12-31 | F8: =IF(E8="","",IF(E8<DATE(2020,1,1),"900",IF(E8<DATE(2021,1,1),"000",IF(E8<DATE(2022,1,1),"100",IF(E8<DATE(2023,1,1),"200",IF(E8<DATE(2024,1,1),"300",IF(E8<DATE(2025,1,1),"400",IF(E8<DATE(2026,1,1),"500",IF(E8<DATE(2027,1,1),"600",IF(E8<DATE(2028,1,1),"700",IF(E8<DATE(2029,1,1),"800",IF(E8<DATE(2030,1,1),"900","")))))))))))) -> 000 | G8: =IF(E8="","",IFERROR(E8+45,"TBD")) -> 2021-02-14 | I8: 312 | J8: APS-ADULT PROTECTIVE SVCS
B9: ='LHD Overview'!AR2 -> 105000 | C9: PH EMERGENCY QUARANTINE | D9: 2020-08-01 | E9: 2021-06-30 | F9: =IF(E9="","",IF(E9<DATE(2020,1,1),"900",IF(E9<DATE(2021,1,1),"000",IF(E9<DATE(2022,1,1),"100",IF(E9<DATE(2023,1,1),"200",IF(E9<DATE(2024,1,1),"300",IF(E9<DATE(2025,1,1),"400",IF(E9<DATE(2026,1,1),"500",IF(E9<DATE(2027,1,1),"600",IF(E9<DATE(2028,1,1),"700",IF(E9<DATE(2029,1,1),"800",IF(E9<DATE(2030,1,1),"900","")))))))))))) -> 100 | G9: =IF(E9="","",IFERROR(E9+45,"TBD")) -> 2021-08-14 | I9: 381 | J9: ALZHEIMERS FAMILY SUPPORT
B10: ='LHD Overview'!AJ2 -> 110190 | C10: =IFERROR(VLOOKUP(B10,Table2[],2,FALSE),"") -> INFANT MORTALITY-RACINE | D10: 2020-07-01 | E10: 2021-06-30 | F10: =IF(E10="","",IF(E10<DATE(2020,1,1),"900",IF(E10<DATE(2021,1,1),"000",IF(E10<DATE(2022,1,1),"100",IF(E10<DATE(2023,1,1),"200",IF(E10<DATE(2024,1,1),"300",IF(E10<DATE(2025,1,1),"400",IF(E10<DATE(2026,1,1),"500",IF(E10<DATE(2027,1,1),"600",IF(E10<DATE(2028,1,1),"700",IF(E10<DATE(2029,1,1),"800",IF(E10<DATE(2030,1,1),"900","")))))))))))) -> 100 | G10: =IF(E10="","",IFERROR(E10+45,"TBD")) -> 2021-08-14 | I10: 1111 | J10: TCB INCENT RECOUP
B11: ='LHD Overview'!AG2 -> 119011 | C11: =IFERROR(VLOOKUP(B11,Table2[],2,FALSE),"") -> GPR CANCER, CITY OF MILW | D11: 2020-07-01 | E11: 2021-06-30 | F11: =IF(E11="","",IF(E11<DATE(2020,1,1),"900",IF(E11<DATE(2021,1,1),"000",IF(E11<DATE(2022,1,1),"100",IF(E11<DATE(2023,1,1),"200",IF(E11<DATE(2024,1,1),"300",IF(E11<DATE(2025,1,1),"400",IF(E11<DATE(2026,1,1),"500",IF(E11<DATE(2027,1,1),"600",IF(E11<DATE(2028,1,1),"700",IF(E11<DATE(2029,1,1),"800",IF(E11<DATE(2030,1,1),"900","")))))))))))) -> 100 | G11: =IF(E11="","",IFERROR(E11+45,"TBD")) -> 2021-08-14 | I11: 11111 | J11: PHEP EBOLA 2
B12: ='LHD Overview'!AD2 -> 128010 | C12: CONGENITAL DISORDERS | D12: 2020-07-01 | E12: 2021-06-30 | F12: =IF(E12="","",IF(E12<DATE(2020,1,1),"900",IF(E12<DATE(2021,1,1),"000",IF(E12<DATE(2022,1,1),"100",IF(E12<DATE(2023,1,1),"200",IF(E12<DATE(2024,1,1),"300",IF(E12<DATE(2025,1,1),"400",IF(E12<DATE(2026,1,1),"500",IF(E12<DATE(2027,1,1),"600",IF(E12<DATE(2028,1,1),"700",IF(E12<DATE(2029,1,1),"800",IF(E12<DATE(2030,1,1),"900","")))))))))))) -> 100 | G12: =IF(E12="","",IFERROR(E12+45,"TBD")) -> 2021-08-14 | I12: 14112 | J12: DELTA DENTAL/SEALANTS
B13: ='LHD Overview'!AO2 -> 150211 | C13: OPIOID RX PATHWAY PROJ | D13: 2020-09-01 | E13: 2021-08-31 | F13: =IF(E13="","",IF(E13<DATE(2020,1,1),"900",IF(E13<DATE(2021,1,1),"000",IF(E13<DATE(2022,1,1),"100",IF(E13<DATE(2023,1,1),"200",IF(E13<DATE(2024,1,1),"300",IF(E13<DATE(2025,1,1),"400",IF(E13<DATE(2026,1,1),"500",IF(E13<DATE(2027,1,1),"600",IF(E13<DATE(2028,1,1),"700",IF(E13<DATE(2029,1,1),"800",IF(E13<DATE(2030,1,1),"900","")))))))))))) -> 100 | G13: =IF(E13="","",IFERROR(E13+45,"TBD")) -> 2021-10-15 | I13: 65328 | J13: ATSDR APPLETREE TRIBAL
B14: ='LHD Overview'!AP2 -> 150216 | C14: OVERDOSE FATALITY REVIEWS | D14: 2020-09-01 | E14: 2021-08-31 | F14: =IF(E14="","",IF(E14<DATE(2020,1,1),"900",IF(E14<DATE(2021,1,1),"000",IF(E14<DATE(2022,1,1),"100",IF(E14<DATE(2023,1,1),"200",IF(E14<DATE(2024,1,1),"300",IF(E14<DATE(2025,1,1),"400",IF(E14<DATE(2026,1,1),"500",IF(E14<DATE(2027,1,1),"600",IF(E14<DATE(2028,1,1),"700",IF(E14<DATE(2029,1,1),"800",IF(E14<DATE(2030,1,1),"900","")))))))))))) -> 100 | G14: =IF(E14="","",IFERROR(E14+45,"TBD")) -> 2021-10-15 | I14: 65505 | J14: WI WELL WOMEN PROGRAM
B15: ='LHD Overview'!AV2 -> 150321 | C15: =IFERROR(VLOOKUP(B15,Table2[],2,FALSE),"") -> EPA INDOOR RADON SERVICES | D15: 2020-01-01 | E15: 2020-12-31 | F15: =IF(E15="","",IF(E15<DATE(2020,1,1),"900",IF(E15<DATE(2021,1,1),"000",IF(E15<DATE(2022,1,1),"100",IF(E15<DATE(2023,1,1),"200",IF(E15<DATE(2024,1,1),"300",IF(E15<DATE(2025,1,1),"400",IF(E15<DATE(2026,1,1),"500",IF(E15<DATE(2027,1,1),"600",IF(E15<DATE(2028,1,1),"700",IF(E15<DATE(2029,1,1),"800",IF(E15<DATE(2030,1,1),"900","")))))))))))) -> 000 | G15: =IF(E15="","",IFERROR(E15+45,"TBD")) -> 2021-02-14 | I15: 65507 | J15: WWWP MENOMINEE CONS CONT
B16: ='LHD Overview'!N2 -> 150426 | C16: =IFERROR(VLOOKUP(B16,Table2[],2,FALSE),"") -> 1815 DIABETES | D16: 2020-07-01 | E16: 2021-06-30 | F16: =IF(E16="","",IF(E16<DATE(2020,1,1),"900",IF(E16<DATE(2021,1,1),"000",IF(E16<DATE(2022,1,1),"100",IF(E16<DATE(2023,1,1),"200",IF(E16<DATE(2024,1,1),"300",IF(E16<DATE(2025,1,1),"400",IF(E16<DATE(2026,1,1),"500",IF(E16<DATE(2027,1,1),"600",IF(E16<DATE(2028,1,1),"700",IF(E16<DATE(2029,1,1),"800",IF(E16<DATE(2030,1,1),"900","")))))))))))) -> 100 | G16: =IF(E16="","",IFERROR(E16+45,"TBD")) -> 2021-08-14 | I16: 65510 | J16: COOP AM INDIAN HLTH PROJ
B17: ='LHD Overview'!O2 -> 150427 | C17: =IFERROR(VLOOKUP(B17,Table2[],2,FALSE),"") -> 1815 HEART DISEASE PREV | D17: 2020-07-01 | E17: 2021-06-30 | F17: =IF(E17="","",IF(E17<DATE(2020,1,1),"900",IF(E17<DATE(2021,1,1),"000",IF(E17<DATE(2022,1,1),"100",IF(E17<DATE(2023,1,1),"200",IF(E17<DATE(2024,1,1),"300",IF(E17<DATE(2025,1,1),"400",IF(E17<DATE(2026,1,1),"500",IF(E17<DATE(2027,1,1),"600",IF(E17<DATE(2028,1,1),"700",IF(E17<DATE(2029,1,1),"800",IF(E17<DATE(2030,1,1),"900","")))))))))))) -> 100 | G17: =IF(E17="","",IFERROR(E17+45,"TBD")) -> 2021-08-14 | I17: 65511 | J17: HCR-INFRASTRUTURE & QI
B18: ='LHD Overview'!P2 -> 150429 | C18: =IFERROR(VLOOKUP(B18,Table2[],2,FALSE),"") -> 1817 SL DIABETES PREV | D18: 2020-10-01 | E18: 2021-09-30 | F18: =IF(E18="","",IF(E18<DATE(2020,1,1),"900",IF(E18<DATE(2021,1,1),"000",IF(E18<DATE(2022,1,1),"100",IF(E18<DATE(2023,1,1),"200",IF(E18<DATE(2024,1,1),"300",IF(E18<DATE(2025,1,1),"400",IF(E18<DATE(2026,1,1),"500",IF(E18<DATE(2027,1,1),"600",IF(E18<DATE(2028,1,1),"700",IF(E18<DATE(2029,1,1),"800",IF(E18<DATE(2030,1,1),"900","")))))))))))) -> 100 | G18: =IF(E18="","",IFERROR(E18+45,"TBD")) -> 2021-11-14 | I18: 65514 | J18: TRIBAL COMM HLTH CNTR
B19: ='LHD Overview'!AC2 -> 151741 | C19: COMM WATER FLUORIDATION | D19: 2020-07-01 | E19: 2021-06-30 | F19: =IF(E19="","",IF(E19<DATE(2020,1,1),"900",IF(E19<DATE(2021,1,1),"000",IF(E19<DATE(2022,1,1),"100",IF(E19<DATE(2023,1,1),"200",IF(E19<DATE(2024,1,1),"300",IF(E19<DATE(2025,1,1),"400",IF(E19<DATE(2026,1,1),"500",IF(E19<DATE(2027,1,1),"600",IF(E19<DATE(2028,1,1),"700",IF(E19<DATE(2029,1,1),"800",IF(E19<DATE(2030,1,1),"900","")))))))))))) -> 100 | G19: =IF(E19="","",IFERROR(E19+45,"TBD")) -> 2021-08-14 | I19: 65515 | J19: ASTHMA SERVICES
B20: ='LHD Overview'!K2 -> 152003 | C20: =IFERROR(VLOOKUP(B20,Table2[],2,FALSE),"") -> WH/FP RH 253.07 (E) | D20: 2020-01-01 | E20: 2020-12-31 | F20: =IF(E20="","",IF(E20<DATE(2020,1,1),"900",IF(E20<DATE(2021,1,1),"000",IF(E20<DATE(2022,1,1),"100",IF(E20<DATE(2023,1,1),"200",IF(E20<DATE(2024,1,1),"300",IF(E20<DATE(2025,1,1),"400",IF(E20<DATE(2026,1,1),"500",IF(E20<DATE(2027,1,1),"600",IF(E20<DATE(2028,1,1),"700",IF(E20<DATE(2029,1,1),"800",IF(E20<DATE(2030,1,1),"900","")))))))))))) -> 000 | G20: =IF(E20="","",IFERROR(E20+45,"TBD")) -> 2021-02-14 | I20: 65516 | J20: OPIOID RX PATHWAY TRIBAL
B21: ='LHD Overview'!J2 -> 152020 | C21: =IFERROR(VLOOKUP(B21,Table2[],2,FALSE),"") -> WH/FP RH 253.07 (D) | D21: 2020-01-01 | E21: 2020-12-31 | F21: =IF(E21="","",IF(E21<DATE(2020,1,1),"900",IF(E21<DATE(2021,1,1),"000",IF(E21<DATE(2022,1,1),"100",IF(E21<DATE(2023,1,1),"200",IF(E21<DATE(2024,1,1),"300",IF(E21<DATE(2025,1,1),"400",IF(E21<DATE(2026,1,1),"500",IF(E21<DATE(2027,1,1),"600",IF(E21<DATE(2028,1,1),"700",IF(E21<DATE(2029,1,1),"800",IF(E21<DATE(2030,1,1),"900","")))))))))))) -> 000 | G21: =IF(E21="","",IFERROR(E21+45,"TBD")) -> 2021-02-14 | I21: 65517 | J21: PUB HLTH CRISIS RESPONSE
B22: ='LHD Overview'!AX2 -> 154661 | C22: =IFERROR(VLOOKUP(B22,Table2[],2,FALSE),"") -> SNAP NUTR ED GRANT | D22: 2020-10-01 | E22: 2021-09-30 | F22: =IF(E22="","",IF(E22<DATE(2020,1,1),"900",IF(E22<DATE(2021,1,1),"000",IF(E22<DATE(2022,1,1),"100",IF(E22<DATE(2023,1,1),"200",IF(E22<DATE(2024,1,1),"300",IF(E22<DATE(2025,1,1),"400",IF(E22<DATE(2026,1,1),"500",IF(E22<DATE(2027,1,1),"600",IF(E22<DATE(2028,1,1),"700",IF(E22<DATE(2029,1,1),"800",IF(E22<DATE(2030,1,1),"900","")))))))))))) -> 100 | G22: =IF(E22="","",IFERROR(E22+45,"TBD")) -> 2021-11-14 | I22: 65519 | J22: PREVENTION BG AMEND
B23: ='LHD Overview'!W2 -> 154761 | C23: BREASTFEEDING CAMPAIGN | D23: 2020-10-01 | E23: 2021-09-30 | F23: =IF(E23="","",IF(E23<DATE(2020,1,1),"900",IF(E23<DATE(2021,1,1),"000",IF(E23<DATE(2022,1,1),"100",IF(E23<DATE(2023,1,1),"200",IF(E23<DATE(2024,1,1),"300",IF(E23<DATE(2025,1,1),"400",IF(E23<DATE(2026,1,1),"500",IF(E23<DATE(2027,1,1),"600",IF(E23<DATE(2028,1,1),"700",IF(E23<DATE(2029,1,1),"800",IF(E23<DATE(2030,1,1),"900","")))))))))))) -> 100 | G23: =IF(E23="","",IFERROR(E23+45,"TBD")) -> 2021-11-14 | I23: 65520 | J23: PREVENTIVE HLTH&HLTH SERV
B24: ='LHD Overview'!U2 -> 154791 | C24: CYSHCN Birth Defects | D24: 2020-01-01 | E24: 2020-06-30 | F24: =IF(E24="","",IF(E24<DATE(2020,1,1),"900",IF(E24<DATE(2021,1,1),"000",IF(E24<DATE(2022,1,1),"100",IF(E24<DATE(2023,1,1),"200",IF(E24<DATE(2024,1,1),"300",IF(E24<DATE(2025,1,1),"400",IF(E24<DATE(2026,1,1),"500",IF(E24<DATE(2027,1,1),"600",IF(E24<DATE(2028,1,1),"700",IF(E24<DATE(2029,1,1),"800",IF(E24<DATE(2030,1,1),"900","")))))))))))) -> 000 | G24: =IF(E24="","",IFERROR(E24+45,"TBD")) -> 2020-08-14 | I24: 65525 | J24: HLTH EQUITY CHECK IN
B25: ='LHD Overview'!V2 -> 155015 | C25: BIOT Focus A Planning | D25: 2020-07-01 | E25: 2021-06-30 | F25: =IF(E25="","",IF(E25<DATE(2020,1,1),"900",IF(E25<DATE(2021,1,1),"000",IF(E25<DATE(2022,1,1),"100",IF(E25<DATE(2023,1,1),"200",IF(E25<DATE(2024,1,1),"300",IF(E25<DATE(2025,1,1),"400",IF(E25<DATE(2026,1,1),"500",IF(E25<DATE(2027,1,1),"600",IF(E25<DATE(2028,1,1),"700",IF(E25<DATE(2029,1,1),"800",IF(E25<DATE(2030,1,1),"900","")))))))))))) -> 100 | G25: =IF(E25="","",IFERROR(E25+45,"TBD")) -> 2021-08-14 | I25: 65535 | J25: FLUORIDE MOUTH RINSING
B26: ='LHD Overview'!AI2 -> 155020 | C26: =IFERROR(VLOOKUP(B26,Table2[],2,FALSE),"") -> CONS CONTRACTS IMM | D26: 2020-01-01 | E26: 2020-12-31 | F26: =IF(E26="","",IF(E26<DATE(2020,1,1),"900",IF(E26<DATE(2021,1,1),"000",IF(E26<DATE(2022,1,1),"100",IF(E26<DATE(2023,1,1),"200",IF(E26<DATE(2024,1,1),"300",IF(E26<DATE(2025,1,1),"400",IF(E26<DATE(2026,1,1),"500",IF(E26<DATE(2027,1,1),"600",IF(E26<DATE(2028,1,1),"700",IF(E26<DATE(2029,1,1),"800",IF(E26<DATE(2030,1,1),"900","")))))))))))) -> 000 | G26: =IF(E26="","",IFERROR(E26+45,"TBD")) -> 2021-02-14 | I26: 65537 | J26: PHER TRIBES
B27: ='LHD Overview'!AK2 -> 155027 | C27: =IFERROR(VLOOKUP(B27,Table2[],2,FALSE),"") -> INFERTILITY PREVENTION | D27: 2020-01-01 | E27: 2020-12-31 | F27: =IF(E27="","",IF(E27<DATE(2020,1,1),"900",IF(E27<DATE(2021,1,1),"000",IF(E27<DATE(2022,1,1),"100",IF(E27<DATE(2023,1,1),"200",IF(E27<DATE(2024,1,1),"300",IF(E27<DATE(2025,1,1),"400",IF(E27<DATE(2026,1,1),"500",IF(E27<DATE(2027,1,1),"600",IF(E27<DATE(2028,1,1),"700",IF(E27<DATE(2029,1,1),"800",IF(E27<DATE(2030,1,1),"900","")))))))))))) -> 000 | G27: =IF(E27="","",IFERROR(E27+45,"TBD")) -> 2021-02-14 | I27: 65540 | J27: HIV PREVENTION (MINORITY)
B28: ='LHD Overview'!T2 -> 155050 | C28: BIOTERRORISM FOCUS A | D28: 2020-07-01 | E28: 2021-06-30 | F28: =IF(E28="","",IF(E28<DATE(2020,1,1),"900",IF(E28<DATE(2021,1,1),"000",IF(E28<DATE(2022,1,1),"100",IF(E28<DATE(2023,1,1),"200",IF(E28<DATE(2024,1,1),"300",IF(E28<DATE(2025,1,1),"400",IF(E28<DATE(2026,1,1),"500",IF(E28<DATE(2027,1,1),"600",IF(E28<DATE(2028,1,1),"700",IF(E28<DATE(2029,1,1),"800",IF(E28<DATE(2030,1,1),"900","")))))))))))) -> 100 | G28: =IF(E28="","",IFERROR(E28+45,"TBD")) -> 2021-08-14 | I28: 65549 | J28: WIC CSHCN SPECIAL PROJ
B29: ='LHD Overview'!R2 -> 155072 | C29: ASTHMA CAPACITY | D29: 2020-09-01 | E29: 2021-08-31 | F29: =IF(E29="","",IF(E29<DATE(2020,1,1),"900",IF(E29<DATE(2021,1,1),"000",IF(E29<DATE(2022,1,1),"100",IF(E29<DATE(2023,1,1),"200",IF(E29<DATE(2024,1,1),"300",IF(E29<DATE(2025,1,1),"400",IF(E29<DATE(2026,1,1),"500",IF(E29<DATE(2027,1,1),"600",IF(E29<DATE(2028,1,1),"700",IF(E29<DATE(2029,1,1),"800",IF(E29<DATE(2030,1,1),"900","")))))))))))) -> 100 | G29: =IF(E29="","",IFERROR(E29+45,"TBD")) -> 2021-10-15 | I29: 65550 | J29: IMMUNIZATION - TRIBE
B30: ='LHD Overview'!AW2 -> 155080 | C30: =IFERROR(VLOOKUP(B30,Table2[],2,FALSE),"") -> RAPE PREV AND EDUCATION | D30: 2020-02-01 | E30: 2021-01-31 | F30: =IF(E30="","",IF(E30<DATE(2020,1,1),"900",IF(E30<DATE(2021,1,1),"000",IF(E30<DATE(2022,1,1),"100",IF(E30<DATE(2023,1,1),"200",IF(E30<DATE(2024,1,1),"300",IF(E30<DATE(2025,1,1),"400",IF(E30<DATE(2026,1,1),"500",IF(E30<DATE(2027,1,1),"600",IF(E30<DATE(2028,1,1),"700",IF(E30<DATE(2029,1,1),"800",IF(E30<DATE(2030,1,1),"900","")))))))))))) -> 100 | G30: =IF(E30="","",IFERROR(E30+45,"TBD")) -> 2021-03-17 | I30: 65556 | J30: TRIBES IMMUN - ADULT
B31: ='LHD Overview'!S2 -> 155190 | C31: BIOT PREPARE - CRI | D31: 2020-07-01 | E31: 2020-06-30 | F31: =IF(E31="","",IF(E31<DATE(2020,1,1),"900",IF(E31<DATE(2021,1,1),"000",IF(E31<DATE(2022,1,1),"100",IF(E31<DATE(2023,1,1),"200",IF(E31<DATE(2024,1,1),"300",IF(E31<DATE(2025,1,1),"400",IF(E31<DATE(2026,1,1),"500",IF(E31<DATE(2027,1,1),"600",IF(E31<DATE(2028,1,1),"700",IF(E31<DATE(2029,1,1),"800",IF(E31<DATE(2030,1,1),"900","")))))))))))) -> 000 | G31: =IF(E31="","",IFERROR(E31+45,"TBD")) -> 2020-08-14 | I31: 65557 | J31: DIABETES PRS2011
B32: ='LHD Overview'!AS2 -> 155191 | C32: =IFERROR(VLOOKUP(B32,Table2[],2,FALSE),"") -> BIOT PREPARE - CRI | D32: 2020-07-01 | E32: 2020-06-30 | F32: =IF(E32="","",IF(E32<DATE(2020,1,1),"900",IF(E32<DATE(2021,1,1),"000",IF(E32<DATE(2022,1,1),"100",IF(E32<DATE(2023,1,1),"200",IF(E32<DATE(2024,1,1),"300",IF(E32<DATE(2025,1,1),"400",IF(E32<DATE(2026,1,1),"500",IF(E32<DATE(2027,1,1),"600",IF(E32<DATE(2028,1,1),"700",IF(E32<DATE(2029,1,1),"800",IF(E32<DATE(2030,1,1),"900","")))))))))))) -> 000 | G32: =IF(E32="","",IFERROR(E32+45,"TBD")) -> 2020-08-14 | I32: 65560 | J32: MCH REPRODUCTIVE HEALTH
B33: ='LHD Overview'!AB2 -> 155800 | C33: COMM DISEASE CTRL PREV LPHD | D33: 2020-07-01 | E33: 2021-06-30 | F33: =IF(E33="","",IF(E33<DATE(2020,1,1),"900",IF(E33<DATE(2021,1,1),"000",IF(E33<DATE(2022,1,1),"100",IF(E33<DATE(2023,1,1),"200",IF(E33<DATE(2024,1,1),"300",IF(E33<DATE(2025,1,1),"400",IF(E33<DATE(2026,1,1),"500",IF(E33<DATE(2027,1,1),"600",IF(E33<DATE(2028,1,1),"700",IF(E33<DATE(2029,1,1),"800",IF(E33<DATE(2030,1,1),"900","")))))))))))) -> 100 | G33: =IF(E33="","",IFERROR(E33+45,"TBD")) -> 2021-08-14 | I33: 65561 | J33: MCH PERINATAL HEALTH
B34: ='LHD Overview'!AE2 -> 155801 | C34: DPH PHEP COVID19 | D34: 2020-04-01 | E34: 2021-03-31 | F34: =IF(E34="","",IF(E34<DATE(2020,1,1),"900",IF(E34<DATE(2021,1,1),"000",IF(E34<DATE(2022,1,1),"100",IF(E34<DATE(2023,1,1),"200",IF(E34<DATE(2024,1,1),"300",IF(E34<DATE(2025,1,1),"400",IF(E34<DATE(2026,1,1),"500",IF(E34<DATE(2027,1,1),"600",IF(E34<DATE(2028,1,1),"700",IF(E34<DATE(2029,1,1),"800",IF(E34<DATE(2030,1,1),"900","")))))))))))) -> 100 | G34: =IF(E34="","",IFERROR(E34+45,"TBD")) -> 2021-05-15 | I34: 65562 | J34: MCH INFANT CHILD HEALTH
B35: ='LHD Overview'!AF2 -> 155802 | C35: ELC CARES COVID19 | D35: 2020-02-01 | E35: 2021-09-30 | F35: =IF(E35="","",IF(E35<DATE(2020,1,1),"900",IF(E35<DATE(2021,1,1),"000",IF(E35<DATE(2022,1,1),"100",IF(E35<DATE(2023,1,1),"200",IF(E35<DATE(2024,1,1),"300",IF(E35<DATE(2025,1,1),"400",IF(E35<DATE(2026,1,1),"500",IF(E35<DATE(2027,1,1),"600",IF(E35<DATE(2028,1,1),"700",IF(E35<DATE(2029,1,1),"800",IF(E35<DATE(2030,1,1),"900","")))))))))))) -> 100 | G35: =IF(E35="","",IFERROR(E35+45,"TBD")) -> 2021-11-14 | I35: 65563 | J35: MCH SCHOOL-AGE ADOL HLTH
B36: ='LHD Overview'!Y2 -> 155803 | C36: CARES COVID19 TESTING | D36: 2020-03-01 | E36: 2020-12-31 | F36: =IF(E36="","",IF(E36<DATE(2020,1,1),"900",IF(E36<DATE(2021,1,1),"000",IF(E36<DATE(2022,1,1),"100",IF(E36<DATE(2023,1,1),"200",IF(E36<DATE(2024,1,1),"300",IF(E36<DATE(2025,1,1),"400",IF(E36<DATE(2026,1,1),"500",IF(E36<DATE(2027,1,1),"600",IF(E36<DATE(2028,1,1),"700",IF(E36<DATE(2029,1,1),"800",IF(E36<DATE(2030,1,1),"900","")))))))))))) -> 000 | G36: =IF(E36="","",IFERROR(E36+45,"TBD")) -> 2021-02-14 | I36: 65564 | J36: MCH CHILDREN SPECIAL NEED
B37: ='LHD Overview'!X2 -> 155804 | C37: CARES COVID19 PLAN | D37: 2020-03-01 | E37: 2020-12-31 | F37: =IF(E37="","",IF(E37<DATE(2020,1,1),"900",IF(E37<DATE(2021,1,1),"000",IF(E37<DATE(2022,1,1),"100",IF(E37<DATE(2023,1,1),"200",IF(E37<DATE(2024,1,1),"300",IF(E37<DATE(2025,1,1),"400",IF(E37<DATE(2026,1,1),"500",IF(E37<DATE(2027,1,1),"600",IF(E37<DATE(2028,1,1),"700",IF(E37<DATE(2029,1,1),"800",IF(E37<DATE(2030,1,1),"900","")))))))))))) -> 000 | G37: =IF(E37="","",IFERROR(E37+45,"TBD")) -> 2021-02-14 | I37: 65574 | J37: TPCP-NATIVE YOUTH SURVEY
B38: ='LHD Overview'!Z2 -> 155805 | C38: COVID19 Contact Tracing | D38: 2020-03-01 | E38: 2020-12-31 | F38: =IF(E38="","",IF(E38<DATE(2020,1,1),"900",IF(E38<DATE(2021,1,1),"000",IF(E38<DATE(2022,1,1),"100",IF(E38<DATE(2023,1,1),"200",IF(E38<DATE(2024,1,1),"300",IF(E38<DATE(2025,1,1),"400",IF(E38<DATE(2026,1,1),"500",IF(E38<DATE(2027,1,1),"600",IF(E38<DATE(2028,1,1),"700",IF(E38<DATE(2029,1,1),"800",IF(E38<DATE(2030,1,1),"900","")))))))))))) -> 000 | G38: =IF(E38="","",IFERROR(E38+45,"TBD")) -> 2021-02-14 | I38: 65578 | J38: TOBACCO NETWORK
B39: ='LHD Overview'!Q2 -> 155945 | C39: =IFERROR(VLOOKUP(B39,Table2[],2,FALSE),"") -> DIS FIELD STAFF | D39: 2020-01-01 | E39: 2020-12-31 | F39: =IF(E39="","",IF(E39<DATE(2020,1,1),"900",IF(E39<DATE(2021,1,1),"000",IF(E39<DATE(2022,1,1),"100",IF(E39<DATE(2023,1,1),"200",IF(E39<DATE(2024,1,1),"300",IF(E39<DATE(2025,1,1),"400",IF(E39<DATE(2026,1,1),"500",IF(E39<DATE(2027,1,1),"600",IF(E39<DATE(2028,1,1),"700",IF(E39<DATE(2029,1,1),"800",IF(E39<DATE(2030,1,1),"900","")))))))))))) -> 000 | G39: =IF(E39="","",IFERROR(E39+45,"TBD")) -> 2021-02-14 | I39: 65580 | J39: WIC INFRASTRUCTURE
B40: ='LHD Overview'!AH2 -> 155957 | C40: =IFERROR(VLOOKUP(B40,Table2[],2,FALSE),"") -> HIV PREV PS & LINKAGES | D40: 2020-01-01 | E40: 2020-12-31 | F40: =IF(E40="","",IF(E40<DATE(2020,1,1),"900",IF(E40<DATE(2021,1,1),"000",IF(E40<DATE(2022,1,1),"100",IF(E40<DATE(2023,1,1),"200",IF(E40<DATE(2024,1,1),"300",IF(E40<DATE(2025,1,1),"400",IF(E40<DATE(2026,1,1),"500",IF(E40<DATE(2027,1,1),"600",IF(E40<DATE(2028,1,1),"700",IF(E40<DATE(2029,1,1),"800",IF(E40<DATE(2030,1,1),"900","")))))))))))) -> 000 | G40: =IF(E40="","",IFERROR(E40+45,"TBD")) -> 2021-02-14 | I40: 65581 | J40: WIC PEER COUNSELING
B41: ='LHD Overview'!AA2 -> 157720 | C41: CHILDHOOD LEAD CONSOLIDATED | D41: 2020-01-01 | E41: 2020-12-31 | F41: =IF(E41="","",IF(E41<DATE(2020,1,1),"900",IF(E41<DATE(2021,1,1),"000",IF(E41<DATE(2022,1,1),"100",IF(E41<DATE(2023,1,1),"200",IF(E41<DATE(2024,1,1),"300",IF(E41<DATE(2025,1,1),"400",IF(E41<DATE(2026,1,1),"500",IF(E41<DATE(2027,1,1),"600",IF(E41<DATE(2028,1,1),"700",IF(E41<DATE(2029,1,1),"800",IF(E41<DATE(2030,1,1),"900","")))))))))))) -> 000 | G41: =IF(E41="","",IFERROR(E41+45,"TBD")) -> 2021-02-14 | I41: 65585 | J41: WIC GRANTS
B42: ='LHD Overview'!AT2 -> 159220 | C42: =IFERROR(VLOOKUP(B42,Table2[],2,FALSE),"") -> CONS CONTRACTS PHHS | D42: 2019-10-01 | E42: 2021-09-30 | F42: =IF(E42="","",IF(E42<DATE(2020,1,1),"900",IF(E42<DATE(2021,1,1),"000",IF(E42<DATE(2022,1,1),"100",IF(E42<DATE(2023,1,1),"200",IF(E42<DATE(2024,1,1),"300",IF(E42<DATE(2025,1,1),"400",IF(E42<DATE(2026,1,1),"500",IF(E42<DATE(2027,1,1),"600",IF(E42<DATE(2028,1,1),"700",IF(E42<DATE(2029,1,1),"800",IF(E42<DATE(2030,1,1),"900","")))))))))))) -> 100 | G42: =IF(E42="","",IFERROR(E42+45,"TBD")) -> 2021-11-14 | I42: 65586 | J42: WIC FARMERS MARKET
B43: ='LHD Overview'!AM2 -> 159320 | C43: =IFERROR(VLOOKUP(B43,Table2[],2,FALSE),"") -> CONS CONTRACTS MCH | D43: 2020-01-01 | E43: 2020-12-31 | F43: =IF(E43="","",IF(E43<DATE(2020,1,1),"900",IF(E43<DATE(2021,1,1),"000",IF(E43<DATE(2022,1,1),"100",IF(E43<DATE(2023,1,1),"200",IF(E43<DATE(2024,1,1),"300",IF(E43<DATE(2025,1,1),"400",IF(E43<DATE(2026,1,1),"500",IF(E43<DATE(2027,1,1),"600",IF(E43<DATE(2028,1,1),"700",IF(E43<DATE(2029,1,1),"800",IF(E43<DATE(2030,1,1),"900","")))))))))))) -> 000 | G43: =IF(E43="","",IFERROR(E43+45,"TBD")) -> 2021-02-14 | I43: 65587 | J43: WIC OUTREACH TRIBAL
B44: ='LHD Overview'!M2 -> 159322 | C44: =IFERROR(VLOOKUP(B44,Table2[],2,FALSE),"") -> WH/FP RH 20.435 (1)(EV) | D44: 2020-01-01 | E44: 2020-12-31 | F44: =IF(E44="","",IF(E44<DATE(2020,1,1),"900",IF(E44<DATE(2021,1,1),"000",IF(E44<DATE(2022,1,1),"100",IF(E44<DATE(2023,1,1),"200",IF(E44<DATE(2024,1,1),"300",IF(E44<DATE(2025,1,1),"400",IF(E44<DATE(2026,1,1),"500",IF(E44<DATE(2027,1,1),"600",IF(E44<DATE(2028,1,1),"700",IF(E44<DATE(2029,1,1),"800",IF(E44<DATE(2030,1,1),"900","")))))))))))) -> 000 | G44: =IF(E44="","",IFERROR(E44+45,"TBD")) -> 2021-02-14 | I44: 65590 | J44: TEFAP
B45: ='LHD Overview'!L2 -> 159327 | C45: =IFERROR(VLOOKUP(B45,Table2[],2,FALSE),"") -> WH/FP RH 253.07(4)(A) | D45: 2020-01-01 | E45: 2020-12-31 | F45: =IF(E45="","",IF(E45<DATE(2020,1,1),"900",IF(E45<DATE(2021,1,1),"000",IF(E45<DATE(2022,1,1),"100",IF(E45<DATE(2023,1,1),"200",IF(E45<DATE(2024,1,1),"300",IF(E45<DATE(2025,1,1),"400",IF(E45<DATE(2026,1,1),"500",IF(E45<DATE(2027,1,1),"600",IF(E45<DATE(2028,1,1),"700",IF(E45<DATE(2029,1,1),"800",IF(E45<DATE(2030,1,1),"900","")))))))))))) -> 000 | G45: =IF(E45="","",IFERROR(E45+45,"TBD")) -> 2021-02-14 | I45: 65594 | J45: MINORITY HEALTH GRANT
B46: ='LHD Overview'!BA2 -> 159328 | C46: =IFERROR(VLOOKUP(B46,Table2[],2,FALSE),"") -> TITLE X SERVICES | D46: 2020-04-01 | E46: 2021-03-31 | F46: =IF(E46="","",IF(E46<DATE(2020,1,1),"900",IF(E46<DATE(2021,1,1),"000",IF(E46<DATE(2022,1,1),"100",IF(E46<DATE(2023,1,1),"200",IF(E46<DATE(2024,1,1),"300",IF(E46<DATE(2025,1,1),"400",IF(E46<DATE(2026,1,1),"500",IF(E46<DATE(2027,1,1),"600",IF(E46<DATE(2028,1,1),"700",IF(E46<DATE(2029,1,1),"800",IF(E46<DATE(2030,1,1),"900","")))))))))))) -> 100 | G46: =IF(E46="","",IFERROR(E46+45,"TBD")) -> 2021-05-15 | I46: 65595 | J46: MINORITY HEALTH GRANT
B47: ='LHD Overview'!AN2 -> 159332 | C47: =IFERROR(VLOOKUP(B47,Table2[],2,FALSE),"") -> STATEWIDES-PERF BASED | D47: 2020-01-01 | E47: 2020-12-31 | F47: =IF(E47="","",IF(E47<DATE(2020,1,1),"900",IF(E47<DATE(2021,1,1),"000",IF(E47<DATE(2022,1,1),"100",IF(E47<DATE(2023,1,1),"200",IF(E47<DATE(2024,1,1),"300",IF(E47<DATE(2025,1,1),"400",IF(E47<DATE(2026,1,1),"500",IF(E47<DATE(2027,1,1),"600",IF(E47<DATE(2028,1,1),"700",IF(E47<DATE(2029,1,1),"800",IF(E47<DATE(2030,1,1),"900","")))))))))))) -> 000 | G47: =IF(E47="","",IFERROR(E47+45,"TBD")) -> 2021-02-14 | I47: 65596 | J47: BIOTERRORISM PREPAREDNESS
B48: ='LHD Overview'!AQ2 -> 159354 | C48: PERS RESP EDUC PROG- PREP | D48: 2020-10-01 | E48: 2021-09-30 | F48: =IF(E48="","",IF(E48<DATE(2020,1,1),"900",IF(E48<DATE(2021,1,1),"000",IF(E48<DATE(2022,1,1),"100",IF(E48<DATE(2023,1,1),"200",IF(E48<DATE(2024,1,1),"300",IF(E48<DATE(2025,1,1),"400",IF(E48<DATE(2026,1,1),"500",IF(E48<DATE(2027,1,1),"600",IF(E48<DATE(2028,1,1),"700",IF(E48<DATE(2029,1,1),"800",IF(E48<DATE(2030,1,1),"900","")))))))))))) -> 100 | G48: =IF(E48="","",IFERROR(E48+45,"TBD")) -> 2021-11-14 | I48: 65597 | J48: BIOTERRORISM PREPAREDNESS
B49: ='LHD Overview'!AZ2 -> 181004 | C49: =IFERROR(VLOOKUP(B49,Table2[],2,FALSE),"") -> TPCP WI WINS | D49: 2020-07-01 | E49: 2021-06-30 | F49: =IF(E49="","",IF(E49<DATE(2020,1,1),"900",IF(E49<DATE(2021,1,1),"000",IF(E49<DATE(2022,1,1),"100",IF(E49<DATE(2023,1,1),"200",IF(E49<DATE(2024,1,1),"300",IF(E49<DATE(2025,1,1),"400",IF(E49<DATE(2026,1,1),"500",IF(E49<DATE(2027,1,1),"600",IF(E49<DATE(2028,1,1),"700",IF(E49<DATE(2029,1,1),"800",IF(E49<DATE(2030,1,1),"900","")))))))))))) -> 100 | G49: =IF(E49="","",IFERROR(E49+45,"TBD")) -> 2021-08-14 | I49: 65691 | J49: SNAP-ED TRIBES
B50: ='LHD Overview'!AY2 -> 181010 | C50: =IFERROR(VLOOKUP(B50,Table2[],2,FALSE),"") -> TPCP COMMUNITY INTRVNS | D50: 2020-07-01 | E50: 2021-06-30 | F50: =IF(E50="","",IF(E50<DATE(2020,1,1),"900",IF(E50<DATE(2021,1,1),"000",IF(E50<DATE(2022,1,1),"100",IF(E50<DATE(2023,1,1),"200",IF(E50<DATE(2024,1,1),"300",IF(E50<DATE(2025,1,1),"400",IF(E50<DATE(2026,1,1),"500",IF(E50<DATE(2027,1,1),"600",IF(E50<DATE(2028,1,1),"700",IF(E50<DATE(2029,1,1),"800",IF(E50<DATE(2030,1,1),"900","")))))))))))) -> 100 | G50: =IF(E50="","",IFERROR(E50+45,"TBD")) -> 2021-08-14 | I50: 65692 | J50: ENVIR PUB HLTH TRACKING
B51: ='LHD Overview'!AL2 -> 191001 | C51: =IFERROR(VLOOKUP(B51,Table2[],2,FALSE),"") -> MCH-CYSHCNHUBS | D51: 2020-01-01 | E51: 2020-12-31 | F51: =IF(E51="","",IF(E51<DATE(2020,1,1),"900",IF(E51<DATE(2021,1,1),"000",IF(E51<DATE(2022,1,1),"100",IF(E51<DATE(2023,1,1),"200",IF(E51<DATE(2024,1,1),"300",IF(E51<DATE(2025,1,1),"400",IF(E51<DATE(2026,1,1),"500",IF(E51<DATE(2027,1,1),"600",IF(E51<DATE(2028,1,1),"700",IF(E51<DATE(2029,1,1),"800",IF(E51<DATE(2030,1,1),"900","")))))))))))) -> 000 | G51: =IF(E51="","",IFERROR(E51+45,"TBD")) -> 2021-02-14 | I51: 65693 | J51: TRIBE PHEP EBOLA
C52: =IFERROR(VLOOKUP(B52,Table2[],2,FALSE),"") ->  | F52: =IF(E52="","",IF(E52<DATE(2020,1,1),"900",IF(E52<DATE(2021,1,1),"000",IF(E52<DATE(2022,1,1),"100",IF(E52<DATE(2023,1,1),"200",IF(E52<DATE(2024,1,1),"300",IF(E52<DATE(2025,1,1),"400",IF(E52<DATE(2026,1,1),"500",IF(E52<DATE(2027,1,1),"600",IF(E52<DATE(2028,1,1),"700",IF(E52<DATE(2029,1,1),"800",IF(E52<DATE(2030,1,1),"900","")))))))))))) ->  | G52: =IF(E52="","",IFERROR(E52+45,"TBD")) ->  | I52: 65694 | J52: TRIBAL ORAL HLTH PROG
C53: =IFERROR(VLOOKUP(B53,Table2[],2,FALSE),"") ->  | F53: =IF(E53="","",IF(E53<DATE(2020,1,1),"900",IF(E53<DATE(2021,1,1),"000",IF(E53<DATE(2022,1,1),"100",IF(E53<DATE(2023,1,1),"200",IF(E53<DATE(2024,1,1),"300",IF(E53<DATE(2025,1,1),"400",IF(E53<DATE(2026,1,1),"500",IF(E53<DATE(2027,1,1),"600",IF(E53<DATE(2028,1,1),"700",IF(E53<DATE(2029,1,1),"800",IF(E53<DATE(2030,1,1),"900","")))))))))))) ->  | G53: =IF(E53="","",IFERROR(E53+45,"TBD")) ->  | I53: 65695 | J53: RTTT GARDENS TO CHILDREN
C54: =IFERROR(VLOOKUP(B54,Table2[],2,FALSE),"") ->  | F54: =IF(E54="","",IF(E54<DATE(2020,1,1),"900",IF(E54<DATE(2021,1,1),"000",IF(E54<DATE(2022,1,1),"100",IF(E54<DATE(2023,1,1),"200",IF(E54<DATE(2024,1,1),"300",IF(E54<DATE(2025,1,1),"400",IF(E54<DATE(2026,1,1),"500",IF(E54<DATE(2027,1,1),"600",IF(E54<DATE(2028,1,1),"700",IF(E54<DATE(2029,1,1),"800",IF(E54<DATE(2030,1,1),"900","")))))))))))) ->  | G54: =IF(E54="","",IFERROR(E54+45,"TBD")) ->  | I54: 65800 | J54: COM DIS CTRL & PREV TRIBE
C55: =IFERROR(VLOOKUP(B55,Table2[],2,FALSE),"") ->  | F55: =IF(E55="","",IF(E55<DATE(2020,1,1),"900",IF(E55<DATE(2021,1,1),"000",IF(E55<DATE(2022,1,1),"100",IF(E55<DATE(2023,1,1),"200",IF(E55<DATE(2024,1,1),"300",IF(E55<DATE(2025,1,1),"400",IF(E55<DATE(2026,1,1),"500",IF(E55<DATE(2027,1,1),"600",IF(E55<DATE(2028,1,1),"700",IF(E55<DATE(2029,1,1),"800",IF(E55<DATE(2030,1,1),"900","")))))))))))) ->  | G55: =IF(E55="","",IFERROR(E55+45,"TBD")) ->  | I55: 65855 | J55: LTCFS-DATA
C56: =IFERROR(VLOOKUP(B56,Table2[],2,FALSE),"") ->  | F56: =IF(E56="","",IF(E56<DATE(2020,1,1),"900",IF(E56<DATE(2021,1,1),"000",IF(E56<DATE(2022,1,1),"100",IF(E56<DATE(2023,1,1),"200",IF(E56<DATE(2024,1,1),"300",IF(E56<DATE(2025,1,1),"400",IF(E56<DATE(2026,1,1),"500",IF(E56<DATE(2027,1,1),"600",IF(E56<DATE(2028,1,1),"700",IF(E56<DATE(2029,1,1),"800",IF(E56<DATE(2030,1,1),"900","")))))))))))) ->  | G56: =IF(E56="","",IFERROR(E56+45,"TBD")) ->  | I56: 65856 | J56: LTCFS-DATA FED
C57: =IFERROR(VLOOKUP(B57,Table2[],2,FALSE),"") ->  | F57: =IF(E57="","",IF(E57<DATE(2020,1,1),"900",IF(E57<DATE(2021,1,1),"000",IF(E57<DATE(2022,1,1),"100",IF(E57<DATE(2023,1,1),"200",IF(E57<DATE(2024,1,1),"300",IF(E57<DATE(2025,1,1),"400",IF(E57<DATE(2026,1,1),"500",IF(E57<DATE(2027,1,1),"600",IF(E57<DATE(2028,1,1),"700",IF(E57<DATE(2029,1,1),"800",IF(E57<DATE(2030,1,1),"900","")))))))))))) ->  | G57: =IF(E57="","",IFERROR(E57+45,"TBD")) ->  | I57: 65858 | J57: LTCFS-DATA GPR
C58: =IFERROR(VLOOKUP(B58,Table2[],2,FALSE),"") ->  | F58: =IF(E58="","",IF(E58<DATE(2020,1,1),"900",IF(E58<DATE(2021,1,1),"000",IF(E58<DATE(2022,1,1),"100",IF(E58<DATE(2023,1,1),"200",IF(E58<DATE(2024,1,1),"300",IF(E58<DATE(2025,1,1),"400",IF(E58<DATE(2026,1,1),"500",IF(E58<DATE(2027,1,1),"600",IF(E58<DATE(2028,1,1),"700",IF(E58<DATE(2029,1,1),"800",IF(E58<DATE(2030,1,1),"900","")))))))))))) ->  | G58: =IF(E58="","",IFERROR(E58+45,"TBD")) ->  | I58: 65863 | J58: TRIBAL DEMENTIACARE NONMA
C59: =IFERROR(VLOOKUP(B59,Table2[],2,FALSE),"") ->  | F59: =IF(E59="","",IF(E59<DATE(2020,1,1),"900",IF(E59<DATE(2021,1,1),"000",IF(E59<DATE(2022,1,1),"100",IF(E59<DATE(2023,1,1),"200",IF(E59<DATE(2024,1,1),"300",IF(E59<DATE(2025,1,1),"400",IF(E59<DATE(2026,1,1),"500",IF(E59<DATE(2027,1,1),"600",IF(E59<DATE(2028,1,1),"700",IF(E59<DATE(2029,1,1),"800",IF(E59<DATE(2030,1,1),"900","")))))))))))) ->  | G59: =IF(E59="","",IFERROR(E59+45,"TBD")) ->  | I59: 65880 | J59: TRIBAL DCS LTCFS DATA
C60: =IFERROR(VLOOKUP(B60,Table2[],2,FALSE),"") ->  | F60: =IF(E60="","",IF(E60<DATE(2020,1,1),"900",IF(E60<DATE(2021,1,1),"000",IF(E60<DATE(2022,1,1),"100",IF(E60<DATE(2023,1,1),"200",IF(E60<DATE(2024,1,1),"300",IF(E60<DATE(2025,1,1),"400",IF(E60<DATE(2026,1,1),"500",IF(E60<DATE(2027,1,1),"600",IF(E60<DATE(2028,1,1),"700",IF(E60<DATE(2029,1,1),"800",IF(E60<DATE(2030,1,1),"900","")))))))))))) ->  | G60: =IF(E60="","",IFERROR(E60+45,"TBD")) ->  | I60: 65881 | J60: TRIBAL DCS LTCFS DATA FED
C61: =IFERROR(VLOOKUP(B61,Table2[],2,FALSE),"") ->  | F61: =IF(E61="","",IF(E61<DATE(2020,1,1),"900",IF(E61<DATE(2021,1,1),"000",IF(E61<DATE(2022,1,1),"100",IF(E61<DATE(2023,1,1),"200",IF(E61<DATE(2024,1,1),"300",IF(E61<DATE(2025,1,1),"400",IF(E61<DATE(2026,1,1),"500",IF(E61<DATE(2027,1,1),"600",IF(E61<DATE(2028,1,1),"700",IF(E61<DATE(2029,1,1),"800",IF(E61<DATE(2030,1,1),"900","")))))))))))) ->  | G61: =IF(E61="","",IFERROR(E61+45,"TBD")) ->  | I61: 65882 | J61: TRIBAL DCS LTCFS DATA GPR
C62: =IFERROR(VLOOKUP(B62,Table2[],2,FALSE),"") ->  | F62: =IF(E62="","",IF(E62<DATE(2020,1,1),"900",IF(E62<DATE(2021,1,1),"000",IF(E62<DATE(2022,1,1),"100",IF(E62<DATE(2023,1,1),"200",IF(E62<DATE(2024,1,1),"300",IF(E62<DATE(2025,1,1),"400",IF(E62<DATE(2026,1,1),"500",IF(E62<DATE(2027,1,1),"600",IF(E62<DATE(2028,1,1),"700",IF(E62<DATE(2029,1,1),"800",IF(E62<DATE(2030,1,1),"900","")))))))))))) ->  | G62: =IF(E62="","",IFERROR(E62+45,"TBD")) ->  | I62: 65900 | J62: TRIBAL HLTH INS INFO SHIP
C63: =IFERROR(VLOOKUP(B63,Table2[],2,FALSE),"") ->  | F63: =IF(E63="","",IF(E63<DATE(2020,1,1),"900",IF(E63<DATE(2021,1,1),"000",IF(E63<DATE(2022,1,1),"100",IF(E63<DATE(2023,1,1),"200",IF(E63<DATE(2024,1,1),"300",IF(E63<DATE(2025,1,1),"400",IF(E63<DATE(2026,1,1),"500",IF(E63<DATE(2027,1,1),"600",IF(E63<DATE(2028,1,1),"700",IF(E63<DATE(2029,1,1),"800",IF(E63<DATE(2030,1,1),"900","")))))))))))) ->  | G63: =IF(E63="","",IFERROR(E63+45,"TBD")) ->  | I63: 65910 | J63: TRIBAL BEN SPEC AGING
C64: =IFERROR(VLOOKUP(B64,Table2[],2,FALSE),"") ->  | F64: =IF(E64="","",IF(E64<DATE(2020,1,1),"900",IF(E64<DATE(2021,1,1),"000",IF(E64<DATE(2022,1,1),"100",IF(E64<DATE(2023,1,1),"200",IF(E64<DATE(2024,1,1),"300",IF(E64<DATE(2025,1,1),"400",IF(E64<DATE(2026,1,1),"500",IF(E64<DATE(2027,1,1),"600",IF(E64<DATE(2028,1,1),"700",IF(E64<DATE(2029,1,1),"800",IF(E64<DATE(2030,1,1),"900","")))))))))))) ->  | G64: =IF(E64="","",IFERROR(E64+45,"TBD")) ->  | I64: 65920 | J64: TRIBAL FOSTER GRANDPARENT
C65: =IFERROR(VLOOKUP(B65,Table2[],2,FALSE),"") ->  | F65: =IF(E65="","",IF(E65<DATE(2020,1,1),"900",IF(E65<DATE(2021,1,1),"000",IF(E65<DATE(2022,1,1),"100",IF(E65<DATE(2023,1,1),"200",IF(E65<DATE(2024,1,1),"300",IF(E65<DATE(2025,1,1),"400",IF(E65<DATE(2026,1,1),"500",IF(E65<DATE(2027,1,1),"600",IF(E65<DATE(2028,1,1),"700",IF(E65<DATE(2029,1,1),"800",IF(E65<DATE(2030,1,1),"900","")))))))))))) ->  | G65: =IF(E65="","",IFERROR(E65+45,"TBD")) ->  | I65: 65930 | J65: TRIBAL EBS OCI REPLACMENT
C66: =IFERROR(VLOOKUP(B66,Table2[],2,FALSE),"") ->  | F66: =IF(E66="","",IF(E66<DATE(2020,1,1),"900",IF(E66<DATE(2021,1,1),"000",IF(E66<DATE(2022,1,1),"100",IF(E66<DATE(2023,1,1),"200",IF(E66<DATE(2024,1,1),"300",IF(E66<DATE(2025,1,1),"400",IF(E66<DATE(2026,1,1),"500",IF(E66<DATE(2027,1,1),"600",IF(E66<DATE(2028,1,1),"700",IF(E66<DATE(2029,1,1),"800",IF(E66<DATE(2030,1,1),"900","")))))))))))) ->  | G66: =IF(E66="","",IFERROR(E66+45,"TBD")) ->  | I66: 65940 | J66: TRIBAL SENIOR COMP PRGM
C67: =IFERROR(VLOOKUP(B67,Table2[],2,FALSE),"") ->  | F67: =IF(E67="","",IF(E67<DATE(2020,1,1),"900",IF(E67<DATE(2021,1,1),"000",IF(E67<DATE(2022,1,1),"100",IF(E67<DATE(2023,1,1),"200",IF(E67<DATE(2024,1,1),"300",IF(E67<DATE(2025,1,1),"400",IF(E67<DATE(2026,1,1),"500",IF(E67<DATE(2027,1,1),"600",IF(E67<DATE(2028,1,1),"700",IF(E67<DATE(2029,1,1),"800",IF(E67<DATE(2030,1,1),"900","")))))))))))) ->  | G67: =IF(E67="","",IFERROR(E67+45,"TBD")) ->  | I67: 70010 | J67: TEFAP-EFO'S
C68: =IFERROR(VLOOKUP(B68,Table2[],2,FALSE),"") ->  | F68: =IF(E68="","",IF(E68<DATE(2020,1,1),"900",IF(E68<DATE(2021,1,1),"000",IF(E68<DATE(2022,1,1),"100",IF(E68<DATE(2023,1,1),"200",IF(E68<DATE(2024,1,1),"300",IF(E68<DATE(2025,1,1),"400",IF(E68<DATE(2026,1,1),"500",IF(E68<DATE(2027,1,1),"600",IF(E68<DATE(2028,1,1),"700",IF(E68<DATE(2029,1,1),"800",IF(E68<DATE(2030,1,1),"900","")))))))))))) ->  | G68: =IF(E68="","",IFERROR(E68+45,"TBD")) ->  | I68: 70011 | J68: TEFAP-HTFM
C69: =IFERROR(VLOOKUP(B69,Table2[],2,FALSE),"") ->  | F69: =IF(E69="","",IF(E69<DATE(2020,1,1),"900",IF(E69<DATE(2021,1,1),"000",IF(E69<DATE(2022,1,1),"100",IF(E69<DATE(2023,1,1),"200",IF(E69<DATE(2024,1,1),"300",IF(E69<DATE(2025,1,1),"400",IF(E69<DATE(2026,1,1),"500",IF(E69<DATE(2027,1,1),"600",IF(E69<DATE(2028,1,1),"700",IF(E69<DATE(2029,1,1),"800",IF(E69<DATE(2030,1,1),"900","")))))))))))) ->  | G69: =IF(E69="","",IFERROR(E69+45,"TBD")) ->  | I69: 70013 | J69: TEFAP-WISCAP
C70: =IFERROR(VLOOKUP(B70,Table2[],2,FALSE),"") ->  | F70: =IF(E70="","",IF(E70<DATE(2020,1,1),"900",IF(E70<DATE(2021,1,1),"000",IF(E70<DATE(2022,1,1),"100",IF(E70<DATE(2023,1,1),"200",IF(E70<DATE(2024,1,1),"300",IF(E70<DATE(2025,1,1),"400",IF(E70<DATE(2026,1,1),"500",IF(E70<DATE(2027,1,1),"600",IF(E70<DATE(2028,1,1),"700",IF(E70<DATE(2029,1,1),"800",IF(E70<DATE(2030,1,1),"900","")))))))))))) ->  | G70: =IF(E70="","",IFERROR(E70+45,"TBD")) ->  | I70: 71009 | J70: ARRA - ELC HAI
C71: =IFERROR(VLOOKUP(B71,Table2[],2,FALSE),"") ->  | F71: =IF(E71="","",IF(E71<DATE(2020,1,1),"900",IF(E71<DATE(2021,1,1),"000",IF(E71<DATE(2022,1,1),"100",IF(E71<DATE(2023,1,1),"200",IF(E71<DATE(2024,1,1),"300",IF(E71<DATE(2025,1,1),"400",IF(E71<DATE(2026,1,1),"500",IF(E71<DATE(2027,1,1),"600",IF(E71<DATE(2028,1,1),"700",IF(E71<DATE(2029,1,1),"800",IF(E71<DATE(2030,1,1),"900","")))))))))))) ->  | G71: =IF(E71="","",IFERROR(E71+45,"TBD")) ->  | I71: 72000 | J71: HCR-INFRASTRUCTURE & QI
C72: =IFERROR(VLOOKUP(B72,Table2[],2,FALSE),"") ->  | F72: =IF(E72="","",IF(E72<DATE(2020,1,1),"900",IF(E72<DATE(2021,1,1),"000",IF(E72<DATE(2022,1,1),"100",IF(E72<DATE(2023,1,1),"200",IF(E72<DATE(2024,1,1),"300",IF(E72<DATE(2025,1,1),"400",IF(E72<DATE(2026,1,1),"500",IF(E72<DATE(2027,1,1),"600",IF(E72<DATE(2028,1,1),"700",IF(E72<DATE(2029,1,1),"800",IF(E72<DATE(2030,1,1),"900","")))))))))))) ->  | G72: =IF(E72="","",IFERROR(E72+45,"TBD")) ->  | I72: 72002 | J72: HCR-INFRASTRUCTURE & QI
C73: =IFERROR(VLOOKUP(B73,Table2[],2,FALSE),"") ->  | F73: =IF(E73="","",IF(E73<DATE(2020,1,1),"900",IF(E73<DATE(2021,1,1),"000",IF(E73<DATE(2022,1,1),"100",IF(E73<DATE(2023,1,1),"200",IF(E73<DATE(2024,1,1),"300",IF(E73<DATE(2025,1,1),"400",IF(E73<DATE(2026,1,1),"500",IF(E73<DATE(2027,1,1),"600",IF(E73<DATE(2028,1,1),"700",IF(E73<DATE(2029,1,1),"800",IF(E73<DATE(2030,1,1),"900","")))))))))))) ->  | G73: =IF(E73="","",IFERROR(E73+45,"TBD")) ->  | I73: 76302 | J73: AAA PROJECTS
C74: =IFERROR(VLOOKUP(B74,Table2[],2,FALSE),"") ->  | F74: =IF(E74="","",IF(E74<DATE(2020,1,1),"900",IF(E74<DATE(2021,1,1),"000",IF(E74<DATE(2022,1,1),"100",IF(E74<DATE(2023,1,1),"200",IF(E74<DATE(2024,1,1),"300",IF(E74<DATE(2025,1,1),"400",IF(E74<DATE(2026,1,1),"500",IF(E74<DATE(2027,1,1),"600",IF(E74<DATE(2028,1,1),"700",IF(E74<DATE(2029,1,1),"800",IF(E74<DATE(2030,1,1),"900","")))))))))))) ->  | G74: =IF(E74="","",IFERROR(E74+45,"TBD")) ->  | I74: 76305 | J74: SAMS-IR ADRC
C75: =IFERROR(VLOOKUP(B75,Table2[],2,FALSE),"") ->  | F75: =IF(E75="","",IF(E75<DATE(2020,1,1),"900",IF(E75<DATE(2021,1,1),"000",IF(E75<DATE(2022,1,1),"100",IF(E75<DATE(2023,1,1),"200",IF(E75<DATE(2024,1,1),"300",IF(E75<DATE(2025,1,1),"400",IF(E75<DATE(2026,1,1),"500",IF(E75<DATE(2027,1,1),"600",IF(E75<DATE(2028,1,1),"700",IF(E75<DATE(2029,1,1),"800",IF(E75<DATE(2030,1,1),"900","")))))))))))) ->  | G75: =IF(E75="","",IFERROR(E75+45,"TBD")) ->  | I75: 103010 | J75: REGNL RADON INF CENTERS
C76: =IFERROR(VLOOKUP(B76,Table2[],2,FALSE),"") ->  | F76: =IF(E76="","",IF(E76<DATE(2020,1,1),"900",IF(E76<DATE(2021,1,1),"000",IF(E76<DATE(2022,1,1),"100",IF(E76<DATE(2023,1,1),"200",IF(E76<DATE(2024,1,1),"300",IF(E76<DATE(2025,1,1),"400",IF(E76<DATE(2026,1,1),"500",IF(E76<DATE(2027,1,1),"600",IF(E76<DATE(2028,1,1),"700",IF(E76<DATE(2029,1,1),"800",IF(E76<DATE(2030,1,1),"900","")))))))))))) ->  | G76: =IF(E76="","",IFERROR(E76+45,"TBD")) ->  | I76: 110124 | J76: BIRTH DEFECTS
C77: =IFERROR(VLOOKUP(B77,Table2[],2,FALSE),"") ->  | F77: =IF(E77="","",IF(E77<DATE(2020,1,1),"900",IF(E77<DATE(2021,1,1),"000",IF(E77<DATE(2022,1,1),"100",IF(E77<DATE(2023,1,1),"200",IF(E77<DATE(2024,1,1),"300",IF(E77<DATE(2025,1,1),"400",IF(E77<DATE(2026,1,1),"500",IF(E77<DATE(2027,1,1),"600",IF(E77<DATE(2028,1,1),"700",IF(E77<DATE(2029,1,1),"800",IF(E77<DATE(2030,1,1),"900","")))))))))))) ->  | G77: =IF(E77="","",IFERROR(E77+45,"TBD")) ->  | I77: 110127 | J77: WH/FP RH 255.06 (2)(D)
C78: =IFERROR(VLOOKUP(B78,Table2[],2,FALSE),"") ->  | F78: =IF(E78="","",IF(E78<DATE(2020,1,1),"900",IF(E78<DATE(2021,1,1),"000",IF(E78<DATE(2022,1,1),"100",IF(E78<DATE(2023,1,1),"200",IF(E78<DATE(2024,1,1),"300",IF(E78<DATE(2025,1,1),"400",IF(E78<DATE(2026,1,1),"500",IF(E78<DATE(2027,1,1),"600",IF(E78<DATE(2028,1,1),"700",IF(E78<DATE(2029,1,1),"800",IF(E78<DATE(2030,1,1),"900","")))))))))))) ->  | G78: =IF(E78="","",IFERROR(E78+45,"TBD")) ->  | I78: 110128 | J78: WH/FP RH 146.68
C79: =IFERROR(VLOOKUP(B79,Table2[],2,FALSE),"") ->  | F79: =IF(E79="","",IF(E79<DATE(2020,1,1),"900",IF(E79<DATE(2021,1,1),"000",IF(E79<DATE(2022,1,1),"100",IF(E79<DATE(2023,1,1),"200",IF(E79<DATE(2024,1,1),"300",IF(E79<DATE(2025,1,1),"400",IF(E79<DATE(2026,1,1),"500",IF(E79<DATE(2027,1,1),"600",IF(E79<DATE(2028,1,1),"700",IF(E79<DATE(2029,1,1),"800",IF(E79<DATE(2030,1,1),"900","")))))))))))) ->  | G79: =IF(E79="","",IFERROR(E79+45,"TBD")) ->  | I79: 110190 | J79: INFANT MORTALITY-RACINE
C80: =IFERROR(VLOOKUP(B80,Table2[],2,FALSE),"") ->  | G80: =IF(E80="","",IFERROR(E80+45,"TBD")) ->  | I80: 115002 | J80: NEWBORN HEAR SCREEN-OUTRC
C81: =IFERROR(VLOOKUP(B81,Table2[],2,FALSE),"") ->  | I81: 115003 | J81: WI EHDI TRACK AND SURV
C82: =IFERROR(VLOOKUP(B82,Table2[],2,FALSE),"") ->  | I82: 115004 | J82: SEAL A SMILE ORAL HEALTH
C83: =IFERROR(VLOOKUP(B83,Table2[],2,FALSE),"") ->  | I83: 115005 | J83: ORAL HLTH WORKFORCE
C84: =IFERROR(VLOOKUP(B84,Table2[],2,FALSE),"") ->  | I84: 115007 | J84: OHP-PARTNERS/COALITIONS
C85: =IFERROR(VLOOKUP(B85,Table2[],2,FALSE),"") ->  | I85: 115009 | J85: WI SOUND BEGINNINGS RSC
C86: =IFERROR(VLOOKUP(B86,Table2[],2,FALSE),"") ->  | I86: 115011 | J86: OH WORKFORCE ACTIVITIES
C87: =IFERROR(VLOOKUP(B87,Table2[],2,FALSE),"") ->  | I87: 119011 | J87: GPR CANCER, CITY OF MILW
C88: =IFERROR(VLOOKUP(B88,Table2[],2,FALSE),"") ->  | I88: 124000 | J88: LIMITED AGENT PROGRAM
C89: =IFERROR(VLOOKUP(B89,Table2[],2,FALSE),"") ->  | I89: 128010 | J89: CONGENITAL DISORDERS
C90: =IFERROR(VLOOKUP(B90,Table2[],2,FALSE),"") ->  | I90: 128011 | J90: CONGENITAL DISORDERS PROD
I91: 128012 | J91: CONGENITAL DISORDERS 2
I92: 150156 | J92: MKE SCREENING B&C CANCER
I93: 150178 | J93: IMM E-HEALTH RECORDS
I94: 150179 | J94: IMMUNIZATION
I95: 150180 | J95: IMMUNIZATION 2
I96: 150207 | J96: POISON CONTROL REPORTING
I97: 150208 | J97: POISON CNT CHIP FED
I98: 150209 | J98: POISON CONTROL CHIP GPR
I99: 150210 | J99: STATEWIDE POISON CONTROL
I100: 150211 | J100: OPIOID RX PATHWAY PROJ
I101: 150212 | J101: POISON CONTROL (FED)
I102: 150213 | J102: SEXUAL RISK AVOIDANCE ED
I103: 150307 | J103: CCCP INTERVENTIONS
I104: 150310 | J104: CCCP CANCER INTERVENTIONS
I105: 150320 | J105: EPA INDOOR RADON SERVICES
I106: 150321 | J106: EPA INDOOR RADON SERVICES
I107: 150327 | J107: RADON OUTREACH
I108: 150328 | J108: ATSDR APPLETREE
I109: 150417 | J109: DIABETES PRV CONTROL GPR
I110: 150420 | J110: 1815 DIABETES
I111: 150421 | J111: 1815 HEART DISEASE PREV
I112: 150422 | J112: 1817 SL CVD DISEASE PREV
I113: 150423 | J113: 1817 SL DIABETES PREV
I114: 150426 | J114: 1815 DIABETES
I115: 150427 | J115: 1815 HEART DISEASE PREV
I116: 150428 | J116: 1817 SL CVD DISEASE PREV
I117: 150429 | J117: 1817 SL DIABETES PREV
I118: 150500 | J118: BRACE PROGRAM
I119: 150675 | J119: CDC INJ VIOL PREV STAFF
I120: 150750 | J120: TB CONTROL
I121: 150772 | J121: HEART DISEASE AND STROKE
I122: 151300 | J122: COM HLTH CNTRS 250.15 2 C
I123: 151301 | J123: COM HLTH CNTRS 250.15 2 B
I124: 151302 | J124: COM HLTH CNTRS 250.15 2 A
I125: 151303 | J125: MIN HLTH DISADV S250.20-3
I126: 151304 | J126: MIN HLTH COMM GRANT
I127: 151710 | J127: MARQUETTE DENTAL SERVICES
I128: 151720 | J128: DENTAL SERVICES
I129: 151722 | J129: EXPANDING DENTAL SERVICES
I130: 151723 | J130: DENTAL ACCESS
I131: 151734 | J131: FLUORIDE SUPPLEMENT
I132: 151735 | J132: FLUORIDE MOUTHRINSE
I133: 151736 | J133: FLUORIDE MOUTHRINSE
I134: 151738 | J134: DENTAL SEALANT
I135: 151739 | J135: MCH ORAL HLTH PROGRAM
I136: 151740 | J136: DELTA DENTAL-SAS PLUS
I137: 152002 | J137: WH/FP RH 253.07 (B) & (C)
I138: 152003 | J138: WH/FP RH 253.07 (E)
I139: 152009 | J139: MCH WOMENS REPO HLTH QAQI
I140: 152014 | J140: TITLE X WH/FP TA & TRN
I141: 152015 | J141: WH/FP RH TA & TRN
I142: 152016 | J142: RH EC FPW SUPPORT SERVICE
I143: 152017 | J143: MCH VIOLENT DEATH RPT SYS
I144: 152018 | J144: PED MNTL HLTH CARE ACCESS
I145: 152019 | J145: PED MNTL HLTH CARE MATCH
I146: 152020 | J146: WH/FP RH 253.07 (D)
I147: 152042 | J147: PRIMARY CARE (B)
I148: 152422 | J148: RURAL HLTH DENTAL CLINICS
I149: 152425 | J149: RHDC146.65(1)(B)MENOMINEE
I150: 152426 | J150: RHDC146.65(1)(C) C FALLS
I151: 152427 | J151: RHDC146.65(1)(A)LADYSMITH
I152: 152801 | J152: NEWBORN SCREENING
I153: 153311 | J153: TRAUMA CARE SYSTEM-RTACS
I154: 153312 | J154: TRAUMA CARE - RTAC
I155: 154661 | J155: SNAP NUTR ED GRANT
I156: 154710 | J156: WIC TOTAL GRANTS
I157: 154711 | J157: WIC TOTAL GRANTS
I158: 154720 | J158: WIC FARMERS MARKET
I159: 154740 | J159: WIC INFRASTRUCTURE
I160: 154745 | J160: WIC SPECIAL PROJECTS
I161: 154746 | J161: WIC OUTREACH
I162: 154760 | J162: WIC PEER COUNSELING
I163: 154780 | J163: CSFP PROGRAM
I164: 154790 | J164: BIRTH DEFECTS/CYSHCN PROJ
I165: 154791 | J165: BIRTH DEFECT/CYSHCN PROJ2
I166: 155002 | J166: WI TOB CNTL PGM-SURV&EVAL
I167: 155004 | J167: WI TOB CNTL PGM-STWD COAL
I168: 155010 | J168: CDC WI TCP DISPARITIES
I169: 155015 | J169: BIOT FOCUS A PLANNING
I170: 155016 | J170: BIOT FOCUS PLANNING EBOLA
I171: 155018 | J171: IMMUNIZATION - VFC
I172: 155020 | J172: CONS CONTRACTS IMM
I173: 155021 | J173: CONS CONTRACTS IMM
I174: 155027 | J174: INFERTILITY PREVENTION
I175: 155032 | J175: IMMUN - ADULT
I176: 155036 | J176: CVH STRATEGIC IMPLEMENT
I177: 155037 | J177: ECCS
I178: 155042 | J178: WI PRIMARY CARE - MA
I179: 155043 | J179: WI PRIMARY CARE
I180: 155050 | J180: BIOTERRORISM PREPAREDNESS
I181: 155066 | J181: NVDRS
I182: 155070 | J182: CDC LEAD POISON EXTENSION
I183: 155072 | J183: ASTHMA CAPACITY
I184: 155078 | J184: ENV PH TRACKING NETWORK
I185: 155080 | J185: RAPE PREV AND EDUCATION
I186: 155115 | J186: PHEP ZIKA PLANNING
I187: 155119 | J187: BIOT RISK COMMUNICATION
I188: 155129 | J188: PUB HLTH CRISIS RESPONSE
I189: 155141 | J189: ELC-AFFORDABLE CARE ACT
I190: 155170 | J190: BIOT HOSPITAL PREPARE
I191: 155171 | J191: BIOT HOSPITAL PREPARE CO
I192: 155172 | J192: BIOT HOSPITAL PREPARE
I193: 155174 | J193: HOSPITAL PREPAREDNESS NPP
I194: 155182 | J194: HPP DISASTER MEDICAL
I195: 155189 | J195: HPP EBOLA
I196: 155190 | J196: BIOT PREPARE - CRI
I197: 155191 | J197: BIOT PREPARE - CRI
I198: 155195 | J198: EMER MED SERVICE CHILDREN
I199: 155200 | J199: CCCP DEVELOP & EVALUATION
I200: 155210 | J200: ASTHMA INTERVENTION
I201: 155220 | J201: BEOH IS DATA SVCS
... 247 more rows

Sheet Overview
A1: Updated: 9/16/2021 | C1: 2020 DPH Consolidated Contract Overview
A2: REG | B2: AGENCY | C2: AGENCY NUMBER | D2: CONTRACT # | E2: Contract Locked
A4: S | B4: Adams County Department of Health & Human Serivces, Division of Public Health | C4: 1 | D4: 43545 | E4: No | F4: Amendment 1 | G4: Amendment 2 | H4: Amendment 3 | I4: Amendment 4 | J4: Amendment 5 | K4: Amendment 6 | L4: Amendment 7 | M4: Amendment 8
A5: NE | B5: Appleton City Health Department | C5: 449983 | D5: 43546 | E5: No | F5: Amendment 1 | G5: Amendment 2 | H5: Amendment 3 | I5: Amendment 4 | J5: Amendment 5 | K5: Amendment 6
A6: N | B6: Ashland County Health & Human Services Department | C6: 2 | D6: 43547 | E6: No | F6: Amendment 1 | G6: Amendment 2 | H6: Amendment 3 | I6: Amendment 4 | J6: Amendment 5 | K6: Amendment 6
A7: W | B7: Barron County Health and Human Services Department | C7: 3 | D7: 43548 | E7: No | F7: Amendment 1 | G7: Amendment 2 | H7: Amendment 3 | I7: Amendment 4 | J7: Amendment 5 | K7: Amendment 6 | L7: Amendment 7 | M7: Amendment 8 | N7: Amendment 9 | O7: Amendment 10
A8: N | B8: Bayfield County Health Department | C8: 4 | D8: 43549 | E8: No | F8: Amendment 1 | G8: Amendment 2 | H8: Amendment 3 | I8: Amendment 4 | J8: Amendment 5 | K8: Amendment 6 | L8: Amendment 7 | M8: Amendment 8 | N8: Amendment 9 | O8: Amendment 10
A9: NE | B9: Brown County Health Department | C9: 5 | D9: 43550 | E9: No | F9: Amendment 1 | G9: Amendment 2 | H9: Amendment 3 | I9: Amendment 4 | J9: Amendment 5 | K9: Amendment 6 | L9: Amendment 7 | M9: Amendment 8 | N9: Amendment 9
A10: W | B10: Buffalo County Health & Human Services Department | C10: 6 | D10: 43551 | E10: No | F10: Amendment 1 | G10: Amendment 2 | H10: Amendment 3 | I10: Amendment 4 | J10: Amendment 5 | K10: Amendment 6 | L10: Amendment 7 | M10: Amendment 8 | N10: Amendment 9 | O10: Amendment 10 | P10: Amendment 11 | Q10: Amendment 12
A11: W | B11: Burnett County Department of Health & Human Services | C11: 7 | D11: 43552 | E11: No | F11: Amendment 1 | G11: Amendment 2 | H11: Amendment 3 | I11: Amendment 4 | J11: Amendment 5 | K11: Amendment 6 | L11: Amendment 7 | M11: Amendment 8 | N11: Amendment 9 | O11: Amendment 10
A12: NE | B12: Calumet County Health Division | C12: 8 | D12: 43553 | E12: No | F12: Amendment 1 | G12: Amendment 2 | H12: Amendment 3 | I12: Amendment 4 | J12: Amendment 5 | K12: Amendment 6 | L12: Amendment 7 | M12: Amendment 8 | N12: Amendment 9 | O12: Amendment 10
A13: SE | B13: Central Racine County Health Department | C13: 3960058125 | D13: 43554 | E13: No | F13: Amendment 1 | G13: Amendment 2 | H13: Amendment 3 | I13: Amendment 4 | J13: Amendment 5 | K13: Amendment 6 | L13: Amendment 7 | M13: Amendment 8 | N13: Amendment 9
A14: W | B14: Chippewa County Department of Public Health & Home Care | C14: 9 | D14: 43555 | E14: No | F14: Amendment 1 | G14: Amendment 2 | H14: Amendment 3 | I14: Amendment 4 | J14: Amendment 5 | K14: Amendment 6 | L14: Amendment 7 | M14: Amendment 8 | N14: Amendment 9 | O14: Amendment 10 | P14: Amendment 11
A15: S | B15: Board of Health for Madison and Dane County on behalf of Public Health Madison and Dane County | C15: 256099 | D15: 43556 | E15: No | F15: Amendment 1 | G15: Amendment 2 | H15: Amendment 3 | I15: Amendment 4 | J15: Amendment 5 | K15: Amendment 6 | L15: Amendment 7 | M15: Amendment 8 | N15: Amendment 9 | O15: Amendment 10 | P15: Amendment 11 | Q15: Amendment 12 | R15: Amendment 13
A16: W | B16: Clark County Health Department | C16: 10 | D16: 43557 | E16: No | F16: Amendment 1 | G16: Amendment 2 | H16: Amendment 3 | I16: Amendment 4 | J16: Amendment 5 | K16: Amendment 6 | L16: Amendment 7 | M16: Amendment 8
A17: S | B17: Columbia County Division of Health | C17: 11 | D17: 43558 | E17: No | F17: Amendment 1 | G17: Amendment 2 | H17: Amendment 3 | I17: Amendment 4 | J17: Amendment 5 | K17: Amendment 6 | L17: Amendment 7 | M17: Amendment 8 | N17: Amendment 9 | O17: Amendment 10 | P17: Amendment 11
A18: S | B18: Crawford County Public Health | C18: 12 | D18: 43559 | E18: No | F18: Amendment 1 | G18: Amendment 2 | H18: Amendment 3 | I18: Amendment 4 | J18: Amendment 5 | K18: Amendment 6 | L18: Amendment 7
A19: SE | B19: Cudahy Health Department | C19: 472761 | D19: 43560 | E19: No | F19: Amendment 1 | G19: Amendment 2 | H19: Amendment 3 | I19: Amendment 4 | J19: Amendment 5 | K19: Amendment 6 | L19: Amendment 7
A20: NE | B20: De Pere Department of Public Health | C20: 472779 | D20: 43561 | E20: No | F20: Amendment 1 | G20: Amendment 2 | H20: Amendment 3 | I20: Amendment 4 | J20: Amendment 5 | K20: Amendment 6 | L20: Amendment 7
A21: S | B21: Dodge County Human Services & Health Department | C21: 14 | D21: 43562 | E21: No | F21: Amendment 1 | G21: Amendment 2 | H21: Amendment 3 | I21: Amendment 4 | J21: Amendment 5 | K21: Amendment 6 | L21: Amendment 7 | M21: Amendment 8 | N21: Amendment 9 | O21: Amendment 10
A22: NE | B22: Door County Health Department | C22: 15 | D22: 43563 | E22: No | F22: Amendment 1 | G22: Amendment 2 | H22: Amendment 3 | I22: Amendment 4 | J22: Amendment 5 | K22: Amendment 6 | L22: Amendment 7 | M22: Amendment 8 | N22: Amendment 9
A23: W | B23: Douglas County Department of Health & Human Services | C23: 16 | D23: 43564 | E23: No | F23: Amendment 1 | G23: Amendment 2 | H23: Amendment 3 | I23: Amendment 4 | J23: Amendment 5 | K23: Amendment 6 | L23: Amendment 7
A24: W | B24: Dunn County Health Department | C24: 17 | D24: 43565 | E24: No | F24: Amendment 1 | G24: Amendment 2 | H24: Amendment 3 | I24: Amendment 4 | J24: Amendment 5 | K24: Amendment 6 | L24: Amendment 7 | M24: Amendment 8 | N24: Amendment 9 | O24: Amendment 10
A25: W | B25: Eau Claire City/County Health Department | C25: 256321 | D25: 43566 | E25: No | F25: Amendment 1 | G25: Amendment 2 | H25: Amendment 3 | I25: Amendment 4 | J25: Amendment 5 | K25: Amendment 6 | L25: Amendment 7 | M25: Amendment 8 | N25: Amendment 9 | O25: Amendment 10 | P25: Amendment 11 | Q25: Amendment 12 | R25: Amendment 13 | S25: Amendment 14 | T25: Amendment 15
A26: N | B26: Florence County Health Department | C26: 19 | D26: 43567 | E26: No | F26: Amendment 1 | G26: Amendment 2 | H26: Amendment 3 | I26: Amendment 4 | J26: Amendment 5 | K26: Amendment 6 | L26: Amendment 7 | M26: Amendment 8 | N26: Amendment 9 | O26: Amendment 10 | P26: Amendment 11
A27: NE | B27: Fond du Lac County Health Department | C27: 20 | D27: 43568 | E27: No | F27: Amendment 1 | G27: Amendment 2 | H27: Amendment 3 | I27: Amendment 4 | J27: Amendment 5 | K27: Amendment 6 | L27: Amendment 7 | M27: Amendment 8 | N27: Amendment 9 | O27: Amendment 10 | P27: Amendment 11 | Q27: Amendment 12
A28: N | B28: Forest County Health Department | C28: 21 | D28: 43569 | E28: No | F28: Amendment 1 | G28: Amendment 2 | H28: Amendment 3 | I28: Amendment 4 | J28: Amendment 5 | K28: Amendment 6 | L28: Amendment 7 | M28: Amendment 8 | N28: Amendment 9 | O28: Amendment 10
A29: SE | B29: Franklin Health Department | C29: 472787 | D29: 43570 | E29: No | F29: Amendment 1 | G29: Amendment 2 | H29: Amendment 3 | I29: Amendment 4 | J29: Amendment 5 | K29: Amendment 6 | L29: Amendment 7
A30: S | B30: Grant County Health Department | C30: 22 | D30: 43571 | E30: No | F30: Amendment 1 | G30: Amendment 2 | H30: Amendment 3 | I30: Amendment 4 | J30: Amendment 5 | K30: Amendment 6 | L30: Amendment 7 | M30: Amendment 8 | N30: Amendment 9 | O30: Amendment 10 | P30: Amendment 11 | Q30: Amendment 12 | R30: Amendment 13
A31: S | B31: Green County Health Department | C31: 23 | D31: 43572 | E31: No | F31: Amendment 1 | G31: Amendment 2 | H31: Amendment 3 | I31: Amendment 4 | J31: Amendment 5 | K31: Amendment 6 | L31: Amendment 7 | M31: Amendment 8 | N31: Amendment 9 | O31: Amendment 10
A32: NE | B32: Green Lake County Department of Health & Human Services | C32: 24 | D32: 43573 | E32: No | F32: Amendment 1 | G32: Amendment 2 | H32: Amendment 3 | I32: Amendment 4 | J32: Amendment 5 | K32: Amendment 6 | L32: Amendment 7
A33: SE | B33: Greendale Health Department | C33: 703090 | D33: 43574 | E33: No | F33: Amendment 1 | G33: Amendment 2 | H33: Amendment 3 | I33: Amendment 4 | J33: Amendment 5 | K33: Amendment 6 | L33: Amendment 7
A34: SE | B34: Greenfield Health Department | C34: 472803 | D34: 43575 | E34: No | F34: Amendment 1 | G34: Amendment 2 | H34: Amendment 3 | I34: Amendment 4 | J34: Amendment 5 | K34: Amendment 6 | L34: Amendment 7 | M34: Amendment 8 | N34: Amendment 9
A35: SE | B35: Hales Corners Health Department | C35: 472811 | D35: 43576 | E35: No | F35: Amendment 1 | G35: Amendment 2 | H35: Amendment 3 | I35: Amendment 4 | J35: Amendment 5 | K35: Amendment 6 | L35: Amendment 7 | M35: Amendment 8
A36: S | B36: Iowa County Health Department | C36: 25 | D36: 43577 | E36: No | F36: Amendment 1 | G36: Amendment 2 | H36: Amendment 3 | I36: Amendment 4 | J36: Amendment 5 | K36: Amendment 6 | L36: Amendment 7
A37: N | B37: Iron County Health Department | C37: 26 | D37: 43578 | E37: No | F37: Amendment 1 | G37: Amendment 2 | H37: Amendment 3 | I37: Amendment 4 | J37: Amendment 5 | K37: Amendment 6 | L37: Amendment 7
A38: W | B38: Jackson County Health & Human Services Department | C38: 27 | D38: 43579 | E38: No | F38: Amendment 1 | G38: Amendment 2 | H38: Amendment 3 | I38: Amendment 4 | J38: Amendment 5 | K38: Amendment 6 | L38: Amendment 7 | M38: Amendment 8 | N38: Amendment 9 | O38: Amendment 10
A39: S | B39: Jefferson County Health Department | C39: 28 | D39: 43580 | E39: No | F39: Amendment 1 | G39: Amendment 2 | H39: Amendment 3 | I39: Amendment 4 | J39: Amendment 5 | K39: Amendment 6 | L39: Amendment 7 | M39: Amendment 8 | N39: Amendment 9 | O39: Amendment 10
A40: S | B40: Juneau County Health Department | C40: 29 | D40: 43581 | E40: No | F40: Amendment 1 | G40: Amendment 2 | H40: Amendment 3 | I40: Amendment 4 | J40: Amendment 5 | K40: Amendment 6 | L40: Amendment 7 | M40: Amendment 8 | N40: Amendment 9 | O40: Amendment 10 | P40: Amendment 11 | Q40: Amendment 12
A41: SE | B41: Kenosha County Division of Health | C41: 30 | D41: 43582 | E41: No | F41: Amendment 1 | G41: Amendment 2 | H41: Amendment 3 | I41: Amendment 4 | J41: Amendment 5 | K41: Amendment 6 | L41: Amendment 7 | M41: Amendment 8 | N41: Amendment 9 | O41: Amendment 10 | P41: Amendment 11
A42: NE | B42: Kewaunee County Health Department | C42: 31 | D42: 43583 | E42: No | F42: Amendment 1 | G42: Amendment 2 | H42: Amendment 3 | I42: Amendment 4 | J42: Amendment 5 | K42: Amendment 6 | L42: Amendment 7 | M42: Amendment 8 | N42: Amendment 9 | O42: Amendment 10 | P42: Amendment 11
A43: W | B43: La Crosse County Health Department | C43: 32 | D43: 43584 | E43: No | F43: Amendment 1 | G43: Amendment 2 | H43: Amendment 3 | I43: Amendment 4 | J43: Amendment 5 | K43: Amendment 6 | L43: Amendment 7 | M43: Amendment 8 | N43: Amendment 9 | O43: Amendment 10 | P43: Amendment 11 | Q43: Amendment 12
A44: S | B44: Lafayette County Health Department | C44: 33 | D44: 43585 | E44: No | F44: Amendment 1 | G44: Amendment 2 | H44: Amendment 3 | I44: Amendment 4 | J44: Amendment 5 | K44: Amendment 6 | L44: Amendment 7
A45: N | B45: Langlade County Health Department | C45: 34 | D45: 43586 | E45: No | F45: Amendment 1 | G45: Amendment 2 | H45: Amendment 3 | I45: Amendment 4 | J45: Amendment 5 | K45: Amendment 6 | L45: Amendment 7 | M45: Amendment 8
A46: N | B46: Lincoln County Health Department | C46: 35 | D46: 43587 | E46: No | F46: Amendment 1 | G46: Amendment 2 | H46: Amendment 3 | I46: Amendment 4 | J46: Amendment 5 | K46: Amendment 6 | L46: Amendment 7
A47: NE | B47: Manitowoc County Health Department | C47: 36 | D47: 43588 | E47: No | F47: Amendment 1 | G47: Amendment 2 | H47: Amendment 3 | I47: Amendment 4 | J47: Amendment 5 | K47: Amendment 6 | L47: Amendment 7 | M47: Amendment 8 | N47: Amendment 9 | O47: Amendment 10 | P47: Amendment 11
A48: N | B48: Marathon County Health Department | C48: 37 | D48: 43589 | E48: No | F48: Amendment 1 | G48: Amendment 2 | H48: Amendment 3 | I48: Amendment 4 | J48: Amendment 5 | K48: Amendment 6 | L48: Amendment 7 | M48: Amendment 8
A49: NE | B49: Marinette County Health Department | C49: 38 | D49: 43590 | E49: No | F49: Amendment 1 | G49: Amendment 2 | H49: Amendment 3 | I49: Amendment 4 | J49: Amendment 5 | K49: Amendment 6 | L49: Amendment 7 | M49: Amendment 8 | N49: Amendment 9 | O49: Amendment 10 | P49: Amendment 11
A50: NE | B50: Marquette County Health Department | C50: 39 | D50: 43591 | E50: No | F50: Amendment 1 | G50: Amendment 2 | H50: Amendment 3 | I50: Amendment 4 | J50: Amendment 5 | K50: Amendment 6 | L50: Amendment 7 | M50: Amendment 8
A51: NE | B51: Menasha Health Department | C51: 256420 | D51: 43592 | E51: No | F51: Amendment 1 | G51: Amendment 2 | H51: Amendment 3 | I51: Amendment 4 | J51: Amendment 5 | K51: Amendment 6 | L51: Amendment 7 | M51: Amendment 8
A52: SE | B52: Milwaukee City Health Department | C52: 256107 | D52: 43593 | E52: No | F52: Amendment 1 | G52: Amendment 2 | H52: Amendment 3 | I52: Amendment 4 | J52: Amendment 5 | K52: Amendment 6 | L52: Amendment 7 | M52: Amendment 8 | N52: Amendment 9 | O52: Amendment 10 | P52: Amendment 11 | Q52: Amendment 12 | R52: Amendment 13 | S52: Amendment 14
A53: W | B53: Monroe County Health Department | C53: 41 | D53: 43594 | E53: No | F53: Amendment 1 | G53: Amendment 2 | H53: Amendment 3 | I53: Amendment 4 | J53: Amendment 5 | K53: Amendment 6 | L53: Amendment 7 | M53: Amendment 8 | N53: Amendment 9 | O53: Amendment 10
A54: SE | B54: North Shore Health Department | C54: 472753 | D54: 43595 | E54: No | F54: Amendment 1 | G54: Amendment 2 | H54: Amendment 3 | I54: Amendment 4 | J54: Amendment 5 | K54: Amendment 6 | L54: Amendment 7 | M54: Amendment 8
A55: SE | B55: Oak Creek Health Department | C55: 472886 | D55: 43596 | E55: No | F55: Amendment 1 | G55: Amendment 2 | H55: Amendment 3 | I55: Amendment 4 | J55: Amendment 5 | K55: Amendment 6 | L55: Amendment 7 | M55: Amendment 8
A56: NE | B56: Oconto County Health Department Public Health Division | C56: 42 | D56: 43597 | E56: No | F56: Amendment 1 | G56: Amendment 2 | H56: Amendment 3 | I56: Amendment 4 | J56: Amendment 5 | K56: Amendment 6 | L56: Amendment 7 | M56: Amendment 8 | N56: Amendment 9 | O56: Amendment 10
A57: N | B57: Oneida County Health Department | C57: 43 | D57: 43598 | E57: No | F57: Amendment 1 | G57: Amendment 2 | H57: Amendment 3 | I57: Amendment 4 | J57: Amendment 5 | K57: Amendment 6 | L57: Amendment 7 | M57: Amendment 8 | N57: Amendment 9 | O57: Amendment 10 | P57: Amendment 11 | Q57: Amendment 12 | R57: Amendment 13
A58: NE | B58: Outagamie County Public Health Division | C58: 44 | D58: 43599 | E58: No | F58: Amendment 1 | G58: Amendment 2 | H58: Amendment 3 | I58: Amendment 4 | J58: Amendment 5 | K58: Amendment 6 | L58: Amendment 7 | M58: Amendment 8 | N58: Amendment 9 | O58: Amendment 10
A59: SE | B59: Washington-Ozaukee County Public Health Department | C59: 45 | D59: 43600 | E59: No | F59: Amendment 1 | G59: Amendment 2 | H59: Amendment 3 | I59: Amendment 4 | J59: Amendment 5 | K59: Amendment 6 | L59: Amendment 7 | M59: Amendment 8 | N59: Amendment 9 | O59: Amendment 10 | P59: Amendment 11
A60: W | B60: Pepin County Health Department | C60: 46 | D60: 43601 | E60: No | F60: Amendment 1 | G60: Amendment 2 | H60: Amendment 3 | I60: Amendment 4 | J60: Amendment 5 | K60: Amendment 6 | L60: Amendment 7
A61: W | B61: Pierce County Health Department | C61: 47 | D61: 43602 | E61: No | F61: Amendment 1 | G61: Amendment 2 | H61: Amendment 3 | I61: Amendment 4 | J61: Amendment 5 | K61: Amendment 6 | L61: Amendment 7 | M61: Amendment 8 | N61: Amendment 9 | O61: Amendment 10
A62: W | B62: Polk County Health Department | C62: 48 | D62: 43603 | E62: No | F62: Amendment 1 | G62: Amendment 2 | H62: Amendment 3 | I62: Amendment 4 | J62: Amendment 5 | K62: Amendment 6 | L62: Amendment 7 | M62: Amendment 8 | N62: Amendment 9 | O62: Amendment 10 | P62: Amendment 11 | Q62: Amendment 12 | R62: Amendment 13
A63: N | B63: Portage County Health & Human Services Department | C63: 49 | D63: 43604 | E63: No | F63: Amendment 1 | G63: Amendment 2 | H63: Amendment 3 | I63: Amendment 4 | J63: Amendment 5 | K63: Amendment 6 | L63: Amendment 7 | M63: Amendment 8 | N63: Amendment 9 | O63: Amendment 10 | P63: Amendment 11 | Q63: Amendment 12 | R63: Amendment 13
A64: N | B64: Price County Health and Human Services | C64: 50 | D64: 43605 | E64: No | F64: Amendment 1 | G64: Amendment 2 | H64: Amendment 3 | I64: Amendment 4 | J64: Amendment 5 | K64: Amendment 6 | L64: Amendment 7 | M64: Amendment 8 | N64: Amendment 9 | O64: Amendment 10
A65: SE | B65: Racine City Health Department | C65: 341113 | D65: 43606 | E65: No | F65: Amendment 1 | G65: Amendment 2 | H65: Amendment 3 | I65: Amendment 4 | J65: Amendment 5 | K65: Amendment 6 | L65: Amendment 7 | M65: Amendment 8 | N65: Amendment 9
A66: S | B66: Richland County Health & Human Services Public Health Department | C66: 52 | D66: 43607 | E66: No | F66: Amendment 1 | G66: Amendment 2 | H66: Amendment 3 | I66: Amendment 4 | J66: Amendment 5 | K66: Amendment 6 | L66: Amendment 7
A67: S | B67: Rock County Public Health Department | C67: 53 | D67: 43608 | E67: No | F67: Amendment 1 | G67: Amendment 2 | H67: Amendment 3 | I67: Amendment 4 | J67: Amendment 5 | K67: Amendment 6 | L67: Amendment 7 | M67: Amendment 8
A68: W | B68: Rusk County Department of Health & Human Services | C68: 54 | D68: 43609 | E68: No | F68: Amendment 1 | G68: Amendment 2 | H68: Amendment 3 | I68: Amendment 4 | J68: Amendment 5 | K68: Amendment 6 | L68: Amendment 7 | M68: Amendment 8 | N68: Amendment 9 | O68: Amendment 10
A69: S | B69: Sauk County Public Health Department | C69: 56 | D69: 43610 | E69: No | F69: Amendment 1 | G69: Amendment 2 | H69: Amendment 3 | I69: Amendment 4 | J69: Amendment 5 | K69: Amendment 6 | L69: Amendment 7 | M69: Amendment 8 | N69: Amendment 9 | O69: Amendment 10 | P69: Amendment 11 | Q69: Amendment 12
A70: N | B70: Sawyer County Department of Health & Human Services | C70: 57 | D70: 43611 | E70: No | F70: Amendment 1 | G70: Amendment 2 | H70: Amendment 3 | I70: Amendment 4 | J70: Amendment 5 | K70: Amendment 6 | L70: Amendment 7 | M70: Amendment 8 | N70: Amendment 9
A71: NE | B71: Shawano-Menominee County Health Department | C71: 58 | D71: 43612 | E71: No | F71: Amendment 1 | G71: Amendment 2 | H71: Amendment 3 | I71: Amendment 4 | J71: Amendment 5 | K71: Amendment 6 | L71: Amendment 7 | M71: Amendment 8 | N71: Amendment 9
A72: NE | B72: Sheboygan County Human Services, Division of Public Health | C72: 59 | D72: 43613 | E72: No | F72: Amendment 1 | G72: Amendment 2 | H72: Amendment 3 | I72: Amendment 4 | J72: Amendment 5 | K72: Amendment 6 | L72: Amendment 7 | M72: Amendment 8 | N72: Amendment 9 | O72: Amendment 10 | P72: Amendment 11
A73: SE | B73: South Milwaukee Health Department | C73: 655522 | D73: 43614 | E73: No | F73: Amendment 1 | G73: Amendment 2 | H73: Amendment 3 | I73: Amendment 4 | J73: Amendment 5 | K73: Amendment 6 | L73: Amendment 7
A74: W | B74: St Croix County Department of Health & Human Services | C74: 55 | D74: 43615 | E74: No | F74: Amendment 1 | G74: Amendment 2 | H74: Amendment 3 | I74: Amendment 4 | J74: Amendment 5 | K74: Amendment 6 | L74: Amendment 7 | M74: Amendment 8 | N74: Amendment 9 | O74: Amendment 10 | P74: Amendment 11
A75: N | B75: Taylor County Health Department | C75: 60 | D75: 43616 | E75: No | F75: Amendment 1 | G75: Amendment 2 | H75: Amendment 3 | I75: Amendment 4 | J75: Amendment 5 | K75: Amendment 6 | L75: Amendment 7 | M75: Amendment 8 | N75: Amendment 9
A76: W | B76: Trempealeau County Health Department | C76: 61 | D76: 43617 | E76: No | F76: Amendment 1 | G76: Amendment 2 | H76: Amendment 3 | I76: Amendment 4 | J76: Amendment 5 | K76: Amendment 6 | L76: Amendment 7 | M76: Amendment 8 | N76: Amendment 9 | O76: Amendment 10 | P76: Amendment 11
A77: S | B77: Vernon County Health Department | C77: 62 | D77: 43618 | E77: No | F77: Amendment 1 | G77: Amendment 2 | H77: Amendment 3 | I77: Amendment 4 | J77: Amendment 5 | K77: Amendment 6 | L77: Amendment 7 | M77: Amendment 8 | N77: Amendment 9 | O77: Amendment 10
A78: N | B78: Vilas County Health Department | C78: 63 | D78: 43619 | E78: No | F78: Amendment 1 | G78: Amendment 2 | H78: Amendment 3 | I78: Amendment 4 | J78: Amendment 5 | K78: Amendment 6 | L78: Amendment 7 | M78: Amendment 8 | N78: Amendment 9 | O78: Amendment 10 | P78: Amendment 11
A79: SE | B79: Walworth County Health Department | C79: 64 | D79: 43620 | E79: No | F79: Amendment 1 | G79: Amendment 2 | H79: Amendment 3 | I79: Amendment 4 | J79: Amendment 5 | K79: Amendment 6 | L79: Amendment 7 | M79: Amendment 8 | N79: Amendment 9 | O79: Amendment 10 | P79: Amendment 11 | Q79: Amendment 12
A80: W | B80: Washburn County Health and Human Services Department | C80: 65 | D80: 43621 | E80: No | F80: Amendment 1 | G80: Amendment 2 | H80: Amendment 3 | I80: Amendment 4 | J80: Amendment 5 | K80: Amendment 6 | L80: Amendment 7 | M80: Amendment 8 | N80: Amendment 9 | O80: Amendment 10 | P80: Amendment 11
A81: S | B81: Watertown Department of Public Health | C81: 472951 | D81: 43622 | E81: No | F81: Amendment 1 | G81: Amendment 2 | H81: Amendment 3 | I81: Amendment 4 | J81: Amendment 5 | K81: Amendment 6 | L81: Amendment 7
A82: SE | B82: Waukesha County Public Health Department | C82: 67 | D82: 43625 | E82: No | F82: Amendment 1 | G82: Amendment 2 | H82: Amendment 3 | I82: Amendment 4 | J82: Amendment 5 | K82: Amendment 6 | L82: Amendment 7 | M82: Amendment 8 | N82: Amendment 9 | O82: Amendment 10 | P82: Amendment 11 | Q82: Amendment 12
A83: NE | B83: Waupaca County Human Services, Health Services Division | C83: 68 | D83: 43627 | E83: No | F83: Amendment 1 | G83: Amendment 2 | H83: Amendment 3 | I83: Amendment 4 | J83: Amendment 5 | K83: Amendment 6 | L83: Amendment 7 | M83: Amendment 8 | N83: Amendment 9 | O83: Amendment 10 | P83: Amendment 11 | Q83: Amendment 12
A84: NE | B84: Waushara County Health Department | C84: 69 | D84: 43628 | E84: No | F84: Amendment 1 | G84: Amendment 2 | H84: Amendment 3 | I84: Amendment 4 | J84: Amendment 5 | K84: Amendment 6 | L84: Amendment 7 | M84: Amendment 8 | N84: Amendment 9 | O84: Amendment 10
A85: SE | B85: Wauwatosa Health Department | C85: 472969 | D85: 43629 | E85: No | F85: Amendment 1 | G85: Amendment 2 | H85: Amendment 3 | I85: Amendment 4 | J85: Amendment 5 | K85: Amendment 6 | L85: Amendment 7 | M85: Amendment 8 | N85: Amendment 9
A86: SE | B86: West Allis Health Department | C86: 256545 | D86: 43630 | E86: No | F86: Amendment 1 | G86: Amendment 2 | H86: Amendment 3 | I86: Amendment 4 | J86: Amendment 5 | K86: Amendment 6 | L86: Amendment 7 | M86: Amendment 8 | N86: Amendment 9 | O86: Amendment 10 | P86: Amendment 11
A87: NE | B87: Winnebago County Health Department | C87: 70 | D87: 43623 | E87: No | F87: Amendment 1 | G87: Amendment 2 | H87: Amendment 3 | I87: Amendment 4 | J87: Amendment 5 | K87: Amendment 6 | L87: Amendment 7 | M87: Amendment 8 | N87: Amendment 9 | O87: Amendment 10 | P87: Amendment 11 | Q87: Amendment 12 | R87: Amendment 13 | S87: Amendment 14
A88: N | B88: Wood County Health Department | C88: 71 | D88: 43624 | E88: No | F88: Amendment 1 | G88: Amendment 2 | H88: Amendment 3 | I88: Amendment 4 | J88: Amendment 5 | K88: Amendment 6 | L88: Amendment 7 | M88: Amendment 8 | N88: Amendment 9

Sheet LHD Overview
A1: As of 10-19-2021 | B1: 2020 DPH Consolidated Contract | CH1: 2019 DPH Consolidated Contract Overview
I2: Profile #: | J2: 152020 | K2: 152003 | L2: 159327 | M2: 159322 | N2: 150426 | O2: 150427 | P2: 150429 | Q2: 155945 | R2: 155072 | S2: 155190 | T2: 155050 | U2: 154791 | V2: 155015 | W2: 154761 | X2: 155804 | Y2: 155803 | Z2: 155805 | AA2: 157720 | AB2: 155800 | AC2: 151741 | AD2: 128010 | AE2: 155801 | AF2: 155802 | AG2: 119011 | AH2: 155957 | AI2: 155020 | AJ2: 110190 | AK2: 155027 | AL2: 191001 | AM2: 159320 | AN2: 159332 | AO2: 150211 | AP2: 150216 | AQ2: 159354 | AR2: 105000 | AS2: 155191 | AT2: 159220 | AU2: 103010 | AV2: 150321 | AW2: 155080 | AX2: 154661 | AY2: 181010 | AZ2: 181004 | BA2: 159328 | BB2: 159317 | BC2: 154720 | BD2: 154740 | BE2: 154746 | BF2: 154760 | BG2: 154710 | BH2: 157010 | BI2: 157120
A3: AGENCY | B3: AGENCY # | C3: REG | D3: CONTRACT # | E3: Locked? | F3: Total Allocation | G3: MCH Match | H3: EIPD Match | I3: Profile Name: | J3: 11000 WH/FP RH 253.07 (d) | K3: 11000 WH/FP RH 253.07 (e) | L3: 11000 WH/FP RH 253.07(4)(a) | M3: 17800 WH/FP RH 20.435 (1)(ev) | N3: 1815 Diabetes | O3: 1815 Heart Disease Prevention | P3: 1817 SL Diabetes Prev | Q3: AIDS/HIV & STD DIS Field Staff (Milw) | R3: Asthma Capacity | S3: BIOT PREPARE - CRI | T3: BIOTERRORISM PREPAREDNESS | U3: BIRTH DEFECT/CYSHCN PROJ2 | V3: Bioterrorism, Focus A | W3: Breastfeeding Campaign Buddy Pgm | X3: CARES COVID19 PLAN | Y3: CARES COVID19 Testing | Z3: COVID19 Contact Tracing | AA3: Childhood Lead - Consolidated | AB3: Comm Disease Ctrl Prev LPHD | AC3: Comm Water Fluoridation | AD3: Congenital Disorders | AE3: DPH PHEP COVID19 | AF3: ELC CARES COVID19 | AG3: GPR Cancer, City of Milw | AH3: HIV Prev PS and Linkages | AI3: Immunization - Consolidated IAP | AJ3: Infant Mortality - Racine | AK3: Infertility Prevention | AL3: MCH - CYSHCN Hubs | AM3: Maternal Child Health - Consolidated | AN3: Maternal Child Health - Statewides, Performance | AO3: OPIOD RX PATHWAY PROJ | AP3: Overdose Fatality Reviews | AQ3: PERS RESP EDUC PROG-PREP | AR3: PH Emergency Quarantine | AS3: Preparedness - Cities Readiness Initiative | AT3: Prevention - Consolidated | AU3: Radon Information Centers | AV3: Radon Regional Information Centers | AW3: Rape Prevention and Education | AX3: SNAP Ed Nutr Grant | AY3: TPCP Community Intrvns | AZ3: TPCP WI WINS | BA3: Title X Services | BB3: WH/FP RH 253.07(4) GPR | BC3: WIC Farmers Market | BD3: WIC Infrastructure | BE3: WIC Outreach | BF3: WIC Peer Counseling | BG3: WIC USDA | BH3: WWWP GPR EDU AND MJA CHDI | BI3: WWWP NBCCEDP CHDI | BJ3: Total Allocation | BK3: MCH Match | BL3: EIPD Match
I4: Start Date: | J4: 2020-01-01 | K4: 2020-01-01 | L4: 2020-01-01 | M4: 2020-01-01 | N4: 2020-07-01 | O4: 2020-07-01 | P4: 2020-10-01 | Q4: 2020-01-01 | R4: 2020-09-01 | S4: 2020-07-01 | T4: 2020-07-01 | U4: 2020-01-01 | V4: 2020-07-01 | W4: 2020-10-01 | X4: 2020-03-01 | Y4: 2020-03-01 | Z4: 2020-03-01 | AA4: 2020-01-01 | AB4: 2020-07-01 | AC4: 2020-07-01 | AD4: 2020-07-01 | AE4: 2020-04-01 | AF4: 2020-02-01 | AG4: 2020-07-01 | AH4: 2020-01-01 | AI4: 2020-01-01 | AJ4: 2020-07-01 | AK4: 2020-01-01 | AL4: 2020-01-01 | AM4: 2020-01-01 | AN4: 2020-01-01 | AO4: 2020-09-01 | AP4: 2020-09-01 | AQ4: 2020-10-01 | AR4: 2020-08-01 | AS4: 2020-07-01 | AT4: 2019-10-01 | AU4: 2020-01-01 | AV4: 2020-01-01 | AW4: 2020-02-01 | AX4: 2020-10-01 | AY4: 2020-07-01 | AZ4: 2020-07-01 | BA4: 2020-04-01
I5: End Date: | J5: 2020-12-31 | K5: 2020-12-31 | L5: 2020-12-31 | M5: 2020-12-31 | N5: 2021-06-30 | O5: 2021-06-30 | P5: 2021-09-30 | Q5: 2020-12-31 | R5: 2021-08-31 | S5: 2020-06-30 | T5: 2021-06-30 | U5: 2020-06-30 | V5: 2021-06-30 | W5: 2021-09-30 | X5: 2020-12-31 | Y5: 2020-12-31 | Z5: 2020-12-31 | AA5: 2020-12-31 | AB5: 2021-06-30 | AC5: 2021-06-30 | AD5: 2021-06-30 | AE5: 2021-03-31 | AF5: 2021-09-30 | AG5: 2021-06-30 | AH5: 2020-12-31 | AI5: 2020-12-31 | AJ5: 2021-06-30 | AK5: 2020-12-31 | AL5: 2020-12-31 | AM5: 2020-12-31 | AN5: 2020-12-31 | AO5: 2021-08-31 | AP5: 2021-08-31 | AQ5: 2021-09-30 | AR5: 2021-06-30 | AS5: 2020-06-30 | AT5: 2021-09-30 | AU5: 2020-12-31 | AV5: 2020-12-31 | AW5: 2021-01-31 | AX5: 2021-09-30 | AY5: 2021-06-30 | AZ5: 2021-06-30 | BA5: 2021-03-31
A6: Adams County Public Health Department | B6: 1 | C6: SRO | D6: 43545 | F6: 310699 | G6: 6789 | H6: 0 | J6: 0 | K6: 0 | L6: 0 | M6: 0 | N6: 0 | O6: 0 | P6: 0 | Q6: 0 | R6: 0 | S6: 0 | T6: 8054 | U6: 0 | V6: 36936 | W6: 0 | X6: 556 | Y6: 12412 | Z6: 175534 | AA6: 1963 | AB6: 3400 | AC6: 0 | AD6: 0 | AE6: 36936 | AF6: 13600 | AG6: 0 | AH6: 0 | AI6: 6569 | AJ6: 0 | AK6: 0 | AL6: 0 | AM6: 9052 | AN6: 0 | AO6: 0 | AP6: 0 | AQ6: 0 | AR6: 0 | AS6: 0 | AT6: 5687 | AU6: 0 | AV6: 0 | AW6: 0 | AX6: 0 | AY6: 0 | AZ6: 0 | BA6: 0 | BB6: 0 | BC6: 0 | BD6: 0 | BE6: 0 | BF6: 0 | BG6: 0 | BH6: 0 | BI6: 0
A7: Appleton City Health Department | B7: 449983 | C7: NERO | D7: 43546 | F7: 785062 | G7: 21879 | H7: 0 | J7: 0 | K7: 0 | L7: 0 | M7: 0 | N7: 0 | O7: 0 | P7: 0 | Q7: 0 | R7: 0 | S7: 0 | T7: 0 | U7: 0 | V7: 53243 | W7: 0 | X7: 2763 | Y7: 28400 | Z7: 551453 | AA7: 9808 | AB7: 5700 | AC7: 0 | AD7: 0 | AE7: 53243 | AF7: 22900 | AG7: 0 | AH7: 0 | AI7: 21761 | AJ7: 0 | AK7: 0 | AL7: 0 | AM7: 29172 | AN7: 0 | AO7: 0 | AP7: 0 | AQ7: 0 | AR7: 0 | AS7: 0 | AT7: 6619 | AU7: 0 | AV7: 0 | AW7: 0 | AX7: 0 | AY7: 0 | AZ7: 0 | BA7: 0 | BB7: 0 | BC7: 0 | BD7: 0 | BE7: 0 | BF7: 0 | BG7: 0 | BH7: 0 | BI7: 0
A8: Ashland County Health & Human Services Department | B8: 2 | C8: NRO | D8: 43547 | F8: 359488 | G8: 8288 | H8: 7178 | J8: 0 | K8: 0 | L8: 0 | M8: 8180 | N8: 0 | O8: 0 | P8: 0 | Q8: 0 | R8: 0 | S8: 0 | T8: 0 | U8: 0 | V8: 36973 | W8: 0 | X8: 30000 | Y8: 16130 | Z8: 136324 | AA8: 4265 | AB8: 3200 | AC8: 0 | AD8: 0 | AE8: 36973 | AF8: 12800 | AG8: 0 | AH8: 0 | AI8: 7498 | AJ8: 0 | AK8: 0 | AL8: 0 | AM8: 11050 | AN8: 0 | AO8: 0 | AP8: 0 | AQ8: 0 | AR8: 0 | AS8: 0 | AT8: 6205 | AU8: 0 | AV8: 0 | AW8: 0 | AX8: 0 | AY8: 0 | AZ8: 0 | BA8: 14000 | BB8: 35890 | BC8: 0 | BD8: 0 | BE8: 0 | BF8: 0 | BG8: 0 | BH8: 0 | BI8: 0
A9: Barron County Health and Human Services Department | B9: 3 | C9: WRO | D9: 43548 | F9: 1006486 | G9: 14274 | H9: 7178 | J9: 0 | K9: 0 | L9: 0 | M9: 8180 | N9: 0 | O9: 0 | P9: 0 | Q9: 0 | R9: 0 | S9: 0 | T9: 0 | U9: 0 | V9: 36365 | W9: 0 | X9: 17504 | Y9: 46687 | Z9: 447212 | AA9: 6687 | AB9: 4500 | AC9: 0 | AD9: 0 | AE9: 48361 | AF9: 18100 | AG9: 0 | AH9: 0 | AI9: 10891 | AJ9: 0 | AK9: 0 | AL9: 0 | AM9: 19032 | AN9: 0 | AO9: 0 | AP9: 0 | AQ9: 0 | AR9: 0 | AS9: 0 | AT9: 11676 | AU9: 0 | AV9: 0 | AW9: 0 | AX9: 11365 | AY9: 0 | AZ9: 0 | BA9: 59500 | BB9: 35890 | BC9: 1630 | BD9: 0 | BE9: 4211 | BF9: 9220 | BG9: 209475 | BH9: 0 | BI9: 0
A10: Bayfield County Health Department | B10: 4 | C10: NRO | D10: 43549 | F10: 669732 | G10: 7368 | H10: 7178 | J10: 0 | K10: 0 | L10: 0 | M10: 8180 | N10: 0 | O10: 0 | P10: 0 | Q10: 0 | R10: 0 | S10: 0 | T10: 0 | U10: 0 | V10: 38528 | W10: 0 | X10: 30000 | Y10: 46531 | Z10: 111691 | AA10: 2803 | AB10: 3200 | AC10: 0 | AD10: 0 | AE10: 38528 | AF10: 12700 | AG10: 0 | AH10: 0 | AI10: 7470 | AJ10: 0 | AK10: 0 | AL10: 0 | AM10: 9824 | AN10: 0 | AO10: 0 | AP10: 0 | AQ10: 0 | AR10: 0 | AS10: 0 | AT10: 10892 | AU10: 0 | AV10: 0 | AW10: 0 | AX10: 13432 | AY10: 0 | AZ10: 0 | BA10: 28000 | BB10: 35890 | BC10: 2641 | BD10: 18592 | BE10: 3600 | BF10: 11710 | BG10: 235520 | BH10: 0 | BI10: 0
A11: Board of Health for Madison and Dane County on behalf of Public Health Madison and Dane County | B11: 256099 | C11: SRO | D11: 43556 | F11: 8429847 | G11: 144301 | H11: 1636 | J11: 0 | K11: 0 | L11: 0 | M11: 8180 | N11: 0 | O11: 0 | P11: 0 | Q11: 0 | R11: 0 | S11: 0 | T11: 55024 | U11: 0 | V11: 242965 | W11: 7500 | X11: 30000 | Y11: 441542 | Z11: 5236862 | AA11: 29115 | AB11: 25600 | AC11: 0 | AD11: 0 | AE11: 242965 | AF11: 102300 | AG11: 0 | AH11: 200000 | AI11: 95370 | AJ11: 0 | AK11: 0 | AL11: 0 | AM11: 192401 | AN11: 0 | AO11: 98300 | AP11: 49000 | AQ11: 0 | AR11: 0 | AS11: 0 | AT11: 38903 | AU11: 0 | AV11: 10413 | AW11: 0 | AX11: 0 | AY11: 121000 | AZ11: 19050 | BA11: 0 | BB11: 0 | BC11: 6569 | BD11: 9930 | BE11: 25149 | BF11: 34010 | BG11: 974139 | BH11: 126975 | BI11: 6585
A12: Brown County Health & Human Services Department Health Division | B12: 5 | C12: NERO | D12: 43550 | F12: 2306774 | G12: 68663 | H12: 0 | J12: 0 | K12: 0 | L12: 0 | M12: 0 | N12: 20000 | O12: 20000 | P12: 0 | Q12: 0 | R12: 0 | S12: 0 | T12: 0 | U12: 0 | V12: 121793 | W12: 0 | X12: 30000 | Y12: 307100 | Z12: 1302712 | AA12: 20438 | AB12: 12600 | AC12: 0 | AD12: 0 | AE12: 121793 | AF12: 50300 | AG12: 0 | AH12: 12000 | AI12: 55218 | AJ12: 0 | AK12: 0 | AL12: 0 | AM12: 91550 | AN12: 0 | AO12: 0 | AP12: 0 | AQ12: 0 | AR12: 0 | AS12: 0 | AT12: 22714 | AU12: 0 | AV12: 0 | AW12: 0 | AX12: 0 | AY12: 0 | AZ12: 0 | BA12: 0 | BB12: 0 | BC12: 0 | BD12: 0 | BE12: 0 | BF12: 0 | BG12: 0 | BH12: 112700 | BI12: 5856
A13: Buffalo County Health & Human Services Department | B13: 6 | C13: WRO | D13: 43551 | F13: 403062 | G13: 16829 | H13: 1636 | J13: 0 | K13: 0 | L13: 0 | M13: 8180 | N13: 0 | O13: 0 | P13: 0 | Q13: 0 | R13: 0 | S13: 0 | T13: 0 | U13: 0 | V13: 34018 | W13: 0 | X13: 19353 | Y13: 20945 | Z13: 153009 | AA13: 2304 | AB13: 3100 | AC13: 0 | AD13: 0 | AE13: 34018 | AF13: 12400 | AG13: 0 | AH13: 0 | AI13: 5328 | AJ13: 0 | AK13: 0 | AL13: 0 | AM13: 22439 | AN13: 0 | AO13: 0 | AP13: 0 | AQ13: 0 | AR13: 0 | AS13: 0 | AT13: 9496 | AU13: 0 | AV13: 0 | AW13: 0 | AX13: 0 | AY13: 0 | AZ13: 0 | BA13: 0 | BB13: 0 | BC13: 533 | BD13: 1600 | BE13: 1061 | BF13: 7228 | BG13: 68050 | BH13: 0 | BI13: 0
A14: Burnett County Department of Health & Human Services | B14: 7 | C14: WRO | D14: 43552 | F14: 399836 | G14: 5760 | H14: 0 | J14: 0 | K14: 0 | L14: 0 | M14: 0 | N14: 0 | O14: 0 | P14: 0 | Q14: 0 | R14: 0 | S14: 0 | T14: 0 | U14: 0 | V14: 26392 | W14: 0 | X14: 30000 | Y14: 48800 | Z14: 132506 | AA14: 2457 | AB14: 3200 | AC14: 0 | AD14: 0 | AE14: 35729 | AF14: 12700 | AG14: 0 | AH14: 0 | AI14: 5889 | AJ14: 0 | AK14: 0 | AL14: 0 | AM14: 7680 | AN14: 0 | AO14: 0 | AP14: 0 | AQ14: 0 | AR14: 0 | AS14: 0 | AT14: 10123 | AU14: 0 | AV14: 0 | AW14: 0 | AX14: 0 | AY14: 0 | AZ14: 0 | BA14: 0 | BB14: 0 | BC14: 714 | BD14: 1809 | BE14: 1537 | BF14: 0 | BG14: 80300 | BH14: 0 | BI14: 0
A15: Calumet County Health Division | B15: 8 | C15: NERO | D15: 43553 | F15: 817912 | G15: 7088 | H15: 0 | J15: 0 | K15: 0 | L15: 0 | M15: 0 | N15: 0 | O15: 0 | P15: 0 | Q15: 0 | R15: 0 | S15: 0 | T15: 0 | U15: 0 | V15: 40430 | W15: 0 | X15: 30000 | Y15: 46013 | Z15: 437580 | AA15: 1553 | AB15: 4100 | AC15: 0 | AD15: 0 | AE15: 40430 | AF15: 16300 | AG15: 0 | AH15: 0 | AI15: 7609 | AJ15: 0 | AK15: 0 | AL15: 0 | AM15: 9450 | AN15: 0 | AO15: 0 | AP15: 0 | AQ15: 0 | AR15: 0 | AS15: 0 | AT15: 9637 | AU15: 0 | AV15: 0 | AW15: 0 | AX15: 0 | AY15: 0 | AZ15: 0 | BA15: 0 | BB15: 0 | BC15: 1403 | BD15: 2689 | BE15: 2777 | BF15: 12013 | BG15: 155928 | BH15: 0 | BI15: 0
A16: Central Racine County Health Department | B16: 3960058125 | C16: SERO | D16: 43554 | F16: 1923403 | G16: 33986 | H16: 0 | J16: 0 | K16: 0 | L16: 0 | M16: 0 | N16: 0 | O16: 0 | P16: 0 | Q16: 0 | R16: 0 | S16: 22903 | T16: 0 | U16: 0 | V16: 95007 | W16: 0 | X16: 54000 | Y16: 169800 | Z16: 1330310 | AA16: 6056 | AB16: 7600 | AC16: 0 | AD16: 0 | AE16: 95007 | AF16: 30300 | AG16: 0 | AH16: 0 | AI16: 17591 | AJ16: 0 | AK16: 0 | AL16: 0 | AM16: 45314 | AN16: 0 | AO16: 0 | AP16: 35000 | AQ16: 0 | AR16: 0 | AS16: 0 | AT16: 14515 | AU16: 0 | AV16: 0 | AW16: 0 | AX16: 0 | AY16: 0 | AZ16: 0 | BA16: 0 | BB16: 0 | BC16: 0 | BD16: 0 | BE16: 0 | BF16: 0 | BG16: 0 | BH16: 0 | BI16: 0
A17: Chippewa County Department of Public Health | B17: 9 | C17: WRO | D17: 43555 | F17: 1593982 | G17: 132825 | H17: 7178 | J17: 0 | K17: 0 | L17: 0 | M17: 8180 | N17: 0 | O17: 0 | P17: 15000 | Q17: 0 | R17: 0 | S17: 0 | T17: 0 | U17: 0 | V17: 41644 | W17: 0 | X17: 41939 | Y17: 23403 | Z17: 619542 | AA17: 6963 | AB17: 5300 | AC17: 0 | AD17: 0 | AE17: 55400 | AF17: 21300 | AG17: 0 | AH17: 0 | AI17: 14765 | AJ17: 0 | AK17: 0 | AL17: 84000 | AM17: 25567 | AN17: 177100 | AO17: 0 | AP17: 49806 | AQ17: 0 | AR17: 0 | AS17: 0 | AT17: 13465 | AU17: 0 | AV17: 0 | AW17: 0 | AX17: 35347 | AY17: 0 | AZ17: 4350 | BA17: 14000 | BB17: 35890 | BC17: 2346 | BD17: 0 | BE17: 4986 | BF17: 17102 | BG17: 276587 | BH17: 0 | BI17: 0
A18: Clark County Health Department | B18: 10 | C18: WRO | D18: 43557 | F18: 626163 | G18: 22010 | H18: 7178 | J18: 0 | K18: 0 | L18: 0 | M18: 8180 | N18: 0 | O18: 0 | P18: 0 | Q18: 0 | R18: 0 | S18: 0 | T18: 0 | U18: 0 | V18: 35129 | W18: 0 | X18: 30000 | Y18: 72400 | Z18: 298611 | AA18: 4491 | AB18: 4000 | AC18: 0 | AD18: 0 | AE18: 46714 | AF18: 16200 | AG18: 0 | AH18: 0 | AI18: 13199 | AJ18: 0 | AK18: 0 | AL18: 0 | AM18: 29347 | AN18: 0 | AO18: 0 | AP18: 0 | AQ18: 0 | AR18: 0 | AS18: 0 | AT18: 11402 | AU18: 0 | AV18: 0 | AW18: 0 | AX18: 0 | AY18: 0 | AZ18: 2400 | BA18: 18200 | BB18: 35890 | BC18: 0 | BD18: 0 | BE18: 0 | BF18: 0 | BG18: 0 | BH18: 0 | BI18: 0
A19: Columbia County Division of Health | B19: 11 | C19: SRO | D19: 43558 | F19: 678700 | G19: 12617 | H19: 0 | J19: 0 | K19: 0 | L19: 0 | M19: 0 | N19: 0 | O19: 0 | P19: 0 | Q19: 0 | R19: 0 | S19: 0 | T19: 10334 | U19: 0 | V19: 50900 | W19: 5000 | X19: 14200 | Y19: 25500 | Z19: 221800 | AA19: 6287 | AB19: 5000 | AC19: 0 | AD19: 0 | AE19: 50900 | AF19: 20100 | AG19: 0 | AH19: 0 | AI19: 11200 | AJ19: 0 | AK19: 0 | AL19: 0 | AM19: 16822 | AN19: 0 | AO19: 0 | AP19: 34505 | AQ19: 0 | AR19: 0 | AS19: 0 | AT19: 12049 | AU19: 0 | AV19: 0 | AW19: 0 | AX19: 8033 | AY19: 0 | AZ19: 0 | BA19: 0 | BB19: 0 | BC19: 1537 | BD19: 0 | BE19: 2808 | BF19: 13315 | BG19: 168410 | BH19: 0 | BI19: 0
A20: Crawford County Health and Human Services | B20: 12 | C20: SRO | D20: 43559 | F20: 416470 | G20: 5939 | H20: 0 | J20: 0 | K20: 0 | L20: 0 | M20: 0 | N20: 0 | O20: 0 | P20: 0 | Q20: 0 | R20: 0 | S20: 0 | T20: 0 | U20: 0 | V20: 34770 | W20: 0 | X20: 30865 | Y20: 46103 | Z20: 228884 | AA20: 2207 | AB20: 3200 | AC20: 0 | AD20: 0 | AE20: 34770 | AF20: 12900 | AG20: 0 | AH20: 0 | AI20: 5276 | AJ20: 0 | AK20: 0 | AL20: 0 | AM20: 7918 | AN20: 0 | AO20: 0 | AP20: 0 | AQ20: 0 | AR20: 0 | AS20: 0 | AT20: 9577 | AU20: 0 | AV20: 0 | AW20: 0 | AX20: 0 | AY20: 0 | AZ20: 0 | BA20: 0 | BB20: 0 | BC20: 0 | BD20: 0 | BE20: 0 | BF20: 0 | BG20: 0 | BH20: 0 | BI20: 0
A21: Cudahy Health Department | B21: 472761 | C21: SERO | D21: 43560 | F21: 768727 | G21: 6074 | H21: 7178 | J21: 0 | K21: 0 | L21: 0 | M21: 8180 | N21: 0 | O21: 0 | P21: 0 | Q21: 0 | R21: 0 | S21: 7717 | T21: 0 | U21: 0 | V21: 32799 | W21: 0 | X21: 225 | Y21: 127698 | Z21: 110763 | AA21: 3139 | AB21: 3300 | AC21: 0 | AD21: 0 | AE21: 32799 | AF21: 13200 | AG21: 0 | AH21: 0 | AI21: 7525 | AJ21: 0 | AK21: 0 | AL21: 0 | AM21: 8099 | AN21: 0 | AO21: 0 | AP21: 0 | AQ21: 0 | AR21: 0 | AS21: 0 | AT21: 11393 | AU21: 0 | AV21: 0 | AW21: 0 | AX21: 0 | AY21: 0 | AZ21: 0 | BA21: 366000 | BB21: 35890 | BC21: 0 | BD21: 0 | BE21: 0 | BF21: 0 | BG21: 0 | BH21: 0 | BI21: 0
A22: De Pere Department of Public Health | B22: 472779 | C22: NERO | D22: 43561 | F22: 376146 | G22: 9426 | H22: 0 | J22: 0 | K22: 0 | L22: 0 | M22: 0 | N22: 0 | O22: 0 | P22: 0 | Q22: 0 | R22: 0 | S22: 0 | T22: 0 | U22: 0 | V22: 34412 | W22: 0 | X22: 30000 | Y22: 22782 | Z22: 205850 | AA22: 1724 | AB22: 3600 | AC22: 0 | AD22: 0 | AE22: 34412 | AF22: 14200 | AG22: 0 | AH22: 0 | AI22: 7304 | AJ22: 0 | AK22: 0 | AL22: 0 | AM22: 12568 | AN22: 0 | AO22: 0 | AP22: 0 | AQ22: 0 | AR22: 0 | AS22: 0 | AT22: 9294 | AU22: 0 | AV22: 0 | AW22: 0 | AX22: 0 | AY22: 0 | AZ22: 0 | BA22: 0 | BB22: 0 | BC22: 0 | BD22: 0 | BE22: 0 | BF22: 0 | BG22: 0 | BH22: 0 | BI22: 0
A23: Dodge County Human Services & Health Department | B23: 14 | C23: SRO | D23: 43562 | F23: 1385426 | G23: 19465 | H23: 0 | J23: 0 | K23: 0 | L23: 0 | M23: 0 | N23: 0 | O23: 0 | P23: 0 | Q23: 0 | R23: 0 | S23: 0 | T23: 0 | U23: 0 | V23: 60151 | W23: 0 | X23: 25267 | Y23: 33076 | Z23: 840574 | AA23: 10331 | AB23: 6000 | AC23: 0 | AD23: 0 | AE23: 60151 | AF23: 24200 | AG23: 0 | AH23: 0 | AI23: 15137 | AJ23: 0 | AK23: 0 | AL23: 0 | AM23: 25953 | AN23: 0 | AO23: 0 | AP23: 0 | AQ23: 0 | AR23: 0 | AS23: 0 | AT23: 13538 | AU23: 0 | AV23: 0 | AW23: 0 | AX23: 0 | AY23: 0 | AZ23: 0 | BA23: 0 | BB23: 0 | BC23: 2229 | BD23: 2400 | BE23: 5339 | BF23: 13090 | BG23: 247990 | BH23: 0 | BI23: 0
A24: Door County Health Department | B24: 15 | C24: NERO | D24: 43563 | F24: 606801 | G24: 6490 | H24: 0 | J24: 0 | K24: 0 | L24: 0 | M24: 0 | N24: 0 | O24: 0 | P24: 0 | Q24: 0 | R24: 0 | S24: 0 | T24: 0 | U24: 0 | V24: 39031 | W24: 0 | X24: 56691 | Y24: 18205 | Z24: 269756 | AA24: 4264 | AB24: 3700 | AC24: 0 | AD24: 0 | AE24: 39031 | AF24: 14900 | AG24: 0 | AH24: 0 | AI24: 6315 | AJ24: 0 | AK24: 0 | AL24: 0 | AM24: 8653 | AN24: 0 | AO24: 0 | AP24: 0 | AQ24: 0 | AR24: 0 | AS24: 0 | AT24: 10434 | AU24: 0 | AV24: 0 | AW24: 0 | AX24: 0 | AY24: 0 | AZ24: 0 | BA24: 0 | BB24: 0 | BC24: 1097 | BD24: 0 | BE24: 2014 | BF24: 8400 | BG24: 124310 | BH24: 0 | BI24: 0
A25: Douglas County Department of Health & Human Services | B25: 16 | C25: WRO | D25: 43564 | F25: 436930 | G25: 13475 | H25: 0 | J25: 0 | K25: 0 | L25: 0 | M25: 0 | N25: 0 | O25: 0 | P25: 0 | Q25: 0 | R25: 0 | S25: 0 | T25: 0 | U25: 0 | V25: 36758 | W25: 0 | X25: 32760 | Y25: 25085 | Z25: 223771 | AA25: 7178 | AB25: 4500 | AC25: 0 | AD25: 0 | AE25: 48885 | AF25: 17800 | AG25: 0 | AH25: 0 | AI25: 10289 | AJ25: 0 | AK25: 0 | AL25: 0 | AM25: 17966 | AN25: 0 | AO25: 0 | AP25: 0 | AQ25: 0 | AR25: 0 | AS25: 0 | AT25: 11938 | AU25: 0 | AV25: 0 | AW25: 0 | AX25: 0 | AY25: 0 | AZ25: 0 | BA25: 0 | BB25: 0 | BC25: 0 | BD25: 0 | BE25: 0 | BF25: 0 | BG25: 0 | BH25: 0 | BI25: 0
A26: Dunn County Health Department | B26: 17 | C26: WRO | D26: 43565 | F26: 976811 | G26: 14938 | H26: 7178 | J26: 0 | K26: 0 | L26: 0 | M26: 8180 | N26: 0 | O26: 0 | P26: 15000 | Q26: 0 | R26: 0 | S26: 0 | T26: 0 | U26: 0 | V26: 35577 | W26: 0 | X26: 30000 | Y26: 84300 | Z26: 382793 | AA26: 4242 | AB26: 4500 | AC26: 0 | AD26: 0 | AE26: 47311 | AF26: 17900 | AG26: 0 | AH26: 0 | AI26: 10942 | AJ26: 0 | AK26: 0 | AL26: 0 | AM26: 19917 | AN26: 0 | AO26: 0 | AP26: 0 | AQ26: 0 | AR26: 0 | AS26: 0 | AT26: 12187 | AU26: 0 | AV26: 8398 | AW26: 0 | AX26: 10710 | AY26: 0 | AZ26: 0 | BA26: 56000 | BB26: 35890 | BC26: 1491 | BD26: 0 | BE26: 3428 | BF26: 8500 | BG26: 179545 | BH26: 0 | BI26: 0
A27: Eau Claire City/County Health Department | B27: 256321 | C27: WRO | D27: 43566 | F27: 2998974 | G27: 35584 | H27: 7192 | J27: 0 | K27: 0 | L27: 0 | M27: 8180 | N27: 20000 | O27: 29733 | P27: 78207 | Q27: 0 | R27: 0 | S27: 0 | T27: 0 | U27: 0 | V27: 52436 | W27: 17500 | X27: 52187 | Y27: 103078 | Z27: 946950 | AA27: 9795 | AB27: 7000 | AC27: 0 | AD27: 0 | AE27: 69789 | AF27: 28100 | AG27: 0 | AH27: 75000 | AI27: 22061 | AJ27: 0 | AK27: 0 | AL27: 0 | AM27: 47445 | AN27: 0 | AO27: 98300 | AP27: 51500 | AQ27: 0 | AR27: 0 | AS27: 0 | AT27: 20897 | AU27: 0 | AV27: 9773 | AW27: 90000 | AX27: 16301 | AY27: 50000 | AZ27: 4350 | BA27: 558000 | BB27: 35960 | BC27: 3076 | BD27: 0 | BE27: 8773 | BF27: 27790 | BG27: 387710 | BH27: 65250 | BI27: 3833
A28: Florence County Health Department | B28: 19 | C28: NRO | D28: 43567 | F28: 246268 | G28: 15433 | H28: 1636 | J28: 0 | K28: 0 | L28: 0 | M28: 8180 | N28: 0 | O28: 0 | P28: 0 | Q28: 0 | R28: 0 | S28: 0 | T28: 0 | U28: 0 | V28: 29484 | W28: 0 | X28: 30000 | Y28: 35400 | Z28: 38285 | AA28: 748 | AB28: 2800 | AC28: 0 | AD28: 0 | AE28: 29484 | AF28: 10800 | AG28: 0 | AH28: 0 | AI28: 4666 | AJ28: 0 | AK28: 0 | AL28: 0 | AM28: 20577 | AN28: 0 | AO28: 0 | AP28: 0 | AQ28: 0 | AR28: 0 | AS28: 0 | AT28: 9435 | AU28: 0 | AV28: 0 | AW28: 0 | AX28: 0 | AY28: 0 | AZ28: 0 | BA28: 0 | BB28: 0 | BC28: 500 | BD28: 345 | BE28: 374 | BF28: 0 | BG28: 25190 | BH28: 0 | BI28: 0
A29: Fond du Lac County Health Department | B29: 20 | C29: NERO | D29: 43568 | F29: 2009992 | G29: 38633 | H29: 1636 | J29: 0 | K29: 0 | L29: 0 | M29: 8180 | N29: 0 | O29: 0 | P29: 0 | Q29: 0 | R29: 0 | S29: 0 | T29: 0 | U29: 0 | V29: 69468 | W29: 0 | X29: 30000 | Y29: 121259 | Z29: 998213 | AA29: 12218 | AB29: 7000 | AC29: 0 | AD29: 0 | AE29: 69468 | AF29: 28200 | AG29: 0 | AH29: 0 | AI29: 20642 | AJ29: 0 | AK29: 0 | AL29: 0 | AM29: 51511 | AN29: 0 | AO29: 0 | AP29: 0 | AQ29: 0 | AR29: 0 | AS29: 0 | AT29: 14980 | AU29: 0 | AV29: 10547 | AW29: 0 | AX29: 15981 | AY29: 121000 | AZ29: 9375 | BA29: 0 | BB29: 0 | BC29: 2830 | BD29: 2400 | BE29: 8440 | BF29: 22335 | BG29: 385945 | BH29: 0 | BI29: 0
A30: Forest County Health Department | B30: 21 | C30: NRO | D30: 43569 | F30: 284731 | G30: 5209 | H30: 0 | J30: 0 | K30: 0 | L30: 0 | M30: 0 | N30: 0 | O30: 0 | P30: 0 | Q30: 0 | R30: 0 | S30: 0 | T30: 0 | U30: 0 | V30: 33995 | W30: 0 | X30: 22819 | Y30: 8517 | Z30: 79033 | AA30: 1906 | AB30: 2900 | AC30: 0 | AD30: 0 | AE30: 33995 | AF30: 11600 | AG30: 0 | AH30: 0 | AI30: 5552 | AJ30: 0 | AK30: 0 | AL30: 0 | AM30: 6945 | AN30: 0 | AO30: 0 | AP30: 0 | AQ30: 0 | AR30: 0 | AS30: 0 | AT30: 9900 | AU30: 0 | AV30: 0 | AW30: 0 | AX30: 8358 | AY30: 0 | AZ30: 0 | BA30: 0 | BB30: 0 | BC30: 500 | BD30: 1730 | BE30: 881 | BF30: 6500 | BG30: 49600 | BH30: 0 | BI30: 0
A31: Franklin Health Department | B31: 472787 | C31: SERO | D31: 43570 | F31: 376590 | G31: 5391 | H31: 0 | J31: 0 | K31: 0 | L31: 0 | M31: 0 | N31: 0 | O31: 0 | P31: 0 | Q31: 0 | R31: 0 | S31: 9484 | T31: 0 | U31: 0 | V31: 39727 | W31: 0 | X31: 11969 | Y31: 23500 | Z31: 208034 | AA31: 1197 | AB31: 4100 | AC31: 0 | AD31: 0 | AE31: 39727 | AF31: 16300 | AG31: 0 | AH31: 0 | AI31: 6598 | AJ31: 0 | AK31: 0 | AL31: 0 | AM31: 7188 | AN31: 0 | AO31: 0 | AP31: 0 | AQ31: 0 | AR31: 0 | AS31: 0 | AT31: 4366 | AU31: 0 | AV31: 0 | AW31: 0 | AX31: 0 | AY31: 3500 | AZ31: 900 | BA31: 0 | BB31: 0 | BC31: 0 | BD31: 0 | BE31: 0 | BF31: 0 | BG31: 0 | BH31: 0 | BI31: 0
A32: Grant County Health Department | B32: 22 | C32: SRO | D32: 43571 | F32: 895698 | G32: 18435 | H32: 0 | J32: 0 | K32: 0 | L32: 0 | M32: 0 | N32: 0 | O32: 0 | P32: 0 | Q32: 0 | R32: 0 | S32: 0 | T32: 2287 | U32: 0 | V32: 52387 | W32: 0 | X32: 6605 | Y32: 22211 | Z32: 411746 | AA32: 19147 | AB32: 4800 | AC32: 4667 | AD32: 0 | AE32: 52387 | AF32: 19400 | AG32: 0 | AH32: 0 | AI32: 12334 | AJ32: 0 | AK32: 0 | AL32: 0 | AM32: 24580 | AN32: 0 | AO32: 0 | AP32: 0 | AQ32: 0 | AR32: 0 | AS32: 0 | AT32: 30187 | AU32: 0 | AV32: 8471 | AW32: 0 | AX32: 0 | AY32: 0 | AZ32: 0 | BA32: 0 | BB32: 0 | BC32: 1134 | BD32: 800 | BE32: 3715 | BF32: 8500 | BG32: 210340 | BH32: 0 | BI32: 0
A33: Green County Health Department | B33: 23 | C33: SRO | D33: 43572 | F33: 725411 | G33: 8989 | H33: 0 | J33: 0 | K33: 0 | L33: 0 | M33: 0 | N33: 0 | O33: 0 | P33: 0 | Q33: 0 | R33: 0 | S33: 0 | T33: 0 | U33: 0 | V33: 42659 | W33: 0 | X33: 5634 | Y33: 79978 | Z33: 326894 | AA33: 4741 | AB33: 4100 | AC33: 0 | AD33: 0 | AE33: 42659 | AF33: 16500 | AG33: 0 | AH33: 0 | AI33: 8249 | AJ33: 0 | AK33: 0 | AL33: 0 | AM33: 11985 | AN33: 0 | AO33: 0 | AP33: 0 | AQ33: 0 | AR33: 0 | AS33: 0 | AT33: 10438 | AU33: 0 | AV33: 0 | AW33: 0 | AX33: 8525 | AY33: 0 | AZ33: 0 | BA33: 0 | BB33: 0 | BC33: 1206 | BD33: 4385 | BE33: 2808 | BF33: 10000 | BG33: 144650 | BH33: 0 | BI33: 0
A34: Green Lake County Department of Health & Human Services | B34: 24 | C34: NERO | D34: 43573 | F34: 362736 | G34: 8525 | H34: 0 | J34: 0 | K34: 0 | L34: 0 | M34: 0 | N34: 0 | O34: 0 | P34: 0 | Q34: 0 | R34: 0 | S34: 0 | T34: 0 | U34: 0 | V34: 35027 | W34: 0 | X34: 30000 | Y34: 53100 | Z34: 163000 | AA34: 2941 | AB34: 3300 | AC34: 0 | AD34: 0 | AE34: 35027 | AF34: 13400 | AG34: 0 | AH34: 0 | AI34: 5852 | AJ34: 0 | AK34: 0 | AL34: 0 | AM34: 11367 | AN34: 0 | AO34: 0 | AP34: 0 | AQ34: 0 | AR34: 0 | AS34: 0 | AT34: 9722 | AU34: 0 | AV34: 0 | AW34: 0 | AX34: 0 | AY34: 0 | AZ34: 0 | BA34: 0 | BB34: 0 | BC34: 0 | BD34: 0 | BE34: 0 | BF34: 0 | BG34: 0 | BH34: 0 | BI34: 0
A35: Greendale Health Department | B35: 703090 | C35: SERO | D35: 43574 | F35: 302562 | G35: 4930 | H35: 0 | J35: 0 | K35: 0 | L35: 0 | M35: 0 | N35: 0 | O35: 0 | P35: 0 | Q35: 0 | R35: 0 | S35: 2976 | T35: 0 | U35: 0 | V35: 31121 | W35: 0 | X35: 30000 | Y35: 47200 | Z35: 123070 | AA35: 758 | AB35: 3100 | AC35: 0 | AD35: 0 | AE35: 31121 | AF35: 12500 | AG35: 0 | AH35: 0 | AI35: 5352 | AJ35: 0 | AK35: 0 | AL35: 0 | AM35: 6573 | AN35: 0 | AO35: 0 | AP35: 0 | AQ35: 0 | AR35: 0 | AS35: 0 | AT35: 8791 | AU35: 0 | AV35: 0 | AW35: 0 | AX35: 0 | AY35: 0 | AZ35: 0 | BA35: 0 | BB35: 0 | BC35: 0 | BD35: 0 | BE35: 0 | BF35: 0 | BG35: 0 | BH35: 0 | BI35: 0
A36: Greenfield Health Department | B36: 472803 | C36: SERO | D36: 43575 | F36: 612477 | G36: 9387 | H36: 0 | J36: 0 | K36: 0 | L36: 0 | M36: 0 | N36: 0 | O36: 0 | P36: 0 | Q36: 0 | R36: 0 | S36: 9432 | T36: 0 | U36: 0 | V36: 40707 | W36: 0 | X36: 30000 | Y36: 74400 | Z36: 313138 | AA36: 1404 | AB36: 4100 | AC36: 0 | AD36: 0 | AE36: 40707 | AF36: 16500 | AG36: 0 | AH36: 0 | AI36: 9671 | AJ36: 0 | AK36: 0 | AL36: 0 | AM36: 12516 | AN36: 0 | AO36: 13597 | AP36: 35459 | AQ36: 0 | AR36: 0 | AS36: 0 | AT36: 10846 | AU36: 0 | AV36: 0 | AW36: 0 | AX36: 0 | AY36: 0 | AZ36: 0 | BA36: 0 | BB36: 0 | BC36: 0 | BD36: 0 | BE36: 0 | BF36: 0 | BG36: 0 | BH36: 0 | BI36: 0
A37: Hales Corners Health Department | B37: 472811 | C37: SERO | D37: 43576 | F37: 236626 | G37: 0 | H37: 0 | J37: 0 | K37: 0 | L37: 0 | M37: 0 | N37: 0 | O37: 0 | P37: 0 | Q37: 0 | R37: 0 | S37: 1515 | T37: 0 | U37: 0 | V37: 28232 | W37: 0 | X37: 30000 | Y37: 39300 | Z37: 65819 | AA37: 0 | AB37: 2800 | AC37: 0 | AD37: 0 | AE37: 47632 | AF37: 11400 | AG37: 0 | AH37: 0 | AI37: 2198 | AJ37: 0 | AK37: 0 | AL37: 0 | AM37: 0 | AN37: 0 | AO37: 0 | AP37: 0 | AQ37: 0 | AR37: 0 | AS37: 0 | AT37: 7730 | AU37: 0 | AV37: 0 | AW37: 0 | AX37: 0 | AY37: 0 | AZ37: 0 | BA37: 0 | BB37: 0 | BC37: 0 | BD37: 0 | BE37: 0 | BF37: 0 | BG37: 0 | BH37: 0 | BI37: 0
A38: Iowa County Health Department | B38: 25 | C38: SRO | D38: 43577 | F38: 407957 | G38: 5933 | H38: 0 | J38: 0 | K38: 0 | L38: 0 | M38: 0 | N38: 0 | O38: 0 | P38: 0 | Q38: 0 | R38: 0 | S38: 0 | T38: 0 | U38: 0 | V38: 38217 | W38: 0 | X38: 30000 | Y38: 58900 | Z38: 203919 | AA38: 0 | AB38: 3600 | AC38: 0 | AD38: 0 | AE38: 38217 | AF38: 14200 | AG38: 0 | AH38: 0 | AI38: 6969 | AJ38: 0 | AK38: 0 | AL38: 0 | AM38: 7910 | AN38: 0 | AO38: 0 | AP38: 0 | AQ38: 0 | AR38: 0 | AS38: 0 | AT38: 6025 | AU38: 0 | AV38: 0 | AW38: 0 | AX38: 0 | AY38: 0 | AZ38: 0 | BA38: 0 | BB38: 0 | BC38: 0 | BD38: 0 | BE38: 0 | BF38: 0 | BG38: 0 | BH38: 0 | BI38: 0
A39: Iron County Health Department | B39: 26 | C39: NRO | D39: 43578 | F39: 279530 | G39: 3968 | H39: 7178 | J39: 0 | K39: 0 | L39: 0 | M39: 8180 | N39: 0 | O39: 0 | P39: 0 | Q39: 0 | R39: 0 | S39: 0 | T39: 0 | U39: 0 | V39: 31449 | W39: 0 | X39: 30000 | Y39: 37100 | Z39: 50109 | AA39: 1784 | AB39: 2800 | AC39: 0 | AD39: 0 | AE39: 31449 | AF39: 11000 | AG39: 0 | AH39: 0 | AI39: 3874 | AJ39: 0 | AK39: 0 | AL39: 0 | AM39: 5290 | AN39: 0 | AO39: 0 | AP39: 0 | AQ39: 0 | AR39: 0 | AS39: 0 | AT39: 9605 | AU39: 0 | AV39: 0 | AW39: 0 | AX39: 0 | AY39: 0 | AZ39: 0 | BA39: 21000 | BB39: 35890 | BC39: 0 | BD39: 0 | BE39: 0 | BF39: 0 | BG39: 0 | BH39: 0 | BI39: 0
A40: Jackson County Health & Human Services Department | B40: 27 | C40: WRO | D40: 43579 | F40: 580108 | G40: 8195 | H40: 0 | J40: 0 | K40: 0 | L40: 0 | M40: 0 | N40: 0 | O40: 0 | P40: 0 | Q40: 0 | R40: 0 | S40: 0 | T40: 0 | U40: 0 | V40: 38658 | W40: 0 | X40: 30000 | Y40: 55200 | Z40: 232046 | AA40: 2820 | AB40: 3400 | AC40: 0 | AD40: 0 | AE40: 38658 | AF40: 13700 | AG40: 0 | AH40: 0 | AI40: 7337 | AJ40: 0 | AK40: 0 | AL40: 0 | AM40: 10926 | AN40: 0 | AO40: 0 | AP40: 0 | AQ40: 0 | AR40: 0 | AS40: 0 | AT40: 10233 | AU40: 0 | AV40: 0 | AW40: 0 | AX40: 8358 | AY40: 0 | AZ40: 0 | BA40: 0 | BB40: 0 | BC40: 833 | BD40: 3977 | BE40: 2337 | BF40: 0 | BG40: 121625 | BH40: 0 | BI40: 0
A41: Jefferson County Health Department | B41: 28 | C41: SRO | D41: 43580 | F41: 1323401 | G41: 14466 | H41: 0 | J41: 0 | K41: 0 | L41: 0 | M41: 0 | N41: 0 | O41: 0 | P41: 0 | Q41: 0 | R41: 0 | S41: 0 | T41: 0 | U41: 0 | V41: 54835 | W41: 0 | X41: 30000 | Y41: 46299 | Z41: 651531 | AA41: 6366 | AB41: 5500 | AC41: 0 | AD41: 0 | AE41: 54835 | AF41: 22200 | AG41: 0 | AH41: 0 | AI41: 12862 | AJ41: 0 | AK41: 0 | AL41: 0 | AM41: 19288 | AN41: 0 | AO41: 0 | AP41: 0 | AQ41: 0 | AR41: 0 | AS41: 0 | AT41: 6042 | AU41: 0 | AV41: 0 | AW41: 0 | AX41: 17957 | AY41: 0 | AZ41: 0 | BA41: 0 | BB41: 0 | BC41: 2691 | BD41: 48120 | BE41: 6410 | BF41: 12370 | BG41: 326095 | BH41: 0 | BI41: 0
A42: Juneau County Health Department | B42: 29 | C42: SRO | D42: 43581 | F42: 918890 | G42: 8649 | H42: 0 | J42: 0 | K42: 0 | L42: 0 | M42: 0 | N42: 0 | O42: 0 | P42: 0 | Q42: 0 | R42: 0 | S42: 0 | T42: 0 | U42: 0 | V42: 39986 | W42: 0 | X42: 11000 | Y42: 32700 | Z42: 175408 | AA42: 3776 | AB42: 3700 | AC42: 0 | AD42: 0 | AE42: 39986 | AF42: 14700 | AG42: 0 | AH42: 0 | AI42: 7958 | AJ42: 0 | AK42: 0 | AL42: 0 | AM42: 11532 | AN42: 0 | AO42: 0 | AP42: 19833 | AQ42: 0 | AR42: 0 | AS42: 0 | AT42: 6511 | AU42: 0 | AV42: 0 | AW42: 0 | AX42: 17957 | AY42: 121000 | AZ42: 8625 | BA42: 0 | BB42: 0 | BC42: 2994 | BD42: 1600 | BE42: 5363 | BF42: 12100 | BG42: 292150 | BH42: 85150 | BI42: 4861
A43: Kenosha County Division of Health | B43: 30 | C43: SERO | D43: 43582 | F43: 3367658 | G43: 46978 | H43: 7178 | J43: 31500 | K43: 0 | L43: 0 | M43: 8180 | N43: 0 | O43: 0 | P43: 0 | Q43: 0 | R43: 55000 | S43: 46484 | T43: 0 | U43: 0 | V43: 95858 | W43: 0 | X43: 30000 | Y43: 25878 | Z43: 1691969 | AA43: 21238 | AB43: 9900 | AC43: 0 | AD43: 0 | AE43: 95858 | AF43: 39700 | AG43: 0 | AH43: 17000 | AI43: 41031 | AJ43: 0 | AK43: 0 | AL43: 0 | AM43: 62637 | AN43: 0 | AO43: 0 | AP43: 0 | AQ43: 0 | AR43: 0 | AS43: 0 | AT43: 19430 | AU43: 0 | AV43: 7452 | AW43: 0 | AX43: 31078 | AY43: 0 | AZ43: 0 | BA43: 107800 | BB43: 35890 | BC43: 5126 | BD43: 0 | BE43: 19170 | BF43: 26180 | BG43: 761680 | BH43: 77550 | BI43: 4069
A44: Kewaunee County Health Department | B44: 31 | C44: NERO | D44: 43583 | F44: 389525 | G44: 5020 | H44: 0 | J44: 0 | K44: 0 | L44: 0 | M44: 0 | N44: 0 | O44: 0 | P44: 0 | Q44: 0 | R44: 0 | S44: 0 | T44: 0 | U44: 1700 | V44: 35078 | W44: 0 | X44: 27887 | Y44: 16137 | Z44: 142900 | AA44: 1953 | AB44: 3400 | AC44: 0 | AD44: 0 | AE44: 35078 | AF44: 13600 | AG44: 0 | AH44: 0 | AI44: 6097 | AJ44: 0 | AK44: 0 | AL44: 0 | AM44: 6693 | AN44: 0 | AO44: 0 | AP44: 0 | AQ44: 0 | AR44: 0 | AS44: 0 | AT44: 9226 | AU44: 0 | AV44: 0 | AW44: 0 | AX44: 15198 | AY44: 0 | AZ44: 0 | BA44: 0 | BB44: 0 | BC44: 699 | BD44: 1800 | BE44: 1199 | BF44: 6500 | BG44: 64380 | BH44: 0 | BI44: 0
A45: La Crosse County Health Department | B45: 32 | C45: WRO | D45: 43584 | F45: 2887412 | G45: 31854 | H45: 0 | J45: 0 | K45: 0 | L45: 0 | M45: 0 | N45: 0 | O45: 0 | P45: 0 | Q45: 0 | R45: 0 | S45: 0 | T45: 0 | U45: 0 | V45: 74972 | W45: 0 | X45: 144320 | Y45: 170347 | Z45: 1443840 | AA45: 10026 | AB45: 7700 | AC45: 0 | AD45: 0 | AE45: 74972 | AF45: 30900 | AG45: 0 | AH45: 16000 | AI45: 21464 | AJ45: 0 | AK45: 0 | AL45: 0 | AM45: 42472 | AN45: 0 | AO45: 0 | AP45: 46096 | AQ45: 0 | AR45: 0 | AS45: 0 | AT45: 16233 | AU45: 0 | AV45: 5920 | AW45: 0 | AX45: 80173 | AY45: 121000 | AZ45: 16650 | BA45: 0 | BB45: 0 | BC45: 3739 | BD45: 0 | BE45: 10212 | BF45: 23500 | BG45: 469520 | BH45: 54350 | BI45: 3006
A46: Lafayette County Health Department | B46: 33 | C46: SRO | D46: 43585 | F46: 333314 | G46: 6509 | H46: 0 | J46: 0 | K46: 0 | L46: 0 | M46: 0 | N46: 0 | O46: 0 | P46: 0 | Q46: 0 | R46: 0 | S46: 0 | T46: 0 | U46: 0 | V46: 35322 | W46: 0 | X46: 30000 | Y46: 50600 | Z46: 144878 | AA46: 0 | AB46: 3200 | AC46: 0 | AD46: 0 | AE46: 35322 | AF46: 13000 | AG46: 0 | AH46: 0 | AI46: 6348 | AJ46: 0 | AK46: 0 | AL46: 0 | AM46: 8679 | AN46: 0 | AO46: 0 | AP46: 0 | AQ46: 0 | AR46: 0 | AS46: 0 | AT46: 5965 | AU46: 0 | AV46: 0 | AW46: 0 | AX46: 0 | AY46: 0 | AZ46: 0 | BA46: 0 | BB46: 0 | BC46: 0 | BD46: 0 | BE46: 0 | BF46: 0 | BG46: 0 | BH46: 0 | BI46: 0
A47: Langlade County Health Department | B47: 34 | C47: NRO | D47: 43586 | F47: 378971 | G47: 8030 | H47: 0 | J47: 0 | K47: 0 | L47: 0 | M47: 0 | N47: 0 | O47: 0 | P47: 0 | Q47: 0 | R47: 0 | S47: 0 | T47: 17466 | U47: 0 | V47: 37514 | W47: 0 | X47: 30789 | Y47: 19089 | Z47: 188664 | AA47: 3416 | AB47: 3400 | AC47: 0 | AD47: 0 | AE47: 37514 | AF47: 13500 | AG47: 0 | AH47: 0 | AI47: 6339 | AJ47: 0 | AK47: 0 | AL47: 0 | AM47: 10707 | AN47: 0 | AO47: 0 | AP47: 0 | AQ47: 0 | AR47: 0 | AS47: 0 | AT47: 10573 | AU47: 0 | AV47: 0 | AW47: 0 | AX47: 0 | AY47: 0 | AZ47: 0 | BA47: 0 | BB47: 0 | BC47: 0 | BD47: 0 | BE47: 0 | BF47: 0 | BG47: 0 | BH47: 0 | BI47: 0
A48: Lincoln County Health Department | B48: 35 | C48: NRO | D48: 43587 | F48: 408210 | G48: 11012 | H48: 0 | J48: 0 | K48: 0 | L48: 0 | M48: 0 | N48: 0 | O48: 0 | P48: 0 | Q48: 0 | R48: 0 | S48: 0 | T48: 0 | U48: 0 | V48: 40683 | W48: 0 | X48: 15672 | Y48: 22149 | Z48: 231948 | AA48: 3612 | AB48: 3800 | AC48: 0 | AD48: 0 | AE48: 40683 | AF48: 15000 | AG48: 0 | AH48: 0 | AI48: 8824 | AJ48: 0 | AK48: 0 | AL48: 0 | AM48: 14683 | AN48: 0 | AO48: 0 | AP48: 0 | AQ48: 0 | AR48: 0 | AS48: 0 | AT48: 11156 | AU48: 0 | AV48: 0 | AW48: 0 | AX48: 0 | AY48: 0 | AZ48: 0 | BA48: 0 | BB48: 0 | BC48: 0 | BD48: 0 | BE48: 0 | BF48: 0 | BG48: 0 | BH48: 0 | BI48: 0
A49: Manitowoc County Health Department | B49: 36 | C49: NERO | D49: 43588 | F49: 1187127 | G49: 20231 | H49: 0 | J49: 0 | K49: 0 | L49: 0 | M49: 0 | N49: 0 | O49: 0 | P49: 0 | Q49: 0 | R49: 0 | S49: 0 | T49: 3082 | U49: 0 | V49: 60098 | W49: 0 | X49: 34247 | Y49: 110005 | Z49: 539949 | AA49: 11407 | AB49: 6100 | AC49: 0 | AD49: 0 | AE49: 60098 | AF49: 24300 | AG49: 0 | AH49: 0 | AI49: 15883 | AJ49: 0 | AK49: 0 | AL49: 0 | AM49: 26975 | AN49: 0 | AO49: 0 | AP49: 0 | AQ49: 0 | AR49: 0 | AS49: 0 | AT49: 12995 | AU49: 0 | AV49: 8883 | AW49: 0 | AX49: 0 | AY49: 0 | AZ49: 0 | BA49: 0 | BB49: 0 | BC49: 2642 | BD49: 0 | BE49: 5873 | BF49: 0 | BG49: 264590 | BH49: 0 | BI49: 0
A50: Marathon County Health Department | B50: 37 | C50: NRO | D50: 43589 | F50: 1932501 | G50: 120150 | H50: 0 | J50: 0 | K50: 0 | L50: 0 | M50: 0 | N50: 0 | O50: 0 | P50: 0 | Q50: 0 | R50: 0 | S50: 0 | T50: 0 | U50: 0 | V50: 87704 | W50: 0 | X50: 16723 | Y50: 103652 | Z50: 1163600 | AA50: 13938 | AB50: 8500 | AC50: 0 | AD50: 0 | AE50: 87704 | AF50: 34000 | AG50: 0 | AH50: 14000 | AI50: 28966 | AJ50: 0 | AK50: 0 | AL50: 0 | AM50: 43546 | AN50: 160200 | AO50: 0 | AP50: 0 | AQ50: 0 | AR50: 0 | AS50: 0 | AT50: 17443 | AU50: 12303 | AV50: 3997 | AW50: 0 | AX50: 0 | AY50: 121000 | AZ50: 15225 | BA50: 0 | BB50: 0 | BC50: 0 | BD50: 0 | BE50: 0 | BF50: 0 | BG50: 0 | BH50: 0 | BI50: 0
A51: Marinette County Health Department | B51: 38 | C51: NERO | D51: 43590 | F51: 821681 | G51: 11635 | H51: 0 | J51: 0 | K51: 0 | L51: 0 | M51: 0 | N51: 0 | O51: 0 | P51: 0 | Q51: 0 | R51: 0 | S51: 0 | T51: 0 | U51: 1700 | V51: 48835 | W51: 0 | X51: 5299 | Y51: 666 | Z51: 415294 | AA51: 6310 | AB51: 4300 | AC51: 0 | AD51: 0 | AE51: 48835 | AF51: 17300 | AG51: 0 | AH51: 0 | AI51: 9876 | AJ51: 0 | AK51: 0 | AL51: 0 | AM51: 15513 | AN51: 0 | AO51: 0 | AP51: 41027 | AQ51: 0 | AR51: 0 | AS51: 0 | AT51: 11875 | AU51: 0 | AV51: 0 | AW51: 0 | AX51: 10924 | AY51: 0 | AZ51: 0 | BA51: 0 | BB51: 0 | BC51: 1035 | BD51: 0 | BE51: 3192 | BF51: 0 | BG51: 179700 | BH51: 0 | BI51: 0
A52: Marquette County Health Department | B52: 39 | C52: NERO | D52: 43591 | F52: 323464 | G52: 16512 | H52: 1636 | J52: 0 | K52: 0 | L52: 0 | M52: 8180 | N52: 0 | O52: 0 | P52: 0 | Q52: 0 | R52: 0 | S52: 0 | T52: 0 | U52: 0 | V52: 33709 | W52: 0 | X52: 18168 | Y52: 25310 | Z52: 149083 | AA52: 2074 | AB52: 3200 | AC52: 0 | AD52: 0 | AE52: 33709 | AF52: 12700 | AG52: 0 | AH52: 0 | AI52: 5234 | AJ52: 0 | AK52: 0 | AL52: 0 | AM52: 22016 | AN52: 0 | AO52: 0 | AP52: 0 | AQ52: 0 | AR52: 0 | AS52: 0 | AT52: 10081 | AU52: 0 | AV52: 0 | AW52: 0 | AX52: 0 | AY52: 0 | AZ52: 0 | BA52: 0 | BB52: 0 | BC52: 0 | BD52: 0 | BE52: 0 | BF52: 0 | BG52: 0 | BH52: 0 | BI52: 0
A53: Menasha Health Department | B53: 256420 | C53: NERO | D53: 43592 | F53: 441941 | G53: 8692 | H53: 0 | J53: 0 | K53: 0 | L53: 0 | M53: 0 | N53: 0 | O53: 0 | P53: 0 | Q53: 0 | R53: 0 | S53: 0 | T53: 0 | U53: 0 | V53: 32514 | W53: 0 | X53: 27000 | Y53: 51400 | Z53: 150636 | AA53: 2962 | AB53: 3300 | AC53: 0 | AD53: 0 | AE53: 32514 | AF53: 13100 | AG53: 0 | AH53: 0 | AI53: 8356 | AJ53: 0 | AK53: 0 | AL53: 0 | AM53: 11589 | AN53: 0 | AO53: 103900 | AP53: 0 | AQ53: 0 | AR53: 0 | AS53: 0 | AT53: 4670 | AU53: 0 | AV53: 0 | AW53: 0 | AX53: 0 | AY53: 0 | AZ53: 0 | BA53: 0 | BB53: 0 | BC53: 0 | BD53: 0 | BE53: 0 | BF53: 0 | BG53: 0 | BH53: 0 | BI53: 0
A54: Milwaukee City Health Department | B54: 256107 | C54: SERO | D54: 43593 | F54: 8338975 | G54: 334961 | H54: 1636 | J54: 0 | K54: 36000 | L54: 225000 | M54: 8180 | N54: 0 | O54: 0 | P54: 0 | Q54: 232000 | R54: 0 | S54: 177098 | T54: 35357 | U54: 0 | V54: 319908 | W54: 0 | X54: 30000 | Y54: 756100 | Z54: 2160000 | AA54: 250489 | AB54: 28900 | AC54: 0 | AD54: 142026 | AE54: 319908 | AF54: 115500 | AG54: 115000 | AH54: 0 | AI54: 243613 | AJ54: 0 | AK54: 415418 | AL54: 67000 | AM54: 446614 | AN54: 0 | AO54: 0 | AP54: 0 | AQ54: 0 | AR54: 0 | AS54: 67267 | AT54: 62836 | AU54: 0 | AV54: 0 | AW54: 0 | AX54: 10588 | AY54: 0 | AZ54: 0 | BA54: 0 | BB54: 0 | BC54: 7500 | BD54: 6000 | BE54: 39767 | BF54: 36815 | BG54: 1431091 | BH54: 313000 | BI54: 240000
A55: Monroe County Health Department | B55: 41 | C55: WRO | D55: 43594 | F55: 841930 | G55: 18202 | H55: 0 | J55: 0 | K55: 0 | L55: 0 | M55: 0 | N55: 0 | O55: 0 | P55: 0 | Q55: 0 | R55: 0 | S55: 0 | T55: 0 | U55: 0 | V55: 48685 | W55: 0 | X55: 21024 | Y55: 78622 | Z55: 373114 | AA55: 5980 | AB55: 4500 | AC55: 0 | AD55: 0 | AE55: 48685 | AF55: 18100 | AG55: 0 | AH55: 0 | AI55: 12199 | AJ55: 0 | AK55: 0 | AL55: 0 | AM55: 24269 | AN55: 0 | AO55: 0 | AP55: 0 | AQ55: 0 | AR55: 0 | AS55: 0 | AT55: 11863 | AU55: 0 | AV55: 0 | AW55: 0 | AX55: 11365 | AY55: 0 | AZ55: 0 | BA55: 0 | BB55: 0 | BC55: 1806 | BD55: 1600 | BE55: 3341 | BF55: 8500 | BG55: 168277 | BH55: 0 | BI55: 0
A56: North Shore Health Department | B56: 472753 | C56: SERO | D56: 43595 | F56: 961223 | G56: 12404 | H56: 0 | J56: 0 | K56: 0 | L56: 0 | M56: 0 | N56: 0 | O56: 0 | P56: 0 | Q56: 0 | R56: 0 | S56: 14993 | T56: 0 | U56: 0 | V56: 76258 | W56: 0 | X56: 30000 | Y56: 109200 | Z56: 557831 | AA56: 3332 | AB56: 5400 | AC56: 0 | AD56: 0 | AE56: 76258 | AF56: 21500 | AG56: 0 | AH56: 0 | AI56: 13348 | AJ56: 0 | AK56: 0 | AL56: 0 | AM56: 16539 | AN56: 0 | AO56: 0 | AP56: 25317 | AQ56: 0 | AR56: 0 | AS56: 0 | AT56: 11247 | AU56: 0 | AV56: 0 | AW56: 0 | AX56: 0 | AY56: 0 | AZ56: 0 | BA56: 0 | BB56: 0 | BC56: 0 | BD56: 0 | BE56: 0 | BF56: 0 | BG56: 0 | BH56: 0 | BI56: 0
A57: Oak Creek Health Department | B57: 472886 | C57: SERO | D57: 43596 | F57: 584655 | G57: 9328 | H57: 0 | J57: 0 | K57: 0 | L57: 0 | M57: 0 | N57: 0 | O57: 0 | P57: 0 | Q57: 0 | R57: 0 | S57: 9498 | T57: 0 | U57: 0 | V57: 39282 | W57: 0 | X57: 0 | Y57: 220934 | Z57: 184525 | AA57: 1646 | AB57: 4100 | AC57: 0 | AD57: 0 | AE57: 39282 | AF57: 16200 | AG57: 0 | AH57: 0 | AI57: 9304 | AJ57: 0 | AK57: 0 | AL57: 0 | AM57: 12437 | AN57: 0 | AO57: 0 | AP57: 37008 | AQ57: 0 | AR57: 0 | AS57: 0 | AT57: 10439 | AU57: 0 | AV57: 0 | AW57: 0 | AX57: 0 | AY57: 0 | AZ57: 0 | BA57: 0 | BB57: 0 | BC57: 0 | BD57: 0 | BE57: 0 | BF57: 0 | BG57: 0 | BH57: 0 | BI57: 0
A58: Oconto County Health Department Public Health Division | B58: 42 | C58: NERO | D58: 43597 | F58: 737091 | G58: 11125 | H58: 0 | J58: 0 | K58: 0 | L58: 0 | M58: 0 | N58: 0 | O58: 0 | P58: 0 | Q58: 0 | R58: 0 | S58: 0 | T58: 10883 | U58: 0 | V58: 44803 | W58: 0 | X58: 41977 | Y58: 23858 | Z58: 365944 | AA58: 3847 | AB58: 4200 | AC58: 0 | AD58: 0 | AE58: 44803 | AF58: 16700 | AG58: 0 | AH58: 0 | AI58: 8446 | AJ58: 0 | AK58: 0 | AL58: 0 | AM58: 14833 | AN58: 0 | AO58: 0 | AP58: 0 | AQ58: 0 | AR58: 0 | AS58: 0 | AT58: 11217 | AU58: 0 | AV58: 0 | AW58: 0 | AX58: 0 | AY58: 0 | AZ58: 0 | BA58: 0 | BB58: 0 | BC58: 663 | BD58: 0 | BE58: 2367 | BF58: 0 | BG58: 142550 | BH58: 0 | BI58: 0
A59: Oneida County Health Department | B59: 43 | C59: NRO | D59: 43598 | F59: 1930141 | G59: 10520 | H59: 43068 | J59: 0 | K59: 0 | L59: 0 | M59: 49200 | N59: 20000 | O59: 29733 | P59: 0 | Q59: 0 | R59: 0 | S59: 0 | T59: 0 | U59: 0 | V59: 45066 | W59: 0 | X59: 30000 | Y59: 36180 | Z59: 308899 | AA59: 4160 | AB59: 4100 | AC59: 0 | AD59: 0 | AE59: 45066 | AF59: 16400 | AG59: 0 | AH59: 0 | AI59: 8994 | AJ59: 0 | AK59: 0 | AL59: 0 | AM59: 14027 | AN59: 0 | AO59: 103300 | AP59: 0 | AQ59: 0 | AR59: 0 | AS59: 0 | AT59: 12005 | AU59: 0 | AV59: 0 | AW59: 70000 | AX59: 15606 | AY59: 121000 | AZ59: 15038 | BA59: 570000 | BB59: 215340 | BC59: 1014 | BD59: 0 | BE59: 1906 | BF59: 8500 | BG59: 115776 | BH59: 64875 | BI59: 3956
A60: Outagamie County Public Health Division | B60: 44 | C60: NERO | D60: 43599 | F60: 2079732 | G60: 27510 | H60: 0 | J60: 0 | K60: 0 | L60: 0 | M60: 0 | N60: 0 | O60: 0 | P60: 0 | Q60: 0 | R60: 0 | S60: 0 | T60: 0 | U60: 0 | V60: 77889 | W60: 0 | X60: 8663 | Y60: 119482 | Z60: 1071007 | AA60: 5562 | AB60: 7800 | AC60: 0 | AD60: 0 | AE60: 77889 | AF60: 31000 | AG60: 0 | AH60: 0 | AI60: 22791 | AJ60: 0 | AK60: 0 | AL60: 0 | AM60: 36680 | AN60: 0 | AO60: 0 | AP60: 25150 | AQ60: 0 | AR60: 0 | AS60: 0 | AT60: 15779 | AU60: 0 | AV60: 0 | AW60: 0 | AX60: 17957 | AY60: 0 | AZ60: 0 | BA60: 0 | BB60: 0 | BC60: 3535 | BD60: 4500 | BE60: 11658 | BF60: 21020 | BG60: 521370 | BH60: 0 | BI60: 0
A61: Pepin County Health Department | B61: 46 | C61: WRO | D61: 43601 | F61: 292247 | G61: 4902 | H61: 7178 | J61: 0 | K61: 0 | L61: 0 | M61: 8180 | N61: 0 | O61: 0 | P61: 0 | Q61: 0 | R61: 0 | S61: 0 | T61: 0 | U61: 0 | V61: 22179 | W61: 0 | X61: 31281 | Y61: 39000 | Z61: 63331 | AA61: 922 | AB61: 2800 | AC61: 0 | AD61: 0 | AE61: 29447 | AF61: 11300 | AG61: 0 | AH61: 0 | AI61: 3909 | AJ61: 0 | AK61: 0 | AL61: 0 | AM61: 6536 | AN61: 0 | AO61: 0 | AP61: 0 | AQ61: 0 | AR61: 0 | AS61: 0 | AT61: 9472 | AU61: 0 | AV61: 0 | AW61: 0 | AX61: 0 | AY61: 0 | AZ61: 0 | BA61: 28000 | BB61: 35890 | BC61: 0 | BD61: 0 | BE61: 0 | BF61: 0 | BG61: 0 | BH61: 0 | BI61: 0
A62: Pierce County Health Department | B62: 47 | C62: WRO | D62: 43602 | F62: 973159 | G62: 12512 | H62: 7178 | J62: 0 | K62: 0 | L62: 0 | M62: 8180 | N62: 0 | O62: 0 | P62: 0 | Q62: 0 | R62: 0 | S62: 17670 | T62: 0 | U62: 0 | V62: 32296 | W62: 0 | X62: 30000 | Y62: 80200 | Z62: 354057 | AA62: 2820 | AB62: 4300 | AC62: 0 | AD62: 0 | AE62: 43601 | AF62: 17300 | AG62: 0 | AH62: 0 | AI62: 9414 | AJ62: 0 | AK62: 0 | AL62: 0 | AM62: 16682 | AN62: 0 | AO62: 0 | AP62: 0 | AQ62: 0 | AR62: 0 | AS62: 0 | AT62: 11107 | AU62: 0 | AV62: 0 | AW62: 0 | AX62: 8194 | AY62: 0 | AZ62: 0 | BA62: 91000 | BB62: 35890 | BC62: 1768 | BD62: 5668 | BE62: 2982 | BF62: 8500 | BG62: 191530 | BH62: 0 | BI62: 0
A63: Polk County Health Department | B63: 48 | C63: WRO | D63: 43603 | F63: 1483143 | G63: 12183 | H63: 7178 | J63: 0 | K63: 0 | L63: 0 | M63: 8180 | N63: 0 | O63: 0 | P63: 0 | Q63: 0 | R63: 0 | S63: 0 | T63: 123230 | U63: 0 | V63: 225511 | W63: 0 | X63: 30000 | Y63: 83600 | Z63: 377499 | AA63: 4593 | AB63: 4400 | AC63: 0 | AD63: 0 | AE63: 47045 | AF63: 17800 | AG63: 0 | AH63: 0 | AI63: 11654 | AJ63: 0 | AK63: 0 | AL63: 0 | AM63: 16244 | AN63: 0 | AO63: 0 | AP63: 0 | AQ63: 0 | AR63: 0 | AS63: 0 | AT63: 11893 | AU63: 0 | AV63: 6828 | AW63: 0 | AX63: 17957 | AY63: 121000 | AZ63: 20175 | BA63: 56000 | BB63: 35890 | BC63: 1558 | BD63: 1600 | BE63: 3459 | BF63: 8754 | BG63: 190020 | BH63: 55100 | BI63: 3153
A64: Portage County Health & Human Services Department CC | B64: 49 | C64: NRO | D64: 43604 | F64: 1545394 | G64: 20780 | H64: 0 | J64: 0 | K64: 0 | L64: 0 | M64: 0 | N64: 0 | O64: 0 | P64: 0 | Q64: 0 | R64: 0 | S64: 0 | T64: 0 | U64: 2500 | V64: 57803 | W64: 0 | X64: 33176 | Y64: 82650 | Z64: 826456 | AA64: 5768 | AB64: 5600 | AC64: 0 | AD64: 0 | AE64: 57803 | AF64: 22500 | AG64: 0 | AH64: 0 | AI64: 16284 | AJ64: 0 | AK64: 0 | AL64: 0 | AM64: 27707 | AN64: 0 | AO64: 0 | AP64: 25017 | AQ64: 0 | AR64: 0 | AS64: 0 | AT64: 13192 | AU64: 0 | AV64: 0 | AW64: 0 | AX64: 29957 | AY64: 0 | AZ64: 0 | BA64: 0 | BB64: 0 | BC64: 2269 | BD64: 1600 | BE64: 4724 | BF64: 11110 | BG64: 230733 | BH64: 83800 | BI64: 4745
A65: Price County Health and Human Services | B65: 50 | C65: NRO | D65: 43605 | F65: 2454070 | G65: 6308 | H65: 106404 | J65: 0 | K65: 0 | L65: 0 | M65: 111180 | N65: 0 | O65: 0 | P65: 0 | Q65: 0 | R65: 0 | S65: 0 | T65: 0 | U65: 0 | V65: 37049 | W65: 0 | X65: 5643 | Y65: 3762 | Z65: 128603 | AA65: 2567 | AB65: 3100 | AC65: 0 | AD65: 0 | AE65: 37049 | AF65: 12500 | AG65: 0 | AH65: 6000 | AI65: 5695 | AJ65: 0 | AK65: 0 | AL65: 0 | AM65: 8411 | AN65: 0 | AO65: 0 | AP65: 0 | AQ65: 0 | AR65: 0 | AS65: 0 | AT65: 10202 | AU65: 0 | AV65: 0 | AW65: 0 | AX65: 0 | AY65: 0 | AZ65: 0 | BA65: 1431760 | BB65: 532018 | BC65: 554 | BD65: 0 | BE65: 1837 | BF65: 0 | BG65: 116140 | BH65: 0 | BI65: 0
A66: Racine City Health Department | B66: 341113 | C66: SERO | D66: 43606 | F66: 1492089 | G66: 30051 | H66: 0 | J66: 0 | K66: 0 | L66: 0 | M66: 0 | N66: 0 | O66: 0 | P66: 0 | Q66: 0 | R66: 0 | S66: 24983 | T66: 0 | U66: 0 | V66: 62397 | W66: 0 | X66: 30000 | Y66: 127800 | Z66: 688860 | AA66: 27327 | AB66: 6100 | AC66: 0 | AD66: 0 | AE66: 62397 | AF66: 24200 | AG66: 0 | AH66: 21000 | AI66: 35588 | AJ66: 222700 | AK66: 0 | AL66: 0 | AM66: 40068 | AN66: 0 | AO66: 0 | AP66: 0 | AQ66: 0 | AR66: 0 | AS66: 0 | AT66: 15956 | AU66: 0 | AV66: 0 | AW66: 0 | AX66: 0 | AY66: 0 | AZ66: 0 | BA66: 0 | BB66: 0 | BC66: 0 | BD66: 0 | BE66: 0 | BF66: 0 | BG66: 0 | BH66: 97175 | BI66: 5538
A67: Richland County Health & Human Services Public Health Department | B67: 52 | C67: SRO | D67: 43607 | F67: 227175 | G67: 6895 | H67: 0 | J67: 0 | K67: 0 | L67: 0 | M67: 0 | N67: 0 | O67: 0 | P67: 0 | Q67: 0 | R67: 0 | S67: 0 | T67: 0 | U67: 0 | V67: 35419 | W67: 0 | X67: 920 | Y67: 20650 | Z67: 97457 | AA67: 0 | AB67: 3300 | AC67: 0 | AD67: 0 | AE67: 35419 | AF67: 13100 | AG67: 0 | AH67: 0 | AI67: 5656 | AJ67: 0 | AK67: 0 | AL67: 0 | AM67: 9193 | AN67: 0 | AO67: 0 | AP67: 0 | AQ67: 0 | AR67: 0 | AS67: 0 | AT67: 6061 | AU67: 0 | AV67: 0 | AW67: 0 | AX67: 0 | AY67: 0 | AZ67: 0 | BA67: 0 | BB67: 0 | BC67: 0 | BD67: 0 | BE67: 0 | BF67: 0 | BG67: 0 | BH67: 0 | BI67: 0
A68: Rock County Public Health Department CC | B68: 53 | C68: SRO | D68: 43608 | F68: 2665857 | G68: 50627 | H68: 0 | J68: 0 | K68: 0 | L68: 0 | M68: 0 | N68: 20000 | O68: 20000 | P68: 0 | Q68: 0 | R68: 0 | S68: 0 | T68: 0 | U68: 0 | V68: 95382 | W68: 0 | X68: 34496 | Y68: 225500 | Z68: 1975478 | AA68: 24908 | AB68: 9600 | AC68: 0 | AD68: 0 | AE68: 95382 | AF68: 38400 | AG68: 0 | AH68: 0 | AI68: 39420 | AJ68: 0 | AK68: 0 | AL68: 0 | AM68: 67503 | AN68: 0 | AO68: 0 | AP68: 0 | AQ68: 0 | AR68: 0 | AS68: 0 | AT68: 19788 | AU68: 0 | AV68: 0 | AW68: 0 | AX68: 0 | AY68: 0 | AZ68: 0 | BA68: 0 | BB68: 0 | BC68: 0 | BD68: 0 | BE68: 0 | BF68: 0 | BG68: 0 | BH68: 0 | BI68: 0
A69: Rusk County Department of Health & Human Services | B69: 54 | C69: WRO | D69: 43609 | F69: 479584 | G69: 6398 | H69: 7178 | J69: 0 | K69: 0 | L69: 0 | M69: 8180 | N69: 0 | O69: 0 | P69: 0 | Q69: 0 | R69: 0 | S69: 0 | T69: 0 | U69: 0 | V69: 26506 | W69: 0 | X69: 30000 | Y69: 47700 | Z69: 125041 | AA69: 2348 | AB69: 3100 | AC69: 0 | AD69: 0 | AE69: 35881 | AF69: 12600 | AG69: 0 | AH69: 0 | AI69: 5538 | AJ69: 0 | AK69: 0 | AL69: 0 | AM69: 8530 | AN69: 0 | AO69: 0 | AP69: 0 | AQ69: 0 | AR69: 0 | AS69: 0 | AT69: 9892 | AU69: 0 | AV69: 0 | AW69: 0 | AX69: 0 | AY69: 0 | AZ69: 0 | BA69: 21000 | BB69: 35890 | BC69: 823 | BD69: 1151 | BE69: 1619 | BF69: 9500 | BG69: 94285 | BH69: 0 | BI69: 0
A70: Sauk County Public Health Department | B70: 56 | C70: SRO | D70: 43610 | F70: 1389482 | G70: 21677 | H70: 0 | J70: 0 | K70: 0 | L70: 0 | M70: 0 | N70: 0 | O70: 0 | P70: 0 | Q70: 0 | R70: 0 | S70: 0 | T70: 0 | U70: 2500 | V70: 54465 | W70: 0 | X70: 30000 | Y70: 106400 | Z70: 493867 | AA70: 7157 | AB70: 5300 | AC70: 0 | AD70: 0 | AE70: 54465 | AF70: 21100 | AG70: 0 | AH70: 0 | AI70: 15899 | AJ70: 0 | AK70: 0 | AL70: 0 | AM70: 28902 | AN70: 0 | AO70: 113300 | AP70: 49000 | AQ70: 0 | AR70: 0 | AS70: 0 | AT70: 13275 | AU70: 0 | AV70: 6252 | AW70: 0 | AX70: 32951 | AY70: 0 | AZ70: 0 | BA70: 0 | BB70: 0 | BC70: 2555 | BD70: 986 | BE70: 6478 | BF70: 17620 | BG70: 327010 | BH70: 0 | BI70: 0
A71: Sawyer County Department of Health & Human Services | B71: 57 | C71: NRO | D71: 43611 | F71: 624254 | G71: 10183 | H71: 7178 | J71: 0 | K71: 0 | L71: 0 | M71: 8180 | N71: 0 | O71: 0 | P71: 0 | Q71: 0 | R71: 0 | S71: 0 | T71: 0 | U71: 0 | V71: 38354 | W71: 0 | X71: 30000 | Y71: 50300 | Z71: 142716 | AA71: 2505 | AB71: 3200 | AC71: 0 | AD71: 0 | AE71: 38354 | AF71: 12900 | AG71: 0 | AH71: 0 | AI71: 7681 | AJ71: 0 | AK71: 0 | AL71: 0 | AM71: 13577 | AN71: 0 | AO71: 0 | AP71: 0 | AQ71: 65000 | AR71: 0 | AS71: 0 | AT71: 10978 | AU71: 0 | AV71: 0 | AW71: 0 | AX71: 0 | AY71: 0 | AZ71: 0 | BA71: 35000 | BB71: 35890 | BC71: 1056 | BD71: 0 | BE71: 1563 | BF71: 6500 | BG71: 120500 | BH71: 0 | BI71: 0
A72: Shawano-Menominee Counties Health Department | B72: 58 | C72: NERO | D72: 43612 | F72: 943910 | G72: 14786 | H72: 0 | J72: 0 | K72: 0 | L72: 0 | M72: 0 | N72: 0 | O72: 0 | P72: 0 | Q72: 0 | R72: 0 | S72: 0 | T72: 0 | U72: 0 | V72: 75052 | W72: 0 | X72: 30000 | Y72: 85900 | Z72: 393887 | AA72: 6377 | AB72: 4500 | AC72: 0 | AD72: 0 | AE72: 75052 | AF72: 18100 | AG72: 0 | AH72: 0 | AI72: 13703 | AJ72: 0 | AK72: 0 | AL72: 0 | AM72: 19715 | AN72: 0 | AO72: 0 | AP72: 0 | AQ72: 0 | AR72: 0 | AS72: 0 | AT72: 12056 | AU72: 0 | AV72: 0 | AW72: 0 | AX72: 10710 | AY72: 0 | AZ72: 0 | BA72: 0 | BB72: 0 | BC72: 1775 | BD72: 0 | BE72: 3638 | BF72: 4250 | BG72: 189195 | BH72: 0 | BI72: 0
A73: Sheboygan County Human Services, Division of Public Health | B73: 59 | C73: NERO | D73: 43613 | F73: 1807156 | G73: 29892 | H73: 0 | J73: 0 | K73: 0 | L73: 0 | M73: 0 | N73: 0 | O73: 0 | P73: 0 | Q73: 0 | R73: 0 | S73: 0 | T73: 0 | U73: 0 | V73: 75426 | W73: 0 | X73: 40931 | Y73: 62549 | Z73: 906727 | AA73: 16766 | AB73: 7600 | AC73: 0 | AD73: 0 | AE73: 75426 | AF73: 30400 | AG73: 0 | AH73: 0 | AI73: 23977 | AJ73: 0 | AK73: 0 | AL73: 0 | AM73: 39856 | AN73: 0 | AO73: 0 | AP73: 48999 | AQ73: 0 | AR73: 0 | AS73: 0 | AT73: 15932 | AU73: 0 | AV73: 0 | AW73: 0 | AX73: 15606 | AY73: 0 | AZ73: 0 | BA73: 0 | BB73: 0 | BC73: 3460 | BD73: 1600 | BE73: 9454 | BF73: 19360 | BG73: 413087 | BH73: 0 | BI73: 0
A74: South Milwaukee Health Department | B74: 655522 | C74: SERO | D74: 43614 | F74: 632748 | G74: 9042 | H74: 0 | J74: 0 | K74: 0 | L74: 0 | M74: 0 | N74: 0 | O74: 0 | P74: 0 | Q74: 0 | R74: 0 | S74: 10488 | T74: 0 | U74: 0 | V74: 63251 | W74: 0 | X74: 60000 | Y74: 97200 | Z74: 262385 | AA74: 3736 | AB74: 6300 | AC74: 0 | AD74: 0 | AE74: 63626 | AF74: 25600 | AG74: 0 | AH74: 0 | AI74: 9141 | AJ74: 0 | AK74: 0 | AL74: 0 | AM74: 12056 | AN74: 0 | AO74: 0 | AP74: 0 | AQ74: 0 | AR74: 0 | AS74: 0 | AT74: 18965 | AU74: 0 | AV74: 0 | AW74: 0 | AX74: 0 | AY74: 0 | AZ74: 0 | BA74: 0 | BB74: 0 | BC74: 0 | BD74: 0 | BE74: 0 | BF74: 0 | BG74: 0 | BH74: 0 | BI74: 0
A75: St Croix County Department of Health & Human Services | B75: 55 | C75: WRO | D75: 43615 | F75: 1508062 | G75: 17696 | H75: 7178 | J75: 0 | K75: 0 | L75: 0 | M75: 8180 | N75: 0 | O75: 0 | P75: 0 | Q75: 0 | R75: 0 | S75: 17670 | T75: 0 | U75: 0 | V75: 45765 | W75: 5000 | X75: 32893 | Y75: 57199 | Z75: 834594 | AA75: 4551 | AB75: 6400 | AC75: 0 | AD75: 0 | AE75: 60895 | AF75: 25400 | AG75: 0 | AH75: 0 | AI75: 18020 | AJ75: 0 | AK75: 0 | AL75: 0 | AM75: 23595 | AN75: 0 | AO75: 0 | AP75: 0 | AQ75: 0 | AR75: 0 | AS75: 0 | AT75: 13003 | AU75: 0 | AV75: 0 | AW75: 0 | AX75: 11365 | AY75: 0 | AZ75: 0 | BA75: 70000 | BB75: 35890 | BC75: 1957 | BD75: 3708 | BE75: 3761 | BF75: 8860 | BG75: 219356 | BH75: 0 | BI75: 0
A76: St Francis Health Department | B76: 472928 | C76: SERO | F76: 1508062 | G76: 17696 | H76: 7178 | J76: 0 | K76: 0 | L76: 0 | M76: 8180 | N76: 0 | O76: 0 | P76: 0 | Q76: 0 | R76: 0 | S76: 17670 | T76: 0 | U76: 0 | V76: 45765 | W76: 5000 | X76: 32893 | Y76: 57199 | Z76: 834594 | AA76: 4551 | AB76: 6400 | AC76: 0 | AD76: 0 | AE76: 60895 | AF76: 25400 | AG76: 0 | AH76: 0 | AI76: 18020 | AJ76: 0 | AK76: 0 | AL76: 0 | AM76: 23595 | AN76: 0 | AO76: 0 | AP76: 0 | AQ76: 0 | AR76: 0 | AS76: 0 | AT76: 13003 | AU76: 0 | AV76: 0 | AW76: 0 | AX76: 11365 | AY76: 0 | AZ76: 0 | BA76: 70000 | BB76: 35890 | BC76: 1957 | BD76: 3708 | BE76: 3761 | BF76: 8860 | BG76: 219356 | BH76: 0 | BI76: 0
A77: Taylor County Health Department | B77: 60 | C77: NRO | D77: 43616 | F77: 435023 | G77: 9881 | H77: 0 | J77: 0 | K77: 0 | L77: 0 | M77: 0 | N77: 0 | O77: 0 | P77: 0 | Q77: 0 | R77: 0 | S77: 0 | T77: 0 | U77: 0 | V77: 38418 | W77: 0 | X77: 30000 | Y77: 0 | Z77: 161922 | AA77: 2420 | AB77: 3400 | AC77: 0 | AD77: 0 | AE77: 38418 | AF77: 13700 | AG77: 0 | AH77: 0 | AI77: 7387 | AJ77: 0 | AK77: 0 | AL77: 0 | AM77: 13175 | AN77: 0 | AO77: 0 | AP77: 0 | AQ77: 0 | AR77: 0 | AS77: 0 | AT77: 10134 | AU77: 0 | AV77: 8703 | AW77: 0 | AX77: 0 | AY77: 0 | AZ77: 0 | BA77: 0 | BB77: 0 | BC77: 776 | BD77: 0 | BE77: 1640 | BF77: 0 | BG77: 104930 | BH77: 0 | BI77: 0
A78: Trempealeau County Health Department | B78: 61 | C78: WRO | D78: 43617 | F78: 639076 | G78: 10063 | H78: 0 | J78: 0 | K78: 0 | L78: 0 | M78: 0 | N78: 0 | O78: 0 | P78: 0 | Q78: 0 | R78: 0 | S78: 0 | T78: 0 | U78: 0 | V78: 41168 | W78: 0 | X78: 30000 | Y78: 41547 | Z78: 238813 | AA78: 4686 | AB78: 3800 | AC78: 0 | AD78: 0 | AE78: 41168 | AF78: 15200 | AG78: 0 | AH78: 0 | AI78: 10233 | AJ78: 0 | AK78: 0 | AL78: 0 | AM78: 13417 | AN78: 0 | AO78: 0 | AP78: 0 | AQ78: 0 | AR78: 0 | AS78: 0 | AT78: 10297 | AU78: 0 | AV78: 0 | AW78: 0 | AX78: 16558 | AY78: 0 | AZ78: 0 | BA78: 0 | BB78: 0 | BC78: 1294 | BD78: 800 | BE78: 2490 | BF78: 8500 | BG78: 159105 | BH78: 0 | BI78: 0
A79: Vernon County Health Department | B79: 62 | C79: SRO | D79: 43618 | F79: 534992 | G79: 17453 | H79: 0 | J79: 0 | K79: 0 | L79: 0 | M79: 0 | N79: 0 | O79: 0 | P79: 0 | Q79: 0 | R79: 0 | S79: 0 | T79: 1621 | U79: 0 | V79: 42083 | W79: 0 | X79: 30000 | Y79: 6000 | Z79: 165000 | AA79: 0 | AB79: 3800 | AC79: 0 | AD79: 0 | AE79: 42083 | AF79: 15400 | AG79: 0 | AH79: 0 | AI79: 8923 | AJ79: 0 | AK79: 0 | AL79: 0 | AM79: 23271 | AN79: 0 | AO79: 0 | AP79: 0 | AQ79: 0 | AR79: 0 | AS79: 0 | AT79: 5400 | AU79: 0 | AV79: 0 | AW79: 0 | AX79: 13462 | AY79: 0 | AZ79: 0 | BA79: 0 | BB79: 0 | BC79: 1077 | BD79: 0 | BE79: 2562 | BF79: 8500 | BG79: 165810 | BH79: 0 | BI79: 0
A80: Vilas County Health Department | B80: 63 | C80: NRO | D80: 43619 | F80: 268354 | G80: 6921 | H80: 0 | J80: 0 | K80: 0 | L80: 0 | M80: 0 | N80: 0 | O80: 0 | P80: 0 | Q80: 0 | R80: 0 | S80: 0 | T80: 1377 | U80: 0 | V80: 38362 | W80: 0 | X80: 30000 | Y80: 56300 | Z80: 0 | AA80: 3244 | AB80: 3500 | AC80: 0 | AD80: 0 | AE80: 38362 | AF80: 13800 | AG80: 0 | AH80: 0 | AI80: 6268 | AJ80: 0 | AK80: 0 | AL80: 0 | AM80: 9228 | AN80: 0 | AO80: 0 | AP80: 0 | AQ80: 0 | AR80: 0 | AS80: 0 | AT80: 11056 | AU80: 0 | AV80: 0 | AW80: 0 | AX80: 0 | AY80: 0 | AZ80: 0 | BA80: 0 | BB80: 0 | BC80: 500 | BD80: 0 | BE80: 1067 | BF80: 0 | BG80: 55290 | BH80: 0 | BI80: 0
A81: Walworth County Health Department CC | B81: 64 | C81: SERO | D81: 43620 | F81: 1651058 | G81: 24920 | H81: 0 | J81: 0 | K81: 0 | L81: 0 | M81: 0 | N81: 0 | O81: 0 | P81: 0 | Q81: 0 | R81: 0 | S81: 0 | T81: 2982 | U81: 0 | V81: 71309 | W81: 0 | X81: 37331 | Y81: 155100 | Z81: 873985 | AA81: 10229 | AB81: 7000 | AC81: 0 | AD81: 0 | AE81: 71309 | AF81: 28200 | AG81: 0 | AH81: 0 | AI81: 18916 | AJ81: 0 | AK81: 0 | AL81: 0 | AM81: 33226 | AN81: 0 | AO81: 0 | AP81: 0 | AQ81: 0 | AR81: 0 | AS81: 0 | AT81: 14748 | AU81: 0 | AV81: 0 | AW81: 0 | AX81: 16236 | AY81: 0 | AZ81: 0 | BA81: 0 | BB81: 0 | BC81: 2691 | BD81: 2400 | BE81: 6118 | BF81: 11470 | BG81: 287808 | BH81: 0 | BI81: 0
A82: Washburn County Health and Human Services Department | B82: 65 | C82: WRO | D82: 43621 | F82: 348734 | G82: 17951 | H82: 1636 | J82: 0 | K82: 0 | L82: 0 | M82: 8180 | N82: 0 | O82: 0 | P82: 0 | Q82: 0 | R82: 0 | S82: 0 | T82: 0 | U82: 0 | V82: 26879 | W82: 0 | X82: 29728 | Y82: 22549 | Z82: 74986 | AA82: 2523 | AB82: 3200 | AC82: 0 | AD82: 0 | AE82: 35714 | AF82: 12800 | AG82: 0 | AH82: 0 | AI82: 5655 | AJ82: 0 | AK82: 0 | AL82: 0 | AM82: 23935 | AN82: 0 | AO82: 4178 | AP82: 0 | AQ82: 0 | AR82: 0 | AS82: 0 | AT82: 10715 | AU82: 0 | AV82: 0 | AW82: 0 | AX82: 0 | AY82: 0 | AZ82: 0 | BA82: 0 | BB82: 0 | BC82: 797 | BD82: 0 | BE82: 1450 | BF82: 0 | BG82: 85445 | BH82: 0 | BI82: 0
A83: Washington Ozaukee Public Health Department CC | B83: 45 | C83: SERO | D83: 43600 | F83: 2191596 | G83: 30396 | H83: 0 | J83: 0 | K83: 0 | L83: 0 | M83: 0 | N83: 0 | O83: 0 | P83: 0 | Q83: 0 | R83: 0 | S83: 40002 | T83: 0 | U83: 0 | V83: 136884 | W83: 0 | X83: 30000 | Y83: 300300 | Z83: 929128 | AA83: 9515 | AB83: 12300 | AC83: 0 | AD83: 0 | AE83: 136884 | AF83: 49200 | AG83: 0 | AH83: 0 | AI83: 30781 | AJ83: 0 | AK83: 0 | AL83: 0 | AM83: 40528 | AN83: 0 | AO83: 0 | AP83: 0 | AQ83: 0 | AR83: 0 | AS83: 0 | AT83: 18851 | AU83: 0 | AV83: 7258 | AW83: 0 | AX83: 0 | AY83: 0 | AZ83: 2625 | BA83: 0 | BB83: 0 | BC83: 2874 | BD83: 20700 | BE83: 6523 | BF83: 18630 | BG83: 339775 | BH83: 55925 | BI83: 2913
A84: Watertown Department of Public Health | B84: 472951 | C84: SRO | D84: 43622 | F84: 550614 | G84: 7330 | H84: 0 | J84: 0 | K84: 0 | L84: 0 | M84: 0 | N84: 0 | O84: 0 | P84: 0 | Q84: 0 | R84: 0 | S84: 0 | T84: 0 | U84: 0 | V84: 34949 | W84: 0 | X84: 6682 | Y84: 23597 | Z84: 389826 | AA84: 4122 | AB84: 3600 | AC84: 0 | AD84: 0 | AE84: 34949 | AF84: 14200 | AG84: 0 | AH84: 0 | AI84: 7061 | AJ84: 0 | AK84: 0 | AL84: 0 | AM84: 9773 | AN84: 0 | AO84: 0 | AP84: 0 | AQ84: 0 | AR84: 0 | AS84: 0 | AT84: 14881 | AU84: 0 | AV84: 6974 | AW84: 0 | AX84: 0 | AY84: 0 | AZ84: 0 | BA84: 0 | BB84: 0 | BC84: 0 | BD84: 0 | BE84: 0 | BF84: 0 | BG84: 0 | BH84: 0 | BI84: 0
A85: Waukesha County Public Health Department CC | B85: 67 | C85: SERO | D85: 43625 | F85: 4145072 | G85: 49812 | H85: 0 | J85: 0 | K85: 0 | L85: 0 | M85: 0 | N85: 0 | O85: 0 | P85: 0 | Q85: 0 | R85: 0 | S85: 66066 | T85: 11154 | U85: 0 | V85: 176597 | W85: 10000 | X85: 0 | Y85: 50000 | Z85: 2897921 | AA85: 15407 | AB85: 20000 | AC85: 0 | AD85: 0 | AE85: 176597 | AF85: 80200 | AG85: 0 | AH85: 17000 | AI85: 54775 | AJ85: 0 | AK85: 0 | AL85: 0 | AM85: 66416 | AN85: 0 | AO85: 0 | AP85: 0 | AQ85: 0 | AR85: 0 | AS85: 10837 | AT85: 25283 | AU85: 0 | AV85: 0 | AW85: 0 | AX85: 15606 | AY85: 0 | AZ85: 0 | BA85: 0 | BB85: 0 | BC85: 2969 | BD85: 0 | BE85: 8819 | BF85: 29060 | BG85: 410365 | BH85: 0 | BI85: 0
A86: Waupaca County Human Services, Health Services Division CC | B86: 68 | C86: NERO | D86: 43627 | F86: 1046607 | G86: 24922 | H86: 1636 | J86: 0 | K86: 0 | L86: 0 | M86: 8180 | N86: 0 | O86: 0 | P86: 0 | Q86: 0 | R86: 0 | S86: 0 | T86: 0 | U86: 1700 | V86: 49904 | W86: 0 | X86: 5540 | Y86: 37101 | Z86: 561364 | AA86: 6286 | AB86: 4800 | AC86: 0 | AD86: 0 | AE86: 49904 | AF86: 19200 | AG86: 0 | AH86: 0 | AI86: 10508 | AJ86: 0 | AK86: 0 | AL86: 0 | AM86: 33229 | AN86: 0 | AO86: 0 | AP86: 0 | AQ86: 0 | AR86: 0 | AS86: 0 | AT86: 11749 | AU86: 0 | AV86: 0 | AW86: 0 | AX86: 31051 | AY86: 0 | AZ86: 0 | BA86: 0 | BB86: 0 | BC86: 2060 | BD86: 4779 | BE86: 3637 | BF86: 8500 | BG86: 197115 | BH86: 0 | BI86: 0
A87: Waushara County Health Department | B87: 69 | C87: NERO | D87: 43628 | F87: 475567 | G87: 21290 | H87: 1636 | J87: 0 | K87: 0 | L87: 0 | M87: 8180 | N87: 0 | O87: 0 | P87: 0 | Q87: 0 | R87: 0 | S87: 0 | T87: 0 | U87: 0 | V87: 38578 | W87: 0 | X87: 20621 | Y87: 39182 | Z87: 212727 | AA87: 3530 | AB87: 3600 | AC87: 0 | AD87: 0 | AE87: 38578 | AF87: 14300 | AG87: 0 | AH87: 0 | AI87: 7646 | AJ87: 0 | AK87: 0 | AL87: 0 | AM87: 28387 | AN87: 0 | AO87: 0 | AP87: 41671 | AQ87: 0 | AR87: 0 | AS87: 0 | AT87: 11290 | AU87: 0 | AV87: 7277 | AW87: 0 | AX87: 0 | AY87: 0 | AZ87: 0 | BA87: 0 | BB87: 0 | BC87: 0 | BD87: 0 | BE87: 0 | BF87: 0 | BG87: 0 | BH87: 0 | BI87: 0
A88: Wauwatosa Health Department | B88: 472969 | C88: SERO | D88: 43629 | F88: 460605 | G88: 8191 | H88: 0 | J88: 0 | K88: 0 | L88: 0 | M88: 0 | N88: 0 | O88: 0 | P88: 0 | Q88: 0 | R88: 0 | S88: 12009 | T88: 16947 | U88: 0 | V88: 43092 | W88: 0 | X88: 30000 | Y88: 87600 | Z88: 145545 | AA88: 3071 | AB88: 4600 | AC88: 0 | AD88: 0 | AE88: 43092 | AF88: 18400 | AG88: 0 | AH88: 0 | AI88: 11164 | AJ88: 0 | AK88: 0 | AL88: 0 | AM88: 10921 | AN88: 0 | AO88: 22878 | AP88: 0 | AQ88: 0 | AR88: 0 | AS88: 917 | AT88: 10369 | AU88: 0 | AV88: 0 | AW88: 0 | AX88: 0 | AY88: 0 | AZ88: 0 | BA88: 0 | BB88: 0 | BC88: 0 | BD88: 0 | BE88: 0 | BF88: 0 | BG88: 0 | BH88: 0 | BI88: 0
A89: West Allis Health Department | B89: 256545 | C89: SERO | D89: 43630 | F89: 1555673 | G89: 19815 | H89: 0 | J89: 0 | K89: 0 | L89: 0 | M89: 0 | N89: 0 | O89: 0 | P89: 0 | Q89: 0 | R89: 0 | S89: 16558 | T89: 97 | U89: 0 | V89: 52196 | W89: 0 | X89: 30000 | Y89: 19992 | Z89: 367213 | AA89: 10567 | AB89: 5400 | AC89: 0 | AD89: 0 | AE89: 52196 | AF89: 21400 | AG89: 0 | AH89: 0 | AI89: 17018 | AJ89: 0 | AK89: 0 | AL89: 0 | AM89: 26420 | AN89: 0 | AO89: 0 | AP89: 23751 | AQ89: 0 | AR89: 0 | AS89: 1159 | AT89: 13895 | AU89: 0 | AV89: 0 | AW89: 0 | AX89: 23337 | AY89: 0 | AZ89: 0 | BA89: 0 | BB89: 0 | BC89: 6656 | BD89: 12625 | BE89: 19646 | BF89: 32320 | BG89: 803227 | BH89: 0 | BI89: 0
A90: Winnebago County Health Department | B90: 70 | C90: NERO | D90: 43623 | F90: 2806928 | G90: 34993 | H90: 0 | J90: 0 | K90: 0 | L90: 0 | M90: 0 | N90: 0 | O90: 0 | P90: 0 | Q90: 0 | R90: 0 | S90: 0 | T90: 25377 | U90: 0 | V90: 136839 | W90: 0 | X90: 31500 | Y90: 216100 | Z90: 1311618 | AA90: 13246 | AB90: 9300 | AC90: 0 | AD90: 0 | AE90: 136839 | AF90: 37000 | AG90: 0 | AH90: 13000 | AI90: 27320 | AJ90: 0 | AK90: 0 | AL90: 0 | AM90: 46657 | AN90: 0 | AO90: 75989 | AP90: 48999 | AQ90: 0 | AR90: 0 | AS90: 0 | AT90: 17929 | AU90: 0 | AV90: 0 | AW90: 0 | AX90: 16236 | AY90: 0 | AZ90: 7200 | BA90: 0 | BB90: 0 | BC90: 3564 | BD90: 1600 | BE90: 10499 | BF90: 23500 | BG90: 459220 | BH90: 130075 | BI90: 7321
A91: Wood County Health Department | B91: 71 | C91: NRO | D91: 43624 | F91: 1640617 | G91: 21279 | H91: 0 | J91: 0 | K91: 0 | L91: 0 | M91: 0 | N91: 0 | O91: 0 | P91: 0 | Q91: 0 | R91: 0 | S91: 0 | T91: 0 | U91: 0 | V91: 58694 | W91: 0 | X91: 30000 | Y91: 120600 | Z91: 849910 | AA91: 8681 | AB91: 5800 | AC91: 0 | AD91: 0 | AE91: 58694 | AF91: 23200 | AG91: 0 | AH91: 0 | AI91: 17530 | AJ91: 0 | AK91: 0 | AL91: 0 | AM91: 28372 | AN91: 0 | AO91: 0 | AP91: 0 | AQ91: 0 | AR91: 0 | AS91: 0 | AT91: 24106 | AU91: 0 | AV91: 5663 | AW91: 0 | AX91: 17707 | AY91: 0 | AZ91: 0 | BA91: 0 | BB91: 0 | BC91: 2700 | BD91: 0 | BE91: 7885 | BF91: 17980 | BG91: 363095 | BH91: 0 | BI91: 0
A94: TOTAL | F94: 104562867 | G94: 2057729 | H94: 286236 | J94: 31500 | K94: 36000 | L94: 225000 | M94: 373060 | N94: 80000 | O94: 99466 | P94: 108207 | Q94: 232000 | R94: 55000 | S94: 525216 | T94: 325272 | U94: 10100 | V94: 5034959 | W94: 50000 | X94: 2371741 | Y94: 6844240 | Z94: 47374323 | AA94: 774251 | AB94: 476200 | AC94: 4667 | AD94: 142026 | AE94: 5031199 | AF94: 1904900 | AG94: 115000 | AH94: 391000 | AI94: 1443218 | AJ94: 222700 | AK94: 415418 | AL94: 151000 | AM94: 2475441 | AN94: 337300 | AO94: 633742 | AP94: 687138 | AQ94: 65000 | AS94: 80180 | AT94: 1117963 | AU94: 12303 | AV94: 122809 | AW94: 160000 | AX94: 653511 | AY94: 900500 | AZ94: 125963 | BA94: 3615260 | BB94: 1357558 | BC94: 113403 | BD94: 177202 | BE94: 310308 | BF94: 626972 | BG94: 14524890 | BH94: 1321925 | BI94: 295836

Sheet Grid
A1: ATTACHMENT #1 - CY19 DPH CONSOLIDATED CONTRACTS GRID
A3: Program | B3: Fund Source | C3: Funding Period | D3: Funding Control | E3: Profile ID (LPHD/Tribal) | F3: 2018 Total Amount Allocated | G3: 2018 Amount Allocated to LPHDs | H3: 2019 Estimated Allocation | I3: Change from 2018 to 2019 | J3: Consolidated Tribal Allocation (Y/N) | K3: Formula Driven Allocation (Y/N) | L3: Using GAC for Negotiations/ Monitoring (Y/N) | M3: Negotiated Objectives (Y/N) | N3: Mid-Year Reviews (Y/N) | O3: Year-End Reviews (Y/N) | P3: Tracking/Reporting Application/System/ Method | Q3: Reviews Performed By: | R3: Face-to-Face Reviews (Y/N) | S3: Estimated Time per Review | T3: Program Managers
A4: Non-Negotiated Objectives
A5: Lead | B5: GPR | C5: 01/01/19 - 12/31/19 | D5: 6/12ths | E5: 157720 | F5: 769700 | G5: 769700 | H5: 769700 | I5: =(H5-G5)/G5 -> 0 | J5: N | K5: Y | L5: N | M5: N | N5: N | O5: N | P5: N/A | Q5: N/A | R5: N | S5: N/A | T5: Margie Coons (Marjorie.Coons@wi.gov)
A6: Radon RICs | B6: FED | C6: 01/01/19 - 12/31/19 | D6: - | E6: 150321 | F6: 151618 | G6: 151618 | H6: 151618 | I6: =(H6-G6)/G6 -> 0 | J6: N | K6: N | L6: N | M6: N | N6: N | O6: N | P6: N/A | Q6: N/A | R6: N | S6: N/A | T6: Jessica Maloney (Jessica.Maloney@wi.gov)
A7: Radon Information Centers | B7: GPR | C7: 01/01/19 - 12/31/19 | D7: 6/12ths | E7: 103010 | F7: 26700 | G7: 26700 | H7: 26700 | I7: =(H7-G7)/G7 -> 0 | J7: N | K7: N | L7: N | M7: N | N7: N | O7: N | P7: N/A | Q7: N/A | R7: N | S7: N/A | T7: Jessica Maloney (Jessica.Maloney@wi.gov)
A8: Radon Outreach | B8: FED | C8: 01/01/19 - 12/31/19 | D8: - | E8: 150327 | F8: 0 | G8: 0 | H8: 0 | I8: 0 | J8: N | K8: N | L8: N | M8: N | N8: N | O8: N | P8: N/A | Q8: N/A | R8: N | S8: N/A | T8: Jessica Maloney (Jessica.Maloney@wi.gov)
A9: WWWP | B9: GPR/FED | C9: 07/01/18 - 06/30/19 | D9: - | E9: 157010 & 157008/65505 | F9: 1408221 | G9: 1291425 | H9: 1291425 | I9: =(H9-G9)/G9 -> 0 | J9: Y $116,796 | K9: Y | L9: Y | M9: N | N9: N | O9: Y | P9: GAC | Q9: Central Office Program Staff | R9: N | S9: N/A | T9: Gale Johnson (Gale.Johnson@wi.gov)
A10: Oral Health Supplement | B10: GPR | C10: 01/01/19 - 12/31/19 | D10: 6/12ths | E10: 151734 | F10: 23419 | G10: 23419 | H10: 23419 | I10: 0 | J10: N | K10: Y | L10: Y | M10: N | N10: N | O10: Y | P10: Reports Emailed | Q10: Central Office Program Staff | R10: N | S10: 30 min | T10: Robbyn Kuester (Robbyn.Kuester@wi.gov)
A11: Oral Health Mouthrinse | B11: GPR | C11: 01/01/19 - 12/31/19 | D11: 6/12ths | E11: 151735/65535 | F11: 25057 | G11: 23029 | H11: 23029 | I11: 0 | J11: Y $2,028 | K11: Y | L11: Y | M11: N | N11: N | O11: Y | P11: Reports Emailed | Q11: Central Office Program Staff | R11: N | S11: 30 min | T11: Regina Vidaver (regina.vidaver@wi.gov)
A12: PHEP | B12: FED | C12: 07/01/18 - 06/30/19 | D12: - | E12: 155015/65596 | F12: 5193150 | G12: 4926128 | H12: 4926128 | I12: =(H12-G12)/G12 -> 0 | J12: 267022 | K12: Y | L12: N | M12: N | N12: Y | O12: Y | P12: CPG (Capabilities Planning Guide) & Attendance at Exercises | Q12: Central Office Program Staff | R12: Y | S12: 30-60 minutes | T12: Lisa Kelly (Lisa.Kelly@wisconsin.gov)
A13: Cities Readiness | B13: FED | C13: 07/01/18 - 06/30/19 | D13: - | E13: 155190 | F13: 507547 | G13: 507547 | H13: 507547 | I13: 0 | J13: N | K13: Y | L13: N | M13: N | N13: N | O13: Y | P13: TAR (Technical Assistance Review) & POD (Point of Deliver?) | Q13: Central Office Program Staff | R13: Y | S13: 7 hours (includes drive time) | T13: Lisa Kelly (Lisa.Kelly@wisconsin.gov)
A14: HPP | B14: FED | C14: 07/01/18 - 06/30/19 | D14: - | E14: 155170 | G14: 628000 | H14: 628000 | I14: 0 | K14: Y | L14: N | M14: N | N14: Y | O14: Y | P14: CPG (Capabilities Planning Guide) & Attendance at Exercises | Q14: Central Office Program Staff | R14: Y | S14: 30-60 minutes | T14: Lisa Kelly (Lisa.Kelly@wisconsin.gov)
A15: Comm Disease Control and Prev | C15: 07/01/18 - 06/30/19 | E15: 155800 | J15: Y | K15: Y | L15: N | M15: N
A16: Tobacco | B16: GPR | C16: 01/01/19 - 12/31/19 | D16: 6/12ths | E16: 181010/65578 | F16: 895336 | G16: 778936 | H16: 778936 | I16: 0 | J16: Y $116,400 | K16: N | L16: N | M16: N | N16: Y | O16: Y | P16: Web-Based Activity Tracker | Q16: Central Office Program Staff | R16: Y | S16: 2 hours | T16: Vicki Huntington (Vicki.Huntington@wi.gov)
A17: WI WINS | B17: GPR | C17: 01/01/19 - 12/31/19 | D17: 6/12ths | E17: 181004 | F17: 113369 | G17: 113369 | H17: 113369 | I17: 0 | J17: N | K17: Y | L17: N | M17: N | N17: Y | O17: Y | P17: Web-Based Activity Tracker | Q17: Central Office Program Staff | R17: Y | S17: 1 hour | T17: Vicki Huntington (Vicki.Huntington@wi.gov)
A18: WIC | B18: FED | C18: 01/01/19 - 12/31/19 | D18: 9/12ths | E18: 154710/65585 | F18: 14790160 | G18: 14281420 | H18: 14281420 | I18: 0 | J18: Y $508,740 | K18: Y | L18: N | M18: N | N18: Y / every 2 yrs | O18: Y / every 2 yrs | P18: Management Evaluation Tools | Q18: Program Field Staff | R18: Y | S18: 2-3 days plus travel | T18: Lisa Murphy (Lisa.Murphy@wi.gov)
A19: TEFAP | B19: FED | C19: 10/01/18 - 09/30/19 | D19: - | E19: 65590 | F19: 1500 | J19: Y $1,500 | K19: Y | L19: N | M19: N | N19: N | O19: Y 25% of contracts each year | P19: Management Evaluation Tools | Q19: Central Office Program Staff | R19: Y | S19: 1 day plus travel | T19: Kitty Kocol (Kitty.Kocol@wi.gov)
A20: SNAP-ED (PO or on WIC contract) | B20: FED | C20: 10/01/18 - 09/30/19 | D20: - | E20: 154661/65691 | F20: 916041 | G20: 539878 | H20: 539878 | I20: 0 | J20: Y $376,163 | K20: Y | L20: N | M20: N | N20: Y / every 6 yrs | O20: Y / every 6 yrs | P20: Management Evaluation Tools | Q20: Central Office Program Staff | R20: Y | S20: 1 day plus travel | T20: Tony Zech (Anthony.Zech@wi.gov)
A21: WIC Farmers Market | B21: FED | C21: 01/01/19 - 12/31/19 | D21: 6/12ths | E21: 154720/65586 | F21: 128553 | G21: 124207 | H21: 124207 | I21: 0 | J21: Y $4,346 | L21: N | M21: N | N21: Y / every 2 yrs | O21: Y / every 2 yrs | P21: Management Evaluation Tools | Q21: Program Field Staff | R21: Y | S21: 2-3 days plus travel | T21: Jesenia Rivera (Jesenia2.Rivera@dhs.wisconsin.gov)
A22: WIC Peer Counseling | B22: FED | C22: 01/01/19 - 12/31/19 | D22: 9/12ths | E22: 154760/65581 | F22: 108877 | G22: 102276 | H22: 102276 | I22: 0 | J22: Y $6,601 | L22: N | M22: N | N22: Y / every 2 yrs | O22: Y / every 2 yrs | P22: Management Evaluation Tools | Q22: Program Field Staff | R22: Y | S22: 2-3 days plus travel | T22: Jesenia Rivera (Jesenia2.Rivera@dhs.wisconsin.gov)
A23: Chronic Disease - Domain 2 NPAO | B23: FED | C23: 07/01/18 - 06/30/19 | D23: - | E23: 155671 | F23: 24000 | G23: 24000 | H23: 24000 | I23: 0 | J23: N | K23: N | L23: N | M23: N | N23: N | O23: Y | P23: Reports Emailed | Q23: Central Office Program Staff | R23: N | S23: 30-60 minutes | T23: Mary Pesik (Mary.Pesik@wi.gov)
A24: Infertility Prevention | B24: FED | C24: 01/01/19 - 12/31/19 | D24: - | E24: 155027 | F24: 223715 | G24: 223715 | H24: 223715 | I24: 0 | J24: N | K24: N | L24: N | M24: N | N24: Yes, based on objectives. | O24: Yes, based on objectives. | P24: None | Q24: Anthony Wade | R24: Yes | S24: 20 hours | T24: Tony Wade (Anthony.Wade@wi.gov)
A25: Negotiated Objectives
A26: Immunization | B26: FED | C26: 01/01/19 - 12/31/19 | D26: 3/12ths | E26: 155020/65550 | F26: 1467077 | G26: 1425208 | H26: 1425208 | I26: =(H26-G26)/G26 -> 0 | J26: Y $41,869 | K26: Y | L26: Y | M26: Y | N26: Y | O26: Y | P26: WIR | Q26: Program Field Staff | R26: Y | S26: 6-7 Hours | T26: Stephanie Schauer (Stephanie.Schauer@wi.gov)
A27: MCH | B27: FED | C27: 01/01/19 - 12/31/19 | D27: 6/12ths | E27: 159320/159322; 193002 for MCH Match | F27: 2609661 | G27: 2609661 | H27: 2678396 | I27: 0.02633867004 | J27: Y $244,006 | K27: Y | L27: Y | M27: Y | N27: Y | O27: Y | P27: GAC | Q27: Central Office Program Staff | R27: Y | S27: 1-2 hours to drive | T27: Jody Brassfield (jody.brassfield@wi.gov)
A28: CYSHCN | B28: FED | C28: 01/01/19 - 12/31/19 | D28: - | E28: 159332/65564; 193001 for CYSHCN Match | F28: 373201 | G28: 293201 | H28: 373201 | I28: 0.2728503654 | J28: Y $80,000 | K28: Y | L28: Y | M28: Y | N28: Y | O28: Y | P28: GAC/SPHERE | Q28: Central Office Program Staff | R28: Y | S28: 1-2 hours drive time | T28: Sharon Fleischfresser (Sharon.Fleischfresser@wi.gov)
A29: Reproductive Health | B29: GPR/FED | C29: 01/01/19 - 12/31/19 | D29: 6/12ths | E29: 159321; 159327; 152020; 152002/65560 | F29: 2560587 | G29: 1943940 | H29: Hold for Title X Application results | J29: Y $27,160 | K29: N | L29: N | M29: Y | N29: Y | O29: Y | P29: REDCap or Local Information System | Q29: Central Office Program Staff | R29: Y | S29: 4-6 hours one-way travel time and 2-3 hours review time | T29: Catherine Sendelbach (Catherine.Sendelbach@dhs.wisconsin.gov)
E30: Earned Match - 193996 | P30: CARS
E31: Expended Match - 193997 | P31: CARS
A32: Ryan White (PS County) | B32: FED | C32: 01/01/19 - 12/31/19 | D32: 3/12ths | E32: 155957 | F32: 224000 | G32: 224000 | H32: 224000 | I32: 0 | J32: N | K32: Y | L32: N | M32: N | N32: Y | O32: N | P32: Y | Q32: Program staff | R32: Y | S32: 1 hour | T32: Tim Pilcher (tim.pilcher@wi.gov)
A33: Ryan White (Milwaukee) | B33: FED | C33: 01/01/19 - 12/31/19 | D33: - | E33: 155945 | F33: 197000 | G33: 197000 | H33: 197000 | I33: 0 | J33: N | K33: N | L33: N | M33: N | N33: Y | O33: N | P33: Y | Q33: Program staff | R33: Y | S33: 4 hours | T33: Tim Pilcher (tim.pilcher@wi.gov)
A34: Prevention | B34: FED | C34: 10/01/17 - 09/30/19 | D34: - | E34: 159220/65520 | F34: 754000 | G34: 713960 | H34: 713960 | I34: 0 | J34: Y $40,040 | K34: Y | L34: Y | M34: Y | N34: Y | O34: Y | P34: Phone or Visits | Q34: Regional OPPA Staff | R34: Y | S34: 1 hour | T34: Angela Nimsgern (Angela.Nimsgern@wi.gov)
A36: (Note: The Department’s Tribal Affairs Office takes the lead for all prepacket creation for tribal contract.)

Sheet Contract Monitors
A1: Local Public Health Department and Tribal Contract Monitors | F1: 2019-01-02
A2: For 2018 & 2019 Consolidated Contracting
A3: Agcy No | B3: County | C3: Reg | D3: Agency | E3: LPHD Level | F3: Prevention Block Grant | G3: Lead | H3: Radon RICs | I3: Food Safety | J3: WWWP | K3: Oral Health Supplement | L3: Oral Health Mouthrinse | M3: Immunization | N3: Perinatal Hepatitis B | O3: Tobacco | P3: WI WINS | Q3: WIC | R3: TEFAP | S3: SNAP-ED (LHDs on WIC contract) | T3: MCH | U3: CYSHCN | V3: Reproductive Health | W3: Diabetes | X3: PHEP | Y3: Cities Readiness | Z3: AIDS/HIV | AA3: Ryan White | AB3: Cooperative American Indian
A4: 2 | B4: ASHLAND | C4: N | D4: Ashland County Health & Human Services Department | E4: 3 | F4: Jim Lawrence | G4: Reghan Walsh | H4: N/A | I4: N/A | J4: Courtney Newman | K4: Robbyn Kuester | L4: Robbyn Kuester | M4: Christie Oestreich | N4: N/A | O4: N/A | P4: N/A | Q4: N/A | R4: N/A | S4: N/A | T4: Karen Morris | U4: N/A | V4: Karen Morris | W4: N/A | X4: Lisa Kelly | Y4: N/A | Z4: N/A | AA4: Dhana Shrestha | AB4: N/A
A5: 4 | B5: BAYFIELD | C5: N | D5: Bayfield County Health Department | E5: 2 | F5: Jim Lawrence | G5: Reghan Walsh | H5: N/A | I5: N/A | J5: Courtney Newman | K5: Robbyn Kuester | L5: Robbyn Kuester | M5: Christie Oestreich | N5: N/A | O5: N/A | P5: N/A | Q5: Barbara Pevytoe | R5: N/A | S5: Anthony Zech | T5: Karen Morris | U5: N/A | V5: Karen Morris | W5: N/A | X5: Lisa Kelly | Y5: N/A | Z5: N/A | AA5: Dhana Shrestha | AB5: N/A
A6: 19 | B6: FLORENCE | C6: N | D6: Florence County Health Department | E6: 3 | F6: Jim Lawrence | G6: Reghan Walsh | H6: N/A | I6: N/A | J6: Courtney Newman | K6: Robbyn Kuester | L6: Robbyn Kuester | M6: Christie Oestreich | N6: N/A | O6: N/A | P6: N/A | Q6: Barbara Pevytoe | R6: N/A | S6: N/A | T6: Kruse, Terry L - DHS | U6: N/A | V6: Cathy Sendelbach | W6: N/A | X6: Lisa Kelly | Y6: N/A | Z6: N/A | AA6: Dhana Shrestha | AB6: N/A
A7: 21 | B7: FOREST | C7: N | D7: Forest County Health Department | E7: 2 | F7: Jim Lawrence | G7: Reghan Walsh | H7: N/A | I7: N/A | J7: Courtney Newman | K7: Robbyn Kuester | L7: Robbyn Kuester | M7: Christie Oestreich | N7: N/A | O7: N/A | P7: N/A | Q7: Barbara Pevytoe | R7: N/A | S7: Anthony Zech | T7: Rosecky, Mary - DHS | U7: N/A | V7: N/A | W7: N/A | X7: Lisa Kelly | Y7: N/A | Z7: N/A | AA7: Dhana Shrestha | AB7: N/A
A8: 26 | B8: IRON | C8: N | D8: Iron County Health Department | E8: 2 | F8: Jim Lawrence | G8: Reghan Walsh | H8: N/A | I8: N/A | J8: Courtney Newman | K8: Robbyn Kuester | L8: Robbyn Kuester | M8: Christie Oestreich | N8: N/A | O8: N/A | P8: N/A | Q8: N/A | R8: N/A | S8: N/A | T8: Karen Morris | U8: N/A | V8: Cathy Sendelbach | W8: N/A | X8: Lisa Kelly | Y8: N/A | Z8: N/A | AA8: Dhana Shrestha | AB8: N/A
A9: 34 | B9: LANGLADE | C9: N | D9: Langlade County Health Department | E9: 2 | F9: Jim Lawrence | G9: Reghan Walsh | H9: N/A | I9: N/A | J9: Courtney Newman | K9: Robbyn Kuester | L9: Robbyn Kuester | M9: Christie Oestreich | N9: N/A | O9: N/A | P9: N/A | Q9: N/A | R9: N/A | S9: N/A | T9: Kruse, Terry L - DHS | U9: N/A | V9: N/A | W9: N/A | X9: Lisa Kelly | Y9: N/A | Z9: N/A | AA9: Dhana Shrestha | AB9: N/A
A10: 35 | B10: LINCOLN | C10: N | D10: Lincoln County Health Department | E10: 3 | F10: Jim Lawrence | G10: Reghan Walsh | H10: N/A | I10: N/A | J10: Courtney Newman | K10: Robbyn Kuester | L10: Robbyn Kuester | M10: Christie Oestreich | N10: N/A | O10: N/A | P10: N/A | Q10: N/A | R10: N/A | S10: N/A | T10: Leah Ludlum | U10: N/A | V10: N/A | W10: N/A | X10: Lisa Kelly | Y10: N/A | Z10: N/A | AA10: Dhana Shrestha | AB10: N/A
A11: 37 | B11: MARATHON | C11: N | D11: Marathon County Health Department | E11: 3 | F11: Jim Lawrence | G11: Reghan Walsh | H11: Jessica Maloney | I11: N/A | J11: Courtney Newman | K11: Robbyn Kuester | L11: Robbyn Kuester | M11: Christie Oestreich | N11: N/A | O11: Tana Feiner | P11: Nancy Michaud | Q11: N/A | R11: N/A | S11: N/A | T11: Leah Ludlum | U11: Leah Ludlum | V11: N/A | W11: N/A | X11: Lisa Kelly | Y11: N/A | Z11: N/A | AA11: Dhana Shrestha | AB11: N/A
A12: 43 | B12: ONEIDA | C12: N | D12: Oneida County Health Department | E12: 3 | F12: Jim Lawrence | G12: Reghan Walsh | H12: N/A | I12: N/A | J12: Courtney Newman | K12: Robbyn Kuester | L12: Robbyn Kuester | M12: Christie Oestreich | N12: N/A | O12: Tana Feiner | P12: Nancy Michaud | Q12: Barbara Pevytoe | R12: N/A | S12: Anthony Zech | T12: Rosecky, Mary - DHS | U12: N/A | V12: Cathy Sendelbach | W12: N/A | X12: Lisa Kelly | Y12: N/A | Z12: N/A | AA12: Dhana Shrestha | AB12: N/A
A13: 49 | B13: PORTAGE | C13: N | D13: Portage County Health & Human Services Department | E13: 3 | F13: Jim Lawrence | G13: Reghan Walsh | H13: N/A | I13: N/A | J13: Courtney Newman | K13: Robbyn Kuester | L13: Robbyn Kuester | M13: Christie Oestreich | N13: N/A | O13: N/A | P13: N/A | Q13: Terrell Brock | R13: N/A | S13: Anthony Zech | T13: Karen Morris | U13: N/A | V13: N/A | W13: N/A | X13: Lisa Kelly | Y13: N/A | Z13: N/A | AA13: Dhana Shrestha | AB13: N/A
A14: 50 | B14: PRICE | C14: N | D14: Price County Health and Human Services | E14: 2 | F14: Jim Lawrence | G14: Reghan Walsh | H14: N/A | I14: N/A | J14: Courtney Newman | K14: Robbyn Kuester | L14: Robbyn Kuester | M14: Christie Oestreich | N14: N/A | O14: N/A | P14: N/A | Q14: Barbara Pevytoe | R14: N/A | S14: N/A | T14: Kruse, Terry L - DHS | U14: N/A | V14: Cathy Sendelbach | W14: N/A | X14: Lisa Kelly | Y14: N/A | Z14: N/A | AA14: Dhana Shrestha | AB14: N/A
A15: 57 | B15: SAWYER | C15: N | D15: Sawyer County Department of Health & Human Services | E15: 2 | F15: Jim Lawrence | G15: Reghan Walsh | H15: N/A | I15: N/A | J15: Courtney Newman | K15: Robbyn Kuester | L15: Robbyn Kuester | M15: Christie Oestreich | N15: N/A | O15: N/A | P15: N/A | Q15: Barbara Pevytoe | R15: N/A | S15: N/A | T15: Karen Morris | U15: N/A | V15: Karen Morris | W15: N/A | X15: Lisa Kelly | Y15: N/A | Z15: N/A | AA15: Dhana Shrestha | AB15: N/A
A16: 60 | B16: TAYLOR | C16: N | D16: Taylor County Health Department | E16: 2 | F16: Jim Lawrence | G16: Reghan Walsh | H16: Jessica Maloney | I16: N/A | J16: Courtney Newman | K16: Robbyn Kuester | L16: Robbyn Kuester | M16: Christie Oestreich | N16: N/A | O16: N/A | P16: N/A | Q16: Barbara Pevytoe | R16: N/A | S16: N/A | T16: Kruse, Terry L - DHS | U16: N/A | V16: N/A | W16: N/A | X16: Lisa Kelly | Y16: N/A | Z16: N/A | AA16: Dhana Shrestha | AB16: N/A
A17: 63 | B17: VILAS | C17: N | D17: Vilas County Health Department | E17: 2 | F17: Jim Lawrence | G17: Reghan Walsh | H17: N/A | I17: N/A | J17: Courtney Newman | K17: Robbyn Kuester | L17: Robbyn Kuester | M17: Christie Oestreich | N17: N/A | O17: N/A | P17: N/A | Q17: Barbara Pevytoe | R17: N/A | S17: N/A | T17: Kruse, Terry L - DHS | U17: N/A | V17: N/A | W17: N/A | X17: Lisa Kelly | Y17: N/A | Z17: N/A | AA17: Dhana Shrestha | AB17: N/A
A18: 71 | B18: WOOD | C18: N | D18: Wood County Health Department | E18: 3 | F18: Jim Lawrence | G18: Reghan Walsh | H18: N/A | I18: N/A | J18: Courtney Newman | K18: Robbyn Kuester | L18: Robbyn Kuester | M18: Christie Oestreich | N18: N/A | O18: N/A | P18: N/A | Q18: Terrell Brock | R18: N/A | S18: Anthony Zech | T18: Rosecky, Mary - DHS | U18: N/A | V18: N/A | W18: N/A | X18: Lisa Kelly | Y18: N/A | Z18: N/A | AA18: Dhana Shrestha | AB18: N/A
A19: 5 | B19: BROWN | C19: NE | D19: Brown County Health Department | E19: 3 | F19: Janet Kazmierczak | G19: Margie Coons | H19: N/A | I19: N/A | J19: Courtney Newman | K19: Robbyn Kuester | L19: Robbyn Kuester | M19: Susan Nelson | N19: N/A | O19: N/A | P19: N/A | Q19: N/A | R19: N/A | S19: N/A | T19: Heinz, Melissa D - DHS | U19: N/A | V19: N/A | W19: N/A | X19: Lisa Kelly | Y19: N/A | Z19: N/A | AA19: Dhana Shrestha | AB19: N/A
A20: 472779 | B20: BROWN | C20: NE | D20: De Pere Department of Public Health | E20: 2 | F20: Janet Kazmierczak | G20: Margie Coons | H20: N/A | I20: N/A | J20: Courtney Newman | K20: Robbyn Kuester | L20: Robbyn Kuester | M20: Susan Nelson | N20: N/A | O20: N/A | P20: N/A | Q20: N/A | R20: N/A | S20: N/A | T20: Heinz, Melissa D - DHS | U20: N/A | V20: N/A | W20: N/A | X20: Lisa Kelly | Y20: N/A | Z20: N/A | AA20: Dhana Shrestha | AB20: N/A
A21: 8 | B21: CALUMET | C21: NE | D21: Calumet County Health Division | E21: 2 | F21: Janet Kazmierczak | G21: Margie Coons | H21: N/A | I21: N/A | J21: Courtney Newman | K21: Robbyn Kuester | L21: Robbyn Kuester | M21: Susan Nelson | N21: N/A | O21: N/A | P21: N/A | Q21: Diane Moreau-Stodola | R21: N/A | S21: N/A | T21: Rosecky, Mary - DHS | U21: N/A | V21: N/A | W21: N/A | X21: Lisa Kelly | Y21: N/A | Z21: N/A | AA21: Dhana Shrestha | AB21: N/A
A22: 15 | B22: DOOR | C22: NE | D22: Door County Health Department | E22: 2 | F22: Janet Kazmierczak | G22: Margie Coons | H22: N/A | I22: N/A | J22: Courtney Newman | K22: Robbyn Kuester | L22: Robbyn Kuester | M22: Susan Nelson | N22: N/A | O22: N/A | P22: N/A | Q22: Diane Moreau-Stodola | R22: N/A | S22: N/A | T22: Heinz, Melissa D - DHS | U22: N/A | V22: N/A | W22: N/A | X22: Lisa Kelly | Y22: N/A | Z22: N/A | AA22: Dhana Shrestha | AB22: N/A
A23: 20 | B23: FOND DU LAC | C23: NE | D23: Fond du Lac County Health Department | E23: 3 | F23: Janet Kazmierczak | G23: Margie Coons | H23: Jessica Maloney | I23: N/A | J23: Courtney Newman | K23: Robbyn Kuester | L23: Robbyn Kuester | M23: Susan Nelson | N23: N/A | O23: Amanda Dederich | P23: Nancy Michaud | Q23: Marilyn Bolton | R23: N/A | S23: Anthony Zech | T23: Rosecky, Mary - DHS | U23: N/A | V23: Cathy Sendelbach | W23: N/A | X23: Lisa Kelly | Y23: N/A | Z23: N/A | AA23: Dhana Shrestha | AB23: N/A
A24: 24 | B24: GREEN LAKE | C24: NE | D24: Green Lake County Department of Health & Human Services | E24: 2 | F24: Janet Kazmierczak | G24: Margie Coons | H24: N/A | I24: N/A | J24: Courtney Newman | K24: Robbyn Kuester | L24: Robbyn Kuester | M24: Susan Nelson | N24: N/A | O24: N/A | P24: N/A | Q24: N/A | R24: N/A | S24: N/A | T24: Rosecky, Mary - DHS | U24: N/A | V24: N/A | W24: N/A | X24: Lisa Kelly | Y24: N/A | Z24: N/A | AA24: Dhana Shrestha | AB24: N/A
A25: 31 | B25: KEWAUNEE | C25: NE | D25: Kewaunee County Health Department | E25: 2 | F25: Janet Kazmierczak | G25: Margie Coons | H25: N/A | I25: N/A | J25: Courtney Newman | K25: Robbyn Kuester | L25: Robbyn Kuester | M25: Susan Nelson | N25: N/A | O25: N/A | P25: N/A | Q25: Diane Moreau-Stodola | R25: N/A | S25: Anthony Zech | T25: Rosecky, Mary - DHS | U25: N/A | V25: N/A | W25: N/A | X25: Lisa Kelly | Y25: N/A | Z25: N/A | AA25: Dhana Shrestha | AB25: N/A
A26: 36 | B26: MANITOWOC | C26: NE | D26: Manitowoc County Health Department | E26: 2 | F26: Janet Kazmierczak | G26: Margie Coons | H26: Jessica Maloney | I26: N/A | J26: Courtney Newman | K26: Robbyn Kuester | L26: Robbyn Kuester | M26: Susan Nelson | N26: N/A | O26: N/A | P26: N/A | Q26: Diane Moreau-Stodola | R26: N/A | S26: N/A | T26: Rosecky, Mary - DHS | U26: N/A | V26: N/A | W26: N/A | X26: Lisa Kelly | Y26: N/A | Z26: N/A | AA26: Dhana Shrestha | AB26: N/A
A27: 38 | B27: MARINETTE | C27: NE | D27: Marinette County Health Department | E27: 2 | F27: Janet Kazmierczak | G27: Margie Coons | H27: N/A | I27: N/A | J27: Courtney Newman | K27: Robbyn Kuester | L27: Robbyn Kuester | M27: Susan Nelson | N27: N/A | O27: N/A | P27: N/A | Q27: Diane Moreau-Stodola | R27: N/A | S27: Anthony Zech | T27: Heinz, Melissa D - DHS | U27: N/A | V27: N/A | W27: N/A | X27: Lisa Kelly | Y27: N/A | Z27: N/A | AA27: Dhana Shrestha | AB27: N/A
A28: 39 | B28: MARQUETTE | C28: NE | D28: Marquette County Health Department | E28: 2 | F28: Janet Kazmierczak | G28: Margie Coons | H28: N/A | I28: N/A | J28: Courtney Newman | K28: Robbyn Kuester | L28: Robbyn Kuester | M28: Susan Nelson | N28: N/A | O28: N/A | P28: N/A | Q28: N/A | R28: N/A | S28: N/A | T28: Rosecky, Mary - DHS | U28: N/A | V28: Cathy Sendelbach | W28: N/A | X28: Lisa Kelly | Y28: N/A | Z28: N/A | AA28: Dhana Shrestha | AB28: N/A
A29: 42 | B29: OCONTO | C29: NE | D29: Oconto County Health Department Public Health Division | E29: 2 | F29: Janet Kazmierczak | G29: Margie Coons | H29: N/A | I29: N/A | J29: Courtney Newman | K29: Robbyn Kuester | L29: Robbyn Kuester | M29: Susan Nelson | N29: N/A | O29: N/A | P29: N/A | Q29: Diane Moreau-Stodola | R29: N/A | S29: N/A | T29: Heinz, Melissa D - DHS | U29: N/A | V29: N/A | W29: N/A | X29: Lisa Kelly | Y29: N/A | Z29: N/A | AA29: Dhana Shrestha | AB29: N/A
A30: 449983 | B30: OUTAGAMIE | C30: NE | D30: Appleton City Health Department | E30: 3 | F30: Janet Kazmierczak | G30: Margie Coons | H30: N/A | I30: N/A | J30: Courtney Newman | K30: Robbyn Kuester | L30: Robbyn Kuester | M30: Susan Nelson | N30: N/A | O30: N/A | P30: N/A | Q30: N/A | R30: N/A | S30: N/A | T30: Rosecky, Mary - DHS | U30: N/A | V30: N/A | W30: N/A | X30: Lisa Kelly | Y30: N/A | Z30: N/A | AA30: Dhana Shrestha | AB30: N/A
A31: 44 | B31: OUTAGAMIE | C31: NE | D31: Outagamie County Public Health Division | E31: 3 | F31: Janet Kazmierczak | G31: Margie Coons | H31: N/A | I31: N/A | J31: Courtney Newman | K31: Robbyn Kuester | L31: Robbyn Kuester | M31: Susan Nelson | N31: N/A | O31: N/A | P31: N/A | Q31: Jodi Klement | S31: Anthony Zech | T31: Rosecky, Mary - DHS | U31: N/A | V31: N/A | W31: N/A | X31: Lisa Kelly | Y31: N/A | Z31: N/A | AA31: Dhana Shrestha | AB31: N/A
A32: 58 | B32: SHAWANO | C32: NE | D32: Shawano County Health Department | E32: 2 | F32: Janet Kazmierczak | G32: Margie Coons | H32: N/A | I32: N/A | J32: Courtney Newman | K32: Robbyn Kuester | L32: Robbyn Kuester | M32: Susan Nelson | N32: N/A | O32: N/A | P32: N/A | Q32: Diane Moreau-Stodola | R32: N/A | S32: N/A | T32: Leah Ludlum | U32: N/A | V32: N/A | W32: N/A | X32: Lisa Kelly | Y32: N/A | Z32: N/A | AA32: Dhana Shrestha | AB32: N/A
A33: 59 | B33: SHEBOYGAN | C33: NE | D33: Sheboygan County Human Services, Division of Public Health | E33: 2 | F33: Janet Kazmierczak | G33: Margie Coons | H33: N/A | I33: N/A | J33: Courtney Newman | K33: Robbyn Kuester | L33: Robbyn Kuester | M33: Susan Nelson | N33: N/A | O33: N/A | P33: N/A | Q33: Marilyn Bolton | R33: N/A | S33: N/A | T33: Rosecky, Mary - DHS | U33: N/A | V33: N/A | W33: N/A | X33: Lisa Kelly | Y33: N/A | Z33: N/A | AA33: Dhana Shrestha | AB33: N/A
A34: 68 | B34: WAUPACA | C34: NE | D34: Waupaca County Human Services, Health Services Division | E34: 2 | F34: Janet Kazmierczak | G34: Margie Coons | H34: N/A | I34: N/A | J34: Courtney Newman | K34: Robbyn Kuester | L34: Robbyn Kuester | M34: Susan Nelson | N34: N/A | O34: N/A | P34: N/A | Q34: Terrell Brock | R34: N/A | S34: Anthony Zech | T34: Rosecky, Mary - DHS | U34: N/A | V34: Cathy Sendelbach | W34: N/A | X34: Lisa Kelly | Y34: N/A | Z34: N/A | AA34: Dhana Shrestha | AB34: N/A
A35: 69 | B35: WAUSHARA | C35: NE | D35: Waushara County Health Department | E35: 3 | F35: Janet Kazmierczak | G35: Margie Coons | H35: Jessica Maloney | I35: N/A | J35: Courtney Newman | K35: Robbyn Kuester | L35: Robbyn Kuester | M35: Susan Nelson | N35: N/A | O35: N/A | P35: N/A | Q35: N/A | R35: N/A | S35: N/A | T35: Heinz, Melissa D - DHS | U35: N/A | V35: Cathy Sendelbach | W35: N/A | X35: Lisa Kelly | Y35: N/A | Z35: N/A | AA35: Dhana Shrestha | AB35: N/A
A36: 70 | B36: WINNEBAGO | C36: NE | D36: Winnebago County Health Department | E36: 3 | F36: Janet Kazmierczak | G36: Margie Coons | H36: N/A | I36: N/A | J36: Courtney Newman | K36: Robbyn Kuester | L36: Robbyn Kuester | M36: Susan Nelson | N36: N/A | O36: N/A | P36: N/A | Q36: Jodi Klement | S36: Anthony Zech | T36: Leah Ludlum | U36: N/A | V36: N/A | W36: N/A | X36: Lisa Kelly | Y36: N/A | Z36: N/A | AA36: Dhana Shrestha | AB36: N/A
A37: 256420 | B37: WINNEBAGO | C37: NE | D37: Menasha Health Department | E37: 3 | F37: Janet Kazmierczak | G37: Margie Coons | H37: N/A | I37: N/A | J37: Courtney Newman | K37: Robbyn Kuester | L37: Robbyn Kuester | M37: Susan Nelson | N37: N/A | O37: N/A | P37: N/A | Q37: N/A | R37: N/A | S37: N/A | T37: Leah Ludlum | U37: N/A | V37: N/A | W37: N/A | X37: Lisa Kelly | Y37: N/A | Z37: N/A | AA37: Dhana Shrestha | AB37: N/A
A38: 1 | B38: ADAMS | C38: S | D38: Adams County Public Health Department | E38: 3 | F38: Sheri Siemers | G38: Reghan Walsh | H38: N/A | I38: N/A | J38: Courtney Newman | K38: Robbyn Kuester | L38: Robbyn Kuester | M38: Wilmot Valhmu | N38: N/A | O38: N/A | P38: N/A | Q38: N/A | R38: N/A | S38: N/A | T38: Rosecky, Mary - DHS | U38: N/A | V38: N/A | W38: N/A | X38: Lisa Kelly | Y38: N/A | Z38: N/A | AA38: Dhana Shrestha | AB38: N/A
A39: 11 | B39: COLUMBIA | C39: S | D39: Columbia County Division of Health | E39: 2 | F39: Sheri Siemers | G39: Reghan Walsh | H39: N/A | I39: James Kaplanek | J39: Courtney Newman | K39: Robbyn Kuester | L39: Robbyn Kuester | M39: Wilmot Valhmu | N39: N/A | O39: N/A | P39: N/A | Q39: Marilyn Bolton | R39: N/A | S39: N/A | T39: Leah Ludlum | U39: N/A | V39: N/A | W39: N/A | X39: Lisa Kelly | Y39: N/A | Z39: N/A | AA39: Dhana Shrestha | AB39: N/A
A40: 12 | B40: CRAWFORD | C40: S | D40: Crawford County Public Health | E40: 2 | F40: Christina Beach-Baumgartner | G40: Reghan Walsh | H40: N/A | I40: James Kaplanek | J40: Courtney Newman | K40: Robbyn Kuester | L40: Robbyn Kuester | M40: Wilmot Valhmu | N40: N/A | O40: N/A | P40: N/A | R40: N/A | S40: N/A | T40: Karen Morris | U40: N/A | V40: N/A | W40: N/A | X40: Lisa Kelly | Y40: N/A | Z40: N/A | AA40: Dhana Shrestha | AB40: N/A
A41: 256099 | B41: DANE | C41: S | D41: Board of Health for Madison and Dane County on behalf of Public Health Madison and Dane County | E41: 3 | F41: Christina Beach-Baumgartner | G41: Reghan Walsh | H41: Jessica Maloney | I41: N/A | J41: Courtney Newman | K41: Robbyn Kuester | L41: Robbyn Kuester | M41: Wilmot Valhmu | N41: N/A | O41: Amanda Dederich | P41: Nancy Michaud | Q41: Terrell Brock | R41: N/A | S41: N/A | T41: Meyer, Shawn R - DHS | U41: N/A | V41: Cathy Sendelbach | W41: N/A | X41: Lisa Kelly | Y41: N/A | Z41: N/A | AA41: Dhana Shrestha | AB41: N/A
A42: 14 | B42: DODGE | C42: S | D42: Dodge County Human Services & Health Department | E42: 2 | F42: Sheri Siemers | G42: Reghan Walsh | H42: N/A | I42: N/A | J42: Courtney Newman | K42: Robbyn Kuester | L42: Robbyn Kuester | M42: Wilmot Valhmu | N42: N/A | O42: N/A | P42: N/A | Q42: Marilyn Bolton | R42: N/A | S42: N/A | T42: Leah Ludlum | U42: N/A | V42: N/A | W42: N/A | X42: Lisa Kelly | Y42: N/A | Z42: N/A | AA42: Dhana Shrestha | AB42: N/A
A43: 22 | B43: GRANT | C43: S | D43: Grant County Health Department | E43: 2 | F43: Christina Beach-Baumgartner | G43: Reghan Walsh | H43: Jessica Maloney | I43: N/A | J43: Courtney Newman | K43: Robbyn Kuester | L43: Robbyn Kuester | M43: Wilmot Valhmu | N43: N/A | O43: N/A | P43: N/A | Q43: Terrell Brock | R43: N/A | S43: N/A | T43: Heinz, Melissa D - DHS | U43: N/A | V43: N/A | W43: N/A | X43: Lisa Kelly | Y43: N/A | Z43: N/A | AA43: Dhana Shrestha | AB43: N/A
A44: 23 | B44: GREEN | C44: S | D44: Green County Health Department | E44: 2 | F44: Christina Beach-Baumgartner | G44: Reghan Walsh | H44: N/A | I44: N/A | J44: Courtney Newman | K44: Robbyn Kuester | L44: Robbyn Kuester | M44: Wilmot Valhmu | N44: N/A | O44: N/A | P44: N/A | Q44: Terrell Brock | R44: N/A | S44: Anthony Zech | T44: Leah Ludlum | U44: N/A | V44: N/A | W44: N/A | X44: Lisa Kelly | Y44: N/A | Z44: N/A | AA44: Dhana Shrestha | AB44: N/A
A45: 25 | B45: IOWA | C45: S | D45: Iowa County Health Department | E45: 2 | F45: Christina Beach-Baumgartner | G45: Reghan Walsh | H45: N/A | I45: James Kaplanek | J45: Courtney Newman | K45: Robbyn Kuester | L45: Robbyn Kuester | M45: Wilmot Valhmu | N45: N/A | O45: N/A | P45: N/A | Q45: N/A | R45: N/A | S45: N/A | T45: Leah Ludlum | U45: N/A | V45: N/A | W45: N/A | X45: Lisa Kelly | Y45: N/A | Z45: N/A | AA45: Dhana Shrestha | AB45: N/A
A46: 472951 | B46: JEFFERSON | C46: S | D46: Watertown Department of Public Health | E46: 2 | F46: Sheri Siemers | G46: Reghan Walsh | H46: Jessica Maloney | I46: N/A | J46: Courtney Newman | K46: Robbyn Kuester | L46: Robbyn Kuester | M46: Wilmot Valhmu | N46: N/A | O46: N/A | P46: N/A | Q46: N/A | R46: N/A | S46: N/A | T46: Meyer, Shawn R - DHS | U46: N/A | V46: N/A | W46: N/A | X46: Lisa Kelly | Y46: N/A | Z46: N/A | AA46: Dhana Shrestha | AB46: N/A
A47: 28 | B47: JEFFERSON | C47: S | D47: Jefferson County Health Department | E47: 2 | F47: Sheri Siemers | G47: Reghan Walsh | H47: N/A | I47: N/A | J47: Courtney Newman | K47: Robbyn Kuester | L47: Robbyn Kuester | M47: Wilmot Valhmu | N47: N/A | O47: N/A | P47: N/A | Q47: Marilyn Bolton | R47: N/A | S47: Anthony Zech | T47: Meyer, Shawn R - DHS | U47: N/A | V47: Cathy Sendelbach | W47: N/A | X47: Lisa Kelly | Y47: N/A | Z47: N/A | AA47: Dhana Shrestha | AB47: N/A
A48: 29 | B48: JUNEAU | C48: S | D48: Juneau County Health Department | E48: 2 | F48: Sheri Siemers | G48: Reghan Walsh | H48: N/A | I48: N/A | J48: Courtney Newman | K48: Robbyn Kuester | L48: Robbyn Kuester | M48: Wilmot Valhmu | N48: N/A | O48: Amanda Dederich | P48: Nancy Michaud | Q48: Terrell Brock | R48: N/A | S48: Anthony Zech | T48: Kruse, Terry L - DHS | U48: N/A | V48: N/A | W48: N/A | X48: Lisa Kelly | Y48: N/A | Z48: N/A | AA48: Dhana Shrestha | AB48: N/A
A49: 33 | B49: LAFAYETTE | C49: S | D49: Lafayette County Health Department | E49: 2 | F49: Christina Beach-Baumgartner | G49: Reghan Walsh | H49: N/A | I49: N/A | J49: Courtney Newman | K49: Robbyn Kuester | L49: Robbyn Kuester | M49: Wilmot Valhmu | N49: N/A | O49: N/A | P49: N/A | Q49: N/A | R49: N/A | S49: N/A | T49: Leah Ludlum | U49: N/A | V49: N/A | W49: N/A | X49: Lisa Kelly | Y49: N/A | Z49: N/A | AA49: Dhana Shrestha | AB49: N/A
A50: 52 | B50: RICHLAND | C50: S | D50: Richland County Health & Human Services Public Health Department | E50: 2 | F50: Christina Beach-Baumgartner | G50: Reghan Walsh | H50: N/A | I50: N/A | J50: Courtney Newman | K50: Robbyn Kuester | L50: Robbyn Kuester | M50: Wilmot Valhmu | N50: N/A | O50: N/A | P50: N/A | Q50: N/A | R50: N/A | S50: N/A | T50: Karen Morris | U50: N/A | V50: N/A | W50: N/A | X50: Lisa Kelly | Y50: N/A | Z50: N/A | AA50: Dhana Shrestha | AB50: N/A
A51: 53 | B51: ROCK | C51: S | D51: Rock County Public Health Department | E51: 3 | F51: Sheri Siemers | G51: Reghan Walsh | H51: N/A | I51: N/A | J51: Courtney Newman | K51: Robbyn Kuester | L51: Robbyn Kuester | M51: Wilmot Valhmu | N51: N/A | O51: N/A | P51: N/A | Q51: N/A | R51: N/A | T51: Meyer, Shawn R - DHS | U51: N/A | V51: N/A | W51: N/A | X51: Lisa Kelly | Y51: N/A | Z51: N/A | AA51: Dhana Shrestha | AB51: N/A
A52: 56 | B52: SAUK | C52: S | D52: Sauk County Public Health Department | E52: 3 | F52: Sheri Siemers | G52: Reghan Walsh | H52: Jessica Maloney | I52: James Kaplanek | J52: Courtney Newman | K52: Robbyn Kuester | L52: Robbyn Kuester | M52: Wilmot Valhmu | N52: N/A | O52: N/A | P52: N/A | Q52: Terrell Brock | R52: N/A | S52: Anthony Zech | T52: Leah Ludlum | U52: N/A | V52: N/A | W52: N/A | X52: Lisa Kelly | Y52: N/A | Z52: N/A | AA52: Dhana Shrestha | AB52: N/A
A53: 62 | B53: VERNON | C53: S | D53: Vernon County Health Department | E53: 2 | F53: Christina Beach-Baumgartner | G53: Reghan Walsh | H53: N/A | I53: James Kaplanek | J53: Courtney Newman | K53: Robbyn Kuester | L53: Robbyn Kuester | M53: Wilmot Valhmu | N53: N/A | O53: N/A | P53: N/A | Q53: Terrell Brock | R53: N/A | S53: Anthony Zech | T53: Leah Ludlum | U53: N/A | V53: N/A | W53: N/A | X53: Lisa Kelly | Y53: N/A | Z53: N/A | AA53: Dhana Shrestha | AB53: N/A
A54: 30 | B54: KENOSHA | C54: SE | D54: Kenosha County Division of Health | E54: 3 | F54: Deborah Heim | G54: Margie Coons | H54: Jessica Maloney | I54: N/A | J54: Courtney Newman | K54: Robbyn Kuester | L54: Robbyn Kuester | M54: Jacqueline Sills Ware | N54: N/A | O54: Amanda Dederich | P54: Nancy Michaud | Q54: Jodi Klement | R54: N/A | S54: Anthony Zech | T54: Meyer, Shawn R - DHS | V54: Cathy Sendelbach | W54: N/A | X54: Lisa Kelly | Y54: Lisa Kelly | Z54: N/A | AA54: Dhana Shrestha | AB54: N/A
A55: 256107 | B55: MILWAUKEE | C55: SE | D55: Milwaukee City Health Department | E55: 3 | F55: Curtis Marshall | G55: Margie Coons | H55: N/A | I55: N/A | J55: Courtney Newman | K55: Robbyn Kuester | L55: Robbyn Kuester | M55: Monica Thakur | N55: Stephanie Borchardt | O55: N/A | P55: N/A | Q55: Jodi Klement | R55: N/A | S55: Anthony Zech | T55: Leah Ludlum | U55: N/A | V55: Cathy Sendelbach | W55: N/A | X55: Lisa Kelly | Y55: Lisa Kelly | Z55: N/A | AA55: Dhana Shrestha | AB55: N/A
A56: 256545 | B56: MILWAUKEE | C56: SE | D56: West Allis Health Department | E56: 3 | F56: Deborah Heim | G56: Margie Coons | H56: N/A | I56: N/A | J56: Courtney Newman | K56: Robbyn Kuester | L56: Robbyn Kuester | M56: Monica Thakur | N56: N/A | O56: N/A | P56: N/A | Q56: Jodi Klement | R56: N/A | S56: Anthony Zech | T56: Kruse, Terry L - DHS | U56: N/A | V56: N/A | W56: N/A | X56: Lisa Kelly | Y56: Lisa Kelly | Z56: N/A | AA56: Dhana Shrestha | AB56: N/A
A57: 472761 | B57: MILWAUKEE | C57: SE | D57: Cudahy Health Department | E57: 3 | F57: Curtis Marshall | G57: Margie Coons | H57: N/A | I57: N/A | J57: Courtney Newman | K57: Robbyn Kuester | L57: Robbyn Kuester | M57: Monica Thakur | N57: N/A | O57: N/A | P57: N/A | Q57: N/A | R57: N/A | S57: N/A | T57: Meyer, Shawn R - DHS | U57: N/A | V57: N/A | W57: N/A | X57: Lisa Kelly | Y57: Lisa Kelly | Z57: N/A | AA57: Dhana Shrestha | AB57: N/A
A58: 472787 | B58: MILWAUKEE | C58: SE | D58: Franklin Health Department | E58: 2 | F58: Deborah Heim | G58: Margie Coons | H58: N/A | I58: N/A | J58: Courtney Newman | K58: Robbyn Kuester | L58: Robbyn Kuester | M58: Monica Thakur | N58: N/A | O58: N/A | P58: N/A | Q58: N/A | R58: N/A | S58: N/A | T58: Meyer, Shawn R - DHS | U58: N/A | V58: N/A | W58: N/A | X58: Lisa Kelly | Y58: Lisa Kelly | Z58: N/A | AA58: Dhana Shrestha | AB58: N/A
A59: 703090 | B59: MILWAUKEE | C59: SE | D59: Greendale Health Department | E59: 2 | F59: Curtis Marshall | G59: Margie Coons | H59: N/A | I59: N/A | J59: Courtney Newman | K59: Robbyn Kuester | L59: Robbyn Kuester | M59: Monica Thakur | N59: N/A | O59: N/A | P59: N/A | Q59: N/A | R59: N/A | S59: N/A | T59: Heinz, Melissa D - DHS | U59: N/A | V59: N/A | W59: N/A | X59: Lisa Kelly | Y59: Lisa Kelly | Z59: N/A | AA59: Dhana Shrestha | AB59: N/A
A60: 472803 | B60: MILWAUKEE | C60: SE | D60: Greenfield Health Department | E60: 3 | F60: Curtis Marshall | G60: Margie Coons | H60: N/A | I60: N/A | J60: Courtney Newman | K60: Robbyn Kuester | L60: Robbyn Kuester | M60: Monica Thakur | N60: N/A | O60: N/A | P60: N/A | Q60: N/A | R60: N/A | S60: N/A | T60: Kruse, Terry L - DHS | U60: N/A | V60: N/A | W60: N/A | X60: Lisa Kelly | Y60: Lisa Kelly | Z60: N/A | AA60: Dhana Shrestha | AB60: N/A
A61: 472811 | B61: MILWAUKEE | C61: SE | D61: Hales Corners Health Department | E61: 1 | F61: Curtis Marshall | G61: Margie Coons | H61: N/A | I61: N/A | J61: Courtney Newman | K61: Robbyn Kuester | L61: Robbyn Kuester | M61: Monica Thakur | N61: N/A | O61: N/A | P61: N/A | Q61: N/A | R61: N/A | S61: N/A | T61: Heinz, Melissa D - DHS | U61: N/A | V61: N/A | W61: N/A | X61: Lisa Kelly | Y61: Lisa Kelly | Z61: N/A | AA61: Dhana Shrestha | AB61: N/A
A62: 472753 | B62: MILWAUKEE | C62: SE | D62: North Shore Health Department | E62: 3 | F62: Deborah Heim | G62: Margie Coons | H62: N/A | I62: N/A | J62: Courtney Newman | K62: Robbyn Kuester | L62: Robbyn Kuester | M62: Monica Thakur | N62: N/A | O62: N/A | P62: N/A | Q62: N/A | R62: N/A | S62: N/A | T62: Heinz, Melissa D - DHS | U62: N/A | V62: N/A | W62: N/A | X62: Lisa Kelly | Y62: Lisa Kelly | Z62: N/A | AA62: Dhana Shrestha | AB62: N/A
A63: 472886 | B63: MILWAUKEE | C63: SE | D63: Oak Creek Health Department | E63: 3 | F63: Deborah Heim | G63: Margie Coons | H63: N/A | I63: N/A | J63: Courtney Newman | K63: Robbyn Kuester | L63: Robbyn Kuester | M63: Monica Thakur | N63: N/A | O63: N/A | P63: N/A | Q63: N/A | R63: N/A | S63: N/A | T63: Meyer, Shawn R - DHS | U63: N/A | V63: N/A | W63: N/A | X63: Lisa Kelly | Y63: Lisa Kelly | Z63: N/A | AA63: Dhana Shrestha | AB63: N/A
A64: 655522 | B64: MILWAUKEE | C64: SE | D64: South Milwaukee Health Department | E64: 3 | F64: Curtis Marshall | G64: Margie Coons | H64: N/A | I64: N/A | J64: Courtney Newman | K64: Robbyn Kuester | L64: Robbyn Kuester | M64: Monica Thakur | N64: N/A | O64: N/A | P64: N/A | Q64: N/A | R64: N/A | S64: N/A | T64: Rosecky, Mary - DHS | U64: N/A | V64: N/A | W64: N/A | X64: Lisa Kelly | Y64: Lisa Kelly | Z64: N/A | AA64: Dhana Shrestha | AB64: N/A
A65: 472928 | B65: MILWAUKEE | C65: SE | D65: St Francis Health Department | E65: 1 | F65: Curtis Marshall | G65: Margie Coons | H65: N/A | I65: N/A | J65: Courtney Newman | K65: Robbyn Kuester | L65: Robbyn Kuester | M65: Monica Thakur | N65: N/A | O65: N/A | P65: N/A | Q65: N/A | R65: N/A | S65: N/A | T65: Rosecky, Mary - DHS | U65: N/A | V65: N/A | W65: N/A | X65: Lisa Kelly | Y65: Lisa Kelly | Z65: N/A | AA65: Dhana Shrestha | AB65: N/A
A66: 472969 | B66: MILWAUKEE | C66: SE | D66: Wauwatosa Health Department | E66: 3 | F66: Deborah Heim | G66: Margie Coons | H66: N/A | I66: N/A | J66: Courtney Newman | K66: Robbyn Kuester | L66: Robbyn Kuester | M66: Monica Thakur | N66: N/A | O66: N/A | P66: N/A | Q66: N/A | R66: N/A | S66: N/A | T66: Kruse, Terry L - DHS | U66: N/A | V66: N/A | W66: N/A | X66: Lisa Kelly | Y66: Lisa Kelly | Z66: N/A | AA66: Dhana Shrestha | AB66: N/A
A67: 45 | B67: OZAUKEE | C67: SE | D67: Ozaukee County Public Health Department | E67: 2 | F67: Curtis Marshall | G67: Margie Coons | H67: N/A | I67: N/A | J67: Courtney Newman | K67: Robbyn Kuester | L67: Robbyn Kuester | M67: Jacqueline Sills Ware | N67: N/A | O67: N/A | P67: N/A | Q67: Marilyn Bolton | R67: N/A | S67: N/A | T67: Rosecky, Mary - DHS | U67: N/A | V67: N/A | W67: N/A | X67: Lisa Kelly | Y67: Lisa Kelly | Z67: N/A | AA67: Dhana Shrestha | AB67: N/A
A68: 3960058125 | B68: RACINE | C68: SE | D68: Central Racine County Health Department | E68: 2 | F68: Deborah Heim | G68: Margie Coons | H68: N/A | I68: N/A | J68: Courtney Newman | K68: Robbyn Kuester | L68: Robbyn Kuester | M68: Jacqueline Sills Ware | N68: N/A | O68: N/A | P68: N/A | Q68: N/A | R68: N/A | S68: N/A | T68: Meyer, Shawn R - DHS | U68: N/A | V68: N/A | W68: N/A | X68: Lisa Kelly | Y68: Lisa Kelly | Z68: N/A | AA68: Dhana Shrestha | AB68: N/A
A69: 341113 | B69: RACINE | C69: SE | D69: Racine City Health Department | E69: 3 | F69: Deborah Heim | G69: Margie Coons | H69: N/A | I69: N/A | J69: Courtney Newman | K69: Robbyn Kuester | L69: Robbyn Kuester | M69: Jacqueline Sills Ware | N69: N/A | O69: N/A | P69: N/A | Q69: N/A | R69: N/A | S69: N/A | T69: Meyer, Shawn R - DHS | U69: N/A | V69: N/A | W69: N/A | X69: Lisa Kelly | Y69: Lisa Kelly | Z69: N/A | AA69: Dhana Shrestha | AB69: N/A
A70: 64 | B70: WALWORTH | C70: SE | D70: Walworth County Health Department | E70: 2 | F70: Curtis Marshall | G70: Margie Coons | H70: N/A | I70: N/A | J70: Courtney Newman | K70: Robbyn Kuester | L70: Robbyn Kuester | M70: Jacqueline Sills Ware | N70: N/A | O70: N/A | P70: N/A | Q70: Marilyn Bolton | R70: N/A | S70: Anthony Zech | T70: Heinz, Melissa D - DHS | U70: N/A | V70: N/A | W70: N/A | X70: Lisa Kelly | Y70: N/A | Z70: N/A | AA70: Dhana Shrestha | AB70: N/A
A71: 66 | B71: WASHINGTON | C71: SE | D71: Washington County Health Department | E71: 2 | F71: Curtis Marshall | G71: Margie Coons | H71: Jessica Maloney | I71: N/A | J71: Courtney Newman | K71: Robbyn Kuester | L71: Robbyn Kuester | M71: Jacqueline Sills Ware | N71: N/A | O71: N/A | P71: N/A | Q71: Marilyn Bolton | R71: N/A | S71: N/A | T71: Rosecky, Mary - DHS | U71: N/A | V71: N/A | W71: N/A | X71: Lisa Kelly | Y71: Lisa Kelly | Z71: N/A | AA71: Dhana Shrestha | AB71: N/A
A72: 67 | B72: WAUKESHA | C72: SE | D72: Waukesha County Public Health Department | E72: 2 | F72: Deborah Heim | G72: Margie Coons | H72: Jessica Maloney | I72: N/A | J72: Courtney Newman | K72: Robbyn Kuester | L72: Robbyn Kuester | M72: Jacqueline Sills Ware | N72: N/A | O72: N/A | P72: N/A | Q72: Marilyn Bolton | R72: N/A | S72: N/A | T72: Meyer, Shawn R - DHS | U72: N/A | V72: N/A | W72: N/A | X72: Lisa Kelly | Y72: Lisa Kelly | Z72: N/A | AA72: Dhana Shrestha | AB72: N/A
A73: 3 | B73: BARRON | C73: W | D73: Barron County Health and Human Services Department | E73: 2 | F73: Christa Cupp | G73: Reghan Walsh | H73: N/A | I73: N/A | J73: Courtney Newman | K73: Robbyn Kuester | L73: Robbyn Kuester | M73: Jim Zanto | N73: N/A | O73: N/A | P73: Nancy Michaud | Q73: Melissa Dunlap | R73: N/A | S73: Anthony Zech | T73: Karen Morris | U73: N/A | V73: Karen Morris | W73: N/A | X73: Lisa Kelly | Y73: N/A | Z73: N/A | AA73: Dhana Shrestha | AB73: N/A
A74: 6 | B74: BUFFALO | C74: W | D74: Buffalo County Health & Human Services Department | E74: 2 | F74: Christa Cupp | G74: Reghan Walsh | H74: N/A | I74: N/A | J74: Courtney Newman | K74: Robbyn Kuester | L74: Robbyn Kuester | M74: Jim Zanto | N74: N/A | O74: N/A | P74: N/A | Q74: Melissa Dunlap | R74: N/A | S74: Anthony Zech | T74: Karen Morris | U74: N/A | V74: N/A | W74: N/A | X74: Lisa Kelly | Y74: N/A | Z74: N/A | AA74: Dhana Shrestha | AB74: N/A
A75: 7 | B75: BURNETT | C75: W | D75: Burnett County Department of Health & Human Services | E75: 2 | F75: Christa Cupp | G75: Reghan Walsh | H75: N/A | I75: N/A | J75: Courtney Newman | K75: Robbyn Kuester | L75: Robbyn Kuester | M75: Jim Zanto | N75: N/A | O75: N/A | P75: N/A | Q75: Melissa Dunlap | R75: N/A | S75: N/A | T75: Karen Morris | U75: N/A | V75: N/A | W75: N/A | X75: Lisa Kelly | Y75: N/A | Z75: N/A | AA75: Dhana Shrestha | AB75: N/A
A76: 9 | B76: CHIPPEWA | C76: W | D76: Chippewa County Department of Public Health & Home Care | E76: 3 | F76: Christa Cupp | G76: Reghan Walsh | H76: N/A | I76: N/A | J76: Courtney Newman | K76: Robbyn Kuester | L76: Robbyn Kuester | M76: Jim Zanto | N76: N/A | O76: N/A | P76: Nancy Michaud | Q76: Melissa Dunlap | R76: N/A | S76: Anthony Zech | T76: Karen Morris | U76: Leah Ludlum | V76: Karen Morris | W76: N/A | X76: Lisa Kelly | Y76: N/A | Z76: N/A | AA76: Dhana Shrestha | AB76: N/A
A77: 10 | B77: CLARK | C77: W | D77: Clark County Health Department | E77: 2 | F77: Christa Cupp | G77: Reghan Walsh | H77: N/A | I77: N/A | J77: Courtney Newman | K77: Robbyn Kuester | L77: Robbyn Kuester | M77: Jim Zanto | N77: N/A | O77: N/A | P77: Nancy Michaud | Q77: Terrell Brock | R77: N/A | S77: N/A | T77: Karen Morris | U77: N/A | V77: Cathy Sendelbach | W77: N/A | X77: Lisa Kelly | Y77: N/A | Z77: N/A | AA77: Dhana Shrestha | AB77: N/A
A78: 16 | B78: DOUGLAS | C78: W | D78: Douglas County Department of Health & Human Services | E78: 2 | F78: Christa Cupp | G78: Reghan Walsh | H78: N/A | I78: N/A | J78: Courtney Newman | K78: Robbyn Kuester | L78: Robbyn Kuester | M78: Jim Zanto | N78: N/A | O78: N/A | P78: N/A | Q78: N/A | R78: N/A | S78: N/A | T78: Karen Morris | U78: N/A | V78: N/A | W78: N/A | X78: Lisa Kelly | Y78: N/A | Z78: N/A | AA78: Dhana Shrestha | AB78: N/A
A79: 17 | B79: DUNN | C79: W | D79: Dunn County Health Department | E79: 3 | F79: Christa Cupp | G79: Reghan Walsh | H79: Jessica Maloney | I79: N/A | J79: Courtney Newman | K79: Robbyn Kuester | L79: Robbyn Kuester | M79: Jim Zanto | N79: N/A | O79: N/A | P79: N/A | Q79: Melissa Dunlap | R79: N/A | S79: N/A | T79: Meyer, Shawn R - DHS | U79: N/A | V79: Karen Morris | W79: N/A | X79: Lisa Kelly | Y79: N/A | Z79: N/A | AA79: Dhana Shrestha | AB79: N/A
A80: 256321 | B80: EAU CLAIRE | C80: W | D80: Eau Claire City/County Health Department | E80: 3 | F80: Christa Cupp | G80: Reghan Walsh | H80: Jessica Maloney | I80: N/A | J80: Courtney Newman | K80: Robbyn Kuester | L80: Robbyn Kuester | M80: Jim Zanto | N80: N/A | O80: N/A | P80: Nancy Michaud | Q80: Melissa Dunlap | R80: N/A | S80: Anthony Zech | T80: Meyer, Shawn R - DHS | U80: N/A | V80: Karen Morris | W80: N/A | X80: Lisa Kelly | Y80: N/A | Z80: N/A | AA80: Dhana Shrestha | AB80: N/A
A81: 27 | B81: JACKSON | C81: W | D81: Jackson County Health & Human Services Department | E81: 2 | F81: Christa Cupp | G81: Reghan Walsh | H81: N/A | I81: N/A | J81: Courtney Newman | K81: Robbyn Kuester | L81: Robbyn Kuester | M81: Jim Zanto | N81: N/A | O81: N/A | P81: N/A | Q81: Terrell Brock | R81: N/A | S81: Anthony Zech | T81: Karen Morris | U81: N/A | V81: N/A | W81: N/A | X81: Lisa Kelly | Y81: N/A | Z81: N/A | AA81: Dhana Shrestha | AB81: N/A
A82: 32 | B82: LA CROSSE | C82: W | D82: La Crosse County Health Department | E82: 3 | F82: Christa Cupp | G82: Reghan Walsh | H82: Jessica Maloney | I82: N/A | J82: Courtney Newman | K82: Robbyn Kuester | L82: Robbyn Kuester | M82: Jim Zanto | N82: N/A | O82: Heidi Massey | P82: Nancy Michaud | Q82: Terrell Brock | R82: N/A | S82: Anthony Zech | T82: Karen Morris | U82: N/A | V82: N/A | W82: N/A | X82: Lisa Kelly | Y82: N/A | Z82: N/A | AA82: Dhana Shrestha | AB82: N/A
A83: 41 | B83: MONROE | C83: W | D83: Monroe County Health Department | E83: 2 | F83: Christa Cupp | G83: Reghan Walsh | H83: N/A | I83: N/A | J83: Courtney Newman | K83: Robbyn Kuester | L83: Robbyn Kuester | M83: Jim Zanto | N83: N/A | O83: N/A | P83: N/A | Q83: Terrell Brock | R83: N/A | S83: Anthony Zech | T83: Meyer, Shawn R - DHS | U83: N/A | V83: N/A | W83: N/A | X83: Lisa Kelly | Y83: N/A | Z83: N/A | AA83: Dhana Shrestha | AB83: N/A
A84: 46 | B84: PEPIN | C84: W | D84: Pepin County Health Department | E84: 2 | F84: Christa Cupp | G84: Reghan Walsh | H84: N/A | I84: N/A | J84: Courtney Newman | K84: Robbyn Kuester | L84: Robbyn Kuester | M84: Jim Zanto | N84: N/A | O84: N/A | P84: N/A | Q84: N/A | R84: N/A | S84: N/A | T84: Karen Morris | U84: N/A | V84: Karen Morris | W84: N/A | X84: Lisa Kelly | Y84: N/A | Z84: N/A | AA84: Dhana Shrestha | AB84: N/A
A85: 47 | B85: PIERCE | C85: W | D85: Pierce County Health Department | E85: 3 | F85: Christa Cupp | G85: Reghan Walsh | H85: N/A | I85: N/A | J85: Courtney Newman | K85: Robbyn Kuester | L85: Robbyn Kuester | M85: Jim Zanto | N85: N/A | O85: N/A | P85: N/A | Q85: Melissa Dunlap | R85: N/A | S85: Anthony Zech | T85: Karen Morris | U85: N/A | V85: Karen Morris | W85: N/A | X85: Lisa Kelly | Y85: Lisa Kelly | Z85: N/A | AA85: Dhana Shrestha | AB85: N/A
A86: 48 | B86: POLK | C86: W | D86: Polk County Health Department | E86: 3 | F86: Christa Cupp | G86: Reghan Walsh | H86: Jessica Maloney | I86: N/A | J86: Courtney Newman | K86: Robbyn Kuester | L86: Robbyn Kuester | M86: Jim Zanto | N86: N/A | O86: Heidi Massey | P86: Nancy Michaud | Q86: Melissa Dunlap | R86: N/A | S86: Anthony Zech | T86: Karen Morris | U86: N/A | V86: Karen Morris | W86: N/A | X86: Lisa Kelly | Y86: N/A | Z86: N/A | AA86: Dhana Shrestha | AB86: N/A
A87: 54 | B87: RUSK | C87: W | D87: Rusk County Department of Health & Human Services | E87: 2 | F87: Christa Cupp | G87: Reghan Walsh | H87: N/A | I87: N/A | J87: Courtney Newman | K87: Robbyn Kuester | L87: Robbyn Kuester | M87: Jim Zanto | N87: N/A | O87: N/A | P87: N/A | Q87: Melissa Dunlap | R87: N/A | S87: N/A | T87: Karen Morris | U87: N/A | V87: Karen Morris | W87: N/A | X87: Lisa Kelly | Y87: N/A | Z87: N/A | AA87: Dhana Shrestha | AB87: N/A
A88: 55 | B88: ST CROIX | C88: W | D88: St Croix County Department of Health & Human Services | E88: 3 | F88: Christa Cupp | G88: Reghan Walsh | H88: N/A | I88: N/A | J88: Courtney Newman | K88: Robbyn Kuester | L88: Robbyn Kuester | M88: Jim Zanto | N88: N/A | O88: N/A | P88: N/A | Q88: Melissa Dunlap | R88: N/A | S88: Anthony Zech | T88: Karen Morris | U88: N/A | V88: Karen Morris | W88: N/A | X88: Lisa Kelly | Y88: Lisa Kelly | Z88: N/A | AA88: Dhana Shrestha | AB88: N/A
A89: 61 | B89: TREMPEALEAU | C89: W | D89: Trempealeau County Health Department | E89: 2 | F89: Christa Cupp | G89: Reghan Walsh | H89: N/A | I89: N/A | J89: Courtney Newman | K89: Robbyn Kuester | L89: Robbyn Kuester | M89: Jim Zanto | N89: N/A | O89: N/A | P89: N/A | Q89: Melissa Dunlap | R89: N/A | S89: N/A | T89: Karen Morris | U89: N/A | V89: N/A | W89: N/A | X89: Lisa Kelly | Y89: N/A | Z89: N/A | AA89: Dhana Shrestha | AB89: N/A
A90: 65 | B90: WASHBURN | C90: W | D90: Washburn County Health and Human Services Department | E90: 2 | F90: Christa Cupp | G90: Reghan Walsh | H90: N/A | I90: N/A | J90: Courtney Newman | K90: Robbyn Kuester | L90: Robbyn Kuester | M90: Jim Zanto | N90: N/A | O90: N/A | P90: N/A | Q90: Melissa Dunlap | R90: N/A | S90: N/A | T90: Karen Morris | U90: N/A | V90: Karen Morris | W90: N/A | X90: Lisa Kelly | Y90: N/A | Z90: N/A | AA90: Dhana Shrestha | AB90: N/A
A95: 10100100 | B95: TRIBE | C95: N | D95: Bad River Tribe | F95: Charlotte Ahrens | G95: N/A | H95: N/A | I95: N/A | J95: N/A | K95: N/A | L95: N/A | M95: Christie Oestreich | N95: N/A | O95: N/A | P95: N/A | Q95: N/A | R95: N/A | S95: N/A | T95: Leah Ludlum | U95: N/A | V95: N/A | W95: Mary Pesik | X95: N/A | Y95: N/A | Z95: Karen Johnson | AA95: N/A | AB95: Gail Nahwahquaw
A96: 10100700 | B96: TRIBE | C96: N | D96: Forest County Potawatomi Tribe | F96: Charlotte Ahrens | G96: N/A | H96: N/A | I96: N/A | J96: Courtney Newman | K96: N/A | L96: N/A | M96: Christie Oestreich | N96: N/A | O96: N/A | P96: N/A | Q96: Barbara Pevytoe | R96: N/A | S96: N/A | T96: Leah Ludlum | U96: N/A | V96: N/A | W96: Mary Pesik | X96: N/A | Y96: N/A | Z96: Karen Johnson | AA96: N/A | AB96: Gail Nahwahquaw
A97: 10100200 | B97: TRIBE | C97: W | D97: Ho-Chunk Tribe | F97: Christa Cupp | G97: N/A | H97: N/A | I97: N/A | J97: Courtney Newman | K97: N/A | L97: N/A | M97: Jim Zanto | N97: N/A | O97: N/A | P97: N/A | Q97: N/A | R97: N/A | S97: Anthony Zech - Not on WIC contract, all separate | T97: Leah Ludlum | U97: N/A | V97: N/A | W97: Mary Pesik | X97: N/A | Y97: N/A | Z97: Karen Johnson | AA97: N/A | AB97: Gail Nahwahquaw
A98: 10100300 | B98: TRIBE | C98: N | D98: Lac Courtes Oreilles Tribe | F98: Charlotte Ahrens | G98: N/A | H98: N/A | I98: N/A | J98: Courtney Newman | K98: N/A | L98: N/A | M98: Christie Oestreich | N98: N/A | O98: N/A | P98: N/A | Q98: N/A | S98: N/A | T98: Leah Ludlum | U98: N/A | V98: N/A | W98: Mary Pesik | X98: N/A | Y98: N/A | Z98: Karen Johnson | AA98: N/A | AB98: Gail Nahwahquaw
A99: 10100400 | B99: TRIBE | C99: N | D99: Lac Du Flambeau Tribe | F99: Charlotte Ahrens | G99: N/A | H99: N/A | I99: N/A | J99: Courtney Newman | K99: N/A | L99: N/A | M99: Christie Oestreich | N99: N/A | O99: N/A | P99: N/A | Q99: N/A | R99: N/A | S99: N/A | T99: Leah Ludlum | U99: N/A | V99: N/A | W99: Mary Pesik | X99: N/A | Y99: N/A | Z99: Karen Johnson | AA99: N/A | AB99: Gail Nahwahquaw
A100: 10100500 | B100: TRIBE | C100: NE | D100: Menominee Tribe | F100: Angela Nimsgern | G100: N/A | H100: N/A | I100: N/A | J100: Courtney Newman | K100: N/A | L100: Robbyn Kuester | M100: Susan Nelson | N100: N/A | O100: N/A | P100: N/A | Q100: Marilyn Bolton | R100: Kitty Kocol | S100: N/A | T100: Leah Ludlum | U100: N/A | V100: Cathy Sendelbach | W100: Mary Pesik | X100: N/A | Y100: N/A | Z100: Karen Johnson | AA100: N/A | AB100: Gail Nahwahquaw
A101: 10100600 | B101: TRIBE | C101: NE | D101: Oneida Tribe | F101: Angela Nimsgern | G101: N/A | H101: N/A | I101: N/A | J101: Courtney Newman | K101: N/A | L101: N/A | M101: Susan Nelson | N101: N/A | O101: N/A | P101: N/A | Q101: Marilyn Bolton | R101: N/A | S101: N/A | T101: Leah Ludlum | U101: N/A | V101: N/A | W101: Mary Pesik | X101: N/A | Y101: N/A | Z101: Karen Johnson | AA101: N/A | AB101: Gail Nahwahquaw
A102: 10100800 | B102: TRIBE | C102: N | D102: Red Cliff Tribe | F102: Charlotte Ahrens | G102: N/A | H102: N/A | I102: N/A | J102: Courtney Newman | K102: N/A | L102: N/A | M102: Christie Oestreich | N102: N/A | O102: N/A | P102: N/A | Q102: N/A | R102: N/A | S102: N/A | T102: Leah Ludlum | U102: N/A | V102: N/A | W102: Mary Pesik | X102: N/A | Y102: N/A | Z102: Karen Johnson | AA102: N/A | AB102: Gail Nahwahquaw
A103: 10100900 | B103: TRIBE | C103: N | D103: Sokaogon Tribe | F103: Charlotte Ahrens | G103: N/A | H103: N/A | I103: N/A | J103: Courtney Newman | K103: N/A | L103: N/A | M103: Christie Oestreich | N103: N/A | O103: N/A | P103: N/A | Q103: N/A | R103: N/A | S103: N/A | T103: Leah Ludlum | U103: N/A | V103: N/A | W103: Mary Pesik | X103: N/A | Y103: N/A | Z103: Karen Johnson | AA103: N/A | AB103: Gail Nahwahquaw
A104: 10101000 | B104: TRIBE | C104: W | D104: St. Croix Tribe | F104: Christa Cupp | G104: N/A | H104: N/A | I104: N/A | J104: Courtney Newman | K104: N/A | L104: N/A | M104: Jim Zanto | N104: N/A | O104: N/A | P104: N/A | Q104: N/A | R104: N/A | S104: N/A | T104: Leah Ludlum | U104: N/A | V104: Karen Morris | W104: Mary Pesik | X104: N/A | Y104: N/A | Z104: Karen Johnson | AA104: N/A | AB104: Gail Nahwahquaw
A105: 10101100 | B105: TRIBE | C105: NE | D105: Stockbridge Munsee Tribe | F105: Angela Nimsgern | G105: N/A | H105: N/A | I105: N/A | J105: Courtney Newman | K105: N/A | L105: N/A | M105: Susan Nelson | N105: N/A | O105: N/A | P105: N/A | Q105: N/A | R105: N/A | S105: N/A | T105: Leah Ludlum | U105: N/A | V105: N/A | W105: Mary Pesik | X105: N/A | Y105: N/A | Z105: Karen Johnson | AA105: N/A | AB105: Gail Nahwahquaw
A106: 10101200 | B106: TRIBE | D106: GLITC | F106: N/A | G106: N/A | H106: N/A | I106: N/A | J106: N/A | K106: N/A | L106: N/A | M106: N/A | N106: N/A | O106: Heidi Massey | P106: N/A | Q106: Marilyn Bolton | R106: N/A | S106: Anthony Zech - Part on WIC, part SNAP-ed separate contract | T106: Leah Ludlum | U106: N/A | V106: N/A | W106: N/A | X106: N/A | Y106: N/A | Z106: Karen Johnson | AA106: N/A | AB106: Gail Nahwahquaw

Sheet Adams
A1: Back to Overview
A2: ='LHD Overview'!B1 -> 2020 DPH Consolidated Contract | F2: Total Amount | G2: =SUM(F:F) -> 310699
A3: Adams County Public Health Department | F3: Agency Number | G3: 1
A4: Profile Name | B4: Profile | C4: Agency Type | D4: Start Date | E4: End Date | F4: Current Amount | G4: Final Fiscal Report Due Date
A5: =IFERROR(VLOOKUP(B5,Table1[],2,FALSE),"") -> CARES COVID19 PLAN | B5: ='Profile Overview'!B37 -> 155804 | C5: =IFERROR(IF(B5>0,(VLOOKUP(B5,Table1[],5,FALSE)+30),""),"") -> 30 | D5: =IF(B5>0,VLOOKUP(B5,Table1[],3,FALSE),"") -> 2020-03-01 | E5: =IF(B5>0,VLOOKUP(B5,Table1[],4,FALSE),"") -> 2020-12-31 | F5: =IFERROR(IF(INDEX('LHD Overview'!$A$6:$CK$93,(MATCH($A$3,'LHD Overview'!$A$6:$A$93,0)),MATCH(B5,'LHD Overview'!$A$2:$CK$2,0))>0,INDEX('LHD Overview'!$A$6:$CK$93,(MATCH($A$3,'LHD Overview'!$A$6:$A$93,0)),MATCH(B5,'LHD Overview'!$A$2:$CK$2,0)),""),"") -> 556 | G5: =IF(B5>0,VLOOKUP(B5,Table1[],6,FALSE),"") -> 2021-02-14
A6: =IFERROR(VLOOKUP(B6,Table1[],2,FALSE),"") -> CHILDHOOD LEAD CONSOLIDATED | B6: ='Profile Overview'!B41 -> 157720 | C6: =IFERROR(IF(B6>0,(VLOOKUP(B6,Table1[],5,FALSE)+30),""),"") -> 30 | D6: =IF(B6>0,VLOOKUP(B6,Table1[],3,FALSE),"") -> 2020-01-01 | E6: =IF(B6>0,VLOOKUP(B6,Table1[],4,FALSE),"") -> 2020-12-31 | F6: =IFERROR(IF(INDEX('LHD Overview'!$A$6:$CK$93,(MATCH($A$3,'LHD Overview'!$A$6:$A$93,0)),MATCH(B6,'LHD Overview'!$A$2:$CK$2,0))>0,INDEX('LHD Overview'!$A$6:$CK$93,(MATCH($A$3,'LHD Overview'!$A$6:$A$93,0)),MATCH(B6,'LHD Overview'!$A$2:$CK$2,0)),""),"") -> 1963 | G6: =IF(B6>0,VLOOKUP(B6,Table1[],6,FALSE),"") -> 2021-02-14
A7: =IFERROR(VLOOKUP(B7,Table1[],2,FALSE),"") -> COMM DISEASE CTRL PREV LPHD | B7: ='Profile Overview'!B33 -> 155800 | C7: =IFERROR(IF(B7>0,(VLOOKUP(B7,Table1[],5,FALSE)+30),""),"") -> 130 | D7: =IF(B7>0,VLOOKUP(B7,Table1[],3,FALSE),"") -> 2020-07-01 | E7: =IF(B7>0,VLOOKUP(B7,Table1[],4,FALSE),"") -> 2021-06-30 | F7: =IFERROR(IF(INDEX('LHD Overview'!$A$6:$CK$93,(MATCH($A$3,'LHD Overview'!$A$6:$A$93,0)),MATCH(B7,'LHD Overview'!$A$2:$CK$2,0))>0,INDEX('LHD Overview'!$A$6:$CK$93,(MATCH($A$3,'LHD Overview'!$A$6:$A$93,0)),MATCH(B7,'LHD Overview'!$A$2:$CK$2,0)),""),"") -> 3400 | G7: =IF(B7>0,VLOOKUP(B7,Table1[],6,FALSE),"") -> 2021-08-14
A8: =IFERROR(VLOOKUP(B8,Table1[],2,FALSE),"") -> CONS CONTRACTS PHHS | B8: ='Profile Overview'!B42 -> 159220 | C8: =IFERROR(IF(B8>0,(VLOOKUP(B8,Table1[],5,FALSE)+30),""),"") -> 130 | D8: =IF(B8>0,VLOOKUP(B8,Table1[],3,FALSE),"") -> 2019-10-01 | E8: =IF(B8>0,VLOOKUP(B8,Table1[],4,FALSE),"") -> 2021-09-30 | F8: =IFERROR(IF(INDEX('LHD Overview'!$A$6:$CK$93,(MATCH($A$3,'LHD Overview'!$A$6:$A$93,0)),MATCH(B8,'LHD Overview'!$A$2:$CK$2,0))>0,INDEX('LHD Overview'!$A$6:$CK$93,(MATCH($A$3,'LHD Overview'!$A$6:$A$93,0)),MATCH(B8,'LHD Overview'!$A$2:$CK$2,0)),""),"") -> 5687 | G8: =IF(B8>0,VLOOKUP(B8,Table1[],6,FALSE),"") -> 2021-11-14
A9: =IFERROR(VLOOKUP(B9,Table1[],2,FALSE),"") -> CONS CONTRACTS IMM | B9: ='Profile Overview'!B26 -> 155020 | C9: =IFERROR(IF(B9>0,(VLOOKUP(B9,Table1[],5,FALSE)+30),""),"") -> 30 | D9: =IF(B9>0,VLOOKUP(B9,Table1[],3,FALSE),"") -> 2020-01-01 | E9: =IF(B9>0,VLOOKUP(B9,Table1[],4,FALSE),"") -> 2020-12-31 | F9: =IFERROR(IF(INDEX('LHD Overview'!$A$6:$CK$93,(MATCH($A$3,'LHD Overview'!$A$6:$A$93,0)),MATCH(B9,'LHD Overview'!$A$2:$CK$2,0))>0,INDEX('LHD Overview'!$A$6:$CK$93,(MATCH($A$3,'LHD Overview'!$A$6:$A$93,0)),MATCH(B9,'LHD Overview'!$A$2:$CK$2,0)),""),"") -> 6569 | G9: =IF(B9>0,VLOOKUP(B9,Table1[],6,FALSE),"") -> 2021-02-14
A10: =IFERROR(VLOOKUP(B10,Table1[],2,FALSE),"") -> BIOTERRORISM FOCUS A | B10: ='Profile Overview'!B28 -> 155050 | C10: =IFERROR(IF(B10>0,(VLOOKUP(B10,Table1[],5,FALSE)+30),""),"") -> 130 | D10: =IF(B10>0,VLOOKUP(B10,Table1[],3,FALSE),"") -> 2020-07-01 | E10: =IF(B10>0,VLOOKUP(B10,Table1[],4,FALSE),"") -> 2021-06-30 | F10: =IFERROR(IF(INDEX('LHD Overview'!$A$6:$CK$93,(MATCH($A$3,'LHD Overview'!$A$6:$A$93,0)),MATCH(B10,'LHD Overview'!$A$2:$CK$2,0))>0,INDEX('LHD Overview'!$A$6:$CK$93,(MATCH($A$3,'LHD Overview'!$A$6:$A$93,0)),MATCH(B10,'LHD Overview'!$A$2:$CK$2,0)),""),"") -> 8054 | G10: =IF(B10>0,VLOOKUP(B10,Table1[],6,FALSE),"") -> 2021-08-14
A11: =IFERROR(VLOOKUP(B11,Table1[],2,FALSE),"") -> CONS CONTRACTS MCH | B11: ='Profile Overview'!B43 -> 159320 | C11: =IFERROR(IF(B11>0,(VLOOKUP(B11,Table1[],5,FALSE)+30),""),"") -> 30 | D11: =IF(B11>0,VLOOKUP(B11,Table1[],3,FALSE),"") -> 2020-01-01 | E11: =IF(B11>0,VLOOKUP(B11,Table1[],4,FALSE),"") -> 2020-12-31 | F11: =IFERROR(IF(INDEX('LHD Overview'!$A$6:$CK$93,(MATCH($A$3,'LHD Overview'!$A$6:$A$93,0)),MATCH(B11,'LHD Overview'!$A$2:$CK$2,0))>0,INDEX('LHD Overview'!$A$6:$CK$93,(MATCH($A$3,'LHD Overview'!$A$6:$A$93,0)),MATCH(B11,'LHD Overview'!$A$2:$CK$2,0)),""),"") -> 9052 | G11: =IF(B11>0,VLOOKUP(B11,Table1[],6,FALSE),"") -> 2021-02-14
A12: =IFERROR(VLOOKUP(B12,Table1[],2,FALSE),"") -> CARES COVID19 TESTING | B12: ='Profile Overview'!B36 -> 155803 | C12: =IFERROR(IF(B12>0,(VLOOKUP(B12,Table1[],5,FALSE)+30),""),"") -> 30 | D12: =IF(B12>0,VLOOKUP(B12,Table1[],3,FALSE),"") -> 2020-03-01 | E12: =IF(B12>0,VLOOKUP(B12,Table1[],4,FALSE),"") -> 2020-12-31 | F12: =IFERROR(IF(INDEX('LHD Overview'!$A$6:$CK$93,(MATCH($A$3,'LHD Overview'!$A$6:$A$93,0)),MATCH(B12,'LHD Overview'!$A$2:$CK$2,0))>0,INDEX('LHD Overview'!$A$6:$CK$93,(MATCH($A$3,'LHD Overview'!$A$6:$A$93,0)),MATCH(B12,'LHD Overview'!$A$2:$CK$2,0)),""),"") -> 12412 | G12: =IF(B12>0,VLOOKUP(B12,Table1[],6,FALSE),"") -> 2021-02-14
A13: =IFERROR(VLOOKUP(B13,Table1[],2,FALSE),"") -> ELC CARES COVID19 | B13: ='Profile Overview'!B35 -> 155802 | C13: =IFERROR(IF(B13>0,(VLOOKUP(B13,Table1[],5,FALSE)+30),""),"") -> 130 | D13: =IF(B13>0,VLOOKUP(B13,Table1[],3,FALSE),"") -> 2020-02-01 | E13: =IF(B13>0,VLOOKUP(B13,Table1[],4,FALSE),"") -> 2021-09-30 | F13: =IFERROR(IF(INDEX('LHD Overview'!$A$6:$CK$93,(MATCH($A$3,'LHD Overview'!$A$6:$A$93,0)),MATCH(B13,'LHD Overview'!$A$2:$CK$2,0))>0,INDEX('LHD Overview'!$A$6:$CK$93,(MATCH($A$3,'LHD Overview'!$A$6:$A$93,0)),MATCH(B13,'LHD Overview'!$A$2:$CK$2,0)),""),"") -> 13600 | G13: =IF(B13>0,VLOOKUP(B13,Table1[],6,FALSE),"") -> 2021-11-14
A14: =IFERROR(VLOOKUP(B14,Table1[],2,FALSE),"") -> BIOT Focus A Planning | B14: ='Profile Overview'!B25 -> 155015 | C14: =IFERROR(IF(B14>0,(VLOOKUP(B14,Table1[],5,FALSE)+30),""),"") -> 130 | D14: =IF(B14>0,VLOOKUP(B14,Table1[],3,FALSE),"") -> 2020-07-01 | E14: =IF(B14>0,VLOOKUP(B14,Table1[],4,FALSE),"") -> 2021-06-30 | F14: =IFERROR(IF(INDEX('LHD Overview'!$A$6:$CK$93,(MATCH($A$3,'LHD Overview'!$A$6:$A$93,0)),MATCH(B14,'LHD Overview'!$A$2:$CK$2,0))>0,INDEX('LHD Overview'!$A$6:$CK$93,(MATCH($A$3,'LHD Overview'!$A$6:$A$93,0)),MATCH(B14,'LHD Overview'!$A$2:$CK$2,0)),""),"") -> 36936 | G14: =IF(B14>0,VLOOKUP(B14,Table1[],6,FALSE),"") -> 2021-08-14
A15: =IFERROR(VLOOKUP(B15,Table1[],2,FALSE),"") -> DPH PHEP COVID19 | B15: ='Profile Overview'!B34 -> 155801 | C15: =IFERROR(IF(B15>0,(VLOOKUP(B15,Table1[],5,FALSE)+30),""),"") -> 130 | D15: =IF(B15>0,VLOOKUP(B15,Table1[],3,FALSE),"") -> 2020-04-01 | E15: =IF(B15>0,VLOOKUP(B15,Table1[],4,FALSE),"") -> 2021-03-31 | F15: =IFERROR(IF(INDEX('LHD Overview'!$A$6:$CK$93,(MATCH($A$3,'LHD Overview'!$A$6:$A$93,0)),MATCH(B15,'LHD Overview'!$A$2:$CK$2,0))>0,INDEX('LHD Overview'!$A$6:$CK$93,(MATCH($A$3,'LHD Overview'!$A$6:$A$93,0)),MATCH(B15,'LHD Overview'!$A$2:$CK$2,0)),""),"") -> 36936 | G15: =IF(B15>0,VLOOKUP(B15,Table1[],6,FALSE),"") -> 2021-05-15
A16: =IFERROR(VLOOKUP(B16,Table1[],2,FALSE),"") -> COVID19 Contact Tracing | B16: ='Profile Overview'!B38 -> 155805 | C16: =IFERROR(IF(B16>0,(VLOOKUP(B16,Table1[],5,FALSE)+30),""),"") -> 30 | D16: =IF(B16>0,VLOOKUP(B16,Table1[],3,FALSE),"") -> 2020-03-01 | E16: =IF(B16>0,VLOOKUP(B16,Table1[],4,FALSE),"") -> 2020-12-31 | F16: =IFERROR(IF(INDEX('LHD Overview'!$A$6:$CK$93,(MATCH($A$3,'LHD Overview'!$A$6:$A$93,0)),MATCH(B16,'LHD Overview'!$A$2:$CK$2,0))>0,INDEX('LHD Overview'!$A$6:$CK$93,(MATCH($A$3,'LHD Overview'!$A$6:$A$93,0)),MATCH(B16,'LHD Overview'!$A$2:$CK$2,0)),""),"") -> 175534 | G16: =IF(B16>0,VLOOKUP(B16,Table1[],6,FALSE),"") -> 2021-02-14
A17: =IFERROR(VLOOKUP(B17,Table1[],2,FALSE),"") -> INFERTILITY PREVENTION | B17: ='Profile Overview'!B27 -> 155027 | C17: =IFERROR(IF(B17>0,(VLOOKUP(B17,Table1[],5,FALSE)+30),""),"") -> 30 | D17: =IF(B17>0,VLOOKUP(B17,Table1[],3,FALSE),"") -> 2020-01-01 | E17: =IF(B17>0,VLOOKUP(B17,Table1[],4,FALSE),"") -> 2020-12-31 | F17: =IFERROR(IF(INDEX('LHD Overview'!$A$6:$CK$93,(MATCH($A$3,'LHD Overview'!$A$6:$A$93,0)),MATCH(B17,'LHD Overview'!$A$2:$CK$2,0))>0,INDEX('LHD Overview'!$A$6:$CK$93,(MATCH($A$3,'LHD Overview'!$A$6:$A$93,0)),MATCH(B17,'LHD Overview'!$A$2:$CK$2,0)),""),"") ->  | G17: =IF(B17>0,VLOOKUP(B17,Table1[],6,FALSE),"") -> 2021-02-14
A18: =IFERROR(VLOOKUP(B18,Table1[],2,FALSE),"") -> BREASTFEEDING CAMPAIGN | B18: ='Profile Overview'!B23 -> 154761 | C18: =IFERROR(IF(B18>0,(VLOOKUP(B18,Table1[],5,FALSE)+30),""),"") -> 130 | D18: =IF(B18>0,VLOOKUP(B18,Table1[],3,FALSE),"") -> 2020-10-01 | E18: =IF(B18>0,VLOOKUP(B18,Table1[],4,FALSE),"") -> 2021-09-30 | F18: =IFERROR(IF(INDEX('LHD Overview'!$A$6:$CK$93,(MATCH($A$3,'LHD Overview'!$A$6:$A$93,0)),MATCH(B18,'LHD Overview'!$A$2:$CK$2,0))>0,INDEX('LHD Overview'!$A$6:$CK$93,(MATCH($A$3,'LHD Overview'!$A$6:$A$93,0)),MATCH(B18,'LHD Overview'!$A$2:$CK$2,0)),""),"") ->  | G18: =IF(B18>0,VLOOKUP(B18,Table1[],6,FALSE),"") -> 2021-11-14
A19: =IFERROR(VLOOKUP(B19,Table1[],2,FALSE),"") -> ASTHMA CAPACITY | B19: ='Profile Overview'!B29 -> 155072 | C19: =IFERROR(IF(B19>0,(VLOOKUP(B19,Table1[],5,FALSE)+30),""),"") -> 130 | D19: =IF(B19>0,VLOOKUP(B19,Table1[],3,FALSE),"") -> 2020-09-01 | E19: =IF(B19>0,VLOOKUP(B19,Table1[],4,FALSE),"") -> 2021-08-31 | F19: =IFERROR(IF(INDEX('LHD Overview'!$A$6:$CK$93,(MATCH($A$3,'LHD Overview'!$A$6:$A$93,0)),MATCH(B19,'LHD Overview'!$A$2:$CK$2,0))>0,INDEX('LHD Overview'!$A$6:$CK$93,(MATCH($A$3,'LHD Overview'!$A$6:$A$93,0)),MATCH(B19,'LHD Overview'!$A$2:$CK$2,0)),""),"") ->  | G19: =IF(B19>0,VLOOKUP(B19,Table1[],6,FALSE),"") -> 2021-10-15
A20: =IFERROR(VLOOKUP(B20,Table1[],2,FALSE),"") -> REGNL RADON INF CENTERS | B20: ='Profile Overview'!B8 -> 103010 | C20: =IFERROR(IF(B20>0,(VLOOKUP(B20,Table1[],5,FALSE)+30),""),"") -> 30 | D20: =IF(B20>0,VLOOKUP(B20,Table1[],3,FALSE),"") -> 2020-01-01 | E20: =IF(B20>0,VLOOKUP(B20,Table1[],4,FALSE),"") -> 2020-12-31 | F20: =IFERROR(IF(INDEX('LHD Overview'!$A$6:$CK$93,(MATCH($A$3,'LHD Overview'!$A$6:$A$93,0)),MATCH(B20,'LHD Overview'!$A$2:$CK$2,0))>0,INDEX('LHD Overview'!$A$6:$CK$93,(MATCH($A$3,'LHD Overview'!$A$6:$A$93,0)),MATCH(B20,'LHD Overview'!$A$2:$CK$2,0)),""),"") ->  | G20: =IF(B20>0,VLOOKUP(B20,Table1[],6,FALSE),"") -> 2021-02-14
A21: =IFERROR(VLOOKUP(B21,Table1[],2,FALSE),"") -> PH EMERGENCY QUARANTINE | B21: ='Profile Overview'!B9 -> 105000 | C21: =IFERROR(IF(B21>0,(VLOOKUP(B21,Table1[],5,FALSE)+30),""),"") -> 130 | D21: =IF(B21>0,VLOOKUP(B21,Table1[],3,FALSE),"") -> 2020-08-01 | E21: =IF(B21>0,VLOOKUP(B21,Table1[],4,FALSE),"") -> 2021-06-30 | F21: =IFERROR(IF(INDEX('LHD Overview'!$A$6:$CK$93,(MATCH($A$3,'LHD Overview'!$A$6:$A$93,0)),MATCH(B21,'LHD Overview'!$A$2:$CK$2,0))>0,INDEX('LHD Overview'!$A$6:$CK$93,(MATCH($A$3,'LHD Overview'!$A$6:$A$93,0)),MATCH(B21,'LHD Overview'!$A$2:$CK$2,0)),""),"") ->  | G21: =IF(B21>0,VLOOKUP(B21,Table1[],6,FALSE),"") -> 2021-08-14
A22: =IFERROR(VLOOKUP(B22,Table1[],2,FALSE),"") -> INFANT MORTALITY-RACINE | B22: ='Profile Overview'!B10 -> 110190 | C22: =IFERROR(IF(B22>0,(VLOOKUP(B22,Table1[],5,FALSE)+30),""),"") -> 130 | D22: =IF(B22>0,VLOOKUP(B22,Table1[],3,FALSE),"") -> 2020-07-01 | E22: =IF(B22>0,VLOOKUP(B22,Table1[],4,FALSE),"") -> 2021-06-30 | F22: =IFERROR(IF(INDEX('LHD Overview'!$A$6:$CK$93,(MATCH($A$3,'LHD Overview'!$A$6:$A$93,0)),MATCH(B22,'LHD Overview'!$A$2:$CK$2,0))>0,INDEX('LHD Overview'!$A$6:$CK$93,(MATCH($A$3,'LHD Overview'!$A$6:$A$93,0)),MATCH(B22,'LHD Overview'!$A$2:$CK$2,0)),""),"") ->  | G22: =IF(B22>0,VLOOKUP(B22,Table1[],6,FALSE),"") -> 2021-08-14
A23: =IFERROR(VLOOKUP(B23,Table1[],2,FALSE),"") -> GPR CANCER, CITY OF MILW | B23: ='Profile Overview'!B11 -> 119011 | C23: =IFERROR(IF(B23>0,(VLOOKUP(B23,Table1[],5,FALSE)+30),""),"") -> 130 | D23: =IF(B23>0,VLOOKUP(B23,Table1[],3,FALSE),"") -> 2020-07-01 | E23: =IF(B23>0,VLOOKUP(B23,Table1[],4,FALSE),"") -> 2021-06-30 | F23: =IFERROR(IF(INDEX('LHD Overview'!$A$6:$CK$93,(MATCH($A$3,'LHD Overview'!$A$6:$A$93,0)),MATCH(B23,'LHD Overview'!$A$2:$CK$2,0))>0,INDEX('LHD Overview'!$A$6:$CK$93,(MATCH($A$3,'LHD Overview'!$A$6:$A$93,0)),MATCH(B23,'LHD Overview'!$A$2:$CK$2,0)),""),"") ->  | G23: =IF(B23>0,VLOOKUP(B23,Table1[],6,FALSE),"") -> 2021-08-14
A24: =IFERROR(VLOOKUP(B24,Table1[],2,FALSE),"") -> CONGENITAL DISORDERS | B24: ='Profile Overview'!B12 -> 128010 | C24: =IFERROR(IF(B24>0,(VLOOKUP(B24,Table1[],5,FALSE)+30),""),"") -> 130 | D24: =IF(B24>0,VLOOKUP(B24,Table1[],3,FALSE),"") -> 2020-07-01 | E24: =IF(B24>0,VLOOKUP(B24,Table1[],4,FALSE),"") -> 2021-06-30 | F24: =IFERROR(IF(INDEX('LHD Overview'!$A$6:$CK$93,(MATCH($A$3,'LHD Overview'!$A$6:$A$93,0)),MATCH(B24,'LHD Overview'!$A$2:$CK$2,0))>0,INDEX('LHD Overview'!$A$6:$CK$93,(MATCH($A$3,'LHD Overview'!$A$6:$A$93,0)),MATCH(B24,'LHD Overview'!$A$2:$CK$2,0)),""),"") ->  | G24: =IF(B24>0,VLOOKUP(B24,Table1[],6,FALSE),"") -> 2021-08-14
A25: =IFERROR(VLOOKUP(B25,Table1[],2,FALSE),"") -> OPIOID RX PATHWAY PROJ | B25: ='Profile Overview'!B13 -> 150211 | C25: =IFERROR(IF(B25>0,(VLOOKUP(B25,Table1[],5,FALSE)+30),""),"") -> 130 | D25: =IF(B25>0,VLOOKUP(B25,Table1[],3,FALSE),"") -> 2020-09-01 | E25: =IF(B25>0,VLOOKUP(B25,Table1[],4,FALSE),"") -> 2021-08-31 | F25: =IFERROR(IF(INDEX('LHD Overview'!$A$6:$CK$93,(MATCH($A$3,'LHD Overview'!$A$6:$A$93,0)),MATCH(B25,'LHD Overview'!$A$2:$CK$2,0))>0,INDEX('LHD Overview'!$A$6:$CK$93,(MATCH($A$3,'LHD Overview'!$A$6:$A$93,0)),MATCH(B25,'LHD Overview'!$A$2:$CK$2,0)),""),"") ->  | G25: =IF(B25>0,VLOOKUP(B25,Table1[],6,FALSE),"") -> 2021-10-15
A26: =IFERROR(VLOOKUP(B26,Table1[],2,FALSE),"") -> OVERDOSE FATALITY REVIEWS | B26: ='Profile Overview'!B14 -> 150216 | C26: =IFERROR(IF(B26>0,(VLOOKUP(B26,Table1[],5,FALSE)+30),""),"") -> 130 | D26: =IF(B26>0,VLOOKUP(B26,Table1[],3,FALSE),"") -> 2020-09-01 | E26: =IF(B26>0,VLOOKUP(B26,Table1[],4,FALSE),"") -> 2021-08-31 | F26: =IFERROR(IF(INDEX('LHD Overview'!$A$6:$CK$93,(MATCH($A$3,'LHD Overview'!$A$6:$A$93,0)),MATCH(B26,'LHD Overview'!$A$2:$CK$2,0))>0,INDEX('LHD Overview'!$A$6:$CK$93,(MATCH($A$3,'LHD Overview'!$A$6:$A$93,0)),MATCH(B26,'LHD Overview'!$A$2:$CK$2,0)),""),"") ->  | G26: =IF(B26>0,VLOOKUP(B26,Table1[],6,FALSE),"") -> 2021-10-15
A27: =IFERROR(VLOOKUP(B27,Table1[],2,FALSE),"") -> EPA INDOOR RADON SERVICES | B27: ='Profile Overview'!B15 -> 150321 | C27: =IFERROR(IF(B27>0,(VLOOKUP(B27,Table1[],5,FALSE)+30),""),"") -> 30 | D27: =IF(B27>0,VLOOKUP(B27,Table1[],3,FALSE),"") -> 2020-01-01 | E27: =IF(B27>0,VLOOKUP(B27,Table1[],4,FALSE),"") -> 2020-12-31 | F27: =IFERROR(IF(INDEX('LHD Overview'!$A$6:$CK$93,(MATCH($A$3,'LHD Overview'!$A$6:$A$93,0)),MATCH(B27,'LHD Overview'!$A$2:$CK$2,0))>0,INDEX('LHD Overview'!$A$6:$CK$93,(MATCH($A$3,'LHD Overview'!$A$6:$A$93,0)),MATCH(B27,'LHD Overview'!$A$2:$CK$2,0)),""),"") ->  | G27: =IF(B27>0,VLOOKUP(B27,Table1[],6,FALSE),"") -> 2021-02-14
A28: =IFERROR(VLOOKUP(B28,Table1[],2,FALSE),"") -> 1815 DIABETES | B28: ='Profile Overview'!B16 -> 150426 | C28: =IFERROR(IF(B28>0,(VLOOKUP(B28,Table1[],5,FALSE)+30),""),"") -> 130 | D28: =IF(B28>0,VLOOKUP(B28,Table1[],3,FALSE),"") -> 2020-07-01 | E28: =IF(B28>0,VLOOKUP(B28,Table1[],4,FALSE),"") -> 2021-06-30 | F28: =IFERROR(IF(INDEX('LHD Overview'!$A$6:$CK$93,(MATCH($A$3,'LHD Overview'!$A$6:$A$93,0)),MATCH(B28,'LHD Overview'!$A$2:$CK$2,0))>0,INDEX('LHD Overview'!$A$6:$CK$93,(MATCH($A$3,'LHD Overview'!$A$6:$A$93,0)),MATCH(B28,'LHD Overview'!$A$2:$CK$2,0)),""),"") ->  | G28: =IF(B28>0,VLOOKUP(B28,Table1[],6,FALSE),"") -> 2021-08-14
A29: =IFERROR(VLOOKUP(B29,Table1[],2,FALSE),"") -> 1815 HEART DISEASE PREV | B29: ='Profile Overview'!B17 -> 150427 | C29: =IFERROR(IF(B29>0,(VLOOKUP(B29,Table1[],5,FALSE)+30),""),"") -> 130 | D29: =IF(B29>0,VLOOKUP(B29,Table1[],3,FALSE),"") -> 2020-07-01 | E29: =IF(B29>0,VLOOKUP(B29,Table1[],4,FALSE),"") -> 2021-06-30 | F29: =IFERROR(IF(INDEX('LHD Overview'!$A$6:$CK$93,(MATCH($A$3,'LHD Overview'!$A$6:$A$93,0)),MATCH(B29,'LHD Overview'!$A$2:$CK$2,0))>0,INDEX('LHD Overview'!$A$6:$CK$93,(MATCH($A$3,'LHD Overview'!$A$6:$A$93,0)),MATCH(B29,'LHD Overview'!$A$2:$CK$2,0)),""),"") ->  | G29: =IF(B29>0,VLOOKUP(B29,Table1[],6,FALSE),"") -> 2021-08-14
A30: =IFERROR(VLOOKUP(B30,Table1[],2,FALSE),"") -> 1817 SL DIABETES PREV | B30: ='Profile Overview'!B18 -> 150429 | C30: =IFERROR(IF(B30>0,(VLOOKUP(B30,Table1[],5,FALSE)+30),""),"") -> 130 | D30: =IF(B30>0,VLOOKUP(B30,Table1[],3,FALSE),"") -> 2020-10-01 | E30: =IF(B30>0,VLOOKUP(B30,Table1[],4,FALSE),"") -> 2021-09-30 | F30: =IFERROR(IF(INDEX('LHD Overview'!$A$6:$CK$93,(MATCH($A$3,'LHD Overview'!$A$6:$A$93,0)),MATCH(B30,'LHD Overview'!$A$2:$CK$2,0))>0,INDEX('LHD Overview'!$A$6:$CK$93,(MATCH($A$3,'LHD Overview'!$A$6:$A$93,0)),MATCH(B30,'LHD Overview'!$A$2:$CK$2,0)),""),"") ->  | G30: =IF(B30>0,VLOOKUP(B30,Table1[],6,FALSE),"") -> 2021-11-14
A31: =IFERROR(VLOOKUP(B31,Table1[],2,FALSE),"") -> COMM WATER FLUORIDATION | B31: ='Profile Overview'!B19 -> 151741 | C31: =IFERROR(IF(B31>0,(VLOOKUP(B31,Table1[],5,FALSE)+30),""),"") -> 130 | D31: =IF(B31>0,VLOOKUP(B31,Table1[],3,FALSE),"") -> 2020-07-01 | E31: =IF(B31>0,VLOOKUP(B31,Table1[],4,FALSE),"") -> 2021-06-30 | F31: =IFERROR(IF(INDEX('LHD Overview'!$A$6:$CK$93,(MATCH($A$3,'LHD Overview'!$A$6:$A$93,0)),MATCH(B31,'LHD Overview'!$A$2:$CK$2,0))>0,INDEX('LHD Overview'!$A$6:$CK$93,(MATCH($A$3,'LHD Overview'!$A$6:$A$93,0)),MATCH(B31,'LHD Overview'!$A$2:$CK$2,0)),""),"") ->  | G31: =IF(B31>0,VLOOKUP(B31,Table1[],6,FALSE),"") -> 2021-08-14
A32: =IFERROR(VLOOKUP(B32,Table1[],2,FALSE),"") -> WH/FP RH 253.07 (E) | B32: ='Profile Overview'!B20 -> 152003 | C32: =IFERROR(IF(B32>0,(VLOOKUP(B32,Table1[],5,FALSE)+30),""),"") -> 30 | D32: =IF(B32>0,VLOOKUP(B32,Table1[],3,FALSE),"") -> 2020-01-01 | E32: =IF(B32>0,VLOOKUP(B32,Table1[],4,FALSE),"") -> 2020-12-31 | F32: =IFERROR(IF(INDEX('LHD Overview'!$A$6:$CK$93,(MATCH($A$3,'LHD Overview'!$A$6:$A$93,0)),MATCH(B32,'LHD Overview'!$A$2:$CK$2,0))>0,INDEX('LHD Overview'!$A$6:$CK$93,(MATCH($A$3,'LHD Overview'!$A$6:$A$93,0)),MATCH(B32,'LHD Overview'!$A$2:$CK$2,0)),""),"") ->  | G32: =IF(B32>0,VLOOKUP(B32,Table1[],6,FALSE),"") -> 2021-02-14
A33: =IFERROR(VLOOKUP(B33,Table1[],2,FALSE),"") -> WH/FP RH 253.07 (D) | B33: ='Profile Overview'!B21 -> 152020 | C33: =IFERROR(IF(B33>0,(VLOOKUP(B33,Table1[],5,FALSE)+30),""),"") -> 30 | D33: =IF(B33>0,VLOOKUP(B33,Table1[],3,FALSE),"") -> 2020-01-01 | E33: =IF(B33>0,VLOOKUP(B33,Table1[],4,FALSE),"") -> 2020-12-31 | F33: =IFERROR(IF(INDEX('LHD Overview'!$A$6:$CK$93,(MATCH($A$3,'LHD Overview'!$A$6:$A$93,0)),MATCH(B33,'LHD Overview'!$A$2:$CK$2,0))>0,INDEX('LHD Overview'!$A$6:$CK$93,(MATCH($A$3,'LHD Overview'!$A$6:$A$93,0)),MATCH(B33,'LHD Overview'!$A$2:$CK$2,0)),""),"") ->  | G33: =IF(B33>0,VLOOKUP(B33,Table1[],6,FALSE),"") -> 2021-02-14
A34: =IFERROR(VLOOKUP(B34,Table1[],2,FALSE),"") -> SNAP NUTR ED GRANT | B34: ='Profile Overview'!B22 -> 154661 | C34: =IFERROR(IF(B34>0,(VLOOKUP(B34,Table1[],5,FALSE)+30),""),"") -> 130 | D34: =IF(B34>0,VLOOKUP(B34,Table1[],3,FALSE),"") -> 2020-10-01 | E34: =IF(B34>0,VLOOKUP(B34,Table1[],4,FALSE),"") -> 2021-09-30 | F34: =IFERROR(IF(INDEX('LHD Overview'!$A$6:$CK$93,(MATCH($A$3,'LHD Overview'!$A$6:$A$93,0)),MATCH(B34,'LHD Overview'!$A$2:$CK$2,0))>0,INDEX('LHD Overview'!$A$6:$CK$93,(MATCH($A$3,'LHD Overview'!$A$6:$A$93,0)),MATCH(B34,'LHD Overview'!$A$2:$CK$2,0)),""),"") ->  | G34: =IF(B34>0,VLOOKUP(B34,Table1[],6,FALSE),"") -> 2021-11-14
A35: =IFERROR(VLOOKUP(B35,Table1[],2,FALSE),"") -> CYSHCN Birth Defects | B35: ='Profile Overview'!B24 -> 154791 | C35: =IFERROR(IF(B35>0,(VLOOKUP(B35,Table1[],5,FALSE)+30),""),"") -> 30 | D35: =IF(B35>0,VLOOKUP(B35,Table1[],3,FALSE),"") -> 2020-01-01 | E35: =IF(B35>0,VLOOKUP(B35,Table1[],4,FALSE),"") -> 2020-06-30 | F35: =IFERROR(IF(INDEX('LHD Overview'!$A$6:$CK$93,(MATCH($A$3,'LHD Overview'!$A$6:$A$93,0)),MATCH(B35,'LHD Overview'!$A$2:$CK$2,0))>0,INDEX('LHD Overview'!$A$6:$CK$93,(MATCH($A$3,'LHD Overview'!$A$6:$A$93,0)),MATCH(B35,'LHD Overview'!$A$2:$CK$2,0)),""),"") ->  | G35: =IF(B35>0,VLOOKUP(B35,Table1[],6,FALSE),"") -> 2020-08-14
A36: =IFERROR(VLOOKUP(B36,Table1[],2,FALSE),"") -> RAPE PREV AND EDUCATION | B36: ='Profile Overview'!B30 -> 155080 | C36: =IFERROR(IF(B36>0,(VLOOKUP(B36,Table1[],5,FALSE)+30),""),"") -> 130 | D36: =IF(B36>0,VLOOKUP(B36,Table1[],3,FALSE),"") -> 2020-02-01 | E36: =IF(B36>0,VLOOKUP(B36,Table1[],4,FALSE),"") -> 2021-01-31 | F36: =IFERROR(IF(INDEX('LHD Overview'!$A$6:$CK$93,(MATCH($A$3,'LHD Overview'!$A$6:$A$93,0)),MATCH(B36,'LHD Overview'!$A$2:$CK$2,0))>0,INDEX('LHD Overview'!$A$6:$CK$93,(MATCH($A$3,'LHD Overview'!$A$6:$A$93,0)),MATCH(B36,'LHD Overview'!$A$2:$CK$2,0)),""),"") ->  | G36: =IF(B36>0,VLOOKUP(B36,Table1[],6,FALSE),"") -> 2021-03-17
A37: =IFERROR(VLOOKUP(B37,Table1[],2,FALSE),"") -> BIOT PREPARE - CRI | B37: ='Profile Overview'!B31 -> 155190 | C37: =IFERROR(IF(B37>0,(VLOOKUP(B37,Table1[],5,FALSE)+30),""),"") -> 30 | D37: =IF(B37>0,VLOOKUP(B37,Table1[],3,FALSE),"") -> 2020-07-01 | E37: =IF(B37>0,VLOOKUP(B37,Table1[],4,FALSE),"") -> 2020-06-30 | F37: =IFERROR(IF(INDEX('LHD Overview'!$A$6:$CK$93,(MATCH($A$3,'LHD Overview'!$A$6:$A$93,0)),MATCH(B37,'LHD Overview'!$A$2:$CK$2,0))>0,INDEX('LHD Overview'!$A$6:$CK$93,(MATCH($A$3,'LHD Overview'!$A$6:$A$93,0)),MATCH(B37,'LHD Overview'!$A$2:$CK$2,0)),""),"") ->  | G37: =IF(B37>0,VLOOKUP(B37,Table1[],6,FALSE),"") -> 2020-08-14
A38: =IFERROR(VLOOKUP(B38,Table1[],2,FALSE),"") -> BIOT PREPARE - CRI | B38: ='Profile Overview'!B32 -> 155191 | C38: =IFERROR(IF(B38>0,(VLOOKUP(B38,Table1[],5,FALSE)+30),""),"") -> 30 | D38: =IF(B38>0,VLOOKUP(B38,Table1[],3,FALSE),"") -> 2020-07-01 | E38: =IF(B38>0,VLOOKUP(B38,Table1[],4,FALSE),"") -> 2020-06-30 | F38: =IFERROR(IF(INDEX('LHD Overview'!$A$6:$CK$93,(MATCH($A$3,'LHD Overview'!$A$6:$A$93,0)),MATCH(B38,'LHD Overview'!$A$2:$CK$2,0))>0,INDEX('LHD Overview'!$A$6:$CK$93,(MATCH($A$3,'LHD Overview'!$A$6:$A$93,0)),MATCH(B38,'LHD Overview'!$A$2:$CK$2,0)),""),"") ->  | G38: =IF(B38>0,VLOOKUP(B38,Table1[],6,FALSE),"") -> 2020-08-14
A39: =IFERROR(VLOOKUP(B39,Table1[],2,FALSE),"") -> DIS FIELD STAFF | B39: ='Profile Overview'!B39 -> 155945 | C39: =IFERROR(IF(B39>0,(VLOOKUP(B39,Table1[],5,FALSE)+30),""),"") -> 30 | D39: =IF(B39>0,VLOOKUP(B39,Table1[],3,FALSE),"") -> 2020-01-01 | E39: =IF(B39>0,VLOOKUP(B39,Table1[],4,FALSE),"") -> 2020-12-31 | F39: =IFERROR(IF(INDEX('LHD Overview'!$A$6:$CK$93,(MATCH($A$3,'LHD Overview'!$A$6:$A$93,0)),MATCH(B39,'LHD Overview'!$A$2:$CK$2,0))>0,INDEX('LHD Overview'!$A$6:$CK$93,(MATCH($A$3,'LHD Overview'!$A$6:$A$93,0)),MATCH(B39,'LHD Overview'!$A$2:$CK$2,0)),""),"") ->  | G39: =IF(B39>0,VLOOKUP(B39,Table1[],6,FALSE),"") -> 2021-02-14
A40: =IFERROR(VLOOKUP(B40,Table1[],2,FALSE),"") -> HIV PREV PS & LINKAGES | B40: ='Profile Overview'!B40 -> 155957 | C40: =IFERROR(IF(B40>0,(VLOOKUP(B40,Table1[],5,FALSE)+30),""),"") -> 30 | D40: =IF(B40>0,VLOOKUP(B40,Table1[],3,FALSE),"") -> 2020-01-01 | E40: =IF(B40>0,VLOOKUP(B40,Table1[],4,FALSE),"") -> 2020-12-31 | F40: =IFERROR(IF(INDEX('LHD Overview'!$A$6:$CK$93,(MATCH($A$3,'LHD Overview'!$A$6:$A$93,0)),MATCH(B40,'LHD Overview'!$A$2:$CK$2,0))>0,INDEX('LHD Overview'!$A$6:$CK$93,(MATCH($A$3,'LHD Overview'!$A$6:$A$93,0)),MATCH(B40,'LHD Overview'!$A$2:$CK$2,0)),""),"") ->  | G40: =IF(B40>0,VLOOKUP(B40,Table1[],6,FALSE),"") -> 2021-02-14
A41: =IFERROR(VLOOKUP(B41,Table1[],2,FALSE),"") -> WH/FP RH 20.435 (1)(EV) | B41: ='Profile Overview'!B44 -> 159322 | C41: =IFERROR(IF(B41>0,(VLOOKUP(B41,Table1[],5,FALSE)+30),""),"") -> 30 | D41: =IF(B41>0,VLOOKUP(B41,Table1[],3,FALSE),"") -> 2020-01-01 | E41: =IF(B41>0,VLOOKUP(B41,Table1[],4,FALSE),"") -> 2020-12-31 | F41: =IFERROR(IF(INDEX('LHD Overview'!$A$6:$CK$93,(MATCH($A$3,'LHD Overview'!$A$6:$A$93,0)),MATCH(B41,'LHD Overview'!$A$2:$CK$2,0))>0,INDEX('LHD Overview'!$A$6:$CK$93,(MATCH($A$3,'LHD Overview'!$A$6:$A$93,0)),MATCH(B41,'LHD Overview'!$A$2:$CK$2,0)),""),"") ->  | G41: =IF(B41>0,VLOOKUP(B41,Table1[],6,FALSE),"") -> 2021-02-14
A42: =IFERROR(VLOOKUP(B42,Table1[],2,FALSE),"") -> WH/FP RH 253.07(4)(A) | B42: ='Profile Overview'!B45 -> 159327 | C42: =IFERROR(IF(B42>0,(VLOOKUP(B42,Table1[],5,FALSE)+30),""),"") -> 30 | D42: =IF(B42>0,VLOOKUP(B42,Table1[],3,FALSE),"") -> 2020-01-01 | E42: =IF(B42>0,VLOOKUP(B42,Table1[],4,FALSE),"") -> 2020-12-31 | F42: =IFERROR(IF(INDEX('LHD Overview'!$A$6:$CK$93,(MATCH($A$3,'LHD Overview'!$A$6:$A$93,0)),MATCH(B42,'LHD Overview'!$A$2:$CK$2,0))>0,INDEX('LHD Overview'!$A$6:$CK$93,(MATCH($A$3,'LHD Overview'!$A$6:$A$93,0)),MATCH(B42,'LHD Overview'!$A$2:$CK$2,0)),""),"") ->  | G42: =IF(B42>0,VLOOKUP(B42,Table1[],6,FALSE),"") -> 2021-02-14
A43: =IFERROR(VLOOKUP(B43,Table1[],2,FALSE),"") -> TITLE X SERVICES | B43: ='Profile Overview'!B46 -> 159328 | C43: =IFERROR(IF(B43>0,(VLOOKUP(B43,Table1[],5,FALSE)+30),""),"") -> 130 | D43: =IF(B43>0,VLOOKUP(B43,Table1[],3,FALSE),"") -> 2020-04-01 | E43: =IF(B43>0,VLOOKUP(B43,Table1[],4,FALSE),"") -> 2021-03-31 | F43: =IFERROR(IF(INDEX('LHD Overview'!$A$6:$CK$93,(MATCH($A$3,'LHD Overview'!$A$6:$A$93,0)),MATCH(B43,'LHD Overview'!$A$2:$CK$2,0))>0,INDEX('LHD Overview'!$A$6:$CK$93,(MATCH($A$3,'LHD Overview'!$A$6:$A$93,0)),MATCH(B43,'LHD Overview'!$A$2:$CK$2,0)),""),"") ->  | G43: =IF(B43>0,VLOOKUP(B43,Table1[],6,FALSE),"") -> 2021-05-15
A44: =IFERROR(VLOOKUP(B44,Table1[],2,FALSE),"") -> STATEWIDES-PERF BASED | B44: ='Profile Overview'!B47 -> 159332 | C44: =IFERROR(IF(B44>0,(VLOOKUP(B44,Table1[],5,FALSE)+30),""),"") -> 30 | D44: =IF(B44>0,VLOOKUP(B44,Table1[],3,FALSE),"") -> 2020-01-01 | E44: =IF(B44>0,VLOOKUP(B44,Table1[],4,FALSE),"") -> 2020-12-31 | F44: =IFERROR(IF(INDEX('LHD Overview'!$A$6:$CK$93,(MATCH($A$3,'LHD Overview'!$A$6:$A$93,0)),MATCH(B44,'LHD Overview'!$A$2:$CK$2,0))>0,INDEX('LHD Overview'!$A$6:$CK$93,(MATCH($A$3,'LHD Overview'!$A$6:$A$93,0)),MATCH(B44,'LHD Overview'!$A$2:$CK$2,0)),""),"") ->  | G44: =IF(B44>0,VLOOKUP(B44,Table1[],6,FALSE),"") -> 2021-02-14
A45: =IFERROR(VLOOKUP(B45,Table1[],2,FALSE),"") -> PERS RESP EDUC PROG- PREP | B45: ='Profile Overview'!B48 -> 159354 | C45: =IFERROR(IF(B45>0,(VLOOKUP(B45,Table1[],5,FALSE)+30),""),"") -> 130 | D45: =IF(B45>0,VLOOKUP(B45,Table1[],3,FALSE),"") -> 2020-10-01 | E45: =IF(B45>0,VLOOKUP(B45,Table1[],4,FALSE),"") -> 2021-09-30 | F45: =IFERROR(IF(INDEX('LHD Overview'!$A$6:$CK$93,(MATCH($A$3,'LHD Overview'!$A$6:$A$93,0)),MATCH(B45,'LHD Overview'!$A$2:$CK$2,0))>0,INDEX('LHD Overview'!$A$6:$CK$93,(MATCH($A$3,'LHD Overview'!$A$6:$A$93,0)),MATCH(B45,'LHD Overview'!$A$2:$CK$2,0)),""),"") ->  | G45: =IF(B45>0,VLOOKUP(B45,Table1[],6,FALSE),"") -> 2021-11-14
A46: =IFERROR(VLOOKUP(B46,Table1[],2,FALSE),"") -> TPCP WI WINS | B46: ='Profile Overview'!B49 -> 181004 | C46: =IFERROR(IF(B46>0,(VLOOKUP(B46,Table1[],5,FALSE)+30),""),"") -> 130 | D46: =IF(B46>0,VLOOKUP(B46,Table1[],3,FALSE),"") -> 2020-07-01 | E46: =IF(B46>0,VLOOKUP(B46,Table1[],4,FALSE),"") -> 2021-06-30 | F46: =IFERROR(IF(INDEX('LHD Overview'!$A$6:$CK$93,(MATCH($A$3,'LHD Overview'!$A$6:$A$93,0)),MATCH(B46,'LHD Overview'!$A$2:$CK$2,0))>0,INDEX('LHD Overview'!$A$6:$CK$93,(MATCH($A$3,'LHD Overview'!$A$6:$A$93,0)),MATCH(B46,'LHD Overview'!$A$2:$CK$2,0)),""),"") ->  | G46: =IF(B46>0,VLOOKUP(B46,Table1[],6,FALSE),"") -> 2021-08-14
A47: =IFERROR(VLOOKUP(B47,Table1[],2,FALSE),"") -> TPCP COMMUNITY INTRVNS | B47: ='Profile Overview'!B50 -> 181010 | C47: =IFERROR(IF(B47>0,(VLOOKUP(B47,Table1[],5,FALSE)+30),""),"") -> 130 | D47: =IF(B47>0,VLOOKUP(B47,Table1[],3,FALSE),"") -> 2020-07-01 | E47: =IF(B47>0,VLOOKUP(B47,Table1[],4,FALSE),"") -> 2021-06-30 | F47: =IFERROR(IF(INDEX('LHD Overview'!$A$6:$CK$93,(MATCH($A$3,'LHD Overview'!$A$6:$A$93,0)),MATCH(B47,'LHD Overview'!$A$2:$CK$2,0))>0,INDEX('LHD Overview'!$A$6:$CK$93,(MATCH($A$3,'LHD Overview'!$A$6:$A$93,0)),MATCH(B47,'LHD Overview'!$A$2:$CK$2,0)),""),"") ->  | G47: =IF(B47>0,VLOOKUP(B47,Table1[],6,FALSE),"") -> 2021-08-14
A48: =IFERROR(VLOOKUP(B48,Table1[],2,FALSE),"") -> MCH-CYSHCNHUBS | B48: ='Profile Overview'!B51 -> 191001 | C48: =IFERROR(IF(B48>0,(VLOOKUP(B48,Table1[],5,FALSE)+30),""),"") -> 30 | D48: =IF(B48>0,VLOOKUP(B48,Table1[],3,FALSE),"") -> 2020-01-01 | E48: =IF(B48>0,VLOOKUP(B48,Table1[],4,FALSE),"") -> 2020-12-31 | F48: =IFERROR(IF(INDEX('LHD Overview'!$A$6:$CK$93,(MATCH($A$3,'LHD Overview'!$A$6:$A$93,0)),MATCH(B48,'LHD Overview'!$A$2:$CK$2,0))>0,INDEX('LHD Overview'!$A$6:$CK$93,(MATCH($A$3,'LHD Overview'!$A$6:$A$93,0)),MATCH(B48,'LHD Overview'!$A$2:$CK$2,0)),""),"") ->  | G48: =IF(B48>0,VLOOKUP(B48,Table1[],6,FALSE),"") -> 2021-02-14
A75: =IFERROR(VLOOKUP(B75,Table1[],2,FALSE),"") ->  | C75: =IFERROR(IF(B75>0,(VLOOKUP(B75,Table1[],5,FALSE)+30),""),"") ->  | D75: =IF(B75>0,VLOOKUP(B75,Table1[],3,FALSE),"") ->  | E75: =IF(B75>0,VLOOKUP(B75,Table1[],4,FALSE),"") ->  | F75: =IFERROR(IF(INDEX('LHD Overview'!$A$6:$CK$93,1,MATCH(B75,'LHD Overview'!$A$2:$CK$2,0))>0,INDEX('LHD Overview'!$A$6:$CK$93,1,MATCH(B75,'LHD Overview'!$A$2:$CK$2,0)),""),"") ->  | G75: =IF(B75>0,VLOOKUP(B75,Table1[],6,FALSE),"") -> 
A76: =IFERROR(VLOOKUP(B76,Table1[],2,FALSE),"") ->  | C76: =IFERROR(IF(B76>0,(VLOOKUP(B76,Table1[],5,FALSE)+30),""),"") ->  | D76: =IF(B76>0,VLOOKUP(B76,Table1[],3,FALSE),"") ->  | E76: =IF(B76>0,VLOOKUP(B76,Table1[],4,FALSE),"") ->  | F76: =IFERROR(IF(INDEX('LHD Overview'!$A$6:$CK$93,1,MATCH(B76,'LHD Overview'!$A$2:$CK$2,0))>0,INDEX('LHD Overview'!$A$6:$CK$93,1,MATCH(B76,'LHD Overview'!$A$2:$CK$2,0)),""),"") ->  | G76: =IF(B76>0,VLOOKUP(B76,Table1[],6,FALSE),"") -> 
A77: =IFERROR(VLOOKUP(B77,Table1[],2,FALSE),"") ->  | C77: =IFERROR(IF(B77>0,(VLOOKUP(B77,Table1[],5,FALSE)+30),""),"") ->  | D77: =IF(B77>0,VLOOKUP(B77,Table1[],3,FALSE),"") ->  | E77: =IF(B77>0,VLOOKUP(B77,Table1[],4,FALSE),"") ->  | F77: =IFERROR(IF(INDEX('LHD Overview'!$A$6:$CK$93,1,MATCH(B77,'LHD Overview'!$A$2:$CK$2,0))>0,INDEX('LHD Overview'!$A$6:$CK$93,1,MATCH(B77,'LHD Overview'!$A$2:$CK$2,0)),""),"") ->  | G77: =IF(B77>0,VLOOKUP(B77,Table1[],6,FALSE),"") -> 
A78: =IFERROR(VLOOKUP(B78,Table1[],2,FALSE),"") ->  | C78: =IFERROR(IF(B78>0,(VLOOKUP(B78,Table1[],5,FALSE)+30),""),"") ->  | D78: =IF(B78>0,VLOOKUP(B78,Table1[],3,FALSE),"") ->  | E78: =IF(B78>0,VLOOKUP(B78,Table1[],4,FALSE),"") ->  | F78: =IFERROR(IF(INDEX('LHD Overview'!$A$6:$CK$93,1,MATCH(B78,'LHD Overview'!$A$2:$CK$2,0))>0,INDEX('LHD Overview'!$A$6:$CK$93,1,MATCH(B78,'LHD Overview'!$A$2:$CK$2,0)),""),"") ->  | G78: =IF(B78>0,VLOOKUP(B78,Table1[],6,FALSE),"") -> 
A79: =IFERROR(VLOOKUP(B79,Table1[],2,FALSE),"") ->  | C79: =IFERROR(IF(B79>0,(VLOOKUP(B79,Table1[],5,FALSE)+30),""),"") ->  | D79: =IF(B79>0,VLOOKUP(B79,Table1[],3,FALSE),"") ->  | E79: =IF(B79>0,VLOOKUP(B79,Table1[],4,FALSE),"") ->  | F79: =IFERROR(IF(INDEX('LHD Overview'!$A$6:$CK$93,1,MATCH(B79,'LHD Overview'!$A$2:$CK$2,0))>0,INDEX('LHD Overview'!$A$6:$CK$93,1,MATCH(B79,'LHD Overview'!$A$2:$CK$2,0)),""),"") ->  | G79: =IF(B79>0,VLOOKUP(B79,Table1[],6,FALSE),"") -> 
A80: =IFERROR(VLOOKUP(B80,Table1[],2,FALSE),"") ->  | C80: =IFERROR(IF(B80>0,(VLOOKUP(B80,Table1[],5,FALSE)+30),""),"") ->  | D80: =IF(B80>0,VLOOKUP(B80,Table1[],3,FALSE),"") ->  | E80: =IF(B80>0,VLOOKUP(B80,Table1[],4,FALSE),"") ->  | F80: =IFERROR(IF(INDEX('LHD Overview'!$A$6:$CK$93,1,MATCH(B80,'LHD Overview'!$A$2:$CK$2,0))>0,INDEX('LHD Overview'!$A$6:$CK$93,1,MATCH(B80,'LHD Overview'!$A$2:$CK$2,0)),""),"") ->  | G80: =IF(B80>0,VLOOKUP(B80,Table1[],6,FALSE),"") -> 
A81: =IFERROR(VLOOKUP(B81,Table1[],2,FALSE),"") ->  | C81: =IFERROR(IF(B81>0,(VLOOKUP(B81,Table1[],5,FALSE)+30),""),"") ->  | D81: =IF(B81>0,VLOOKUP(B81,Table1[],3,FALSE),"") ->  | E81: =IF(B81>0,VLOOKUP(B81,Table1[],4,FALSE),"") ->  | F81: =IFERROR(IF(INDEX('LHD Overview'!$A$6:$CK$93,1,MATCH(B81,'LHD Overview'!$A$2:$CK$2,0))>0,INDEX('LHD Overview'!$A$6:$CK$93,1,MATCH(B81,'LHD Overview'!$A$2:$CK$2,0)),""),"") ->  | G81: =IF(B81>0,VLOOKUP(B81,Table1[],6,FALSE),"") -> 
A82: =IFERROR(VLOOKUP(B82,Table1[],2,FALSE),"") ->  | C82: =IFERROR(IF(B82>0,(VLOOKUP(B82,Table1[],5,FALSE)+30),""),"") ->  | D82: =IF(B82>0,VLOOKUP(B82,Table1[],3,FALSE),"") ->  | E82: =IF(B82>0,VLOOKUP(B82,Table1[],4,FALSE),"") ->  | F82: =IFERROR(IF(INDEX('LHD Overview'!$A$6:$CK$93,1,MATCH(B82,'LHD Overview'!$A$2:$CK$2,0))>0,INDEX('LHD Overview'!$A$6:$CK$93,1,MATCH(B82,'LHD Overview'!$A$2:$CK$2,0)),""),"") ->  | G82: =IF(B82>0,VLOOKUP(B82,Table1[],6,FALSE),"") -> 
A83: =IFERROR(VLOOKUP(B83,Table1[],2,FALSE),"") ->  | C83: =IFERROR(IF(B83>0,(VLOOKUP(B83,Table1[],5,FALSE)+30),""),"") ->  | D83: =IF(B83>0,VLOOKUP(B83,Table1[],3,FALSE),"") ->  | E83: =IF(B83>0,VLOOKUP(B83,Table1[],4,FALSE),"") ->  | F83: =IFERROR(IF(INDEX('LHD Overview'!$A$6:$CK$93,1,MATCH(B83,'LHD Overview'!$A$2:$CK$2,0))>0,INDEX('LHD Overview'!$A$6:$CK$93,1,MATCH(B83,'LHD Overview'!$A$2:$CK$2,0)),""),"") ->  | G83: =IF(B83>0,VLOOKUP(B83,Table1[],6,FALSE),"") -> 
A84: =IFERROR(VLOOKUP(B84,Table1[],2,FALSE),"") ->  | C84: =IFERROR(IF(B84>0,(VLOOKUP(B84,Table1[],5,FALSE)+30),""),"") ->  | D84: =IF(B84>0,VLOOKUP(B84,Table1[],3,FALSE),"") ->  | E84: =IF(B84>0,VLOOKUP(B84,Table1[],4,FALSE),"") ->  | F84: =IFERROR(IF(INDEX('LHD Overview'!$A$6:$CK$93,1,MATCH(B84,'LHD Overview'!$A$2:$CK$2,0))>0,INDEX('LHD Overview'!$A$6:$CK$93,1,MATCH(B84,'LHD Overview'!$A$2:$CK$2,0)),""),"") ->  | G84: =IF(B84>0,VLOOKUP(B84,Table1[],6,FALSE),"") -> 
A85: =IFERROR(VLOOKUP(B85,Table1[],2,FALSE),"") ->  | C85: =IFERROR(IF(B85>0,(VLOOKUP(B85,Table1[],5,FALSE)+30),""),"") ->  | D85: =IF(B85>0,VLOOKUP(B85,Table1[],3,FALSE),"") ->  | E85: =IF(B85>0,VLOOKUP(B85,Table1[],4,FALSE),"") ->  | F85: =IFERROR(IF(INDEX('LHD Overview'!$A$6:$CK$93,1,MATCH(B85,'LHD Overview'!$A$2:$CK$2,0))>0,INDEX('LHD Overview'!$A$6:$CK$93,1,MATCH(B85,'LHD Overview'!$A$2:$CK$2,0)),""),"") ->  | G85: =IF(B85>0,VLOOKUP(B85,Table1[],6,FALSE),"") -> 
A86: =IFERROR(VLOOKUP(B86,Table1[],2,FALSE),"") ->  | C86: =IFERROR(IF(B86>0,(VLOOKUP(B86,Table1[],5,FALSE)+30),""),"") ->  | D86: =IF(B86>0,VLOOKUP(B86,Table1[],3,FALSE),"") ->  | E86: =IF(B86>0,VLOOKUP(B86,Table1[],4,FALSE),"") ->  | F86: =IFERROR(IF(INDEX('LHD Overview'!$A$6:$CK$93,1,MATCH(B86,'LHD Overview'!$A$2:$CK$2,0))>0,INDEX('LHD Overview'!$A$6:$CK$93,1,MATCH(B86,'LHD Overview'!$A$2:$CK$2,0)),""),"") ->  | G86: =IF(B86>0,VLOOKUP(B86,Table1[],6,FALSE),"") -> 
A87: =IFERROR(VLOOKUP(B87,Table1[],2,FALSE),"") ->  | C87: =IFERROR(IF(B87>0,(VLOOKUP(B87,Table1[],5,FALSE)+30),""),"") ->  | D87: =IF(B87>0,VLOOKUP(B87,Table1[],3,FALSE),"") ->  | E87: =IF(B87>0,VLOOKUP(B87,Table1[],4,FALSE),"") ->  | F87: =IFERROR(IF(INDEX('LHD Overview'!$A$6:$CK$93,1,MATCH(B87,'LHD Overview'!$A$2:$CK$2,0))>0,INDEX('LHD Overview'!$A$6:$CK$93,1,MATCH(B87,'LHD Overview'!$A$2:$CK$2,0)),""),"") ->  | G87: =IF(B87>0,VLOOKUP(B87,Table1[],6,FALSE),"") -> 
A88: =IFERROR(VLOOKUP(B88,Table1[],2,FALSE),"") ->  | C88: =IFERROR(IF(B88>0,(VLOOKUP(B88,Table1[],5,FALSE)+30),""),"") ->  | D88: =IF(B88>0,VLOOKUP(B88,Table1[],3,FALSE),"") ->  | E88: =IF(B88>0,VLOOKUP(B88,Table1[],4,FALSE),"") ->  | F88: =IFERROR(IF(INDEX('LHD Overview'!$A$6:$CK$93,1,MATCH(B88,'LHD Overview'!$A$2:$CK$2,0))>0,INDEX('LHD Overview'!$A$6:$CK$93,1,MATCH(B88,'LHD Overview'!$A$2:$CK$2,0)),""),"") ->  | G88: =IF(B88>0,VLOOKUP(B88,Table1[],6,FALSE),"") -> 
A89: =IFERROR(VLOOKUP(B89,Table1[],2,FALSE),"") ->  | C89: =IFERROR(IF(B89>0,(VLOOKUP(B89,Table1[],5,FALSE)+30),""),"") ->  | D89: =IF(B89>0,VLOOKUP(B89,Table1[],3,FALSE),"") ->  | E89: =IF(B89>0,VLOOKUP(B89,Table1[],4,FALSE),"") ->  | F89: =IFERROR(IF(INDEX('LHD Overview'!$A$6:$CK$93,1,MATCH(B89,'LHD Overview'!$A$2:$CK$2,0))>0,INDEX('LHD Overview'!$A$6:$CK$93,1,MATCH(B89,'LHD Overview'!$A$2:$CK$2,0)),""),"") ->  | G89: =IF(B89>0,VLOOKUP(B89,Table1[],6,FALSE),"") -> 
A90: =IFERROR(VLOOKUP(B90,Table1[],2,FALSE),"") ->  | C90: =IFERROR(IF(B90>0,(VLOOKUP(B90,Table1[],5,FALSE)+30),""),"") ->  | D90: =IF(B90>0,VLOOKUP(B90,Table1[],3,FALSE),"") ->  | E90: =IF(B90>0,VLOOKUP(B90,Table1[],4,FALSE),"") ->  | F90: =IFERROR(IF(INDEX('LHD Overview'!$A$6:$CK$93,1,MATCH(B90,'LHD Overview'!$A$2:$CK$2,0))>0,INDEX('LHD Overview'!$A$6:$CK$93,1,MATCH(B90,'LHD Overview'!$A$2:$CK$2,0)),""),"") ->  | G90: =IF(B90>0,VLOOKUP(B90,Table1[],6,FALSE),"") -> 
A91: =IFERROR(VLOOKUP(B91,Table1[],2,FALSE),"") ->  | C91: =IFERROR(IF(B91>0,(VLOOKUP(B91,Table1[],5,FALSE)+30),""),"") ->  | D91: =IF(B91>0,VLOOKUP(B91,Table1[],3,FALSE),"") ->  | E91: =IF(B91>0,VLOOKUP(B91,Table1[],4,FALSE),"") ->  | F91: =IFERROR(IF(INDEX('LHD Overview'!$A$6:$CK$93,1,MATCH(B91,'LHD Overview'!$A$2:$CK$2,0))>0,INDEX('LHD Overview'!$A$6:$CK$93,1,MATCH(B91,'LHD Overview'!$A$2:$CK$2,0)),""),"") ->  | G91: =IF(B91>0,VLOOKUP(B91,Table1[],6,FALSE),"") -> 
A92: =IFERROR(VLOOKUP(B92,Table1[],2,FALSE),"") ->  | C92: =IFERROR(IF(B92>0,(VLOOKUP(B92,Table1[],5,FALSE)+30),""),"") ->  | D92: =IF(B92>0,VLOOKUP(B92,Table1[],3,FALSE),"") ->  | E92: =IF(B92>0,VLOOKUP(B92,Table1[],4,FALSE),"") ->  | F92: =IFERROR(IF(INDEX('LHD Overview'!$A$6:$CK$93,1,MATCH(B92,'LHD Overview'!$A$2:$CK$2,0))>0,INDEX('LHD Overview'!$A$6:$CK$93,1,MATCH(B92,'LHD Overview'!$A$2:$CK$2,0)),""),"") ->  | G92: =IF(B92>0,VLOOKUP(B92,Table1[],6,FALSE),"") -> 
A93: =IFERROR(VLOOKUP(B93,Table1[],2,FALSE),"") ->  | C93: =IFERROR(IF(B93>0,(VLOOKUP(B93,Table1[],5,FALSE)+30),""),"") ->  | D93: =IF(B93>0,VLOOKUP(B93,Table1[],3,FALSE),"") ->  | E93: =IF(B93>0,VLOOKUP(B93,Table1[],4,FALSE),"") ->  | F93: =IFERROR(IF(INDEX('LHD Overview'!$A$6:$CK$93,1,MATCH(B93,'LHD Overview'!$A$2:$CK$2,0))>0,INDEX('LHD Overview'!$A$6:$CK$93,1,MATCH(B93,'LHD Overview'!$A$2:$CK$2,0)),""),"") ->  | G93: =IF(B93>0,VLOOKUP(B93,Table1[],6,FALSE),"") -> 
A94: =IFERROR(VLOOKUP(B94,Table1[],2,FALSE),"") ->  | C94: =IFERROR(IF(B94>0,(VLOOKUP(B94,Table1[],5,FALSE)+30),""),"") ->  | D94: =IF(B94>0,VLOOKUP(B94,Table1[],3,FALSE),"") ->  | E94: =IF(B94>0,VLOOKUP(B94,Table1[],4,FALSE),"") ->  | F94: =IFERROR(IF(INDEX('LHD Overview'!$A$6:$CK$93,1,MATCH(B94,'LHD Overview'!$A$2:$CK$2,0))>0,INDEX('LHD Overview'!$A$6:$CK$93,1,MATCH(B94,'LHD Overview'!$A$2:$CK$2,0)),""),"") ->  | G94: =IF(B94>0,VLOOKUP(B94,Table1[],6,FALSE),"") -> 
A95: =IFERROR(VLOOKUP(B95,Table1[],2,FALSE),"") ->  | C95: =IFERROR(IF(B95>0,(VLOOKUP(B95,Table1[],5,FALSE)+30),""),"") ->  | D95: =IF(B95>0,VLOOKUP(B95,Table1[],3,FALSE),"") ->  | E95: =IF(B95>0,VLOOKUP(B95,Table1[],4,FALSE),"") ->  | F95: =IFERROR(IF(INDEX('LHD Overview'!$A$6:$CK$93,1,MATCH(B95,'LHD Overview'!$A$2:$CK$2,0))>0,INDEX('LHD Overview'!$A$6:$CK$93,1,MATCH(B95,'LHD Overview'!$A$2:$CK$2,0)),""),"") ->  | G95: =IF(B95>0,VLOOKUP(B95,Table1[],6,FALSE),"") -> 
A96: =IFERROR(VLOOKUP(B96,Table1[],2,FALSE),"") ->  | C96: =IFERROR(IF(B96>0,(VLOOKUP(B96,Table1[],5,FALSE)+30),""),"") ->  | D96: =IF(B96>0,VLOOKUP(B96,Table1[],3,FALSE),"") ->  | E96: =IF(B96>0,VLOOKUP(B96,Table1[],4,FALSE),"") ->  | F96: =IFERROR(IF(INDEX('LHD Overview'!$A$6:$CK$93,1,MATCH(B96,'LHD Overview'!$A$2:$CK$2,0))>0,INDEX('LHD Overview'!$A$6:$CK$93,1,MATCH(B96,'LHD Overview'!$A$2:$CK$2,0)),""),"") ->  | G96: =IF(B96>0,VLOOKUP(B96,Table1[],6,FALSE),"") -> 
A97: =IFERROR(VLOOKUP(B97,Table1[],2,FALSE),"") ->  | C97: =IFERROR(IF(B97>0,(VLOOKUP(B97,Table1[],5,FALSE)+30),""),"") ->  | D97: =IF(B97>0,VLOOKUP(B97,Table1[],3,FALSE),"") ->  | E97: =IF(B97>0,VLOOKUP(B97,Table1[],4,FALSE),"") ->  | F97: =IFERROR(IF(INDEX('LHD Overview'!$A$6:$CK$93,1,MATCH(B97,'LHD Overview'!$A$2:$CK$2,0))>0,INDEX('LHD Overview'!$A$6:$CK$93,1,MATCH(B97,'LHD Overview'!$A$2:$CK$2,0)),""),"") ->  | G97: =IF(B97>0,VLOOKUP(B97,Table1[],6,FALSE),"") -> 
A98: =IFERROR(VLOOKUP(B98,Table1[],2,FALSE),"") ->  | C98: =IFERROR(IF(B98>0,(VLOOKUP(B98,Table1[],5,FALSE)+30),""),"") ->  | D98: =IF(B98>0,VLOOKUP(B98,Table1[],3,FALSE),"") ->  | E98: =IF(B98>0,VLOOKUP(B98,Table1[],4,FALSE),"") ->  | F98: =IFERROR(IF(INDEX('LHD Overview'!$A$6:$CK$93,1,MATCH(B98,'LHD Overview'!$A$2:$CK$2,0))>0,INDEX('LHD Overview'!$A$6:$CK$93,1,MATCH(B98,'LHD Overview'!$A$2:$CK$2,0)),""),"") ->  | G98: =IF(B98>0,VLOOKUP(B98,Table1[],6,FALSE),"") -> 
A99: =IFERROR(VLOOKUP(B99,Table1[],2,FALSE),"") ->  | C99: =IFERROR(IF(B99>0,(VLOOKUP(B99,Table1[],5,FALSE)+30),""),"") ->  | D99: =IF(B99>0,VLOOKUP(B99,Table1[],3,FALSE),"") ->  | E99: =IF(B99>0,VLOOKUP(B99,Table1[],4,FALSE),"") ->  | F99: =IFERROR(IF(INDEX('LHD Overview'!$A$6:$CK$93,1,MATCH(B99,'LHD Overview'!$A$2:$CK$2,0))>0,INDEX('LHD Overview'!$A$6:$CK$93,1,MATCH(B99,'LHD Overview'!$A$2:$CK$2,0)),""),"") ->  | G99: =IF(B99>0,VLOOKUP(B99,Table1[],6,FALSE),"") -> 
A100: =IFERROR(VLOOKUP(B100,Table1[],2,FALSE),"") ->  | C100: =IFERROR(IF(B100>0,(VLOOKUP(B100,Table1[],5,FALSE)+30),""),"") ->  | D100: =IF(B100>0,VLOOKUP(B100,Table1[],3,FALSE),"") ->  | E100: =IF(B100>0,VLOOKUP(B100,Table1[],4,FALSE),"") ->  | F100: =IFERROR(IF(INDEX('LHD Overview'!$A$6:$CK$93,1,MATCH(B100,'LHD Overview'!$A$2:$CK$2,0))>0,INDEX('LHD Overview'!$A$6:$CK$93,1,MATCH(B100,'LHD Overview'!$A$2:$CK$2,0)),""),"") ->  | G100: =IF(B100>0,VLOOKUP(B100,Table1[],6,FALSE),"") -> 
G101: =IF(B101>0,VLOOKUP(B101,Table1[],6,FALSE),"") -> 
G102: =IF(B102>0,VLOOKUP(B102,Table1[],6,FALSE),"") -> 
G103: =IF(B103>0,VLOOKUP(B103,Table1[],6,FALSE),"") -> 
G104: =IF(B104>0,VLOOKUP(B104,Table1[],6,FALSE),"") -> 
G105: =IF(B105>0,VLOOKUP(B105,Table1[],6,FALSE),"") -> 

Sheet Appleton
A1: Back to Overview
A2: ='LHD Overview'!B1 -> 2020 DPH Consolidated Contract | F2: Total Amount | G2: =SUM(F:F) -> 785062
A3: Appleton City Health Department | F3: Agency Number | G3: 449983
A4: Profile Name | B4: Profile | C4: Agency Type | D4: Start Date | E4: End Date | F4: Current Amount | G4: Final Fiscal Report Due Date
A5: =IFERROR(VLOOKUP(B5,Table1[],2,FALSE),"") -> CARES COVID19 PLAN | B5: ='Profile Overview'!B37 -> 155804 | C5: =IFERROR(IF(B5>0,(VLOOKUP(B5,Table1[],5,FALSE)+60),""),"") -> 60 | D5: =IF(B5>0,VLOOKUP(B5,Table1[],3,FALSE),"") -> 2020-03-01 | E5: =IF(B5>0,VLOOKUP(B5,Table1[],4,FALSE),"") -> 2020-12-31 | F5: =IFERROR(IF(INDEX('LHD Overview'!$A$6:$CK$93,(MATCH($A$3,'LHD Overview'!$A$6:$A$93,0)),MATCH(B5,'LHD Overview'!$A$2:$CK$2,0))>0,INDEX('LHD Overview'!$A$6:$CK$93,(MATCH($A$3,'LHD Overview'!$A$6:$A$93,0)),MATCH(B5,'LHD Overview'!$A$2:$CK$2,0)),""),"") -> 2763 | G5: =IF(B5>0,VLOOKUP(B5,Table1[],6,FALSE),"") -> 2021-02-14
A6: =IFERROR(VLOOKUP(B6,Table1[],2,FALSE),"") -> COMM DISEASE CTRL PREV LPHD | B6: ='Profile Overview'!B33 -> 155800 | C6: =IFERROR(IF(B6>0,(VLOOKUP(B6,Table1[],5,FALSE)+60),""),"") -> 160 | D6: =IF(B6>0,VLOOKUP(B6,Table1[],3,FALSE),"") -> 2020-07-01 | E6: =IF(B6>0,VLOOKUP(B6,Table1[],4,FALSE),"") -> 2021-06-30 | F6: =IFERROR(IF(INDEX('LHD Overview'!$A$6:$CK$93,(MATCH($A$3,'LHD Overview'!$A$6:$A$93,0)),MATCH(B6,'LHD Overview'!$A$2:$CK$2,0))>0,INDEX('LHD Overview'!$A$6:$CK$93,(MATCH($A$3,'LHD Overview'!$A$6:$A$93,0)),MATCH(B6,'LHD Overview'!$A$2:$CK$2,0)),""),"") -> 5700 | G6: =IF(B6>0,VLOOKUP(B6,Table1[],6,FALSE),"") -> 2021-08-14
A7: =IFERROR(VLOOKUP(B7,Table1[],2,FALSE),"") -> CONS CONTRACTS PHHS | B7: ='Profile Overview'!B42 -> 159220 | C7: =IFERROR(IF(B7>0,(VLOOKUP(B7,Table1[],5,FALSE)+60),""),"") -> 160 | D7: =IF(B7>0,VLOOKUP(B7,Table1[],3,FALSE),"") -> 2019-10-01 | E7: =IF(B7>0,VLOOKUP(B7,Table1[],4,FALSE),"") -> 2021-09-30 | F7: =IFERROR(IF(INDEX('LHD Overview'!$A$6:$CK$93,(MATCH($A$3,'LHD Overview'!$A$6:$A$93,0)),MATCH(B7,'LHD Overview'!$A$2:$CK$2,0))>0,INDEX('LHD Overview'!$A$6:$CK$93,(MATCH($A$3,'LHD Overview'!$A$6:$A$93,0)),MATCH(B7,'LHD Overview'!$A$2:$CK$2,0)),""),"") -> 6619 | G7: =IF(B7>0,VLOOKUP(B7,Table1[],6,FALSE),"") -> 2021-11-14
A8: =IFERROR(VLOOKUP(B8,Table1[],2,FALSE),"") -> CHILDHOOD LEAD CONSOLIDATED | B8: ='Profile Overview'!B41 -> 157720 | C8: =IFERROR(IF(B8>0,(VLOOKUP(B8,Table1[],5,FALSE)+60),""),"") -> 60 | D8: =IF(B8>0,VLOOKUP(B8,Table1[],3,FALSE),"") -> 2020-01-01 | E8: =IF(B8>0,VLOOKUP(B8,Table1[],4,FALSE),"") -> 2020-12-31 | F8: =IFERROR(IF(INDEX('LHD Overview'!$A$6:$CK$93,(MATCH($A$3,'LHD Overview'!$A$6:$A$93,0)),MATCH(B8,'LHD Overview'!$A$2:$CK$2,0))>0,INDEX('LHD Overview'!$A$6:$CK$93,(MATCH($A$3,'LHD Overview'!$A$6:$A$93,0)),MATCH(B8,'LHD Overview'!$A$2:$CK$2,0)),""),"") -> 9808 | G8: =IF(B8>0,VLOOKUP(B8,Table1[],6,FALSE),"") -> 2021-02-14
A9: =IFERROR(VLOOKUP(B9,Table1[],2,FALSE),"") -> CONS CONTRACTS IMM | B9: ='Profile Overview'!B26 -> 155020 | C9: =IFERROR(IF(B9>0,(VLOOKUP(B9,Table1[],5,FALSE)+60),""),"") -> 60 | D9: =IF(B9>0,VLOOKUP(B9,Table1[],3,FALSE),"") -> 2020-01-01 | E9: =IF(B9>0,VLOOKUP(B9,Table1[],4,FALSE),"") -> 2020-12-31 | F9: =IFERROR(IF(INDEX('LHD Overview'!$A$6:$CK$93,(MATCH($A$3,'LHD Overview'!$A$6:$A$93,0)),MATCH(B9,'LHD Overview'!$A$2:$CK$2,0))>0,INDEX('LHD Overview'!$A$6:$CK$93,(MATCH($A$3,'LHD Overview'!$A$6:$A$93,0)),MATCH(B9,'LHD Overview'!$A$2:$CK$2,0)),""),"") -> 21761 | G9: =IF(B9>0,VLOOKUP(B9,Table1[],6,FALSE),"") -> 2021-02-14
A10: =IFERROR(VLOOKUP(B10,Table1[],2,FALSE),"") -> ELC CARES COVID19 | B10: ='Profile Overview'!B35 -> 155802 | C10: =IFERROR(IF(B10>0,(VLOOKUP(B10,Table1[],5,FALSE)+60),""),"") -> 160 | D10: =IF(B10>0,VLOOKUP(B10,Table1[],3,FALSE),"") -> 2020-02-01 | E10: =IF(B10>0,VLOOKUP(B10,Table1[],4,FALSE),"") -> 2021-09-30 | F10: =IFERROR(IF(INDEX('LHD Overview'!$A$6:$CK$93,(MATCH($A$3,'LHD Overview'!$A$6:$A$93,0)),MATCH(B10,'LHD Overview'!$A$2:$CK$2,0))>0,INDEX('LHD Overview'!$A$6:$CK$93,(MATCH($A$3,'LHD Overview'!$A$6:$A$93,0)),MATCH(B10,'LHD Overview'!$A$2:$CK$2,0)),""),"") -> 22900 | G10: =IF(B10>0,VLOOKUP(B10,Table1[],6,FALSE),"") -> 2021-11-14
A11: =IFERROR(VLOOKUP(B11,Table1[],2,FALSE),"") -> CARES COVID19 TESTING | B11: ='Profile Overview'!B36 -> 155803 | C11: =IFERROR(IF(B11>0,(VLOOKUP(B11,Table1[],5,FALSE)+60),""),"") -> 60 | D11: =IF(B11>0,VLOOKUP(B11,Table1[],3,FALSE),"") -> 2020-03-01 | E11: =IF(B11>0,VLOOKUP(B11,Table1[],4,FALSE),"") -> 2020-12-31 | F11: =IFERROR(IF(INDEX('LHD Overview'!$A$6:$CK$93,(MATCH($A$3,'LHD Overview'!$A$6:$A$93,0)),MATCH(B11,'LHD Overview'!$A$2:$CK$2,0))>0,INDEX('LHD Overview'!$A$6:$CK$93,(MATCH($A$3,'LHD Overview'!$A$6:$A$93,0)),MATCH(B11,'LHD Overview'!$A$2:$CK$2,0)),""),"") -> 28400 | G11: =IF(B11>0,VLOOKUP(B11,Table1[],6,FALSE),"") -> 2021-02-14
A12: =IFERROR(VLOOKUP(B12,Table1[],2,FALSE),"") -> CONS CONTRACTS MCH | B12: ='Profile Overview'!B43 -> 159320 | C12: =IFERROR(IF(B12>0,(VLOOKUP(B12,Table1[],5,FALSE)+60),""),"") -> 60 | D12: =IF(B12>0,VLOOKUP(B12,Table1[],3,FALSE),"") -> 2020-01-01 | E12: =IF(B12>0,VLOOKUP(B12,Table1[],4,FALSE),"") -> 2020-12-31 | F12: =IFERROR(IF(INDEX('LHD Overview'!$A$6:$CK$93,(MATCH($A$3,'LHD Overview'!$A$6:$A$93,0)),MATCH(B12,'LHD Overview'!$A$2:$CK$2,0))>0,INDEX('LHD Overview'!$A$6:$CK$93,(MATCH($A$3,'LHD Overview'!$A$6:$A$93,0)),MATCH(B12,'LHD Overview'!$A$2:$CK$2,0)),""),"") -> 29172 | G12: =IF(B12>0,VLOOKUP(B12,Table1[],6,FALSE),"") -> 2021-02-14
A13: =IFERROR(VLOOKUP(B13,Table1[],2,FALSE),"") -> BIOT Focus A Planning | B13: ='Profile Overview'!B25 -> 155015 | C13: =IFERROR(IF(B13>0,(VLOOKUP(B13,Table1[],5,FALSE)+60),""),"") -> 160 | D13: =IF(B13>0,VLOOKUP(B13,Table1[],3,FALSE),"") -> 2020-07-01 | E13: =IF(B13>0,VLOOKUP(B13,Table1[],4,FALSE),"") -> 2021-06-30 | F13: =IFERROR(IF(INDEX('LHD Overview'!$A$6:$CK$93,(MATCH($A$3,'LHD Overview'!$A$6:$A$93,0)),MATCH(B13,'LHD Overview'!$A$2:$CK$2,0))>0,INDEX('LHD Overview'!$A$6:$CK$93,(MATCH($A$3,'LHD Overview'!$A$6:$A$93,0)),MATCH(B13,'LHD Overview'!$A$2:$CK$2,0)),""),"") -> 53243 | G13: =IF(B13>0,VLOOKUP(B13,Table1[],6,FALSE),"") -> 2021-08-14
A14: =IFERROR(VLOOKUP(B14,Table1[],2,FALSE),"") -> DPH PHEP COVID19 | B14: ='Profile Overview'!B34 -> 155801 | C14: =IFERROR(IF(B14>0,(VLOOKUP(B14,Table1[],5,FALSE)+60),""),"") -> 160 | D14: =IF(B14>0,VLOOKUP(B14,Table1[],3,FALSE),"") -> 2020-04-01 | E14: =IF(B14>0,VLOOKUP(B14,Table1[],4,FALSE),"") -> 2021-03-31 | F14: =IFERROR(IF(INDEX('LHD Overview'!$A$6:$CK$93,(MATCH($A$3,'LHD Overview'!$A$6:$A$93,0)),MATCH(B14,'LHD Overview'!$A$2:$CK$2,0))>0,INDEX('LHD Overview'!$A$6:$CK$93,(MATCH($A$3,'LHD Overview'!$A$6:$A$93,0)),MATCH(B14,'LHD Overview'!$A$2:$CK$2,0)),""),"") -> 53243 | G14: =IF(B14>0,VLOOKUP(B14,Table1[],6,FALSE),"") -> 2021-05-15
A15: =IFERROR(VLOOKUP(B15,Table1[],2,FALSE),"") -> COVID19 Contact Tracing | B15: ='Profile Overview'!B38 -> 155805 | C15: =IFERROR(IF(B15>0,(VLOOKUP(B15,Table1[],5,FALSE)+60),""),"") -> 60 | D15: =IF(B15>0,VLOOKUP(B15,Table1[],3,FALSE),"") -> 2020-03-01 | E15: =IF(B15>0,VLOOKUP(B15,Table1[],4,FALSE),"") -> 2020-12-31 | F15: =IFERROR(IF(INDEX('LHD Overview'!$A$6:$CK$93,(MATCH($A$3,'LHD Overview'!$A$6:$A$93,0)),MATCH(B15,'LHD Overview'!$A$2:$CK$2,0))>0,INDEX('LHD Overview'!$A$6:$CK$93,(MATCH($A$3,'LHD Overview'!$A$6:$A$93,0)),MATCH(B15,'LHD Overview'!$A$2:$CK$2,0)),""),"") -> 551453 | G15: =IF(B15>0,VLOOKUP(B15,Table1[],6,FALSE),"") -> 2021-02-14
A16: =IFERROR(VLOOKUP(B16,Table1[],2,FALSE),"") -> INFERTILITY PREVENTION | B16: ='Profile Overview'!B27 -> 155027 | C16: =IFERROR(IF(B16>0,(VLOOKUP(B16,Table1[],5,FALSE)+60),""),"") -> 60 | D16: =IF(B16>0,VLOOKUP(B16,Table1[],3,FALSE),"") -> 2020-01-01 | E16: =IF(B16>0,VLOOKUP(B16,Table1[],4,FALSE),"") -> 2020-12-31 | F16: =IFERROR(IF(INDEX('LHD Overview'!$A$6:$CK$93,(MATCH($A$3,'LHD Overview'!$A$6:$A$93,0)),MATCH(B16,'LHD Overview'!$A$2:$CK$2,0))>0,INDEX('LHD Overview'!$A$6:$CK$93,(MATCH($A$3,'LHD Overview'!$A$6:$A$93,0)),MATCH(B16,'LHD Overview'!$A$2:$CK$2,0)),""),"") ->  | G16: =IF(B16>0,VLOOKUP(B16,Table1[],6,FALSE),"") -> 2021-02-14
A17: =IFERROR(VLOOKUP(B17,Table1[],2,FALSE),"") -> BREASTFEEDING CAMPAIGN | B17: ='Profile Overview'!B23 -> 154761 | C17: =IFERROR(IF(B17>0,(VLOOKUP(B17,Table1[],5,FALSE)+60),""),"") -> 160 | D17: =IF(B17>0,VLOOKUP(B17,Table1[],3,FALSE),"") -> 2020-10-01 | E17: =IF(B17>0,VLOOKUP(B17,Table1[],4,FALSE),"") -> 2021-09-30 | F17: =IFERROR(IF(INDEX('LHD Overview'!$A$6:$CK$93,(MATCH($A$3,'LHD Overview'!$A$6:$A$93,0)),MATCH(B17,'LHD Overview'!$A$2:$CK$2,0))>0,INDEX('LHD Overview'!$A$6:$CK$93,(MATCH($A$3,'LHD Overview'!$A$6:$A$93,0)),MATCH(B17,'LHD Overview'!$A$2:$CK$2,0)),""),"") ->  | G17: =IF(B17>0,VLOOKUP(B17,Table1[],6,FALSE),"") -> 2021-11-14
A18: =IFERROR(VLOOKUP(B18,Table1[],2,FALSE),"") -> ASTHMA CAPACITY | B18: ='Profile Overview'!B29 -> 155072 | C18: =IFERROR(IF(B18>0,(VLOOKUP(B18,Table1[],5,FALSE)+60),""),"") -> 160 | D18: =IF(B18>0,VLOOKUP(B18,Table1[],3,FALSE),"") -> 2020-09-01 | E18: =IF(B18>0,VLOOKUP(B18,Table1[],4,FALSE),"") -> 2021-08-31 | F18: =IFERROR(IF(INDEX('LHD Overview'!$A$6:$CK$93,(MATCH($A$3,'LHD Overview'!$A$6:$A$93,0)),MATCH(B18,'LHD Overview'!$A$2:$CK$2,0))>0,INDEX('LHD Overview'!$A$6:$CK$93,(MATCH($A$3,'LHD Overview'!$A$6:$A$93,0)),MATCH(B18,'LHD Overview'!$A$2:$CK$2,0)),""),"") ->  | G18: =IF(B18>0,VLOOKUP(B18,Table1[],6,FALSE),"") -> 2021-10-15
A19: =IFERROR(VLOOKUP(B19,Table1[],2,FALSE),"") -> REGNL RADON INF CENTERS | B19: ='Profile Overview'!B8 -> 103010 | C19: =IFERROR(IF(B19>0,(VLOOKUP(B19,Table1[],5,FALSE)+60),""),"") -> 60 | D19: =IF(B19>0,VLOOKUP(B19,Table1[],3,FALSE),"") -> 2020-01-01 | E19: =IF(B19>0,VLOOKUP(B19,Table1[],4,FALSE),"") -> 2020-12-31 | F19: =IFERROR(IF(INDEX('LHD Overview'!$A$6:$CK$93,(MATCH($A$3,'LHD Overview'!$A$6:$A$93,0)),MATCH(B19,'LHD Overview'!$A$2:$CK$2,0))>0,INDEX('LHD Overview'!$A$6:$CK$93,(MATCH($A$3,'LHD Overview'!$A$6:$A$93,0)),MATCH(B19,'LHD Overview'!$A$2:$CK$2,0)),""),"") ->  | G19: =IF(B19>0,VLOOKUP(B19,Table1[],6,FALSE),"") -> 2021-02-14
A20: =IFERROR(VLOOKUP(B20,Table1[],2,FALSE),"") -> PH EMERGENCY QUARANTINE | B20: ='Profile Overview'!B9 -> 105000 | C20: =IFERROR(IF(B20>0,(VLOOKUP(B20,Table1[],5,FALSE)+60),""),"") -> 160 | D20: =IF(B20>0,VLOOKUP(B20,Table1[],3,FALSE),"") -> 2020-08-01 | E20: =IF(B20>0,VLOOKUP(B20,Table1[],4,FALSE),"") -> 2021-06-30 | F20: =IFERROR(IF(INDEX('LHD Overview'!$A$6:$CK$93,(MATCH($A$3,'LHD Overview'!$A$6:$A$93,0)),MATCH(B20,'LHD Overview'!$A$2:$CK$2,0))>0,INDEX('LHD Overview'!$A$6:$CK$93,(MATCH($A$3,'LHD Overview'!$A$6:$A$93,0)),MATCH(B20,'LHD Overview'!$A$2:$CK$2,0)),""),"") ->  | G20: =IF(B20>0,VLOOKUP(B20,Table1[],6,FALSE),"") -> 2021-08-14
A21: =IFERROR(VLOOKUP(B21,Table1[],2,FALSE),"") -> INFANT MORTALITY-RACINE | B21: ='Profile Overview'!B10 -> 110190 | C21: =IFERROR(IF(B21>0,(VLOOKUP(B21,Table1[],5,FALSE)+60),""),"") -> 160 | D21: =IF(B21>0,VLOOKUP(B21,Table1[],3,FALSE),"") -> 2020-07-01 | E21: =IF(B21>0,VLOOKUP(B21,Table1[],4,FALSE),"") -> 2021-06-30 | F21: =IFERROR(IF(INDEX('LHD Overview'!$A$6:$CK$93,(MATCH($A$3,'LHD Overview'!$A$6:$A$93,0)),MATCH(B21,'LHD Overview'!$A$2:$CK$2,0))>0,INDEX('LHD Overview'!$A$6:$CK$93,(MATCH($A$3,'LHD Overview'!$A$6:$A$93,0)),MATCH(B21,'LHD Overview'!$A$2:$CK$2,0)),""),"") ->  | G21: =IF(B21>0,VLOOKUP(B21,Table1[],6,FALSE),"") -> 2021-08-14
A22: =IFERROR(VLOOKUP(B22,Table1[],2,FALSE),"") -> GPR CANCER, CITY OF MILW | B22: ='Profile Overview'!B11 -> 119011 | C22: =IFERROR(IF(B22>0,(VLOOKUP(B22,Table1[],5,FALSE)+60),""),"") -> 160 | D22: =IF(B22>0,VLOOKUP(B22,Table1[],3,FALSE),"") -> 2020-07-01 | E22: =IF(B22>0,VLOOKUP(B22,Table1[],4,FALSE),"") -> 2021-06-30 | F22: =IFERROR(IF(INDEX('LHD Overview'!$A$6:$CK$93,(MATCH($A$3,'LHD Overview'!$A$6:$A$93,0)),MATCH(B22,'LHD Overview'!$A$2:$CK$2,0))>0,INDEX('LHD Overview'!$A$6:$CK$93,(MATCH($A$3,'LHD Overview'!$A$6:$A$93,0)),MATCH(B22,'LHD Overview'!$A$2:$CK$2,0)),""),"") ->  | G22: =IF(B22>0,VLOOKUP(B22,Table1[],6,FALSE),"") -> 2021-08-14
A23: =IFERROR(VLOOKUP(B23,Table1[],2,FALSE),"") -> CONGENITAL DISORDERS | B23: ='Profile Overview'!B12 -> 128010 | C23: =IFERROR(IF(B23>0,(VLOOKUP(B23,Table1[],5,FALSE)+60),""),"") -> 160 | D23: =IF(B23>0,VLOOKUP(B23,Table1[],3,FALSE),"") -> 2020-07-01 | E23: =IF(B23>0,VLOOKUP(B23,Table1[],4,FALSE),"") -> 2021-06-30 | F23: =IFERROR(IF(INDEX('LHD Overview'!$A$6:$CK$93,(MATCH($A$3,'LHD Overview'!$A$6:$A$93,0)),MATCH(B23,'LHD Overview'!$A$2:$CK$2,0))>0,INDEX('LHD Overview'!$A$6:$CK$93,(MATCH($A$3,'LHD Overview'!$A$6:$A$93,0)),MATCH(B23,'LHD Overview'!$A$2:$CK$2,0)),""),"") ->  | G23: =IF(B23>0,VLOOKUP(B23,Table1[],6,FALSE),"") -> 2021-08-14
A24: =IFERROR(VLOOKUP(B24,Table1[],2,FALSE),"") -> OPIOID RX PATHWAY PROJ | B24: ='Profile Overview'!B13 -> 150211 | C24: =IFERROR(IF(B24>0,(VLOOKUP(B24,Table1[],5,FALSE)+60),""),"") -> 160 | D24: =IF(B24>0,VLOOKUP(B24,Table1[],3,FALSE),"") -> 2020-09-01 | E24: =IF(B24>0,VLOOKUP(B24,Table1[],4,FALSE),"") -> 2021-08-31 | F24: =IFERROR(IF(INDEX('LHD Overview'!$A$6:$CK$93,(MATCH($A$3,'LHD Overview'!$A$6:$A$93,0)),MATCH(B24,'LHD Overview'!$A$2:$CK$2,0))>0,INDEX('LHD Overview'!$A$6:$CK$93,(MATCH($A$3,'LHD Overview'!$A$6:$A$93,0)),MATCH(B24,'LHD Overview'!$A$2:$CK$2,0)),""),"") ->  | G24: =IF(B24>0,VLOOKUP(B24,Table1[],6,FALSE),"") -> 2021-10-15
A25: =IFERROR(VLOOKUP(B25,Table1[],2,FALSE),"") -> OVERDOSE FATALITY REVIEWS | B25: ='Profile Overview'!B14 -> 150216 | C25: =IFERROR(IF(B25>0,(VLOOKUP(B25,Table1[],5,FALSE)+60),""),"") -> 160 | D25: =IF(B25>0,VLOOKUP(B25,Table1[],3,FALSE),"") -> 2020-09-01 | E25: =IF(B25>0,VLOOKUP(B25,Table1[],4,FALSE),"") -> 2021-08-31 | F25: =IFERROR(IF(INDEX('LHD Overview'!$A$6:$CK$93,(MATCH($A$3,'LHD Overview'!$A$6:$A$93,0)),MATCH(B25,'LHD Overview'!$A$2:$CK$2,0))>0,INDEX('LHD Overview'!$A$6:$CK$93,(MATCH($A$3,'LHD Overview'!$A$6:$A$93,0)),MATCH(B25,'LHD Overview'!$A$2:$CK$2,0)),""),"") ->  | G25: =IF(B25>0,VLOOKUP(B25,Table1[],6,FALSE),"") -> 2021-10-15
A26: =IFERROR(VLOOKUP(B26,Table1[],2,FALSE),"") -> EPA INDOOR RADON SERVICES | B26: ='Profile Overview'!B15 -> 150321 | C26: =IFERROR(IF(B26>0,(VLOOKUP(B26,Table1[],5,FALSE)+60),""),"") -> 60 | D26: =IF(B26>0,VLOOKUP(B26,Table1[],3,FALSE),"") -> 2020-01-01 | E26: =IF(B26>0,VLOOKUP(B26,Table1[],4,FALSE),"") -> 2020-12-31 | F26: =IFERROR(IF(INDEX('LHD Overview'!$A$6:$CK$93,(MATCH($A$3,'LHD Overview'!$A$6:$A$93,0)),MATCH(B26,'LHD Overview'!$A$2:$CK$2,0))>0,INDEX('LHD Overview'!$A$6:$CK$93,(MATCH($A$3,'LHD Overview'!$A$6:$A$93,0)),MATCH(B26,'LHD Overview'!$A$2:$CK$2,0)),""),"") ->  | G26: =IF(B26>0,VLOOKUP(B26,Table1[],6,FALSE),"") -> 2021-02-14
A27: =IFERROR(VLOOKUP(B27,Table1[],2,FALSE),"") -> 1815 DIABETES | B27: ='Profile Overview'!B16 -> 150426 | C27: =IFERROR(IF(B27>0,(VLOOKUP(B27,Table1[],5,FALSE)+60),""),"") -> 160 | D27: =IF(B27>0,VLOOKUP(B27,Table1[],3,FALSE),"") -> 2020-07-01 | E27: =IF(B27>0,VLOOKUP(B27,Table1[],4,FALSE),"") -> 2021-06-30 | F27: =IFERROR(IF(INDEX('LHD Overview'!$A$6:$CK$93,(MATCH($A$3,'LHD Overview'!$A$6:$A$93,0)),MATCH(B27,'LHD Overview'!$A$2:$CK$2,0))>0,INDEX('LHD Overview'!$A$6:$CK$93,(MATCH($A$3,'LHD Overview'!$A$6:$A$93,0)),MATCH(B27,'LHD Overview'!$A$2:$CK$2,0)),""),"") ->  | G27: =IF(B27>0,VLOOKUP(B27,Table1[],6,FALSE),"") -> 2021-08-14
A28: =IFERROR(VLOOKUP(B28,Table1[],2,FALSE),"") -> 1815 HEART DISEASE PREV | B28: ='Profile Overview'!B17 -> 150427 | C28: =IFERROR(IF(B28>0,(VLOOKUP(B28,Table1[],5,FALSE)+60),""),"") -> 160 | D28: =IF(B28>0,VLOOKUP(B28,Table1[],3,FALSE),"") -> 2020-07-01 | E28: =IF(B28>0,VLOOKUP(B28,Table1[],4,FALSE),"") -> 2021-06-30 | F28: =IFERROR(IF(INDEX('LHD Overview'!$A$6:$CK$93,(MATCH($A$3,'LHD Overview'!$A$6:$A$93,0)),MATCH(B28,'LHD Overview'!$A$2:$CK$2,0))>0,INDEX('LHD Overview'!$A$6:$CK$93,(MATCH($A$3,'LHD Overview'!$A$6:$A$93,0)),MATCH(B28,'LHD Overview'!$A$2:$CK$2,0)),""),"") ->  | G28: =IF(B28>0,VLOOKUP(B28,Table1[],6,FALSE),"") -> 2021-08-14
A29: =IFERROR(VLOOKUP(B29,Table1[],2,FALSE),"") -> 1817 SL DIABETES PREV | B29: ='Profile Overview'!B18 -> 150429 | C29: =IFERROR(IF(B29>0,(VLOOKUP(B29,Table1[],5,FALSE)+60),""),"") -> 160 | D29: =IF(B29>0,VLOOKUP(B29,Table1[],3,FALSE),"") -> 2020-10-01 | E29: =IF(B29>0,VLOOKUP(B29,Table1[],4,FALSE),"") -> 2021-09-30 | F29: =IFERROR(IF(INDEX('LHD Overview'!$A$6:$CK$93,(MATCH($A$3,'LHD Overview'!$A$6:$A$93,0)),MATCH(B29,'LHD Overview'!$A$2:$CK$2,0))>0,INDEX('LHD Overview'!$A$6:$CK$93,(MATCH($A$3,'LHD Overview'!$A$6:$A$93,0)),MATCH(B29,'LHD Overview'!$A$2:$CK$2,0)),""),"") ->  | G29: =IF(B29>0,VLOOKUP(B29,Table1[],6,FALSE),"") -> 2021-11-14
A30: =IFERROR(VLOOKUP(B30,Table1[],2,FALSE),"") -> COMM WATER FLUORIDATION | B30: ='Profile Overview'!B19 -> 151741 | C30: =IFERROR(IF(B30>0,(VLOOKUP(B30,Table1[],5,FALSE)+60),""),"") -> 160 | D30: =IF(B30>0,VLOOKUP(B30,Table1[],3,FALSE),"") -> 2020-07-01 | E30: =IF(B30>0,VLOOKUP(B30,Table1[],4,FALSE),"") -> 2021-06-30 | F30: =IFERROR(IF(INDEX('LHD Overview'!$A$6:$CK$93,(MATCH($A$3,'LHD Overview'!$A$6:$A$93,0)),MATCH(B30,'LHD Overview'!$A$2:$CK$2,0))>0,INDEX('LHD Overview'!$A$6:$CK$93,(MATCH($A$3,'LHD Overview'!$A$6:$A$93,0)),MATCH(B30,'LHD Overview'!$A$2:$CK$2,0)),""),"") ->  | G30: =IF(B30>0,VLOOKUP(B30,Table1[],6,FALSE),"") -> 2021-08-14
A31: =IFERROR(VLOOKUP(B31,Table1[],2,FALSE),"") -> WH/FP RH 253.07 (E) | B31: ='Profile Overview'!B20 -> 152003 | C31: =IFERROR(IF(B31>0,(VLOOKUP(B31,Table1[],5,FALSE)+60),""),"") -> 60 | D31: =IF(B31>0,VLOOKUP(B31,Table1[],3,FALSE),"") -> 2020-01-01 | E31: =IF(B31>0,VLOOKUP(B31,Table1[],4,FALSE),"") -> 2020-12-31 | F31: =IFERROR(IF(INDEX('LHD Overview'!$A$6:$CK$93,(MATCH($A$3,'LHD Overview'!$A$6:$A$93,0)),MATCH(B31,'LHD Overview'!$A$2:$CK$2,0))>0,INDEX('LHD Overview'!$A$6:$CK$93,(MATCH($A$3,'LHD Overview'!$A$6:$A$93,0)),MATCH(B31,'LHD Overview'!$A$2:$CK$2,0)),""),"") ->  | G31: =IF(B31>0,VLOOKUP(B31,Table1[],6,FALSE),"") -> 2021-02-14
A32: =IFERROR(VLOOKUP(B32,Table1[],2,FALSE),"") -> WH/FP RH 253.07 (D) | B32: ='Profile Overview'!B21 -> 152020 | C32: =IFERROR(IF(B32>0,(VLOOKUP(B32,Table1[],5,FALSE)+60),""),"") -> 60 | D32: =IF(B32>0,VLOOKUP(B32,Table1[],3,FALSE),"") -> 2020-01-01 | E32: =IF(B32>0,VLOOKUP(B32,Table1[],4,FALSE),"") -> 2020-12-31 | F32: =IFERROR(IF(INDEX('LHD Overview'!$A$6:$CK$93,(MATCH($A$3,'LHD Overview'!$A$6:$A$93,0)),MATCH(B32,'LHD Overview'!$A$2:$CK$2,0))>0,INDEX('LHD Overview'!$A$6:$CK$93,(MATCH($A$3,'LHD Overview'!$A$6:$A$93,0)),MATCH(B32,'LHD Overview'!$A$2:$CK$2,0)),""),"") ->  | G32: =IF(B32>0,VLOOKUP(B32,Table1[],6,FALSE),"") -> 2021-02-14
A33: =IFERROR(VLOOKUP(B33,Table1[],2,FALSE),"") -> SNAP NUTR ED GRANT | B33: ='Profile Overview'!B22 -> 154661 | C33: =IFERROR(IF(B33>0,(VLOOKUP(B33,Table1[],5,FALSE)+60),""),"") -> 160 | D33: =IF(B33>0,VLOOKUP(B33,Table1[],3,FALSE),"") -> 2020-10-01 | E33: =IF(B33>0,VLOOKUP(B33,Table1[],4,FALSE),"") -> 2021-09-30 | F33: =IFERROR(IF(INDEX('LHD Overview'!$A$6:$CK$93,(MATCH($A$3,'LHD Overview'!$A$6:$A$93,0)),MATCH(B33,'LHD Overview'!$A$2:$CK$2,0))>0,INDEX('LHD Overview'!$A$6:$CK$93,(MATCH($A$3,'LHD Overview'!$A$6:$A$93,0)),MATCH(B33,'LHD Overview'!$A$2:$CK$2,0)),""),"") ->  | G33: =IF(B33>0,VLOOKUP(B33,Table1[],6,FALSE),"") -> 2021-11-14
A34: =IFERROR(VLOOKUP(B34,Table1[],2,FALSE),"") -> CYSHCN Birth Defects | B34: ='Profile Overview'!B24 -> 154791 | C34: =IFERROR(IF(B34>0,(VLOOKUP(B34,Table1[],5,FALSE)+60),""),"") -> 60 | D34: =IF(B34>0,VLOOKUP(B34,Table1[],3,FALSE),"") -> 2020-01-01 | E34: =IF(B34>0,VLOOKUP(B34,Table1[],4,FALSE),"") -> 2020-06-30 | F34: =IFERROR(IF(INDEX('LHD Overview'!$A$6:$CK$93,(MATCH($A$3,'LHD Overview'!$A$6:$A$93,0)),MATCH(B34,'LHD Overview'!$A$2:$CK$2,0))>0,INDEX('LHD Overview'!$A$6:$CK$93,(MATCH($A$3,'LHD Overview'!$A$6:$A$93,0)),MATCH(B34,'LHD Overview'!$A$2:$CK$2,0)),""),"") ->  | G34: =IF(B34>0,VLOOKUP(B34,Table1[],6,FALSE),"") -> 2020-08-14
A35: =IFERROR(VLOOKUP(B35,Table1[],2,FALSE),"") -> BIOTERRORISM FOCUS A | B35: ='Profile Overview'!B28 -> 155050 | C35: =IFERROR(IF(B35>0,(VLOOKUP(B35,Table1[],5,FALSE)+60),""),"") -> 160 | D35: =IF(B35>0,VLOOKUP(B35,Table1[],3,FALSE),"") -> 2020-07-01 | E35: =IF(B35>0,VLOOKUP(B35,Table1[],4,FALSE),"") -> 2021-06-30 | F35: =IFERROR(IF(INDEX('LHD Overview'!$A$6:$CK$93,(MATCH($A$3,'LHD Overview'!$A$6:$A$93,0)),MATCH(B35,'LHD Overview'!$A$2:$CK$2,0))>0,INDEX('LHD Overview'!$A$6:$CK$93,(MATCH($A$3,'LHD Overview'!$A$6:$A$93,0)),MATCH(B35,'LHD Overview'!$A$2:$CK$2,0)),""),"") ->  | G35: =IF(B35>0,VLOOKUP(B35,Table1[],6,FALSE),"") -> 2021-08-14
A36: =IFERROR(VLOOKUP(B36,Table1[],2,FALSE),"") -> RAPE PREV AND EDUCATION | B36: ='Profile Overview'!B30 -> 155080 | C36: =IFERROR(IF(B36>0,(VLOOKUP(B36,Table1[],5,FALSE)+60),""),"") -> 160 | D36: =IF(B36>0,VLOOKUP(B36,Table1[],3,FALSE),"") -> 2020-02-01 | E36: =IF(B36>0,VLOOKUP(B36,Table1[],4,FALSE),"") -> 2021-01-31 | F36: =IFERROR(IF(INDEX('LHD Overview'!$A$6:$CK$93,(MATCH($A$3,'LHD Overview'!$A$6:$A$93,0)),MATCH(B36,'LHD Overview'!$A$2:$CK$2,0))>0,INDEX('LHD Overview'!$A$6:$CK$93,(MATCH($A$3,'LHD Overview'!$A$6:$A$93,0)),MATCH(B36,'LHD Overview'!$A$2:$CK$2,0)),""),"") ->  | G36: =IF(B36>0,VLOOKUP(B36,Table1[],6,FALSE),"") -> 2021-03-17
A37: =IFERROR(VLOOKUP(B37,Table1[],2,FALSE),"") -> BIOT PREPARE - CRI | B37: ='Profile Overview'!B31 -> 155190 | C37: =IFERROR(IF(B37>0,(VLOOKUP(B37,Table1[],5,FALSE)+60),""),"") -> 60 | D37: =IF(B37>0,VLOOKUP(B37,Table1[],3,FALSE),"") -> 2020-07-01 | E37: =IF(B37>0,VLOOKUP(B37,Table1[],4,FALSE),"") -> 2020-06-30 | F37: =IFERROR(IF(INDEX('LHD Overview'!$A$6:$CK$93,(MATCH($A$3,'LHD Overview'!$A$6:$A$93,0)),MATCH(B37,'LHD Overview'!$A$2:$CK$2,0))>0,INDEX('LHD Overview'!$A$6:$CK$93,(MATCH($A$3,'LHD Overview'!$A$6:$A$93,0)),MATCH(B37,'LHD Overview'!$A$2:$CK$2,0)),""),"") ->  | G37: =IF(B37>0,VLOOKUP(B37,Table1[],6,FALSE),"") -> 2020-08-14
A38: =IFERROR(VLOOKUP(B38,Table1[],2,FALSE),"") -> BIOT PREPARE - CRI | B38: ='Profile Overview'!B32 -> 155191 | C38: =IFERROR(IF(B38>0,(VLOOKUP(B38,Table1[],5,FALSE)+60),""),"") -> 60 | D38: =IF(B38>0,VLOOKUP(B38,Table1[],3,FALSE),"") -> 2020-07-01 | E38: =IF(B38>0,VLOOKUP(B38,Table1[],4,FALSE),"") -> 2020-06-30 | F38: =IFERROR(IF(INDEX('LHD Overview'!$A$6:$CK$93,(MATCH($A$3,'LHD Overview'!$A$6:$A$93,0)),MATCH(B38,'LHD Overview'!$A$2:$CK$2,0))>0,INDEX('LHD Overview'!$A$6:$CK$93,(MATCH($A$3,'LHD Overview'!$A$6:$A$93,0)),MATCH(B38,'LHD Overview'!$A$2:$CK$2,0)),""),"") ->  | G38: =IF(B38>0,VLOOKUP(B38,Table1[],6,FALSE),"") -> 2020-08-14
A39: =IFERROR(VLOOKUP(B39,Table1[],2,FALSE),"") -> DIS FIELD STAFF | B39: ='Profile Overview'!B39 -> 155945 | C39: =IFERROR(IF(B39>0,(VLOOKUP(B39,Table1[],5,FALSE)+60),""),"") -> 60 | D39: =IF(B39>0,VLOOKUP(B39,Table1[],3,FALSE),"") -> 2020-01-01 | E39: =IF(B39>0,VLOOKUP(B39,Table1[],4,FALSE),"") -> 2020-12-31 | F39: =IFERROR(IF(INDEX('LHD Overview'!$A$6:$CK$93,(MATCH($A$3,'LHD Overview'!$A$6:$A$93,0)),MATCH(B39,'LHD Overview'!$A$2:$CK$2,0))>0,INDEX('LHD Overview'!$A$6:$CK$93,(MATCH($A$3,'LHD Overview'!$A$6:$A$93,0)),MATCH(B39,'LHD Overview'!$A$2:$CK$2,0)),""),"") ->  | G39: =IF(B39>0,VLOOKUP(B39,Table1[],6,FALSE),"") -> 2021-02-14
A40: =IFERROR(VLOOKUP(B40,Table1[],2,FALSE),"") -> HIV PREV PS & LINKAGES | B40: ='Profile Overview'!B40 -> 155957 | C40: =IFERROR(IF(B40>0,(VLOOKUP(B40,Table1[],5,FALSE)+60),""),"") -> 60 | D40: =IF(B40>0,VLOOKUP(B40,Table1[],3,FALSE),"") -> 2020-01-01 | E40: =IF(B40>0,VLOOKUP(B40,Table1[],4,FALSE),"") -> 2020-12-31 | F40: =IFERROR(IF(INDEX('LHD Overview'!$A$6:$CK$93,(MATCH($A$3,'LHD Overview'!$A$6:$A$93,0)),MATCH(B40,'LHD Overview'!$A$2:$CK$2,0))>0,INDEX('LHD Overview'!$A$6:$CK$93,(MATCH($A$3,'LHD Overview'!$A$6:$A$93,0)),MATCH(B40,'LHD Overview'!$A$2:$CK$2,0)),""),"") ->  | G40: =IF(B40>0,VLOOKUP(B40,Table1[],6,FALSE),"") -> 2021-02-14
A41: =IFERROR(VLOOKUP(B41,Table1[],2,FALSE),"") -> WH/FP RH 20.435 (1)(EV) | B41: ='Profile Overview'!B44 -> 159322 | C41: =IFERROR(IF(B41>0,(VLOOKUP(B41,Table1[],5,FALSE)+60),""),"") -> 60 | D41: =IF(B41>0,VLOOKUP(B41,Table1[],3,FALSE),"") -> 2020-01-01 | E41: =IF(B41>0,VLOOKUP(B41,Table1[],4,FALSE),"") -> 2020-12-31 | F41: =IFERROR(IF(INDEX('LHD Overview'!$A$6:$CK$93,(MATCH($A$3,'LHD Overview'!$A$6:$A$93,0)),MATCH(B41,'LHD Overview'!$A$2:$CK$2,0))>0,INDEX('LHD Overview'!$A$6:$CK$93,(MATCH($A$3,'LHD Overview'!$A$6:$A$93,0)),MATCH(B41,'LHD Overview'!$A$2:$CK$2,0)),""),"") ->  | G41: =IF(B41>0,VLOOKUP(B41,Table1[],6,FALSE),"") -> 2021-02-14
A42: =IFERROR(VLOOKUP(B42,Table1[],2,FALSE),"") -> WH/FP RH 253.07(4)(A) | B42: ='Profile Overview'!B45 -> 159327 | C42: =IFERROR(IF(B42>0,(VLOOKUP(B42,Table1[],5,FALSE)+60),""),"") -> 60 | D42: =IF(B42>0,VLOOKUP(B42,Table1[],3,FALSE),"") -> 2020-01-01 | E42: =IF(B42>0,VLOOKUP(B42,Table1[],4,FALSE),"") -> 2020-12-31 | F42: =IFERROR(IF(INDEX('LHD Overview'!$A$6:$CK$93,(MATCH($A$3,'LHD Overview'!$A$6:$A$93,0)),MATCH(B42,'LHD Overview'!$A$2:$CK$2,0))>0,INDEX('LHD Overview'!$A$6:$CK$93,(MATCH($A$3,'LHD Overview'!$A$6:$A$93,0)),MATCH(B42,'LHD Overview'!$A$2:$CK$2,0)),""),"") ->  | G42: =IF(B42>0,VLOOKUP(B42,Table1[],6,FALSE),"") -> 2021-02-14
A43: =IFERROR(VLOOKUP(B43,Table1[],2,FALSE),"") -> TITLE X SERVICES | B43: ='Profile Overview'!B46 -> 159328 | C43: =IFERROR(IF(B43>0,(VLOOKUP(B43,Table1[],5,FALSE)+60),""),"") -> 160 | D43: =IF(B43>0,VLOOKUP(B43,Table1[],3,FALSE),"") -> 2020-04-01 | E43: =IF(B43>0,VLOOKUP(B43,Table1[],4,FALSE),"") -> 2021-03-31 | F43: =IFERROR(IF(INDEX('LHD Overview'!$A$6:$CK$93,(MATCH($A$3,'LHD Overview'!$A$6:$A$93,0)),MATCH(B43,'LHD Overview'!$A$2:$CK$2,0))>0,INDEX('LHD Overview'!$A$6:$CK$93,(MATCH($A$3,'LHD Overview'!$A$6:$A$93,0)),MATCH(B43,'LHD Overview'!$A$2:$CK$2,0)),""),"") ->  | G43: =IF(B43>0,VLOOKUP(B43,Table1[],6,FALSE),"") -> 2021-05-15
A44: =IFERROR(VLOOKUP(B44,Table1[],2,FALSE),"") -> STATEWIDES-PERF BASED | B44: ='Profile Overview'!B47 -> 159332 | C44: =IFERROR(IF(B44>0,(VLOOKUP(B44,Table1[],5,FALSE)+60),""),"") -> 60 | D44: =IF(B44>0,VLOOKUP(B44,Table1[],3,FALSE),"") -> 2020-01-01 | E44: =IF(B44>0,VLOOKUP(B44,Table1[],4,FALSE),"") -> 2020-12-31 | F44: =IFERROR(IF(INDEX('LHD Overview'!$A$6:$CK$93,(MATCH($A$3,'LHD Overview'!$A$6:$A$93,0)),MATCH(B44,'LHD Overview'!$A$2:$CK$2,0))>0,INDEX('LHD Overview'!$A$6:$CK$93,(MATCH($A$3,'LHD Overview'!$A$6:$A$93,0)),MATCH(B44,'LHD Overview'!$A$2:$CK$2,0)),""),"") ->  | G44: =IF(B44>0,VLOOKUP(B44,Table1[],6,FALSE),"") -> 2021-02-14
A45: =IFERROR(VLOOKUP(B45,Table1[],2,FALSE),"") -> PERS RESP EDUC PROG- PREP | B45: ='Profile Overview'!B48 -> 159354 | C45: =IFERROR(IF(B45>0,(VLOOKUP(B45,Table1[],5,FALSE)+60),""),"") -> 160 | D45: =IF(B45>0,VLOOKUP(B45,Table1[],3,FALSE),"") -> 2020-10-01 | E45: =IF(B45>0,VLOOKUP(B45,Table1[],4,FALSE),"") -> 2021-09-30 | F45: =IFERROR(IF(INDEX('LHD Overview'!$A$6:$CK$93,(MATCH($A$3,'LHD Overview'!$A$6:$A$93,0)),MATCH(B45,'LHD Overview'!$A$2:$CK$2,0))>0,INDEX('LHD Overview'!$A$6:$CK$93,(MATCH($A$3,'LHD Overview'!$A$6:$A$93,0)),MATCH(B45,'LHD Overview'!$A$2:$CK$2,0)),""),"") ->  | G45: =IF(B45>0,VLOOKUP(B45,Table1[],6,FALSE),"") -> 2021-11-14
A46: =IFERROR(VLOOKUP(B46,Table1[],2,FALSE),"") -> TPCP WI WINS | B46: ='Profile Overview'!B49 -> 181004 | C46: =IFERROR(IF(B46>0,(VLOOKUP(B46,Table1[],5,FALSE)+60),""),"") -> 160 | D46: =IF(B46>0,VLOOKUP(B46,Table1[],3,FALSE),"") -> 2020-07-01 | E46: =IF(B46>0,VLOOKUP(B46,Table1[],4,FALSE),"") -> 2021-06-30 | F46: =IFERROR(IF(INDEX('LHD Overview'!$A$6:$CK$93,(MATCH($A$3,'LHD Overview'!$A$6:$A$93,0)),MATCH(B46,'LHD Overview'!$A$2:$CK$2,0))>0,INDEX('LHD Overview'!$A$6:$CK$93,(MATCH($A$3,'LHD Overview'!$A$6:$A$93,0)),MATCH(B46,'LHD Overview'!$A$2:$CK$2,0)),""),"") ->  | G46: =IF(B46>0,VLOOKUP(B46,Table1[],6,FALSE),"") -> 2021-08-14
A47: =IFERROR(VLOOKUP(B47,Table1[],2,FALSE),"") -> TPCP COMMUNITY INTRVNS | B47: ='Profile Overview'!B50 -> 181010 | C47: =IFERROR(IF(B47>0,(VLOOKUP(B47,Table1[],5,FALSE)+60),""),"") -> 160 | D47: =IF(B47>0,VLOOKUP(B47,Table1[],3,FALSE),"") -> 2020-07-01 | E47: =IF(B47>0,VLOOKUP(B47,Table1[],4,FALSE),"") -> 2021-06-30 | F47: =IFERROR(IF(INDEX('LHD Overview'!$A$6:$CK$93,(MATCH($A$3,'LHD Overview'!$A$6:$A$93,0)),MATCH(B47,'LHD Overview'!$A$2:$CK$2,0))>0,INDEX('LHD Overview'!$A$6:$CK$93,(MATCH($A$3,'LHD Overview'!$A$6:$A$93,0)),MATCH(B47,'LHD Overview'!$A$2:$CK$2,0)),""),"") ->  | G47: =IF(B47>0,VLOOKUP(B47,Table1[],6,FALSE),"") -> 2021-08-14
A48: =IFERROR(VLOOKUP(B48,Table1[],2,FALSE),"") -> MCH-CYSHCNHUBS | B48: ='Profile Overview'!B51 -> 191001 | C48: =IFERROR(IF(B48>0,(VLOOKUP(B48,Table1[],5,FALSE)+60),""),"") -> 60 | D48: =IF(B48>0,VLOOKUP(B48,Table1[],3,FALSE),"") -> 2020-01-01 | E48: =IF(B48>0,VLOOKUP(B48,Table1[],4,FALSE),"") -> 2020-12-31 | F48: =IFERROR(IF(INDEX('LHD Overview'!$A$6:$CK$93,(MATCH($A$3,'LHD Overview'!$A$6:$A$93,0)),MATCH(B48,'LHD Overview'!$A$2:$CK$2,0))>0,INDEX('LHD Overview'!$A$6:$CK$93,(MATCH($A$3,'LHD Overview'!$A$6:$A$93,0)),MATCH(B48,'LHD Overview'!$A$2:$CK$2,0)),""),"") ->  | G48: =IF(B48>0,VLOOKUP(B48,Table1[],6,FALSE),"") -> 2021-02-14

Sheet Ashland
A1: Back to Overview
A2: ='LHD Overview'!B1 -> 2020 DPH Consolidated Contract | F2: Total Amount | G2: =SUM(F:F) -> 323598
A3: Ashland County Health & Human Services Department | F3: Agency Number | G3: 2
A4: Profile Name | B4: Profile | C4: Agency Type | D4: Start Date | E4: End Date | F4: Current Amount | G4: Final Fiscal Report Due Date
A5: =IFERROR(VLOOKUP(B5,Table1[],2,FALSE),"") -> COMM DISEASE CTRL PREV LPHD | B5: ='Profile Overview'!B33 -> 155800 | C5: =IFERROR(IF(B5>0,(VLOOKUP(B5,Table1[],5,FALSE)+30),""),"") -> 130 | D5: =IF(B5>0,VLOOKUP(B5,Table1[],3,FALSE),"") -> 2020-07-01 | E5: =IF(B5>0,VLOOKUP(B5,Table1[],4,FALSE),"") -> 2021-06-30 | F5: =IFERROR(IF(INDEX('LHD Overview'!$A$6:$CK$93,(MATCH($A$3,'LHD Overview'!$A$6:$A$93,0)),MATCH(B5,'LHD Overview'!$A$2:$CK$2,0))>0,INDEX('LHD Overview'!$A$6:$CK$93,(MATCH($A$3,'LHD Overview'!$A$6:$A$93,0)),MATCH(B5,'LHD Overview'!$A$2:$CK$2,0)),""),"") -> 3200 | G5: =IF(B5>0,VLOOKUP(B5,Table1[],6,FALSE),"") -> 2021-08-14
A6: =IFERROR(VLOOKUP(B6,Table1[],2,FALSE),"") -> CHILDHOOD LEAD CONSOLIDATED | B6: ='Profile Overview'!B41 -> 157720 | C6: =IFERROR(IF(B6>0,(VLOOKUP(B6,Table1[],5,FALSE)+30),""),"") -> 30 | D6: =IF(B6>0,VLOOKUP(B6,Table1[],3,FALSE),"") -> 2020-01-01 | E6: =IF(B6>0,VLOOKUP(B6,Table1[],4,FALSE),"") -> 2020-12-31 | F6: =IFERROR(IF(INDEX('LHD Overview'!$A$6:$CK$93,(MATCH($A$3,'LHD Overview'!$A$6:$A$93,0)),MATCH(B6,'LHD Overview'!$A$2:$CK$2,0))>0,INDEX('LHD Overview'!$A$6:$CK$93,(MATCH($A$3,'LHD Overview'!$A$6:$A$93,0)),MATCH(B6,'LHD Overview'!$A$2:$CK$2,0)),""),"") -> 4265 | G6: =IF(B6>0,VLOOKUP(B6,Table1[],6,FALSE),"") -> 2021-02-14
A7: =IFERROR(VLOOKUP(B7,Table1[],2,FALSE),"") -> CONS CONTRACTS PHHS | B7: ='Profile Overview'!B42 -> 159220 | C7: =IFERROR(IF(B7>0,(VLOOKUP(B7,Table1[],5,FALSE)+30),""),"") -> 130 | D7: =IF(B7>0,VLOOKUP(B7,Table1[],3,FALSE),"") -> 2019-10-01 | E7: =IF(B7>0,VLOOKUP(B7,Table1[],4,FALSE),"") -> 2021-09-30 | F7: =IFERROR(IF(INDEX('LHD Overview'!$A$6:$CK$93,(MATCH($A$3,'LHD Overview'!$A$6:$A$93,0)),MATCH(B7,'LHD Overview'!$A$2:$CK$2,0))>0,INDEX('LHD Overview'!$A$6:$CK$93,(MATCH($A$3,'LHD Overview'!$A$6:$A$93,0)),MATCH(B7,'LHD Overview'!$A$2:$CK$2,0)),""),"") -> 6205 | G7: =IF(B7>0,VLOOKUP(B7,Table1[],6,FALSE),"") -> 2021-11-14
A8: =IFERROR(VLOOKUP(B8,Table1[],2,FALSE),"") -> CONS CONTRACTS IMM | B8: ='Profile Overview'!B26 -> 155020 | C8: =IFERROR(IF(B8>0,(VLOOKUP(B8,Table1[],5,FALSE)+30),""),"") -> 30 | D8: =IF(B8>0,VLOOKUP(B8,Table1[],3,FALSE),"") -> 2020-01-01 | E8: =IF(B8>0,VLOOKUP(B8,Table1[],4,FALSE),"") -> 2020-12-31 | F8: =IFERROR(IF(INDEX('LHD Overview'!$A$6:$CK$93,(MATCH($A$3,'LHD Overview'!$A$6:$A$93,0)),MATCH(B8,'LHD Overview'!$A$2:$CK$2,0))>0,INDEX('LHD Overview'!$A$6:$CK$93,(MATCH($A$3,'LHD Overview'!$A$6:$A$93,0)),MATCH(B8,'LHD Overview'!$A$2:$CK$2,0)),""),"") -> 7498 | G8: =IF(B8>0,VLOOKUP(B8,Table1[],6,FALSE),"") -> 2021-02-14
A9: =IFERROR(VLOOKUP(B9,Table1[],2,FALSE),"") -> WH/FP RH 20.435 (1)(EV) | B9: ='Profile Overview'!B44 -> 159322 | C9: =IFERROR(IF(B9>0,(VLOOKUP(B9,Table1[],5,FALSE)+30),""),"") -> 30 | D9: =IF(B9>0,VLOOKUP(B9,Table1[],3,FALSE),"") -> 2020-01-01 | E9: =IF(B9>0,VLOOKUP(B9,Table1[],4,FALSE),"") -> 2020-12-31 | F9: =IFERROR(IF(INDEX('LHD Overview'!$A$6:$CK$93,(MATCH($A$3,'LHD Overview'!$A$6:$A$93,0)),MATCH(B9,'LHD Overview'!$A$2:$CK$2,0))>0,INDEX('LHD Overview'!$A$6:$CK$93,(MATCH($A$3,'LHD Overview'!$A$6:$A$93,0)),MATCH(B9,'LHD Overview'!$A$2:$CK$2,0)),""),"") -> 8180 | G9: =IF(B9>0,VLOOKUP(B9,Table1[],6,FALSE),"") -> 2021-02-14
A10: =IFERROR(VLOOKUP(B10,Table1[],2,FALSE),"") -> CONS CONTRACTS MCH | B10: ='Profile Overview'!B43 -> 159320 | C10: =IFERROR(IF(B10>0,(VLOOKUP(B10,Table1[],5,FALSE)+30),""),"") -> 30 | D10: =IF(B10>0,VLOOKUP(B10,Table1[],3,FALSE),"") -> 2020-01-01 | E10: =IF(B10>0,VLOOKUP(B10,Table1[],4,FALSE),"") -> 2020-12-31 | F10: =IFERROR(IF(INDEX('LHD Overview'!$A$6:$CK$93,(MATCH($A$3,'LHD Overview'!$A$6:$A$93,0)),MATCH(B10,'LHD Overview'!$A$2:$CK$2,0))>0,INDEX('LHD Overview'!$A$6:$CK$93,(MATCH($A$3,'LHD Overview'!$A$6:$A$93,0)),MATCH(B10,'LHD Overview'!$A$2:$CK$2,0)),""),"") -> 11050 | G10: =IF(B10>0,VLOOKUP(B10,Table1[],6,FALSE),"") -> 2021-02-14
A11: =IFERROR(VLOOKUP(B11,Table1[],2,FALSE),"") -> ELC CARES COVID19 | B11: ='Profile Overview'!B35 -> 155802 | C11: =IFERROR(IF(B11>0,(VLOOKUP(B11,Table1[],5,FALSE)+30),""),"") -> 130 | D11: =IF(B11>0,VLOOKUP(B11,Table1[],3,FALSE),"") -> 2020-02-01 | E11: =IF(B11>0,VLOOKUP(B11,Table1[],4,FALSE),"") -> 2021-09-30 | F11: =IFERROR(IF(INDEX('LHD Overview'!$A$6:$CK$93,(MATCH($A$3,'LHD Overview'!$A$6:$A$93,0)),MATCH(B11,'LHD Overview'!$A$2:$CK$2,0))>0,INDEX('LHD Overview'!$A$6:$CK$93,(MATCH($A$3,'LHD Overview'!$A$6:$A$93,0)),MATCH(B11,'LHD Overview'!$A$2:$CK$2,0)),""),"") -> 12800 | G11: =IF(B11>0,VLOOKUP(B11,Table1[],6,FALSE),"") -> 2021-11-14
A12: =IFERROR(VLOOKUP(B12,Table1[],2,FALSE),"") -> TITLE X SERVICES | B12: ='Profile Overview'!B46 -> 159328 | C12: =IFERROR(IF(B12>0,(VLOOKUP(B12,Table1[],5,FALSE)+30),""),"") -> 130 | D12: =IF(B12>0,VLOOKUP(B12,Table1[],3,FALSE),"") -> 2020-04-01 | E12: =IF(B12>0,VLOOKUP(B12,Table1[],4,FALSE),"") -> 2021-03-31 | F12: =IFERROR(IF(INDEX('LHD Overview'!$A$6:$CK$93,(MATCH($A$3,'LHD Overview'!$A$6:$A$93,0)),MATCH(B12,'LHD Overview'!$A$2:$CK$2,0))>0,INDEX('LHD Overview'!$A$6:$CK$93,(MATCH($A$3,'LHD Overview'!$A$6:$A$93,0)),MATCH(B12,'LHD Overview'!$A$2:$CK$2,0)),""),"") -> 14000 | G12: =IF(B12>0,VLOOKUP(B12,Table1[],6,FALSE),"") -> 2021-05-15
A13: =IFERROR(VLOOKUP(B13,Table1[],2,FALSE),"") -> CARES COVID19 TESTING | B13: ='Profile Overview'!B36 -> 155803 | C13: =IFERROR(IF(B13>0,(VLOOKUP(B13,Table1[],5,FALSE)+30),""),"") -> 30 | D13: =IF(B13>0,VLOOKUP(B13,Table1[],3,FALSE),"") -> 2020-03-01 | E13: =IF(B13>0,VLOOKUP(B13,Table1[],4,FALSE),"") -> 2020-12-31 | F13: =IFERROR(IF(INDEX('LHD Overview'!$A$6:$CK$93,(MATCH($A$3,'LHD Overview'!$A$6:$A$93,0)),MATCH(B13,'LHD Overview'!$A$2:$CK$2,0))>0,INDEX('LHD Overview'!$A$6:$CK$93,(MATCH($A$3,'LHD Overview'!$A$6:$A$93,0)),MATCH(B13,'LHD Overview'!$A$2:$CK$2,0)),""),"") -> 16130 | G13: =IF(B13>0,VLOOKUP(B13,Table1[],6,FALSE),"") -> 2021-02-14
A14: =IFERROR(VLOOKUP(B14,Table1[],2,FALSE),"") -> CARES COVID19 PLAN | B14: ='Profile Overview'!B37 -> 155804 | C14: =IFERROR(IF(B14>0,(VLOOKUP(B14,Table1[],5,FALSE)+30),""),"") -> 30 | D14: =IF(B14>0,VLOOKUP(B14,Table1[],3,FALSE),"") -> 2020-03-01 | E14: =IF(B14>0,VLOOKUP(B14,Table1[],4,FALSE),"") -> 2020-12-31 | F14: =IFERROR(IF(INDEX('LHD Overview'!$A$6:$CK$93,(MATCH($A$3,'LHD Overview'!$A$6:$A$93,0)),MATCH(B14,'LHD Overview'!$A$2:$CK$2,0))>0,INDEX('LHD Overview'!$A$6:$CK$93,(MATCH($A$3,'LHD Overview'!$A$6:$A$93,0)),MATCH(B14,'LHD Overview'!$A$2:$CK$2,0)),""),"") -> 30000 | G14: =IF(B14>0,VLOOKUP(B14,Table1[],6,FALSE),"") -> 2021-02-14
A15: =IFERROR(VLOOKUP(B15,Table1[],2,FALSE),"") -> BIOT Focus A Planning | B15: ='Profile Overview'!B25 -> 155015 | C15: =IFERROR(IF(B15>0,(VLOOKUP(B15,Table1[],5,FALSE)+30),""),"") -> 130 | D15: =IF(B15>0,VLOOKUP(B15,Table1[],3,FALSE),"") -> 2020-07-01 | E15: =IF(B15>0,VLOOKUP(B15,Table1[],4,FALSE),"") -> 2021-06-30 | F15: =IFERROR(IF(INDEX('LHD Overview'!$A$6:$CK$93,(MATCH($A$3,'LHD Overview'!$A$6:$A$93,0)),MATCH(B15,'LHD Overview'!$A$2:$CK$2,0))>0,INDEX('LHD Overview'!$A$6:$CK$93,(MATCH($A$3,'LHD Overview'!$A$6:$A$93,0)),MATCH(B15,'LHD Overview'!$A$2:$CK$2,0)),""),"") -> 36973 | G15: =IF(B15>0,VLOOKUP(B15,Table1[],6,FALSE),"") -> 2021-08-14
A16: =IFERROR(VLOOKUP(B16,Table1[],2,FALSE),"") -> DPH PHEP COVID19 | B16: ='Profile Overview'!B34 -> 155801 | C16: =IFERROR(IF(B16>0,(VLOOKUP(B16,Table1[],5,FALSE)+30),""),"") -> 130 | D16: =IF(B16>0,VLOOKUP(B16,Table1[],3,FALSE),"") -> 2020-04-01 | E16: =IF(B16>0,VLOOKUP(B16,Table1[],4,FALSE),"") -> 2021-03-31 | F16: =IFERROR(IF(INDEX('LHD Overview'!$A$6:$CK$93,(MATCH($A$3,'LHD Overview'!$A$6:$A$93,0)),MATCH(B16,'LHD Overview'!$A$2:$CK$2,0))>0,INDEX('LHD Overview'!$A$6:$CK$93,(MATCH($A$3,'LHD Overview'!$A$6:$A$93,0)),MATCH(B16,'LHD Overview'!$A$2:$CK$2,0)),""),"") -> 36973 | G16: =IF(B16>0,VLOOKUP(B16,Table1[],6,FALSE),"") -> 2021-05-15
A17: =IFERROR(VLOOKUP(B17,Table1[],2,FALSE),"") -> COVID19 Contact Tracing | B17: ='Profile Overview'!B38 -> 155805 | C17: =IFERROR(IF(B17>0,(VLOOKUP(B17,Table1[],5,FALSE)+30),""),"") -> 30 | D17: =IF(B17>0,VLOOKUP(B17,Table1[],3,FALSE),"") -> 2020-03-01 | E17: =IF(B17>0,VLOOKUP(B17,Table1[],4,FALSE),"") -> 2020-12-31 | F17: =IFERROR(IF(INDEX('LHD Overview'!$A$6:$CK$93,(MATCH($A$3,'LHD Overview'!$A$6:$A$93,0)),MATCH(B17,'LHD Overview'!$A$2:$CK$2,0))>0,INDEX('LHD Overview'!$A$6:$CK$93,(MATCH($A$3,'LHD Overview'!$A$6:$A$93,0)),MATCH(B17,'LHD Overview'!$A$2:$CK$2,0)),""),"") -> 136324 | G17: =IF(B17>0,VLOOKUP(B17,Table1[],6,FALSE),"") -> 2021-02-14
A18: =IFERROR(VLOOKUP(B18,Table1[],2,FALSE),"") -> OPIOID RX PATHWAY PROJ | B18: ='Profile Overview'!B13 -> 150211 | C18: =IFERROR(IF(B18>0,(VLOOKUP(B18,Table1[],5,FALSE)+30),""),"") -> 130 | D18: =IF(B18>0,VLOOKUP(B18,Table1[],3,FALSE),"") -> 2020-09-01 | E18: =IF(B18>0,VLOOKUP(B18,Table1[],4,FALSE),"") -> 2021-08-31 | F18: =IFERROR(IF(INDEX('LHD Overview'!$A$6:$CK$93,(MATCH($A$3,'LHD Overview'!$A$6:$A$93,0)),MATCH(B18,'LHD Overview'!$A$2:$CK$2,0))>0,INDEX('LHD Overview'!$A$6:$CK$93,(MATCH($A$3,'LHD Overview'!$A$6:$A$93,0)),MATCH(B18,'LHD Overview'!$A$2:$CK$2,0)),""),"") ->  | G18: =IF(B18>0,VLOOKUP(B18,Table1[],6,FALSE),"") -> 2021-10-15
A19: =IFERROR(VLOOKUP(B19,Table1[],2,FALSE),"") -> CONGENITAL DISORDERS | B19: ='Profile Overview'!B12 -> 128010 | C19: =IFERROR(IF(B19>0,(VLOOKUP(B19,Table1[],5,FALSE)+30),""),"") -> 130 | D19: =IF(B19>0,VLOOKUP(B19,Table1[],3,FALSE),"") -> 2020-07-01 | E19: =IF(B19>0,VLOOKUP(B19,Table1[],4,FALSE),"") -> 2021-06-30 | F19: =IFERROR(IF(INDEX('LHD Overview'!$A$6:$CK$93,(MATCH($A$3,'LHD Overview'!$A$6:$A$93,0)),MATCH(B19,'LHD Overview'!$A$2:$CK$2,0))>0,INDEX('LHD Overview'!$A$6:$CK$93,(MATCH($A$3,'LHD Overview'!$A$6:$A$93,0)),MATCH(B19,'LHD Overview'!$A$2:$CK$2,0)),""),"") ->  | G19: =IF(B19>0,VLOOKUP(B19,Table1[],6,FALSE),"") -> 2021-08-14
A20: =IFERROR(VLOOKUP(B20,Table1[],2,FALSE),"") -> BIOTERRORISM FOCUS A | B20: ='Profile Overview'!B28 -> 155050 | C20: =IFERROR(IF(B20>0,(VLOOKUP(B20,Table1[],5,FALSE)+30),""),"") -> 130 | D20: =IF(B20>0,VLOOKUP(B20,Table1[],3,FALSE),"") -> 2020-07-01 | E20: =IF(B20>0,VLOOKUP(B20,Table1[],4,FALSE),"") -> 2021-06-30 | F20: =IFERROR(IF(INDEX('LHD Overview'!$A$6:$CK$93,(MATCH($A$3,'LHD Overview'!$A$6:$A$93,0)),MATCH(B20,'LHD Overview'!$A$2:$CK$2,0))>0,INDEX('LHD Overview'!$A$6:$CK$93,(MATCH($A$3,'LHD Overview'!$A$6:$A$93,0)),MATCH(B20,'LHD Overview'!$A$2:$CK$2,0)),""),"") ->  | G20: =IF(B20>0,VLOOKUP(B20,Table1[],6,FALSE),"") -> 2021-08-14
A21: =IFERROR(VLOOKUP(B21,Table1[],2,FALSE),"") -> INFERTILITY PREVENTION | B21: ='Profile Overview'!B27 -> 155027 | C21: =IFERROR(IF(B21>0,(VLOOKUP(B21,Table1[],5,FALSE)+30),""),"") -> 30 | D21: =IF(B21>0,VLOOKUP(B21,Table1[],3,FALSE),"") -> 2020-01-01 | E21: =IF(B21>0,VLOOKUP(B21,Table1[],4,FALSE),"") -> 2020-12-31 | F21: =IFERROR(IF(INDEX('LHD Overview'!$A$6:$CK$93,(MATCH($A$3,'LHD Overview'!$A$6:$A$93,0)),MATCH(B21,'LHD Overview'!$A$2:$CK$2,0))>0,INDEX('LHD Overview'!$A$6:$CK$93,(MATCH($A$3,'LHD Overview'!$A$6:$A$93,0)),MATCH(B21,'LHD Overview'!$A$2:$CK$2,0)),""),"") ->  | G21: =IF(B21>0,VLOOKUP(B21,Table1[],6,FALSE),"") -> 2021-02-14
A22: =IFERROR(VLOOKUP(B22,Table1[],2,FALSE),"") -> BIOT PREPARE - CRI | B22: ='Profile Overview'!B32 -> 155191 | C22: =IFERROR(IF(B22>0,(VLOOKUP(B22,Table1[],5,FALSE)+30),""),"") -> 30 | D22: =IF(B22>0,VLOOKUP(B22,Table1[],3,FALSE),"") -> 2020-07-01 | E22: =IF(B22>0,VLOOKUP(B22,Table1[],4,FALSE),"") -> 2020-06-30 | F22: =IFERROR(IF(INDEX('LHD Overview'!$A$6:$CK$93,(MATCH($A$3,'LHD Overview'!$A$6:$A$93,0)),MATCH(B22,'LHD Overview'!$A$2:$CK$2,0))>0,INDEX('LHD Overview'!$A$6:$CK$93,(MATCH($A$3,'LHD Overview'!$A$6:$A$93,0)),MATCH(B22,'LHD Overview'!$A$2:$CK$2,0)),""),"") ->  | G22: =IF(B22>0,VLOOKUP(B22,Table1[],6,FALSE),"") -> 2020-08-14
A23: =IFERROR(VLOOKUP(B23,Table1[],2,FALSE),"") -> RAPE PREV AND EDUCATION | B23: ='Profile Overview'!B30 -> 155080 | C23: =IFERROR(IF(B23>0,(VLOOKUP(B23,Table1[],5,FALSE)+30),""),"") -> 130 | D23: =IF(B23>0,VLOOKUP(B23,Table1[],3,FALSE),"") -> 2020-02-01 | E23: =IF(B23>0,VLOOKUP(B23,Table1[],4,FALSE),"") -> 2021-01-31 | F23: =IFERROR(IF(INDEX('LHD Overview'!$A$6:$CK$93,(MATCH($A$3,'LHD Overview'!$A$6:$A$93,0)),MATCH(B23,'LHD Overview'!$A$2:$CK$2,0))>0,INDEX('LHD Overview'!$A$6:$CK$93,(MATCH($A$3,'LHD Overview'!$A$6:$A$93,0)),MATCH(B23,'LHD Overview'!$A$2:$CK$2,0)),""),"") ->  | G23: =IF(B23>0,VLOOKUP(B23,Table1[],6,FALSE),"") -> 2021-03-17
A24: =IFERROR(VLOOKUP(B24,Table1[],2,FALSE),"") -> BREASTFEEDING CAMPAIGN | B24: ='Profile Overview'!B23 -> 154761 | C24: =IFERROR(IF(B24>0,(VLOOKUP(B24,Table1[],5,FALSE)+30),""),"") -> 130 | D24: =IF(B24>0,VLOOKUP(B24,Table1[],3,FALSE),"") -> 2020-10-01 | E24: =IF(B24>0,VLOOKUP(B24,Table1[],4,FALSE),"") -> 2021-09-30 | F24: =IFERROR(IF(INDEX('LHD Overview'!$A$6:$CK$93,(MATCH($A$3,'LHD Overview'!$A$6:$A$93,0)),MATCH(B24,'LHD Overview'!$A$2:$CK$2,0))>0,INDEX('LHD Overview'!$A$6:$CK$93,(MATCH($A$3,'LHD Overview'!$A$6:$A$93,0)),MATCH(B24,'LHD Overview'!$A$2:$CK$2,0)),""),"") ->  | G24: =IF(B24>0,VLOOKUP(B24,Table1[],6,FALSE),"") -> 2021-11-14
A25: =IFERROR(VLOOKUP(B25,Table1[],2,FALSE),"") -> ASTHMA CAPACITY | B25: ='Profile Overview'!B29 -> 155072 | C25: =IFERROR(IF(B25>0,(VLOOKUP(B25,Table1[],5,FALSE)+30),""),"") -> 130 | D25: =IF(B25>0,VLOOKUP(B25,Table1[],3,FALSE),"") -> 2020-09-01 | E25: =IF(B25>0,VLOOKUP(B25,Table1[],4,FALSE),"") -> 2021-08-31 | F25: =IFERROR(IF(INDEX('LHD Overview'!$A$6:$CK$93,(MATCH($A$3,'LHD Overview'!$A$6:$A$93,0)),MATCH(B25,'LHD Overview'!$A$2:$CK$2,0))>0,INDEX('LHD Overview'!$A$6:$CK$93,(MATCH($A$3,'LHD Overview'!$A$6:$A$93,0)),MATCH(B25,'LHD Overview'!$A$2:$CK$2,0)),""),"") ->  | G25: =IF(B25>0,VLOOKUP(B25,Table1[],6,FALSE),"") -> 2021-10-15
A26: =IFERROR(VLOOKUP(B26,Table1[],2,FALSE),"") -> REGNL RADON INF CENTERS | B26: ='Profile Overview'!B8 -> 103010 | C26: =IFERROR(IF(B26>0,(VLOOKUP(B26,Table1[],5,FALSE)+30),""),"") -> 30 | D26: =IF(B26>0,VLOOKUP(B26,Table1[],3,FALSE),"") -> 2020-01-01 | E26: =IF(B26>0,VLOOKUP(B26,Table1[],4,FALSE),"") -> 2020-12-31 | F26: =IFERROR(IF(INDEX('LHD Overview'!$A$6:$CK$93,(MATCH($A$3,'LHD Overview'!$A$6:$A$93,0)),MATCH(B26,'LHD Overview'!$A$2:$CK$2,0))>0,INDEX('LHD Overview'!$A$6:$CK$93,(MATCH($A$3,'LHD Overview'!$A$6:$A$93,0)),MATCH(B26,'LHD Overview'!$A$2:$CK$2,0)),""),"") ->  | G26: =IF(B26>0,VLOOKUP(B26,Table1[],6,FALSE),"") -> 2021-02-14
A27: =IFERROR(VLOOKUP(B27,Table1[],2,FALSE),"") -> PH EMERGENCY QUARANTINE | B27: ='Profile Overview'!B9 -> 105000 | C27: =IFERROR(IF(B27>0,(VLOOKUP(B27,Table1[],5,FALSE)+30),""),"") -> 130 | D27: =IF(B27>0,VLOOKUP(B27,Table1[],3,FALSE),"") -> 2020-08-01 | E27: =IF(B27>0,VLOOKUP(B27,Table1[],4,FALSE),"") -> 2021-06-30 | F27: =IFERROR(IF(INDEX('LHD Overview'!$A$6:$CK$93,(MATCH($A$3,'LHD Overview'!$A$6:$A$93,0)),MATCH(B27,'LHD Overview'!$A$2:$CK$2,0))>0,INDEX('LHD Overview'!$A$6:$CK$93,(MATCH($A$3,'LHD Overview'!$A$6:$A$93,0)),MATCH(B27,'LHD Overview'!$A$2:$CK$2,0)),""),"") ->  | G27: =IF(B27>0,VLOOKUP(B27,Table1[],6,FALSE),"") -> 2021-08-14
A28: =IFERROR(VLOOKUP(B28,Table1[],2,FALSE),"") -> INFANT MORTALITY-RACINE | B28: ='Profile Overview'!B10 -> 110190 | C28: =IFERROR(IF(B28>0,(VLOOKUP(B28,Table1[],5,FALSE)+30),""),"") -> 130 | D28: =IF(B28>0,VLOOKUP(B28,Table1[],3,FALSE),"") -> 2020-07-01 | E28: =IF(B28>0,VLOOKUP(B28,Table1[],4,FALSE),"") -> 2021-06-30 | F28: =IFERROR(IF(INDEX('LHD Overview'!$A$6:$CK$93,(MATCH($A$3,'LHD Overview'!$A$6:$A$93,0)),MATCH(B28,'LHD Overview'!$A$2:$CK$2,0))>0,INDEX('LHD Overview'!$A$6:$CK$93,(MATCH($A$3,'LHD Overview'!$A$6:$A$93,0)),MATCH(B28,'LHD Overview'!$A$2:$CK$2,0)),""),"") ->  | G28: =IF(B28>0,VLOOKUP(B28,Table1[],6,FALSE),"") -> 2021-08-14
A29: =IFERROR(VLOOKUP(B29,Table1[],2,FALSE),"") -> GPR CANCER, CITY OF MILW | B29: ='Profile Overview'!B11 -> 119011 | C29: =IFERROR(IF(B29>0,(VLOOKUP(B29,Table1[],5,FALSE)+30),""),"") -> 130 | D29: =IF(B29>0,VLOOKUP(B29,Table1[],3,FALSE),"") -> 2020-07-01 | E29: =IF(B29>0,VLOOKUP(B29,Table1[],4,FALSE),"") -> 2021-06-30 | F29: =IFERROR(IF(INDEX('LHD Overview'!$A$6:$CK$93,(MATCH($A$3,'LHD Overview'!$A$6:$A$93,0)),MATCH(B29,'LHD Overview'!$A$2:$CK$2,0))>0,INDEX('LHD Overview'!$A$6:$CK$93,(MATCH($A$3,'LHD Overview'!$A$6:$A$93,0)),MATCH(B29,'LHD Overview'!$A$2:$CK$2,0)),""),"") ->  | G29: =IF(B29>0,VLOOKUP(B29,Table1[],6,FALSE),"") -> 2021-08-14
A30: =IFERROR(VLOOKUP(B30,Table1[],2,FALSE),"") -> OVERDOSE FATALITY REVIEWS | B30: ='Profile Overview'!B14 -> 150216 | C30: =IFERROR(IF(B30>0,(VLOOKUP(B30,Table1[],5,FALSE)+30),""),"") -> 130 | D30: =IF(B30>0,VLOOKUP(B30,Table1[],3,FALSE),"") -> 2020-09-01 | E30: =IF(B30>0,VLOOKUP(B30,Table1[],4,FALSE),"") -> 2021-08-31 | F30: =IFERROR(IF(INDEX('LHD Overview'!$A$6:$CK$93,(MATCH($A$3,'LHD Overview'!$A$6:$A$93,0)),MATCH(B30,'LHD Overview'!$A$2:$CK$2,0))>0,INDEX('LHD Overview'!$A$6:$CK$93,(MATCH($A$3,'LHD Overview'!$A$6:$A$93,0)),MATCH(B30,'LHD Overview'!$A$2:$CK$2,0)),""),"") ->  | G30: =IF(B30>0,VLOOKUP(B30,Table1[],6,FALSE),"") -> 2021-10-15
A31: =IFERROR(VLOOKUP(B31,Table1[],2,FALSE),"") -> EPA INDOOR RADON SERVICES | B31: ='Profile Overview'!B15 -> 150321 | C31: =IFERROR(IF(B31>0,(VLOOKUP(B31,Table1[],5,FALSE)+30),""),"") -> 30 | D31: =IF(B31>0,VLOOKUP(B31,Table1[],3,FALSE),"") -> 2020-01-01 | E31: =IF(B31>0,VLOOKUP(B31,Table1[],4,FALSE),"") -> 2020-12-31 | F31: =IFERROR(IF(INDEX('LHD Overview'!$A$6:$CK$93,(MATCH($A$3,'LHD Overview'!$A$6:$A$93,0)),MATCH(B31,'LHD Overview'!$A$2:$CK$2,0))>0,INDEX('LHD Overview'!$A$6:$CK$93,(MATCH($A$3,'LHD Overview'!$A$6:$A$93,0)),MATCH(B31,'LHD Overview'!$A$2:$CK$2,0)),""),"") ->  | G31: =IF(B31>0,VLOOKUP(B31,Table1[],6,FALSE),"") -> 2021-02-14
A32: =IFERROR(VLOOKUP(B32,Table1[],2,FALSE),"") -> 1815 DIABETES | B32: ='Profile Overview'!B16 -> 150426 | C32: =IFERROR(IF(B32>0,(VLOOKUP(B32,Table1[],5,FALSE)+30),""),"") -> 130 | D32: =IF(B32>0,VLOOKUP(B32,Table1[],3,FALSE),"") -> 2020-07-01 | E32: =IF(B32>0,VLOOKUP(B32,Table1[],4,FALSE),"") -> 2021-06-30 | F32: =IFERROR(IF(INDEX('LHD Overview'!$A$6:$CK$93,(MATCH($A$3,'LHD Overview'!$A$6:$A$93,0)),MATCH(B32,'LHD Overview'!$A$2:$CK$2,0))>0,INDEX('LHD Overview'!$A$6:$CK$93,(MATCH($A$3,'LHD Overview'!$A$6:$A$93,0)),MATCH(B32,'LHD Overview'!$A$2:$CK$2,0)),""),"") ->  | G32: =IF(B32>0,VLOOKUP(B32,Table1[],6,FALSE),"") -> 2021-08-14
A33: =IFERROR(VLOOKUP(B33,Table1[],2,FALSE),"") -> 1815 HEART DISEASE PREV | B33: ='Profile Overview'!B17 -> 150427 | C33: =IFERROR(IF(B33>0,(VLOOKUP(B33,Table1[],5,FALSE)+30),""),"") -> 130 | D33: =IF(B33>0,VLOOKUP(B33,Table1[],3,FALSE),"") -> 2020-07-01 | E33: =IF(B33>0,VLOOKUP(B33,Table1[],4,FALSE),"") -> 2021-06-30 | F33: =IFERROR(IF(INDEX('LHD Overview'!$A$6:$CK$93,(MATCH($A$3,'LHD Overview'!$A$6:$A$93,0)),MATCH(B33,'LHD Overview'!$A$2:$CK$2,0))>0,INDEX('LHD Overview'!$A$6:$CK$93,(MATCH($A$3,'LHD Overview'!$A$6:$A$93,0)),MATCH(B33,'LHD Overview'!$A$2:$CK$2,0)),""),"") ->  | G33: =IF(B33>0,VLOOKUP(B33,Table1[],6,FALSE),"") -> 2021-08-14
A34: =IFERROR(VLOOKUP(B34,Table1[],2,FALSE),"") -> 1817 SL DIABETES PREV | B34: ='Profile Overview'!B18 -> 150429 | C34: =IFERROR(IF(B34>0,(VLOOKUP(B34,Table1[],5,FALSE)+30),""),"") -> 130 | D34: =IF(B34>0,VLOOKUP(B34,Table1[],3,FALSE),"") -> 2020-10-01 | E34: =IF(B34>0,VLOOKUP(B34,Table1[],4,FALSE),"") -> 2021-09-30 | F34: =IFERROR(IF(INDEX('LHD Overview'!$A$6:$CK$93,(MATCH($A$3,'LHD Overview'!$A$6:$A$93,0)),MATCH(B34,'LHD Overview'!$A$2:$CK$2,0))>0,INDEX('LHD Overview'!$A$6:$CK$93,(MATCH($A$3,'LHD Overview'!$A$6:$A$93,0)),MATCH(B34,'LHD Overview'!$A$2:$CK$2,0)),""),"") ->  | G34: =IF(B34>0,VLOOKUP(B34,Table1[],6,FALSE),"") -> 2021-11-14
A35: =IFERROR(VLOOKUP(B35,Table1[],2,FALSE),"") -> COMM WATER FLUORIDATION | B35: ='Profile Overview'!B19 -> 151741 | C35: =IFERROR(IF(B35>0,(VLOOKUP(B35,Table1[],5,FALSE)+30),""),"") -> 130 | D35: =IF(B35>0,VLOOKUP(B35,Table1[],3,FALSE),"") -> 2020-07-01 | E35: =IF(B35>0,VLOOKUP(B35,Table1[],4,FALSE),"") -> 2021-06-30 | F35: =IFERROR(IF(INDEX('LHD Overview'!$A$6:$CK$93,(MATCH($A$3,'LHD Overview'!$A$6:$A$93,0)),MATCH(B35,'LHD Overview'!$A$2:$CK$2,0))>0,INDEX('LHD Overview'!$A$6:$CK$93,(MATCH($A$3,'LHD Overview'!$A$6:$A$93,0)),MATCH(B35,'LHD Overview'!$A$2:$CK$2,0)),""),"") ->  | G35: =IF(B35>0,VLOOKUP(B35,Table1[],6,FALSE),"") -> 2021-08-14
A36: =IFERROR(VLOOKUP(B36,Table1[],2,FALSE),"") -> WH/FP RH 253.07 (E) | B36: ='Profile Overview'!B20 -> 152003 | C36: =IFERROR(IF(B36>0,(VLOOKUP(B36,Table1[],5,FALSE)+30),""),"") -> 30 | D36: =IF(B36>0,VLOOKUP(B36,Table1[],3,FALSE),"") -> 2020-01-01 | E36: =IF(B36>0,VLOOKUP(B36,Table1[],4,FALSE),"") -> 2020-12-31 | F36: =IFERROR(IF(INDEX('LHD Overview'!$A$6:$CK$93,(MATCH($A$3,'LHD Overview'!$A$6:$A$93,0)),MATCH(B36,'LHD Overview'!$A$2:$CK$2,0))>0,INDEX('LHD Overview'!$A$6:$CK$93,(MATCH($A$3,'LHD Overview'!$A$6:$A$93,0)),MATCH(B36,'LHD Overview'!$A$2:$CK$2,0)),""),"") ->  | G36: =IF(B36>0,VLOOKUP(B36,Table1[],6,FALSE),"") -> 2021-02-14
A37: =IFERROR(VLOOKUP(B37,Table1[],2,FALSE),"") -> WH/FP RH 253.07 (D) | B37: ='Profile Overview'!B21 -> 152020 | C37: =IFERROR(IF(B37>0,(VLOOKUP(B37,Table1[],5,FALSE)+30),""),"") -> 30 | D37: =IF(B37>0,VLOOKUP(B37,Table1[],3,FALSE),"") -> 2020-01-01 | E37: =IF(B37>0,VLOOKUP(B37,Table1[],4,FALSE),"") -> 2020-12-31 | F37: =IFERROR(IF(INDEX('LHD Overview'!$A$6:$CK$93,(MATCH($A$3,'LHD Overview'!$A$6:$A$93,0)),MATCH(B37,'LHD Overview'!$A$2:$CK$2,0))>0,INDEX('LHD Overview'!$A$6:$CK$93,(MATCH($A$3,'LHD Overview'!$A$6:$A$93,0)),MATCH(B37,'LHD Overview'!$A$2:$CK$2,0)),""),"") ->  | G37: =IF(B37>0,VLOOKUP(B37,Table1[],6,FALSE),"") -> 2021-02-14
A38: =IFERROR(VLOOKUP(B38,Table1[],2,FALSE),"") -> SNAP NUTR ED GRANT | B38: ='Profile Overview'!B22 -> 154661 | C38: =IFERROR(IF(B38>0,(VLOOKUP(B38,Table1[],5,FALSE)+30),""),"") -> 130 | D38: =IF(B38>0,VLOOKUP(B38,Table1[],3,FALSE),"") -> 2020-10-01 | E38: =IF(B38>0,VLOOKUP(B38,Table1[],4,FALSE),"") -> 2021-09-30 | F38: =IFERROR(IF(INDEX('LHD Overview'!$A$6:$CK$93,(MATCH($A$3,'LHD Overview'!$A$6:$A$93,0)),MATCH(B38,'LHD Overview'!$A$2:$CK$2,0))>0,INDEX('LHD Overview'!$A$6:$CK$93,(MATCH($A$3,'LHD Overview'!$A$6:$A$93,0)),MATCH(B38,'LHD Overview'!$A$2:$CK$2,0)),""),"") ->  | G38: =IF(B38>0,VLOOKUP(B38,Table1[],6,FALSE),"") -> 2021-11-14
A39: =IFERROR(VLOOKUP(B39,Table1[],2,FALSE),"") -> CYSHCN Birth Defects | B39: ='Profile Overview'!B24 -> 154791 | C39: =IFERROR(IF(B39>0,(VLOOKUP(B39,Table1[],5,FALSE)+30),""),"") -> 30 | D39: =IF(B39>0,VLOOKUP(B39,Table1[],3,FALSE),"") -> 2020-01-01 | E39: =IF(B39>0,VLOOKUP(B39,Table1[],4,FALSE),"") -> 2020-06-30 | F39: =IFERROR(IF(INDEX('LHD Overview'!$A$6:$CK$93,(MATCH($A$3,'LHD Overview'!$A$6:$A$93,0)),MATCH(B39,'LHD Overview'!$A$2:$CK$2,0))>0,INDEX('LHD Overview'!$A$6:$CK$93,(MATCH($A$3,'LHD Overview'!$A$6:$A$93,0)),MATCH(B39,'LHD Overview'!$A$2:$CK$2,0)),""),"") ->  | G39: =IF(B39>0,VLOOKUP(B39,Table1[],6,FALSE),"") -> 2020-08-14
A40: =IFERROR(VLOOKUP(B40,Table1[],2,FALSE),"") -> BIOT PREPARE - CRI | B40: ='Profile Overview'!B31 -> 155190 | C40: =IFERROR(IF(B40>0,(VLOOKUP(B40,Table1[],5,FALSE)+30),""),"") -> 30 | D40: =IF(B40>0,VLOOKUP(B40,Table1[],3,FALSE),"") -> 2020-07-01 | E40: =IF(B40>0,VLOOKUP(B40,Table1[],4,FALSE),"") -> 2020-06-30 | F40: =IFERROR(IF(INDEX('LHD Overview'!$A$6:$CK$93,(MATCH($A$3,'LHD Overview'!$A$6:$A$93,0)),MATCH(B40,'LHD Overview'!$A$2:$CK$2,0))>0,INDEX('LHD Overview'!$A$6:$CK$93,(MATCH($A$3,'LHD Overview'!$A$6:$A$93,0)),MATCH(B40,'LHD Overview'!$A$2:$CK$2,0)),""),"") ->  | G40: =IF(B40>0,VLOOKUP(B40,Table1[],6,FALSE),"") -> 2020-08-14
A41: =IFERROR(VLOOKUP(B41,Table1[],2,FALSE),"") -> DIS FIELD STAFF | B41: ='Profile Overview'!B39 -> 155945 | C41: =IFERROR(IF(B41>0,(VLOOKUP(B41,Table1[],5,FALSE)+30),""),"") -> 30 | D41: =IF(B41>0,VLOOKUP(B41,Table1[],3,FALSE),"") -> 2020-01-01 | E41: =IF(B41>0,VLOOKUP(B41,Table1[],4,FALSE),"") -> 2020-12-31 | F41: =IFERROR(IF(INDEX('LHD Overview'!$A$6:$CK$93,(MATCH($A$3,'LHD Overview'!$A$6:$A$93,0)),MATCH(B41,'LHD Overview'!$A$2:$CK$2,0))>0,INDEX('LHD Overview'!$A$6:$CK$93,(MATCH($A$3,'LHD Overview'!$A$6:$A$93,0)),MATCH(B41,'LHD Overview'!$A$2:$CK$2,0)),""),"") ->  | G41: =IF(B41>0,VLOOKUP(B41,Table1[],6,FALSE),"") -> 2021-02-14
A42: =IFERROR(VLOOKUP(B42,Table1[],2,FALSE),"") -> HIV PREV PS & LINKAGES | B42: ='Profile Overview'!B40 -> 155957 | C42: =IFERROR(IF(B42>0,(VLOOKUP(B42,Table1[],5,FALSE)+30),""),"") -> 30 | D42: =IF(B42>0,VLOOKUP(B42,Table1[],3,FALSE),"") -> 2020-01-01 | E42: =IF(B42>0,VLOOKUP(B42,Table1[],4,FALSE),"") -> 2020-12-31 | F42: =IFERROR(IF(INDEX('LHD Overview'!$A$6:$CK$93,(MATCH($A$3,'LHD Overview'!$A$6:$A$93,0)),MATCH(B42,'LHD Overview'!$A$2:$CK$2,0))>0,INDEX('LHD Overview'!$A$6:$CK$93,(MATCH($A$3,'LHD Overview'!$A$6:$A$93,0)),MATCH(B42,'LHD Overview'!$A$2:$CK$2,0)),""),"") ->  | G42: =IF(B42>0,VLOOKUP(B42,Table1[],6,FALSE),"") -> 2021-02-14
A43: =IFERROR(VLOOKUP(B43,Table1[],2,FALSE),"") -> WH/FP RH 253.07(4)(A) | B43: ='Profile Overview'!B45 -> 159327 | C43: =IFERROR(IF(B43>0,(VLOOKUP(B43,Table1[],5,FALSE)+30),""),"") -> 30 | D43: =IF(B43>0,VLOOKUP(B43,Table1[],3,FALSE),"") -> 2020-01-01 | E43: =IF(B43>0,VLOOKUP(B43,Table1[],4,FALSE),"") -> 2020-12-31 | F43: =IFERROR(IF(INDEX('LHD Overview'!$A$6:$CK$93,(MATCH($A$3,'LHD Overview'!$A$6:$A$93,0)),MATCH(B43,'LHD Overview'!$A$2:$CK$2,0))>0,INDEX('LHD Overview'!$A$6:$CK$93,(MATCH($A$3,'LHD Overview'!$A$6:$A$93,0)),MATCH(B43,'LHD Overview'!$A$2:$CK$2,0)),""),"") ->  | G43: =IF(B43>0,VLOOKUP(B43,Table1[],6,FALSE),"") -> 2021-02-14
A44: =IFERROR(VLOOKUP(B44,Table1[],2,FALSE),"") -> STATEWIDES-PERF BASED | B44: ='Profile Overview'!B47 -> 159332 | C44: =IFERROR(IF(B44>0,(VLOOKUP(B44,Table1[],5,FALSE)+30),""),"") -> 30 | D44: =IF(B44>0,VLOOKUP(B44,Table1[],3,FALSE),"") -> 2020-01-01 | E44: =IF(B44>0,VLOOKUP(B44,Table1[],4,FALSE),"") -> 2020-12-31 | F44: =IFERROR(IF(INDEX('LHD Overview'!$A$6:$CK$93,(MATCH($A$3,'LHD Overview'!$A$6:$A$93,0)),MATCH(B44,'LHD Overview'!$A$2:$CK$2,0))>0,INDEX('LHD Overview'!$A$6:$CK$93,(MATCH($A$3,'LHD Overview'!$A$6:$A$93,0)),MATCH(B44,'LHD Overview'!$A$2:$CK$2,0)),""),"") ->  | G44: =IF(B44>0,VLOOKUP(B44,Table1[],6,FALSE),"") -> 2021-02-14
A45: =IFERROR(VLOOKUP(B45,Table1[],2,FALSE),"") -> PERS RESP EDUC PROG- PREP | B45: ='Profile Overview'!B48 -> 159354 | C45: =IFERROR(IF(B45>0,(VLOOKUP(B45,Table1[],5,FALSE)+30),""),"") -> 130 | D45: =IF(B45>0,VLOOKUP(B45,Table1[],3,FALSE),"") -> 2020-10-01 | E45: =IF(B45>0,VLOOKUP(B45,Table1[],4,FALSE),"") -> 2021-09-30 | F45: =IFERROR(IF(INDEX('LHD Overview'!$A$6:$CK$93,(MATCH($A$3,'LHD Overview'!$A$6:$A$93,0)),MATCH(B45,'LHD Overview'!$A$2:$CK$2,0))>0,INDEX('LHD Overview'!$A$6:$CK$93,(MATCH($A$3,'LHD Overview'!$A$6:$A$93,0)),MATCH(B45,'LHD Overview'!$A$2:$CK$2,0)),""),"") ->  | G45: =IF(B45>0,VLOOKUP(B45,Table1[],6,FALSE),"") -> 2021-11-14
A46: =IFERROR(VLOOKUP(B46,Table1[],2,FALSE),"") -> TPCP WI WINS | B46: ='Profile Overview'!B49 -> 181004 | C46: =IFERROR(IF(B46>0,(VLOOKUP(B46,Table1[],5,FALSE)+30),""),"") -> 130 | D46: =IF(B46>0,VLOOKUP(B46,Table1[],3,FALSE),"") -> 2020-07-01 | E46: =IF(B46>0,VLOOKUP(B46,Table1[],4,FALSE),"") -> 2021-06-30 | F46: =IFERROR(IF(INDEX('LHD Overview'!$A$6:$CK$93,(MATCH($A$3,'LHD Overview'!$A$6:$A$93,0)),MATCH(B46,'LHD Overview'!$A$2:$CK$2,0))>0,INDEX('LHD Overview'!$A$6:$CK$93,(MATCH($A$3,'LHD Overview'!$A$6:$A$93,0)),MATCH(B46,'LHD Overview'!$A$2:$CK$2,0)),""),"") ->  | G46: =IF(B46>0,VLOOKUP(B46,Table1[],6,FALSE),"") -> 2021-08-14
A47: =IFERROR(VLOOKUP(B47,Table1[],2,FALSE),"") -> TPCP COMMUNITY INTRVNS | B47: ='Profile Overview'!B50 -> 181010 | C47: =IFERROR(IF(B47>0,(VLOOKUP(B47,Table1[],5,FALSE)+30),""),"") -> 130 | D47: =IF(B47>0,VLOOKUP(B47,Table1[],3,FALSE),"") -> 2020-07-01 | E47: =IF(B47>0,VLOOKUP(B47,Table1[],4,FALSE),"") -> 2021-06-30 | F47: =IFERROR(IF(INDEX('LHD Overview'!$A$6:$CK$93,(MATCH($A$3,'LHD Overview'!$A$6:$A$93,0)),MATCH(B47,'LHD Overview'!$A$2:$CK$2,0))>0,INDEX('LHD Overview'!$A$6:$CK$93,(MATCH($A$3,'LHD Overview'!$A$6:$A$93,0)),MATCH(B47,'LHD Overview'!$A$2:$CK$2,0)),""),"") ->  | G47: =IF(B47>0,VLOOKUP(B47,Table1[],6,FALSE),"") -> 2021-08-14
A48: =IFERROR(VLOOKUP(B48,Table1[],2,FALSE),"") -> MCH-CYSHCNHUBS | B48: ='Profile Overview'!B51 -> 191001 | C48: =IFERROR(IF(B48>0,(VLOOKUP(B48,Table1[],5,FALSE)+30),""),"") -> 30 | D48: =IF(B48>0,VLOOKUP(B48,Table1[],3,FALSE),"") -> 2020-01-01 | E48: =IF(B48>0,VLOOKUP(B48,Table1[],4,FALSE),"") -> 2020-12-31 | F48: =IFERROR(IF(INDEX('LHD Overview'!$A$6:$CK$93,(MATCH($A$3,'LHD Overview'!$A$6:$A$93,0)),MATCH(B48,'LHD Overview'!$A$2:$CK$2,0))>0,INDEX('LHD Overview'!$A$6:$CK$93,(MATCH($A$3,'LHD Overview'!$A$6:$A$93,0)),MATCH(B48,'LHD Overview'!$A$2:$CK$2,0)),""),"") ->  | G48: =IF(B48>0,VLOOKUP(B48,Table1[],6,FALSE),"") -> 2021-02-14

Sheet Barron
A1: Back to Overview
A2: ='LHD Overview'!B1 -> 2020 DPH Consolidated Contract | F2: Total Amount | G2: =SUM(F:F) -> 746060
A3: Barron County Health and Human Services Department | F3: Agency Number | G3: 3
A4: Profile Name | B4: Profile | C4: Agency Type | D4: Start Date | E4: End Date | F4: Current Amount | G4: Final Fiscal Report Due Date
A5: =IFERROR(VLOOKUP(B5,Table1[],2,FALSE),"") -> COMM DISEASE CTRL PREV LPHD | B5: ='Profile Overview'!B33 -> 155800 | C5: =IFERROR(IF(B5>0,(VLOOKUP(B5,Table1[],5,FALSE)+30),""),"") -> 130 | D5: =IF(B5>0,VLOOKUP(B5,Table1[],3,FALSE),"") -> 2020-07-01 | E5: =IF(B5>0,VLOOKUP(B5,Table1[],4,FALSE),"") -> 2021-06-30 | F5: =IFERROR(IF(INDEX('LHD Overview'!$A$6:$CK$93,(MATCH($A$3,'LHD Overview'!$A$6:$A$93,0)),MATCH(B5,'LHD Overview'!$A$2:$CK$2,0))>0,INDEX('LHD Overview'!$A$6:$CK$93,(MATCH($A$3,'LHD Overview'!$A$6:$A$93,0)),MATCH(B5,'LHD Overview'!$A$2:$CK$2,0)),""),"") -> 4500 | G5: =IF(B5>0,VLOOKUP(B5,Table1[],6,FALSE),"") -> 2021-08-14
A6: =IFERROR(VLOOKUP(B6,Table1[],2,FALSE),"") -> CHILDHOOD LEAD CONSOLIDATED | B6: ='Profile Overview'!B41 -> 157720 | C6: =IFERROR(IF(B6>0,(VLOOKUP(B6,Table1[],5,FALSE)+30),""),"") -> 30 | D6: =IF(B6>0,VLOOKUP(B6,Table1[],3,FALSE),"") -> 2020-01-01 | E6: =IF(B6>0,VLOOKUP(B6,Table1[],4,FALSE),"") -> 2020-12-31 | F6: =IFERROR(IF(INDEX('LHD Overview'!$A$6:$CK$93,(MATCH($A$3,'LHD Overview'!$A$6:$A$93,0)),MATCH(B6,'LHD Overview'!$A$2:$CK$2,0))>0,INDEX('LHD Overview'!$A$6:$CK$93,(MATCH($A$3,'LHD Overview'!$A$6:$A$93,0)),MATCH(B6,'LHD Overview'!$A$2:$CK$2,0)),""),"") -> 6687 | G6: =IF(B6>0,VLOOKUP(B6,Table1[],6,FALSE),"") -> 2021-02-14
A7: =IFERROR(VLOOKUP(B7,Table1[],2,FALSE),"") -> WH/FP RH 20.435 (1)(EV) | B7: ='Profile Overview'!B44 -> 159322 | C7: =IFERROR(IF(B7>0,(VLOOKUP(B7,Table1[],5,FALSE)+30),""),"") -> 30 | D7: =IF(B7>0,VLOOKUP(B7,Table1[],3,FALSE),"") -> 2020-01-01 | E7: =IF(B7>0,VLOOKUP(B7,Table1[],4,FALSE),"") -> 2020-12-31 | F7: =IFERROR(IF(INDEX('LHD Overview'!$A$6:$CK$93,(MATCH($A$3,'LHD Overview'!$A$6:$A$93,0)),MATCH(B7,'LHD Overview'!$A$2:$CK$2,0))>0,INDEX('LHD Overview'!$A$6:$CK$93,(MATCH($A$3,'LHD Overview'!$A$6:$A$93,0)),MATCH(B7,'LHD Overview'!$A$2:$CK$2,0)),""),"") -> 8180 | G7: =IF(B7>0,VLOOKUP(B7,Table1[],6,FALSE),"") -> 2021-02-14
A8: =IFERROR(VLOOKUP(B8,Table1[],2,FALSE),"") -> CONS CONTRACTS IMM | B8: ='Profile Overview'!B26 -> 155020 | C8: =IFERROR(IF(B8>0,(VLOOKUP(B8,Table1[],5,FALSE)+30),""),"") -> 30 | D8: =IF(B8>0,VLOOKUP(B8,Table1[],3,FALSE),"") -> 2020-01-01 | E8: =IF(B8>0,VLOOKUP(B8,Table1[],4,FALSE),"") -> 2020-12-31 | F8: =IFERROR(IF(INDEX('LHD Overview'!$A$6:$CK$93,(MATCH($A$3,'LHD Overview'!$A$6:$A$93,0)),MATCH(B8,'LHD Overview'!$A$2:$CK$2,0))>0,INDEX('LHD Overview'!$A$6:$CK$93,(MATCH($A$3,'LHD Overview'!$A$6:$A$93,0)),MATCH(B8,'LHD Overview'!$A$2:$CK$2,0)),""),"") -> 10891 | G8: =IF(B8>0,VLOOKUP(B8,Table1[],6,FALSE),"") -> 2021-02-14
A9: =IFERROR(VLOOKUP(B9,Table1[],2,FALSE),"") -> SNAP NUTR ED GRANT | B9: ='Profile Overview'!B22 -> 154661 | C9: =IFERROR(IF(B9>0,(VLOOKUP(B9,Table1[],5,FALSE)+30),""),"") -> 130 | D9: =IF(B9>0,VLOOKUP(B9,Table1[],3,FALSE),"") -> 2020-10-01 | E9: =IF(B9>0,VLOOKUP(B9,Table1[],4,FALSE),"") -> 2021-09-30 | F9: =IFERROR(IF(INDEX('LHD Overview'!$A$6:$CK$93,(MATCH($A$3,'LHD Overview'!$A$6:$A$93,0)),MATCH(B9,'LHD Overview'!$A$2:$CK$2,0))>0,INDEX('LHD Overview'!$A$6:$CK$93,(MATCH($A$3,'LHD Overview'!$A$6:$A$93,0)),MATCH(B9,'LHD Overview'!$A$2:$CK$2,0)),""),"") -> 11365 | G9: =IF(B9>0,VLOOKUP(B9,Table1[],6,FALSE),"") -> 2021-11-14
A10: =IFERROR(VLOOKUP(B10,Table1[],2,FALSE),"") -> CONS CONTRACTS PHHS | B10: ='Profile Overview'!B42 -> 159220 | C10: =IFERROR(IF(B10>0,(VLOOKUP(B10,Table1[],5,FALSE)+30),""),"") -> 130 | D10: =IF(B10>0,VLOOKUP(B10,Table1[],3,FALSE),"") -> 2019-10-01 | E10: =IF(B10>0,VLOOKUP(B10,Table1[],4,FALSE),"") -> 2021-09-30 | F10: =IFERROR(IF(INDEX('LHD Overview'!$A$6:$CK$93,(MATCH($A$3,'LHD Overview'!$A$6:$A$93,0)),MATCH(B10,'LHD Overview'!$A$2:$CK$2,0))>0,INDEX('LHD Overview'!$A$6:$CK$93,(MATCH($A$3,'LHD Overview'!$A$6:$A$93,0)),MATCH(B10,'LHD Overview'!$A$2:$CK$2,0)),""),"") -> 11676 | G10: =IF(B10>0,VLOOKUP(B10,Table1[],6,FALSE),"") -> 2021-11-14
A11: =IFERROR(VLOOKUP(B11,Table1[],2,FALSE),"") -> CARES COVID19 PLAN | B11: ='Profile Overview'!B37 -> 155804 | C11: =IFERROR(IF(B11>0,(VLOOKUP(B11,Table1[],5,FALSE)+30),""),"") -> 30 | D11: =IF(B11>0,VLOOKUP(B11,Table1[],3,FALSE),"") -> 2020-03-01 | E11: =IF(B11>0,VLOOKUP(B11,Table1[],4,FALSE),"") -> 2020-12-31 | F11: =IFERROR(IF(INDEX('LHD Overview'!$A$6:$CK$93,(MATCH($A$3,'LHD Overview'!$A$6:$A$93,0)),MATCH(B11,'LHD Overview'!$A$2:$CK$2,0))>0,INDEX('LHD Overview'!$A$6:$CK$93,(MATCH($A$3,'LHD Overview'!$A$6:$A$93,0)),MATCH(B11,'LHD Overview'!$A$2:$CK$2,0)),""),"") -> 17504 | G11: =IF(B11>0,VLOOKUP(B11,Table1[],6,FALSE),"") -> 2021-02-14
A12: =IFERROR(VLOOKUP(B12,Table1[],2,FALSE),"") -> ELC CARES COVID19 | B12: ='Profile Overview'!B35 -> 155802 | C12: =IFERROR(IF(B12>0,(VLOOKUP(B12,Table1[],5,FALSE)+30),""),"") -> 130 | D12: =IF(B12>0,VLOOKUP(B12,Table1[],3,FALSE),"") -> 2020-02-01 | E12: =IF(B12>0,VLOOKUP(B12,Table1[],4,FALSE),"") -> 2021-09-30 | F12: =IFERROR(IF(INDEX('LHD Overview'!$A$6:$CK$93,(MATCH($A$3,'LHD Overview'!$A$6:$A$93,0)),MATCH(B12,'LHD Overview'!$A$2:$CK$2,0))>0,INDEX('LHD Overview'!$A$6:$CK$93,(MATCH($A$3,'LHD Overview'!$A$6:$A$93,0)),MATCH(B12,'LHD Overview'!$A$2:$CK$2,0)),""),"") -> 18100 | G12: =IF(B12>0,VLOOKUP(B12,Table1[],6,FALSE),"") -> 2021-11-14
A13: =IFERROR(VLOOKUP(B13,Table1[],2,FALSE),"") -> CONS CONTRACTS MCH | B13: ='Profile Overview'!B43 -> 159320 | C13: =IFERROR(IF(B13>0,(VLOOKUP(B13,Table1[],5,FALSE)+30),""),"") -> 30 | D13: =IF(B13>0,VLOOKUP(B13,Table1[],3,FALSE),"") -> 2020-01-01 | E13: =IF(B13>0,VLOOKUP(B13,Table1[],4,FALSE),"") -> 2020-12-31 | F13: =IFERROR(IF(INDEX('LHD Overview'!$A$6:$CK$93,(MATCH($A$3,'LHD Overview'!$A$6:$A$93,0)),MATCH(B13,'LHD Overview'!$A$2:$CK$2,0))>0,INDEX('LHD Overview'!$A$6:$CK$93,(MATCH($A$3,'LHD Overview'!$A$6:$A$93,0)),MATCH(B13,'LHD Overview'!$A$2:$CK$2,0)),""),"") -> 19032 | G13: =IF(B13>0,VLOOKUP(B13,Table1[],6,FALSE),"") -> 2021-02-14
A14: =IFERROR(VLOOKUP(B14,Table1[],2,FALSE),"") -> BIOT Focus A Planning | B14: ='Profile Overview'!B25 -> 155015 | C14: =IFERROR(IF(B14>0,(VLOOKUP(B14,Table1[],5,FALSE)+30),""),"") -> 130 | D14: =IF(B14>0,VLOOKUP(B14,Table1[],3,FALSE),"") -> 2020-07-01 | E14: =IF(B14>0,VLOOKUP(B14,Table1[],4,FALSE),"") -> 2021-06-30 | F14: =IFERROR(IF(INDEX('LHD Overview'!$A$6:$CK$93,(MATCH($A$3,'LHD Overview'!$A$6:$A$93,0)),MATCH(B14,'LHD Overview'!$A$2:$CK$2,0))>0,INDEX('LHD Overview'!$A$6:$CK$93,(MATCH($A$3,'LHD Overview'!$A$6:$A$93,0)),MATCH(B14,'LHD Overview'!$A$2:$CK$2,0)),""),"") -> 36365 | G14: =IF(B14>0,VLOOKUP(B14,Table1[],6,FALSE),"") -> 2021-08-14
A15: =IFERROR(VLOOKUP(B15,Table1[],2,FALSE),"") -> CARES COVID19 TESTING | B15: ='Profile Overview'!B36 -> 155803 | C15: =IFERROR(IF(B15>0,(VLOOKUP(B15,Table1[],5,FALSE)+30),""),"") -> 30 | D15: =IF(B15>0,VLOOKUP(B15,Table1[],3,FALSE),"") -> 2020-03-01 | E15: =IF(B15>0,VLOOKUP(B15,Table1[],4,FALSE),"") -> 2020-12-31 | F15: =IFERROR(IF(INDEX('LHD Overview'!$A$6:$CK$93,(MATCH($A$3,'LHD Overview'!$A$6:$A$93,0)),MATCH(B15,'LHD Overview'!$A$2:$CK$2,0))>0,INDEX('LHD Overview'!$A$6:$CK$93,(MATCH($A$3,'LHD Overview'!$A$6:$A$93,0)),MATCH(B15,'LHD Overview'!$A$2:$CK$2,0)),""),"") -> 46687 | G15: =IF(B15>0,VLOOKUP(B15,Table1[],6,FALSE),"") -> 2021-02-14
A16: =IFERROR(VLOOKUP(B16,Table1[],2,FALSE),"") -> DPH PHEP COVID19 | B16: ='Profile Overview'!B34 -> 155801 | C16: =IFERROR(IF(B16>0,(VLOOKUP(B16,Table1[],5,FALSE)+30),""),"") -> 130 | D16: =IF(B16>0,VLOOKUP(B16,Table1[],3,FALSE),"") -> 2020-04-01 | E16: =IF(B16>0,VLOOKUP(B16,Table1[],4,FALSE),"") -> 2021-03-31 | F16: =IFERROR(IF(INDEX('LHD Overview'!$A$6:$CK$93,(MATCH($A$3,'LHD Overview'!$A$6:$A$93,0)),MATCH(B16,'LHD Overview'!$A$2:$CK$2,0))>0,INDEX('LHD Overview'!$A$6:$CK$93,(MATCH($A$3,'LHD Overview'!$A$6:$A$93,0)),MATCH(B16,'LHD Overview'!$A$2:$CK$2,0)),""),"") -> 48361 | G16: =IF(B16>0,VLOOKUP(B16,Table1[],6,FALSE),"") -> 2021-05-15
A17: =IFERROR(VLOOKUP(B17,Table1[],2,FALSE),"") -> TITLE X SERVICES | B17: ='Profile Overview'!B46 -> 159328 | C17: =IFERROR(IF(B17>0,(VLOOKUP(B17,Table1[],5,FALSE)+30),""),"") -> 130 | D17: =IF(B17>0,VLOOKUP(B17,Table1[],3,FALSE),"") -> 2020-04-01 | E17: =IF(B17>0,VLOOKUP(B17,Table1[],4,FALSE),"") -> 2021-03-31 | F17: =IFERROR(IF(INDEX('LHD Overview'!$A$6:$CK$93,(MATCH($A$3,'LHD Overview'!$A$6:$A$93,0)),MATCH(B17,'LHD Overview'!$A$2:$CK$2,0))>0,INDEX('LHD Overview'!$A$6:$CK$93,(MATCH($A$3,'LHD Overview'!$A$6:$A$93,0)),MATCH(B17,'LHD Overview'!$A$2:$CK$2,0)),""),"") -> 59500 | G17: =IF(B17>0,VLOOKUP(B17,Table1[],6,FALSE),"") -> 2021-05-15
A18: =IFERROR(VLOOKUP(B18,Table1[],2,FALSE),"") -> COVID19 Contact Tracing | B18: ='Profile Overview'!B38 -> 155805 | C18: =IFERROR(IF(B18>0,(VLOOKUP(B18,Table1[],5,FALSE)+30),""),"") -> 30 | D18: =IF(B18>0,VLOOKUP(B18,Table1[],3,FALSE),"") -> 2020-03-01 | E18: =IF(B18>0,VLOOKUP(B18,Table1[],4,FALSE),"") -> 2020-12-31 | F18: =IFERROR(IF(INDEX('LHD Overview'!$A$6:$CK$93,(MATCH($A$3,'LHD Overview'!$A$6:$A$93,0)),MATCH(B18,'LHD Overview'!$A$2:$CK$2,0))>0,INDEX('LHD Overview'!$A$6:$CK$93,(MATCH($A$3,'LHD Overview'!$A$6:$A$93,0)),MATCH(B18,'LHD Overview'!$A$2:$CK$2,0)),""),"") -> 447212 | G18: =IF(B18>0,VLOOKUP(B18,Table1[],6,FALSE),"") -> 2021-02-14
A19: =IFERROR(VLOOKUP(B19,Table1[],2,FALSE),"") -> 1817 SL DIABETES PREV | B19: ='Profile Overview'!B18 -> 150429 | C19: =IFERROR(IF(B19>0,(VLOOKUP(B19,Table1[],5,FALSE)+30),""),"") -> 130 | D19: =IF(B19>0,VLOOKUP(B19,Table1[],3,FALSE),"") -> 2020-10-01 | E19: =IF(B19>0,VLOOKUP(B19,Table1[],4,FALSE),"") -> 2021-09-30 | F19: =IFERROR(IF(INDEX('LHD Overview'!$A$6:$CK$93,(MATCH($A$3,'LHD Overview'!$A$6:$A$93,0)),MATCH(B19,'LHD Overview'!$A$2:$CK$2,0))>0,INDEX('LHD Overview'!$A$6:$CK$93,(MATCH($A$3,'LHD Overview'!$A$6:$A$93,0)),MATCH(B19,'LHD Overview'!$A$2:$CK$2,0)),""),"") ->  | G19: =IF(B19>0,VLOOKUP(B19,Table1[],6,FALSE),"") -> 2021-11-14
A20: =IFERROR(VLOOKUP(B20,Table1[],2,FALSE),"") -> OPIOID RX PATHWAY PROJ | B20: ='Profile Overview'!B13 -> 150211 | C20: =IFERROR(IF(B20>0,(VLOOKUP(B20,Table1[],5,FALSE)+30),""),"") -> 130 | D20: =IF(B20>0,VLOOKUP(B20,Table1[],3,FALSE),"") -> 2020-09-01 | E20: =IF(B20>0,VLOOKUP(B20,Table1[],4,FALSE),"") -> 2021-08-31 | F20: =IFERROR(IF(INDEX('LHD Overview'!$A$6:$CK$93,(MATCH($A$3,'LHD Overview'!$A$6:$A$93,0)),MATCH(B20,'LHD Overview'!$A$2:$CK$2,0))>0,INDEX('LHD Overview'!$A$6:$CK$93,(MATCH($A$3,'LHD Overview'!$A$6:$A$93,0)),MATCH(B20,'LHD Overview'!$A$2:$CK$2,0)),""),"") ->  | G20: =IF(B20>0,VLOOKUP(B20,Table1[],6,FALSE),"") -> 2021-10-15
A21: =IFERROR(VLOOKUP(B21,Table1[],2,FALSE),"") -> COMM WATER FLUORIDATION | B21: ='Profile Overview'!B19 -> 151741 | C21: =IFERROR(IF(B21>0,(VLOOKUP(B21,Table1[],5,FALSE)+30),""),"") -> 130 | D21: =IF(B21>0,VLOOKUP(B21,Table1[],3,FALSE),"") -> 2020-07-01 | E21: =IF(B21>0,VLOOKUP(B21,Table1[],4,FALSE),"") -> 2021-06-30 | F21: =IFERROR(IF(INDEX('LHD Overview'!$A$6:$CK$93,(MATCH($A$3,'LHD Overview'!$A$6:$A$93,0)),MATCH(B21,'LHD Overview'!$A$2:$CK$2,0))>0,INDEX('LHD Overview'!$A$6:$CK$93,(MATCH($A$3,'LHD Overview'!$A$6:$A$93,0)),MATCH(B21,'LHD Overview'!$A$2:$CK$2,0)),""),"") ->  | G21: =IF(B21>0,VLOOKUP(B21,Table1[],6,FALSE),"") -> 2021-08-14
A22: =IFERROR(VLOOKUP(B22,Table1[],2,FALSE),"") -> WH/FP RH 253.07 (E) | B22: ='Profile Overview'!B20 -> 152003 | C22: =IFERROR(IF(B22>0,(VLOOKUP(B22,Table1[],5,FALSE)+30),""),"") -> 30 | D22: =IF(B22>0,VLOOKUP(B22,Table1[],3,FALSE),"") -> 2020-01-01 | E22: =IF(B22>0,VLOOKUP(B22,Table1[],4,FALSE),"") -> 2020-12-31 | F22: =IFERROR(IF(INDEX('LHD Overview'!$A$6:$CK$93,(MATCH($A$3,'LHD Overview'!$A$6:$A$93,0)),MATCH(B22,'LHD Overview'!$A$2:$CK$2,0))>0,INDEX('LHD Overview'!$A$6:$CK$93,(MATCH($A$3,'LHD Overview'!$A$6:$A$93,0)),MATCH(B22,'LHD Overview'!$A$2:$CK$2,0)),""),"") ->  | G22: =IF(B22>0,VLOOKUP(B22,Table1[],6,FALSE),"") -> 2021-02-14
A23: =IFERROR(VLOOKUP(B23,Table1[],2,FALSE),"") -> BIOT PREPARE - CRI | B23: ='Profile Overview'!B32 -> 155191 | C23: =IFERROR(IF(B23>0,(VLOOKUP(B23,Table1[],5,FALSE)+30),""),"") -> 30 | D23: =IF(B23>0,VLOOKUP(B23,Table1[],3,FALSE),"") -> 2020-07-01 | E23: =IF(B23>0,VLOOKUP(B23,Table1[],4,FALSE),"") -> 2020-06-30 | F23: =IFERROR(IF(INDEX('LHD Overview'!$A$6:$CK$93,(MATCH($A$3,'LHD Overview'!$A$6:$A$93,0)),MATCH(B23,'LHD Overview'!$A$2:$CK$2,0))>0,INDEX('LHD Overview'!$A$6:$CK$93,(MATCH($A$3,'LHD Overview'!$A$6:$A$93,0)),MATCH(B23,'LHD Overview'!$A$2:$CK$2,0)),""),"") ->  | G23: =IF(B23>0,VLOOKUP(B23,Table1[],6,FALSE),"") -> 2020-08-14
